Workbook

Sheet Protect
B2: Empire District Gas Company
B3: WNAR Filing
B4: Password Protection Worksheet
B6: This worksheet provides password protection for the report pages to prevent unintentional formula changes. The password is "WNAR".
G11: All Report Worksheets are Protected

Sheet Final Checklist
B2: Empire District Gas Company
B3: Annual WNAR Filing
B4: Final Checklist
B7: Data Table List | C7: Check For | D7: Result | E7: Initials | F7: Initials
B8: Validation Lists | C8: Changes from prior filings | D8: Ok, no prior filings | E8: RS
B9: Rate Case Summary | C9: Verify Final WNAR Billing Determinants | D9: Copied from rate case workpapers received from Dana Liner | E9: RS
B10: Beta Coefficient | C10: Matches tariff sheets | D10: Ok until reset by new rate case | E10: RS
B11: Billing Determinants | C11: Matches Rate Case Summary above | D11: Ok until reset by new rate case | E11: RS
B12: Volumetric Rates | C12: Matches tariff sheets | D12: Ok until reset by new rate case | E12: RS
B13: Volumetric True-Up | C13: Data table set up, but nothing to true up yet. | D13: First entries will be made next filing. | E13: RS
B14: Normal HDD | C14: Matches Rate Case filing workpapers | D14: Ok until reset by new rate case | E14: RS
B15: Reconciliation Period Adjustment | C15: Ties out on Reconciliation Worksheet | D15: Checked and ties. | E15: RS
B16: Meter Read Schedule | C16: Reconcile with Revenue Dept. | D16: Reconciled with Robert Brown in Rev. Dept accrual workpapers | E16: RS
B17: Meter Read Schedule 2 | C17: Reconcile with Revenue Dept. | D17: Reconciled with Robert Brown in Rev. Dept accrual workpapers | E17: RS
B18: Customer Count | C18: Reconcile with Revenue Dept. | D18: Reconciled with Robert Brown in Rev. Dept accrual workpapers | E18: RS
B19: KCI Actual Temperatures | C19: Temperatures are updated from NOAA website | D19: Reconciled with Robert Brown in Rev. Dept accrual workpapers | E19: RS
B20: KCI Normal HDD | C20: Matches Rate Case filing workpapers | D20: Checked, matched, and recon with Robert Brown in Rev. Dept. | E20: RS
B21: CAWNA Amounts | C21: Ties out on Reconciliation Worksheet | D21: Checked and ties. | E21: RS
B22: WNAR Rates | C22: Ties out on Reconciliation Worksheet | D22: Checked and ties. | E22: RS
B23: WNA Revenue Allocation | C23: Total Revenue Allocation ties to General Ledger | D23: Ties to revenue reports used for GL entries | E23: RS
B24: Customer Estimated Vols and Rev | C24: Table has been updated. | D24: Checked and updated through December 2024 | E24: RS
B25: South Cycles | C25: Prior to 4/1/2024, each region had a single meter read date for each month. After 4/1/2023, meters were read on multiple cycles each month. These tables take the billing data for each monthly cycle and perform CAWNA calculations. | D25: Checked and ties to reports from Revenue Dept. | E25: RS
B26: NW Cycles | E26: RS
B27: North Cycles | E27: RS
B29: Report Worksheets | C29: Check For | D29: Result | E29: Initials | F29: Initials
B30: All Report Pages | C30: Correct year is showing on the dropdown menus. | D30: Checked OK. | E30: RS
B31: Reconciliaion worksheet | C31: No cells are shaded yellow, which indicate inconsistencies. | D31: Checked OK. | E31: RS
B32: Protect worksheet | C32: Password protection is turned on for report worksheets | D32: Checked OK. | E32: RS

Sheet Reconciliation
B2: Empire District Gas Company | E2: Filing Year
B3: WNAR Filing Reconciliation
B4: Worksheets vs. Tables
B5: Year | C5: =DateSet!C2 -> 2024
B6: Analysis Start | C6: =DateSet!C3 -> 45170
B8: CAWNA Amounts
B9: Res | C9: CAWNA Worksheets | F9: CAWNA Amount Table | I9: Difference
B10: MonthFlow | C10: North | D10: NW | E10: South | F10: North | G10: NW | H10: South | I10: North | J10: NW | K10: South
B11: =$C$6 -> 2023-09-01 | C11: ='CAWNA North'!E12 -> 4536.35 | D11: ='CAWNA NW'!E12 -> 2730.56 | E11: ='CAWNA South'!E12 -> 14209.05 | F11: =SUMPRODUCT((CAWNAAmounts[Month]=$B11)*(CAWNAAmounts[Territory]=F$10)*(CAWNAAmounts[CustClass]=$B$9)*CAWNAAmounts[CAWNA]) -> 4536.35 | G11: =SUMPRODUCT((CAWNAAmounts[Month]=$B11)*(CAWNAAmounts[Territory]=G$10)*(CAWNAAmounts[CustClass]=$B$9)*CAWNAAmounts[CAWNA]) -> 2730.56 | H11: =SUMPRODUCT((CAWNAAmounts[Month]=$B11)*(CAWNAAmounts[Territory]=H$10)*(CAWNAAmounts[CustClass]=$B$9)*CAWNAAmounts[CAWNA]) -> 14209.05 | I11: =C11-F11 -> 0 | J11: =D11-G11 -> 0 | K11: =E11-H11 -> 0
B12: =EDATE(B11,1) -> 2023-10-01 | C12: ='CAWNA North'!E13 -> 19154.23 | D12: ='CAWNA NW'!E13 -> 11528.89 | E12: ='CAWNA South'!E13 -> 59658.44 | F12: =SUMPRODUCT((CAWNAAmounts[Month]=$B12)*(CAWNAAmounts[Territory]=F$10)*(CAWNAAmounts[CustClass]=$B$9)*CAWNAAmounts[CAWNA]) -> 19154.23 | G12: =SUMPRODUCT((CAWNAAmounts[Month]=$B12)*(CAWNAAmounts[Territory]=G$10)*(CAWNAAmounts[CustClass]=$B$9)*CAWNAAmounts[CAWNA]) -> 11528.89 | H12: =SUMPRODUCT((CAWNAAmounts[Month]=$B12)*(CAWNAAmounts[Territory]=H$10)*(CAWNAAmounts[CustClass]=$B$9)*CAWNAAmounts[CAWNA]) -> 59658.44 | I12: =C12-F12 -> 0 | J12: =D12-G12 -> 0 | K12: 0
B13: =EDATE(B12,1) -> 2023-11-01 | C13: ='CAWNA North'!E14 -> -252.31 | D13: ='CAWNA NW'!E14 -> -151.87 | E13: ='CAWNA South'!E14 -> -784.73 | F13: =SUMPRODUCT((CAWNAAmounts[Month]=$B13)*(CAWNAAmounts[Territory]=F$10)*(CAWNAAmounts[CustClass]=$B$9)*CAWNAAmounts[CAWNA]) -> -252.31 | G13: =SUMPRODUCT((CAWNAAmounts[Month]=$B13)*(CAWNAAmounts[Territory]=G$10)*(CAWNAAmounts[CustClass]=$B$9)*CAWNAAmounts[CAWNA]) -> -151.87 | H13: =SUMPRODUCT((CAWNAAmounts[Month]=$B13)*(CAWNAAmounts[Territory]=H$10)*(CAWNAAmounts[CustClass]=$B$9)*CAWNAAmounts[CAWNA]) -> -784.73 | I13: 0 | J13: 0 | K13: 0
B14: =EDATE(B13,1) -> 2023-12-01 | C14: ='CAWNA North'!E15 -> 49145.05 | D14: ='CAWNA NW'!E15 -> 29479.77 | E14: ='CAWNA South'!E15 -> 152360.56 | F14: =SUMPRODUCT((CAWNAAmounts[Month]=$B14)*(CAWNAAmounts[Territory]=F$10)*(CAWNAAmounts[CustClass]=$B$9)*CAWNAAmounts[CAWNA]) -> 49145.05 | G14: =SUMPRODUCT((CAWNAAmounts[Month]=$B14)*(CAWNAAmounts[Territory]=G$10)*(CAWNAAmounts[CustClass]=$B$9)*CAWNAAmounts[CAWNA]) -> 29479.77 | H14: =SUMPRODUCT((CAWNAAmounts[Month]=$B14)*(CAWNAAmounts[Territory]=H$10)*(CAWNAAmounts[CustClass]=$B$9)*CAWNAAmounts[CAWNA]) -> 152360.56 | I14: 0 | J14: 0 | K14: 0
B15: =EDATE(B14,1) -> 2024-01-01 | C15: ='CAWNA North'!E16 -> -26368.98 | D15: ='CAWNA NW'!E16 -> -15809.06 | E15: ='CAWNA South'!E16 -> -81604.97 | F15: =SUMPRODUCT((CAWNAAmounts[Month]=$B15)*(CAWNAAmounts[Territory]=F$10)*(CAWNAAmounts[CustClass]=$B$9)*CAWNAAmounts[CAWNA]) -> -26368.98 | G15: =SUMPRODUCT((CAWNAAmounts[Month]=$B15)*(CAWNAAmounts[Territory]=G$10)*(CAWNAAmounts[CustClass]=$B$9)*CAWNAAmounts[CAWNA]) -> -15809.06 | H15: =SUMPRODUCT((CAWNAAmounts[Month]=$B15)*(CAWNAAmounts[Territory]=H$10)*(CAWNAAmounts[CustClass]=$B$9)*CAWNAAmounts[CAWNA]) -> -81604.97 | I15: 0 | J15: 0 | K15: 0
B16: =EDATE(B15,1) -> 2024-02-01 | C16: ='CAWNA North'!E17 -> 75397.54 | D16: ='CAWNA NW'!E17 -> 45294.3 | E16: ='CAWNA South'!E17 -> 233639.4 | F16: =SUMPRODUCT((CAWNAAmounts[Month]=$B16)*(CAWNAAmounts[Territory]=F$10)*(CAWNAAmounts[CustClass]=$B$9)*CAWNAAmounts[CAWNA]) -> 75397.54 | G16: =SUMPRODUCT((CAWNAAmounts[Month]=$B16)*(CAWNAAmounts[Territory]=G$10)*(CAWNAAmounts[CustClass]=$B$9)*CAWNAAmounts[CAWNA]) -> 45294.3 | H16: =SUMPRODUCT((CAWNAAmounts[Month]=$B16)*(CAWNAAmounts[Territory]=H$10)*(CAWNAAmounts[CustClass]=$B$9)*CAWNAAmounts[CAWNA]) -> 233639.4 | I16: 0 | J16: 0 | K16: 0
B17: =EDATE(B16,1) -> 2024-03-01 | C17: ='CAWNA North'!E18 -> 9934.57 | D17: ='CAWNA NW'!E18 -> 5911.67 | E17: ='CAWNA South'!E18 -> 30635.31 | F17: =SUMPRODUCT((CAWNAAmounts[Month]=$B17)*(CAWNAAmounts[Territory]=F$10)*(CAWNAAmounts[CustClass]=$B$9)*CAWNAAmounts[CAWNA]) -> 9934.57 | G17: =SUMPRODUCT((CAWNAAmounts[Month]=$B17)*(CAWNAAmounts[Territory]=G$10)*(CAWNAAmounts[CustClass]=$B$9)*CAWNAAmounts[CAWNA]) -> 5911.67 | H17: =SUMPRODUCT((CAWNAAmounts[Month]=$B17)*(CAWNAAmounts[Territory]=H$10)*(CAWNAAmounts[CustClass]=$B$9)*CAWNAAmounts[CAWNA]) -> 30635.31 | I17: 0 | J17: 0 | K17: 0
B18: 2024-04-01 | C18: ='CAWNA North'!E19 -> 1925.33 | D18: ='CAWNA NW'!E19 -> 2177.77 | E18: ='CAWNA South'!E19 -> 3867.25 | F18: =SUMPRODUCT((CAWNAAmounts[Month]=$B18)*(CAWNAAmounts[Territory]=F$10)*(CAWNAAmounts[CustClass]=$B$9)*CAWNAAmounts[CAWNA]) -> 1925.33 | G18: =SUMPRODUCT((CAWNAAmounts[Month]=$B18)*(CAWNAAmounts[Territory]=G$10)*(CAWNAAmounts[CustClass]=$B$9)*CAWNAAmounts[CAWNA]) -> 2177.77 | H18: =SUMPRODUCT((CAWNAAmounts[Month]=$B18)*(CAWNAAmounts[Territory]=H$10)*(CAWNAAmounts[CustClass]=$B$9)*CAWNAAmounts[CAWNA]) -> 3867.25 | I18: 0 | J18: 0 | K18: 0
B19: 2024-05-01 | C19: ='CAWNA North'!E20 -> 18206.17 | D19: ='CAWNA NW'!E20 -> 11948.11 | E19: ='CAWNA South'!E20 -> 57173.51 | F19: =SUMPRODUCT((CAWNAAmounts[Month]=$B19)*(CAWNAAmounts[Territory]=F$10)*(CAWNAAmounts[CustClass]=$B$9)*CAWNAAmounts[CAWNA]) -> 18206.17 | G19: =SUMPRODUCT((CAWNAAmounts[Month]=$B19)*(CAWNAAmounts[Territory]=G$10)*(CAWNAAmounts[CustClass]=$B$9)*CAWNAAmounts[CAWNA]) -> 11948.11 | H19: =SUMPRODUCT((CAWNAAmounts[Month]=$B19)*(CAWNAAmounts[Territory]=H$10)*(CAWNAAmounts[CustClass]=$B$9)*CAWNAAmounts[CAWNA]) -> 57173.51 | I19: 0 | J19: 0 | K19: 0
B20: 2024-06-01 | C20: ='CAWNA North'!E21 -> 12430.37 | D20: ='CAWNA NW'!E21 -> 5354.08 | E20: ='CAWNA South'!E21 -> 39627.93 | F20: =SUMPRODUCT((CAWNAAmounts[Month]=$B20)*(CAWNAAmounts[Territory]=F$10)*(CAWNAAmounts[CustClass]=$B$9)*CAWNAAmounts[CAWNA]) -> 12430.37 | G20: =SUMPRODUCT((CAWNAAmounts[Month]=$B20)*(CAWNAAmounts[Territory]=G$10)*(CAWNAAmounts[CustClass]=$B$9)*CAWNAAmounts[CAWNA]) -> 5354.08 | H20: =SUMPRODUCT((CAWNAAmounts[Month]=$B20)*(CAWNAAmounts[Territory]=H$10)*(CAWNAAmounts[CustClass]=$B$9)*CAWNAAmounts[CAWNA]) -> 39627.93 | I20: 0 | J20: 0 | K20: 0
B21: 2024-07-01 | C21: ='CAWNA North'!E22 -> 0 | D21: ='CAWNA NW'!E22 -> 0 | E21: ='CAWNA South'!E22 -> 0 | F21: =SUMPRODUCT((CAWNAAmounts[Month]=$B21)*(CAWNAAmounts[Territory]=F$10)*(CAWNAAmounts[CustClass]=$B$9)*CAWNAAmounts[CAWNA]) -> 0 | G21: =SUMPRODUCT((CAWNAAmounts[Month]=$B21)*(CAWNAAmounts[Territory]=G$10)*(CAWNAAmounts[CustClass]=$B$9)*CAWNAAmounts[CAWNA]) -> 0 | H21: =SUMPRODUCT((CAWNAAmounts[Month]=$B21)*(CAWNAAmounts[Territory]=H$10)*(CAWNAAmounts[CustClass]=$B$9)*CAWNAAmounts[CAWNA]) -> 0 | I21: 0 | J21: 0 | K21: 0
B22: =EDATE(B21,1) -> 2024-08-01 | C22: ='CAWNA North'!E23 -> 0 | D22: ='CAWNA NW'!E23 -> 0 | E22: ='CAWNA South'!E23 -> 0 | F22: =SUMPRODUCT((CAWNAAmounts[Month]=$B22)*(CAWNAAmounts[Territory]=F$10)*(CAWNAAmounts[CustClass]=$B$9)*CAWNAAmounts[CAWNA]) -> 0 | G22: =SUMPRODUCT((CAWNAAmounts[Month]=$B22)*(CAWNAAmounts[Territory]=G$10)*(CAWNAAmounts[CustClass]=$B$9)*CAWNAAmounts[CAWNA]) -> 0 | H22: =SUMPRODUCT((CAWNAAmounts[Month]=$B22)*(CAWNAAmounts[Territory]=H$10)*(CAWNAAmounts[CustClass]=$B$9)*CAWNAAmounts[CAWNA]) -> 0 | I22: 0 | J22: 0 | K22: 0
B23: Total | C23: =SUM(C11:C22) -> 164108.32 | D23: =SUM(D11:D22) -> 98464.22 | E23: 508781.75 | F23: 164108.32 | G23: 98464.22 | H23: 508781.75 | I23: 0 | J23: 0 | K23: 0
B25: Comm | C25: CAWNA Worksheets | F25: CAWNA Amount Table | I25: Difference
B26: MonthFlow | C26: North | D26: NW | E26: South | F26: North | G26: NW | H26: South | I26: North | J26: NW | K26: South
B27: =$C$6 -> 2023-09-01 | C27: ='CAWNA North'!E33 -> 1756.32 | D27: ='CAWNA NW'!E33 -> 1041.94 | E27: ='CAWNA South'!E33 -> 4222.35 | F27: =SUMPRODUCT((CAWNAAmounts[Month]=$B27)*(CAWNAAmounts[Territory]=F$10)*(CAWNAAmounts[CustClass]=$B$25)*CAWNAAmounts[CAWNA]) -> 1756.32 | G27: =SUMPRODUCT((CAWNAAmounts[Month]=$B27)*(CAWNAAmounts[Territory]=G$10)*(CAWNAAmounts[CustClass]=$B$25)*CAWNAAmounts[CAWNA]) -> 1041.94 | H27: =SUMPRODUCT((CAWNAAmounts[Month]=$B27)*(CAWNAAmounts[Territory]=H$10)*(CAWNAAmounts[CustClass]=$B$25)*CAWNAAmounts[CAWNA]) -> 4222.35 | I27: =C27-F27 -> 0 | J27: =D27-G27 -> 0 | K27: =E27-H27 -> 0
B28: =EDATE(B27,1) -> 2023-10-01 | C28: ='CAWNA North'!E34 -> 7360.28 | D28: ='CAWNA NW'!E34 -> 4347.49 | E28: ='CAWNA South'!E34 -> 17720.4 | F28: =SUMPRODUCT((CAWNAAmounts[Month]=$B28)*(CAWNAAmounts[Territory]=F$10)*(CAWNAAmounts[CustClass]=$B$25)*CAWNAAmounts[CAWNA]) -> 7360.28 | G28: =SUMPRODUCT((CAWNAAmounts[Month]=$B28)*(CAWNAAmounts[Territory]=G$10)*(CAWNAAmounts[CustClass]=$B$25)*CAWNAAmounts[CAWNA]) -> 4347.49 | H28: =SUMPRODUCT((CAWNAAmounts[Month]=$B28)*(CAWNAAmounts[Territory]=H$10)*(CAWNAAmounts[CustClass]=$B$25)*CAWNAAmounts[CAWNA]) -> 17720.4 | I28: =C28-F28 -> 0 | J28: =D28-G28 -> 0 | K28: =E28-H28 -> 0
B29: =EDATE(B28,1) -> 2023-11-01 | C29: ='CAWNA North'!E35 -> -96.63 | D29: ='CAWNA NW'!E35 -> -56.84 | E29: ='CAWNA South'!E35 -> -232.62 | F29: =SUMPRODUCT((CAWNAAmounts[Month]=$B29)*(CAWNAAmounts[Territory]=F$10)*(CAWNAAmounts[CustClass]=$B$25)*CAWNAAmounts[CAWNA]) -> -96.63 | G29: =SUMPRODUCT((CAWNAAmounts[Month]=$B29)*(CAWNAAmounts[Territory]=G$10)*(CAWNAAmounts[CustClass]=$B$25)*CAWNAAmounts[CAWNA]) -> -56.84 | H29: =SUMPRODUCT((CAWNAAmounts[Month]=$B29)*(CAWNAAmounts[Territory]=H$10)*(CAWNAAmounts[CustClass]=$B$25)*CAWNAAmounts[CAWNA]) -> -232.62 | I29: 0 | J29: 0 | K29: 0
B30: =EDATE(B29,1) -> 2023-12-01 | C30: ='CAWNA North'!E36 -> 18701.57 | D30: ='CAWNA NW'!E36 -> 11014.42 | E30: ='CAWNA South'!E36 -> 45237.81 | F30: =SUMPRODUCT((CAWNAAmounts[Month]=$B30)*(CAWNAAmounts[Territory]=F$10)*(CAWNAAmounts[CustClass]=$B$25)*CAWNAAmounts[CAWNA]) -> 18701.57 | G30: =SUMPRODUCT((CAWNAAmounts[Month]=$B30)*(CAWNAAmounts[Territory]=G$10)*(CAWNAAmounts[CustClass]=$B$25)*CAWNAAmounts[CAWNA]) -> 11014.42 | H30: =SUMPRODUCT((CAWNAAmounts[Month]=$B30)*(CAWNAAmounts[Territory]=H$10)*(CAWNAAmounts[CustClass]=$B$25)*CAWNAAmounts[CAWNA]) -> 45237.81 | I30: 0 | J30: 0 | K30: 0
B31: =EDATE(B30,1) -> 2024-01-01 | C31: ='CAWNA North'!E37 -> -10009.42 | D31: ='CAWNA NW'!E37 -> -5914.26 | E31: ='CAWNA South'!E37 -> -24263.4 | F31: =SUMPRODUCT((CAWNAAmounts[Month]=$B31)*(CAWNAAmounts[Territory]=F$10)*(CAWNAAmounts[CustClass]=$B$25)*CAWNAAmounts[CAWNA]) -> -10009.42 | G31: =SUMPRODUCT((CAWNAAmounts[Month]=$B31)*(CAWNAAmounts[Territory]=G$10)*(CAWNAAmounts[CustClass]=$B$25)*CAWNAAmounts[CAWNA]) -> -5914.26 | H31: =SUMPRODUCT((CAWNAAmounts[Month]=$B31)*(CAWNAAmounts[Territory]=H$10)*(CAWNAAmounts[CustClass]=$B$25)*CAWNAAmounts[CAWNA]) -> -24263.4 | I31: 0 | J31: 0 | K31: 0
B32: =EDATE(B31,1) -> 2024-02-01 | C32: ='CAWNA North'!E38 -> 28734.1 | D32: ='CAWNA NW'!E38 -> 17023.88 | E32: ='CAWNA South'!E38 -> 69631.71 | F32: =SUMPRODUCT((CAWNAAmounts[Month]=$B32)*(CAWNAAmounts[Territory]=F$10)*(CAWNAAmounts[CustClass]=$B$25)*CAWNAAmounts[CAWNA]) -> 28734.1 | G32: =SUMPRODUCT((CAWNAAmounts[Month]=$B32)*(CAWNAAmounts[Territory]=G$10)*(CAWNAAmounts[CustClass]=$B$25)*CAWNAAmounts[CAWNA]) -> 17023.88 | H32: =SUMPRODUCT((CAWNAAmounts[Month]=$B32)*(CAWNAAmounts[Territory]=H$10)*(CAWNAAmounts[CustClass]=$B$25)*CAWNAAmounts[CAWNA]) -> 69631.71 | I32: 0 | J32: 0 | K32: 0
B33: =EDATE(B32,1) -> 2024-03-01 | C33: ='CAWNA North'!E39 -> 3937.9 | D33: ='CAWNA NW'!E39 -> 2302.99 | E33: ='CAWNA South'!E39 -> 8943.37 | F33: =SUMPRODUCT((CAWNAAmounts[Month]=$B33)*(CAWNAAmounts[Territory]=F$10)*(CAWNAAmounts[CustClass]=$B$25)*CAWNAAmounts[CAWNA]) -> 3937.9 | G33: =SUMPRODUCT((CAWNAAmounts[Month]=$B33)*(CAWNAAmounts[Territory]=G$10)*(CAWNAAmounts[CustClass]=$B$25)*CAWNAAmounts[CAWNA]) -> 2302.99 | H33: =SUMPRODUCT((CAWNAAmounts[Month]=$B33)*(CAWNAAmounts[Territory]=H$10)*(CAWNAAmounts[CustClass]=$B$25)*CAWNAAmounts[CAWNA]) -> 8943.37 | I33: 0 | J33: 0 | K33: 0
B34: 2024-04-01 | C34: ='CAWNA North'!E40 -> 791.47 | D34: ='CAWNA NW'!E40 -> 874.74 | E34: ='CAWNA South'!E40 -> 1409.42 | F34: =SUMPRODUCT((CAWNAAmounts[Month]=$B34)*(CAWNAAmounts[Territory]=F$10)*(CAWNAAmounts[CustClass]=$B$25)*CAWNAAmounts[CAWNA]) -> 791.47 | G34: =SUMPRODUCT((CAWNAAmounts[Month]=$B34)*(CAWNAAmounts[Territory]=G$10)*(CAWNAAmounts[CustClass]=$B$25)*CAWNAAmounts[CAWNA]) -> 874.74 | H34: =SUMPRODUCT((CAWNAAmounts[Month]=$B34)*(CAWNAAmounts[Territory]=H$10)*(CAWNAAmounts[CustClass]=$B$25)*CAWNAAmounts[CAWNA]) -> 1409.42 | I34: 0 | J34: 0 | K34: 0
B35: 2024-05-01 | C35: ='CAWNA North'!E41 -> 7178.83 | D35: ='CAWNA NW'!E41 -> 4709.3 | E35: ='CAWNA South'!E41 -> 17555.7 | F35: =SUMPRODUCT((CAWNAAmounts[Month]=$B35)*(CAWNAAmounts[Territory]=F$10)*(CAWNAAmounts[CustClass]=$B$25)*CAWNAAmounts[CAWNA]) -> 7178.83 | G35: =SUMPRODUCT((CAWNAAmounts[Month]=$B35)*(CAWNAAmounts[Territory]=G$10)*(CAWNAAmounts[CustClass]=$B$25)*CAWNAAmounts[CAWNA]) -> 4709.3 | H35: =SUMPRODUCT((CAWNAAmounts[Month]=$B35)*(CAWNAAmounts[Territory]=H$10)*(CAWNAAmounts[CustClass]=$B$25)*CAWNAAmounts[CAWNA]) -> 17555.7 | I35: 0 | J35: 0 | K35: 0
B36: 2024-06-01 | C36: ='CAWNA North'!E42 -> 4049.96 | D36: ='CAWNA NW'!E42 -> 1835.22 | E36: ='CAWNA South'!E42 -> 9858.77 | F36: =SUMPRODUCT((CAWNAAmounts[Month]=$B36)*(CAWNAAmounts[Territory]=F$10)*(CAWNAAmounts[CustClass]=$B$25)*CAWNAAmounts[CAWNA]) -> 4049.96 | G36: =SUMPRODUCT((CAWNAAmounts[Month]=$B36)*(CAWNAAmounts[Territory]=G$10)*(CAWNAAmounts[CustClass]=$B$25)*CAWNAAmounts[CAWNA]) -> 1835.22 | H36: =SUMPRODUCT((CAWNAAmounts[Month]=$B36)*(CAWNAAmounts[Territory]=H$10)*(CAWNAAmounts[CustClass]=$B$25)*CAWNAAmounts[CAWNA]) -> 9858.77 | I36: 0 | J36: 0 | K36: 0
B37: 2024-07-01 | C37: ='CAWNA North'!E43 -> 0 | D37: ='CAWNA NW'!E43 -> 0 | E37: ='CAWNA South'!E43 -> 0 | F37: =SUMPRODUCT((CAWNAAmounts[Month]=$B37)*(CAWNAAmounts[Territory]=F$10)*(CAWNAAmounts[CustClass]=$B$25)*CAWNAAmounts[CAWNA]) -> 0 | G37: =SUMPRODUCT((CAWNAAmounts[Month]=$B37)*(CAWNAAmounts[Territory]=G$10)*(CAWNAAmounts[CustClass]=$B$25)*CAWNAAmounts[CAWNA]) -> 0 | H37: =SUMPRODUCT((CAWNAAmounts[Month]=$B37)*(CAWNAAmounts[Territory]=H$10)*(CAWNAAmounts[CustClass]=$B$25)*CAWNAAmounts[CAWNA]) -> 0 | I37: 0 | J37: 0 | K37: 0
B38: =EDATE(B37,1) -> 2024-08-01 | C38: ='CAWNA North'!E44 -> 0 | D38: ='CAWNA NW'!E44 -> 0 | E38: ='CAWNA South'!E44 -> 0 | F38: =SUMPRODUCT((CAWNAAmounts[Month]=$B38)*(CAWNAAmounts[Territory]=F$10)*(CAWNAAmounts[CustClass]=$B$25)*CAWNAAmounts[CAWNA]) -> 0 | G38: =SUMPRODUCT((CAWNAAmounts[Month]=$B38)*(CAWNAAmounts[Territory]=G$10)*(CAWNAAmounts[CustClass]=$B$25)*CAWNAAmounts[CAWNA]) -> 0 | H38: =SUMPRODUCT((CAWNAAmounts[Month]=$B38)*(CAWNAAmounts[Territory]=H$10)*(CAWNAAmounts[CustClass]=$B$25)*CAWNAAmounts[CAWNA]) -> 0 | I38: 0 | J38: 0 | K38: 0
B39: Total | C39: =SUM(C27:C38) -> 62404.38 | D39: =SUM(D27:D38) -> 37178.88 | E39: =SUM(E27:E38) -> 150083.51 | F39: =SUM(F27:F38) -> 62404.38 | G39: =SUM(G27:G38) -> 37178.88 | H39: =SUM(H27:H38) -> 150083.51 | I39: =SUM(I27:I38) -> 0 | J39: =SUM(J27:J38) -> 0 | K39: =SUM(K27:K38) -> 0
B41: Reconciliation Period Adjustments
B42: CAWNA | C42: CAWNA Worksheets | E42: ReconPerAdj Table | G42: Difference
B43: Territory | C43: Res | D43: Comm | E43: Res | F43: Comm | G43: Res | H43: Comm
B44: North | C44: ='CAWNA North'!C25 -> 164108.32 | D44: ='CAWNA North'!C46 -> 62404.38 | E44: =SUMPRODUCT((ReconPerAdj[Year]=$C$5)*(ReconPerAdj[Territory]=$B44)*(ReconPerAdj[CustClass]=C$43)*(ReconPerAdj[RateName]=$B$42)*ReconPerAdj[ReconcilingPeriodAdj]) -> 164108.32 | F44: =SUMPRODUCT((ReconPerAdj[Year]=$C$5)*(ReconPerAdj[Territory]=$B44)*(ReconPerAdj[CustClass]=D$43)*(ReconPerAdj[RateName]=$B$42)*ReconPerAdj[ReconcilingPeriodAdj]) -> 62404.38 | G44: =C44-E44 -> 0 | H44: =D44-F44 -> 0
B45: NW | C45: ='CAWNA NW'!C25 -> 98464.22 | D45: ='CAWNA NW'!C46 -> 37178.88 | E45: =SUMPRODUCT((ReconPerAdj[Year]=$C$5)*(ReconPerAdj[Territory]=$B45)*(ReconPerAdj[CustClass]=C$43)*(ReconPerAdj[RateName]=$B$42)*ReconPerAdj[ReconcilingPeriodAdj]) -> 98464.22 | F45: =SUMPRODUCT((ReconPerAdj[Year]=$C$5)*(ReconPerAdj[Territory]=$B45)*(ReconPerAdj[CustClass]=D$43)*(ReconPerAdj[RateName]=$B$42)*ReconPerAdj[ReconcilingPeriodAdj]) -> 37178.88 | G45: =C45-E45 -> 0 | H45: 0
B46: South | C46: ='CAWNA South'!C25 -> 508781.75 | D46: ='CAWNA South'!C46 -> 150083.51 | E46: =SUMPRODUCT((ReconPerAdj[Year]=$C$5)*(ReconPerAdj[Territory]=$B46)*(ReconPerAdj[CustClass]=C$43)*(ReconPerAdj[RateName]=$B$42)*ReconPerAdj[ReconcilingPeriodAdj]) -> 508781.75 | F46: =SUMPRODUCT((ReconPerAdj[Year]=$C$5)*(ReconPerAdj[Territory]=$B46)*(ReconPerAdj[CustClass]=D$43)*(ReconPerAdj[RateName]=$B$42)*ReconPerAdj[ReconcilingPeriodAdj]) -> 150083.51 | G46: 0 | H46: 0
B47: ARR | C47: ARR Summary Worksheet | E47: ReconPerAdj Table | G47: Difference
B48: Territory | C48: Res | D48: Comm | E48: Res | F48: Comm | G48: Res | H48: Comm
B49: North | C49: ='ARR Summary'!C60 -> 22041.11 | D49: ='ARR Summary'!G60 -> -64092.47 | E49: =SUMPRODUCT((ReconPerAdj[Year]=$C$5)*(ReconPerAdj[Territory]=$B49)*(ReconPerAdj[CustClass]=C$48)*(ReconPerAdj[RateName]=$B$47)*ReconPerAdj[ReconcilingPeriodAdj]) -> 22041.11 | F49: =SUMPRODUCT((ReconPerAdj[Year]=$C$5)*(ReconPerAdj[Territory]=$B49)*(ReconPerAdj[CustClass]=D$48)*(ReconPerAdj[RateName]=$B$47)*ReconPerAdj[ReconcilingPeriodAdj]) -> -64092.47 | G49: =C49-E49 -> 0 | H49: =D49-F49 -> 0
B50: NW | C50: ='ARR Summary'!D60 -> 12169.3 | D50: ='ARR Summary'!H60 -> 2678.33 | E50: =SUMPRODUCT((ReconPerAdj[Year]=$C$5)*(ReconPerAdj[Territory]=$B50)*(ReconPerAdj[CustClass]=C$48)*(ReconPerAdj[RateName]=$B$47)*ReconPerAdj[ReconcilingPeriodAdj]) -> 12169.3 | F50: =SUMPRODUCT((ReconPerAdj[Year]=$C$5)*(ReconPerAdj[Territory]=$B50)*(ReconPerAdj[CustClass]=D$48)*(ReconPerAdj[RateName]=$B$47)*ReconPerAdj[ReconcilingPeriodAdj]) -> 2678.33 | G50: =C50-E50 -> 0 | H50: =D50-F50 -> 0
B51: South | C51: ='ARR Summary'!E60 -> 74381.47 | D51: ='ARR Summary'!I60 -> 26109.52 | E51: =SUMPRODUCT((ReconPerAdj[Year]=$C$5)*(ReconPerAdj[Territory]=$B51)*(ReconPerAdj[CustClass]=C$48)*(ReconPerAdj[RateName]=$B$47)*ReconPerAdj[ReconcilingPeriodAdj]) -> 74381.47 | F51: =SUMPRODUCT((ReconPerAdj[Year]=$C$5)*(ReconPerAdj[Territory]=$B51)*(ReconPerAdj[CustClass]=D$48)*(ReconPerAdj[RateName]=$B$47)*ReconPerAdj[ReconcilingPeriodAdj]) -> 26109.52 | G51: 0 | H51: 0
B53: ARR Volumetric True-Ups
B54: Territory | C54: ARR Worksheets | E54: VolTrueUp Table | G54: Difference
C55: Res | D55: Comm | E55: Res | F55: Comm | G55: Res | H55: Comm
B56: North | C56: ='ARR North'!C21 -> 0 | D56: ='ARR North'!C36 -> 0 | E56: =SUMPRODUCT((VolTrueUp[Year]=$C$5)*(VolTrueUp[Territory]=$B56)*(VolTrueUp[CustClass]=E$55)*VolTrueUp[TrueUp]) -> 0 | F56: =SUMPRODUCT((VolTrueUp[Year]=$C$5)*(VolTrueUp[Territory]=$B56)*(VolTrueUp[CustClass]=F$55)*VolTrueUp[TrueUp]) -> 0 | G56: =C56-E56 -> 0 | H56: =D56-F56 -> 0
B57: NW | C57: ='ARR NW'!C21 -> 0 | D57: ='ARR NW'!C36 -> 0 | E57: =SUMPRODUCT((VolTrueUp[Year]=$C$5)*(VolTrueUp[Territory]=$B57)*(VolTrueUp[CustClass]=E$55)*VolTrueUp[TrueUp]) -> 0 | F57: =SUMPRODUCT((VolTrueUp[Year]=$C$5)*(VolTrueUp[Territory]=$B57)*(VolTrueUp[CustClass]=F$55)*VolTrueUp[TrueUp]) -> 0 | G57: =C57-E57 -> 0 | H57: =D57-F57 -> 0
B58: South | C58: ='ARR South'!C21 -> 0 | D58: ='ARR South'!C21 -> 0 | E58: =SUMPRODUCT((VolTrueUp[Year]=$C$5)*(VolTrueUp[Territory]=$B58)*(VolTrueUp[CustClass]=E$55)*VolTrueUp[TrueUp]) -> 0 | F58: =SUMPRODUCT((VolTrueUp[Year]=$C$5)*(VolTrueUp[Territory]=$B58)*(VolTrueUp[CustClass]=F$55)*VolTrueUp[TrueUp]) -> 0 | G58: 0 | H58: 0
B60: WNAR Rates
B61: CAWNA | C61: CAWNA Summary Wrksht | E61: WNAR Rates Table | G61: Difference
B62: Customer Class | C62: Res | D62: Comm | E62: Res | F62: Comm | G62: Res | H62: Comm
B63: Rate | C63: ='CAWNA Summary'!C30 -> 0.03013 | D63: ='CAWNA Summary'!D30 -> 0.03489 | E63: =SUMPRODUCT((WNARRates[Year]=$C$5)*(WNARRates[CustClass]=E$62)*WNARRates[AdjCAWNA]) -> 0.03013 | F63: =SUMPRODUCT((WNARRates[Year]=$C$5)*(WNARRates[CustClass]=F$62)*WNARRates[AdjCAWNA]) -> 0.03489 | G63: =C63-E63 -> 0 | H63: =D63-F63 -> 0
B64: ARR | C64: ARR Summary Worksheet | E64: WNAR Rates Table | G64: Difference
B65: Customer Class | C65: Res | D65: Comm | E65: Res | F65: Comm | G65: Res | H65: Comm
B66: Rate | C66: ='ARR Summary'!C83 -> 0.004241029381 | D66: ='ARR Summary'!D83 -> -0.004933828962 | E66: =SUMPRODUCT((WNARRates[Year]=$C$5)*(WNARRates[CustClass]=E$62)*WNARRates[AdjARR]) -> 0.004241029381 | F66: =SUMPRODUCT((WNARRates[Year]=$C$5)*(WNARRates[CustClass]=F$62)*WNARRates[AdjARR]) -> -0.004933828962 | G66: =C66-E66 -> 0 | H66: =D66-F66 -> 0

Sheet CAWNA Summary
B2: Empire District Gas Company | E2: Filing Year
B3: WNAR Filing
B4: CAWNA Summary
B5: Year | C5: =DateSet!C2 -> 2024
B6: Analysis Start | C6: =DateSet!C3 -> 45170
B7: New Rate Effecc. | C7: =DateSet!C4 -> 45566
B9: Current Period Dollar Adjustment
B10: Customer Class | C10: Res | G10: Comm | K10: Notes
B11: MonthFlow | C11: North | D11: NW | E11: South | F11: Combined | G11: North | H11: NW | I11: South | J11: Combined
B12: =$C$6 -> 2023-09-01 | C12: =SUMPRODUCT((CAWNAAmounts[Month]=$B12)*(CAWNAAmounts[Territory]=C$11)*(CAWNAAmounts[CustClass]=$C$10)*CAWNAAmounts[CAWNA]) -> 4536.35 | D12: =SUMPRODUCT((CAWNAAmounts[Month]=$B12)*(CAWNAAmounts[Territory]=D$11)*(CAWNAAmounts[CustClass]=$C$10)*CAWNAAmounts[CAWNA]) -> 2730.56 | E12: =SUMPRODUCT((CAWNAAmounts[Month]=$B12)*(CAWNAAmounts[Territory]=E$11)*(CAWNAAmounts[CustClass]=$C$10)*CAWNAAmounts[CAWNA]) -> 14209.05 | F12: =SUM(C12:E12) -> 21475.96 | G12: =SUMPRODUCT((CAWNAAmounts[Month]=$B12)*(CAWNAAmounts[Territory]=G$11)*(CAWNAAmounts[CustClass]=$G$10)*CAWNAAmounts[CAWNA]) -> 1756.32 | H12: =SUMPRODUCT((CAWNAAmounts[Month]=$B12)*(CAWNAAmounts[Territory]=H$11)*(CAWNAAmounts[CustClass]=$G$10)*CAWNAAmounts[CAWNA]) -> 1041.94 | I12: =SUMPRODUCT((CAWNAAmounts[Month]=$B12)*(CAWNAAmounts[Territory]=I$11)*(CAWNAAmounts[CustClass]=$G$10)*CAWNAAmounts[CAWNA]) -> 4222.35 | J12: =SUM(G12:I12) -> 7020.61 | K12: From CAWNA Amounts table
B13: =EDATE(B12,1) -> 2023-10-01 | C13: =SUMPRODUCT((CAWNAAmounts[Month]=$B13)*(CAWNAAmounts[Territory]=C$11)*(CAWNAAmounts[CustClass]=$C$10)*CAWNAAmounts[CAWNA]) -> 19154.23 | D13: =SUMPRODUCT((CAWNAAmounts[Month]=$B13)*(CAWNAAmounts[Territory]=D$11)*(CAWNAAmounts[CustClass]=$C$10)*CAWNAAmounts[CAWNA]) -> 11528.89 | E13: =SUMPRODUCT((CAWNAAmounts[Month]=$B13)*(CAWNAAmounts[Territory]=E$11)*(CAWNAAmounts[CustClass]=$C$10)*CAWNAAmounts[CAWNA]) -> 59658.44 | F13: =SUM(C13:E13) -> 90341.56 | G13: =SUMPRODUCT((CAWNAAmounts[Month]=$B13)*(CAWNAAmounts[Territory]=G$11)*(CAWNAAmounts[CustClass]=$G$10)*CAWNAAmounts[CAWNA]) -> 7360.28 | H13: =SUMPRODUCT((CAWNAAmounts[Month]=$B13)*(CAWNAAmounts[Territory]=H$11)*(CAWNAAmounts[CustClass]=$G$10)*CAWNAAmounts[CAWNA]) -> 4347.49 | I13: =SUMPRODUCT((CAWNAAmounts[Month]=$B13)*(CAWNAAmounts[Territory]=I$11)*(CAWNAAmounts[CustClass]=$G$10)*CAWNAAmounts[CAWNA]) -> 17720.4 | J13: =SUM(G13:I13) -> 29428.17 | K13: From CAWNA Amounts table
B14: =EDATE(B13,1) -> 2023-11-01 | C14: =SUMPRODUCT((CAWNAAmounts[Month]=$B14)*(CAWNAAmounts[Territory]=C$11)*(CAWNAAmounts[CustClass]=$C$10)*CAWNAAmounts[CAWNA]) -> -252.31 | D14: =SUMPRODUCT((CAWNAAmounts[Month]=$B14)*(CAWNAAmounts[Territory]=D$11)*(CAWNAAmounts[CustClass]=$C$10)*CAWNAAmounts[CAWNA]) -> -151.87 | E14: =SUMPRODUCT((CAWNAAmounts[Month]=$B14)*(CAWNAAmounts[Territory]=E$11)*(CAWNAAmounts[CustClass]=$C$10)*CAWNAAmounts[CAWNA]) -> -784.73 | F14: -1188.91 | G14: =SUMPRODUCT((CAWNAAmounts[Month]=$B14)*(CAWNAAmounts[Territory]=G$11)*(CAWNAAmounts[CustClass]=$G$10)*CAWNAAmounts[CAWNA]) -> -96.63 | H14: =SUMPRODUCT((CAWNAAmounts[Month]=$B14)*(CAWNAAmounts[Territory]=H$11)*(CAWNAAmounts[CustClass]=$G$10)*CAWNAAmounts[CAWNA]) -> -56.84 | I14: =SUMPRODUCT((CAWNAAmounts[Month]=$B14)*(CAWNAAmounts[Territory]=I$11)*(CAWNAAmounts[CustClass]=$G$10)*CAWNAAmounts[CAWNA]) -> -232.62 | J14: -386.09 | K14: From CAWNA Amounts table
B15: =EDATE(B14,1) -> 2023-12-01 | C15: =SUMPRODUCT((CAWNAAmounts[Month]=$B15)*(CAWNAAmounts[Territory]=C$11)*(CAWNAAmounts[CustClass]=$C$10)*CAWNAAmounts[CAWNA]) -> 49145.05 | D15: =SUMPRODUCT((CAWNAAmounts[Month]=$B15)*(CAWNAAmounts[Territory]=D$11)*(CAWNAAmounts[CustClass]=$C$10)*CAWNAAmounts[CAWNA]) -> 29479.77 | E15: =SUMPRODUCT((CAWNAAmounts[Month]=$B15)*(CAWNAAmounts[Territory]=E$11)*(CAWNAAmounts[CustClass]=$C$10)*CAWNAAmounts[CAWNA]) -> 152360.56 | F15: 230985.38 | G15: =SUMPRODUCT((CAWNAAmounts[Month]=$B15)*(CAWNAAmounts[Territory]=G$11)*(CAWNAAmounts[CustClass]=$G$10)*CAWNAAmounts[CAWNA]) -> 18701.57 | H15: =SUMPRODUCT((CAWNAAmounts[Month]=$B15)*(CAWNAAmounts[Territory]=H$11)*(CAWNAAmounts[CustClass]=$G$10)*CAWNAAmounts[CAWNA]) -> 11014.42 | I15: =SUMPRODUCT((CAWNAAmounts[Month]=$B15)*(CAWNAAmounts[Territory]=I$11)*(CAWNAAmounts[CustClass]=$G$10)*CAWNAAmounts[CAWNA]) -> 45237.81 | J15: 74953.8 | K15: From CAWNA Amounts table
B16: =EDATE(B15,1) -> 2024-01-01 | C16: =SUMPRODUCT((CAWNAAmounts[Month]=$B16)*(CAWNAAmounts[Territory]=C$11)*(CAWNAAmounts[CustClass]=$C$10)*CAWNAAmounts[CAWNA]) -> -26368.98 | D16: =SUMPRODUCT((CAWNAAmounts[Month]=$B16)*(CAWNAAmounts[Territory]=D$11)*(CAWNAAmounts[CustClass]=$C$10)*CAWNAAmounts[CAWNA]) -> -15809.06 | E16: =SUMPRODUCT((CAWNAAmounts[Month]=$B16)*(CAWNAAmounts[Territory]=E$11)*(CAWNAAmounts[CustClass]=$C$10)*CAWNAAmounts[CAWNA]) -> -81604.97 | F16: -123783.01 | G16: =SUMPRODUCT((CAWNAAmounts[Month]=$B16)*(CAWNAAmounts[Territory]=G$11)*(CAWNAAmounts[CustClass]=$G$10)*CAWNAAmounts[CAWNA]) -> -10009.42 | H16: =SUMPRODUCT((CAWNAAmounts[Month]=$B16)*(CAWNAAmounts[Territory]=H$11)*(CAWNAAmounts[CustClass]=$G$10)*CAWNAAmounts[CAWNA]) -> -5914.26 | I16: =SUMPRODUCT((CAWNAAmounts[Month]=$B16)*(CAWNAAmounts[Territory]=I$11)*(CAWNAAmounts[CustClass]=$G$10)*CAWNAAmounts[CAWNA]) -> -24263.4 | J16: -40187.08 | K16: From CAWNA Amounts table
B17: =EDATE(B16,1) -> 2024-02-01 | C17: =SUMPRODUCT((CAWNAAmounts[Month]=$B17)*(CAWNAAmounts[Territory]=C$11)*(CAWNAAmounts[CustClass]=$C$10)*CAWNAAmounts[CAWNA]) -> 75397.54 | D17: =SUMPRODUCT((CAWNAAmounts[Month]=$B17)*(CAWNAAmounts[Territory]=D$11)*(CAWNAAmounts[CustClass]=$C$10)*CAWNAAmounts[CAWNA]) -> 45294.3 | E17: =SUMPRODUCT((CAWNAAmounts[Month]=$B17)*(CAWNAAmounts[Territory]=E$11)*(CAWNAAmounts[CustClass]=$C$10)*CAWNAAmounts[CAWNA]) -> 233639.4 | F17: 354331.24 | G17: =SUMPRODUCT((CAWNAAmounts[Month]=$B17)*(CAWNAAmounts[Territory]=G$11)*(CAWNAAmounts[CustClass]=$G$10)*CAWNAAmounts[CAWNA]) -> 28734.1 | H17: =SUMPRODUCT((CAWNAAmounts[Month]=$B17)*(CAWNAAmounts[Territory]=H$11)*(CAWNAAmounts[CustClass]=$G$10)*CAWNAAmounts[CAWNA]) -> 17023.88 | I17: =SUMPRODUCT((CAWNAAmounts[Month]=$B17)*(CAWNAAmounts[Territory]=I$11)*(CAWNAAmounts[CustClass]=$G$10)*CAWNAAmounts[CAWNA]) -> 69631.71 | J17: 115389.69 | K17: From CAWNA Amounts table
B18: =EDATE(B17,1) -> 2024-03-01 | C18: =SUMPRODUCT((CAWNAAmounts[Month]=$B18)*(CAWNAAmounts[Territory]=C$11)*(CAWNAAmounts[CustClass]=$C$10)*CAWNAAmounts[CAWNA]) -> 9934.57 | D18: =SUMPRODUCT((CAWNAAmounts[Month]=$B18)*(CAWNAAmounts[Territory]=D$11)*(CAWNAAmounts[CustClass]=$C$10)*CAWNAAmounts[CAWNA]) -> 5911.67 | E18: =SUMPRODUCT((CAWNAAmounts[Month]=$B18)*(CAWNAAmounts[Territory]=E$11)*(CAWNAAmounts[CustClass]=$C$10)*CAWNAAmounts[CAWNA]) -> 30635.31 | F18: 46481.55 | G18: =SUMPRODUCT((CAWNAAmounts[Month]=$B18)*(CAWNAAmounts[Territory]=G$11)*(CAWNAAmounts[CustClass]=$G$10)*CAWNAAmounts[CAWNA]) -> 3937.9 | H18: =SUMPRODUCT((CAWNAAmounts[Month]=$B18)*(CAWNAAmounts[Territory]=H$11)*(CAWNAAmounts[CustClass]=$G$10)*CAWNAAmounts[CAWNA]) -> 2302.99 | I18: =SUMPRODUCT((CAWNAAmounts[Month]=$B18)*(CAWNAAmounts[Territory]=I$11)*(CAWNAAmounts[CustClass]=$G$10)*CAWNAAmounts[CAWNA]) -> 8943.37 | J18: 15184.26 | K18: From CAWNA Amounts table
B19: 2024-04-01 | C19: =SUMPRODUCT((CAWNAAmounts[Month]=$B19)*(CAWNAAmounts[Territory]=C$11)*(CAWNAAmounts[CustClass]=$C$10)*CAWNAAmounts[CAWNA]) -> 1925.33 | D19: =SUMPRODUCT((CAWNAAmounts[Month]=$B19)*(CAWNAAmounts[Territory]=D$11)*(CAWNAAmounts[CustClass]=$C$10)*CAWNAAmounts[CAWNA]) -> 2177.77 | E19: =SUMPRODUCT((CAWNAAmounts[Month]=$B19)*(CAWNAAmounts[Territory]=E$11)*(CAWNAAmounts[CustClass]=$C$10)*CAWNAAmounts[CAWNA]) -> 3867.25 | F19: 7970.35 | G19: =SUMPRODUCT((CAWNAAmounts[Month]=$B19)*(CAWNAAmounts[Territory]=G$11)*(CAWNAAmounts[CustClass]=$G$10)*CAWNAAmounts[CAWNA]) -> 791.47 | H19: =SUMPRODUCT((CAWNAAmounts[Month]=$B19)*(CAWNAAmounts[Territory]=H$11)*(CAWNAAmounts[CustClass]=$G$10)*CAWNAAmounts[CAWNA]) -> 874.74 | I19: =SUMPRODUCT((CAWNAAmounts[Month]=$B19)*(CAWNAAmounts[Territory]=I$11)*(CAWNAAmounts[CustClass]=$G$10)*CAWNAAmounts[CAWNA]) -> 1409.42 | J19: 3075.63 | K19: From CAWNA Amounts table
B20: 2024-05-01 | C20: =SUMPRODUCT((CAWNAAmounts[Month]=$B20)*(CAWNAAmounts[Territory]=C$11)*(CAWNAAmounts[CustClass]=$C$10)*CAWNAAmounts[CAWNA]) -> 18206.17 | D20: =SUMPRODUCT((CAWNAAmounts[Month]=$B20)*(CAWNAAmounts[Territory]=D$11)*(CAWNAAmounts[CustClass]=$C$10)*CAWNAAmounts[CAWNA]) -> 11948.11 | E20: =SUMPRODUCT((CAWNAAmounts[Month]=$B20)*(CAWNAAmounts[Territory]=E$11)*(CAWNAAmounts[CustClass]=$C$10)*CAWNAAmounts[CAWNA]) -> 57173.51 | F20: 87327.79 | G20: =SUMPRODUCT((CAWNAAmounts[Month]=$B20)*(CAWNAAmounts[Territory]=G$11)*(CAWNAAmounts[CustClass]=$G$10)*CAWNAAmounts[CAWNA]) -> 7178.83 | H20: =SUMPRODUCT((CAWNAAmounts[Month]=$B20)*(CAWNAAmounts[Territory]=H$11)*(CAWNAAmounts[CustClass]=$G$10)*CAWNAAmounts[CAWNA]) -> 4709.3 | I20: =SUMPRODUCT((CAWNAAmounts[Month]=$B20)*(CAWNAAmounts[Territory]=I$11)*(CAWNAAmounts[CustClass]=$G$10)*CAWNAAmounts[CAWNA]) -> 17555.7 | J20: 29443.83 | K20: From CAWNA Amounts table
B21: 2024-06-01 | C21: =SUMPRODUCT((CAWNAAmounts[Month]=$B21)*(CAWNAAmounts[Territory]=C$11)*(CAWNAAmounts[CustClass]=$C$10)*CAWNAAmounts[CAWNA]) -> 12430.37 | D21: =SUMPRODUCT((CAWNAAmounts[Month]=$B21)*(CAWNAAmounts[Territory]=D$11)*(CAWNAAmounts[CustClass]=$C$10)*CAWNAAmounts[CAWNA]) -> 5354.08 | E21: =SUMPRODUCT((CAWNAAmounts[Month]=$B21)*(CAWNAAmounts[Territory]=E$11)*(CAWNAAmounts[CustClass]=$C$10)*CAWNAAmounts[CAWNA]) -> 39627.93 | F21: 57412.38 | G21: =SUMPRODUCT((CAWNAAmounts[Month]=$B21)*(CAWNAAmounts[Territory]=G$11)*(CAWNAAmounts[CustClass]=$G$10)*CAWNAAmounts[CAWNA]) -> 4049.96 | H21: =SUMPRODUCT((CAWNAAmounts[Month]=$B21)*(CAWNAAmounts[Territory]=H$11)*(CAWNAAmounts[CustClass]=$G$10)*CAWNAAmounts[CAWNA]) -> 1835.22 | I21: =SUMPRODUCT((CAWNAAmounts[Month]=$B21)*(CAWNAAmounts[Territory]=I$11)*(CAWNAAmounts[CustClass]=$G$10)*CAWNAAmounts[CAWNA]) -> 9858.77 | J21: 15743.95 | K21: From CAWNA Amounts table
B22: 2024-07-01 | C22: =SUMPRODUCT((CAWNAAmounts[Month]=$B22)*(CAWNAAmounts[Territory]=C$11)*(CAWNAAmounts[CustClass]=$C$10)*CAWNAAmounts[CAWNA]) -> 0 | D22: =SUMPRODUCT((CAWNAAmounts[Month]=$B22)*(CAWNAAmounts[Territory]=D$11)*(CAWNAAmounts[CustClass]=$C$10)*CAWNAAmounts[CAWNA]) -> 0 | E22: =SUMPRODUCT((CAWNAAmounts[Month]=$B22)*(CAWNAAmounts[Territory]=E$11)*(CAWNAAmounts[CustClass]=$C$10)*CAWNAAmounts[CAWNA]) -> 0 | F22: 0 | G22: =SUMPRODUCT((CAWNAAmounts[Month]=$B22)*(CAWNAAmounts[Territory]=G$11)*(CAWNAAmounts[CustClass]=$G$10)*CAWNAAmounts[CAWNA]) -> 0 | H22: =SUMPRODUCT((CAWNAAmounts[Month]=$B22)*(CAWNAAmounts[Territory]=H$11)*(CAWNAAmounts[CustClass]=$G$10)*CAWNAAmounts[CAWNA]) -> 0 | I22: =SUMPRODUCT((CAWNAAmounts[Month]=$B22)*(CAWNAAmounts[Territory]=I$11)*(CAWNAAmounts[CustClass]=$G$10)*CAWNAAmounts[CAWNA]) -> 0 | J22: 0 | K22: From CAWNA Amounts table
B23: =EDATE(B22,1) -> 2024-08-01 | C23: =SUMPRODUCT((CAWNAAmounts[Month]=$B23)*(CAWNAAmounts[Territory]=C$11)*(CAWNAAmounts[CustClass]=$C$10)*CAWNAAmounts[CAWNA]) -> 0 | D23: =SUMPRODUCT((CAWNAAmounts[Month]=$B23)*(CAWNAAmounts[Territory]=D$11)*(CAWNAAmounts[CustClass]=$C$10)*CAWNAAmounts[CAWNA]) -> 0 | E23: =SUMPRODUCT((CAWNAAmounts[Month]=$B23)*(CAWNAAmounts[Territory]=E$11)*(CAWNAAmounts[CustClass]=$C$10)*CAWNAAmounts[CAWNA]) -> 0 | F23: 0 | G23: =SUMPRODUCT((CAWNAAmounts[Month]=$B23)*(CAWNAAmounts[Territory]=G$11)*(CAWNAAmounts[CustClass]=$G$10)*CAWNAAmounts[CAWNA]) -> 0 | H23: =SUMPRODUCT((CAWNAAmounts[Month]=$B23)*(CAWNAAmounts[Territory]=H$11)*(CAWNAAmounts[CustClass]=$G$10)*CAWNAAmounts[CAWNA]) -> 0 | I23: =SUMPRODUCT((CAWNAAmounts[Month]=$B23)*(CAWNAAmounts[Territory]=I$11)*(CAWNAAmounts[CustClass]=$G$10)*CAWNAAmounts[CAWNA]) -> 0 | J23: 0 | K23: From CAWNA Amounts table
B24: Total Adjustment | C24: =SUM(C12:C23) -> 164108.32 | D24: =SUM(D12:D23) -> 98464.22 | E24: 508781.75 | F24: 771354.29 | G24: 62404.38 | H24: 37178.88 | I24: 150083.51 | J24: 249666.77
B26: CAWNA Rate Calculation | C26: Res | D26: Comm
B27: Billing Determinants | C27: =INDEX(BillDeter[BillingDeterminants],MATCH(C26,BillDeter[CustClass],0)) -> 25605076.09 | D27: =INDEX(BillDeter[BillingDeterminants],MATCH(D26,BillDeter[CustClass],0)) -> 7155623
B28: CAWNA Unadjusted | C28: =ROUND(F24/C27,5) -> 0.03013 | D28: =ROUND(G24/D27,5) -> 0.00872
B29: WNA Limit Adjust. | C29: =E43 -> 0 | D29: =F43 -> 0
B30: CAWNA Adjusted | C30: =C28+C29 -> 0.03013 | D30: =ROUND(J24/D27,5) -> 0.03489
B31: Enter these rates in the CAWNA column of the WNAR Rates table.
B33: New WNA Rate Calculation
B34: Rate | C34: Res | D34: Comm
B35: CAWNA | C35: =SUMPRODUCT((WNARRates[BeginDate]=$C$7)*(WNARRates[CustClass]=C$34)*WNARRates[AdjCAWNA]) -> 0.03013 | D35: =SUMPRODUCT((WNARRates[BeginDate]=$C$7)*(WNARRates[CustClass]=D$34)*WNARRates[AdjCAWNA]) -> 0.03489
B36: ARR | C36: =SUMPRODUCT((WNARRates[BeginDate]=$C$7)*(WNARRates[CustClass]=C$34)*WNARRates[AdjARR]) -> 0.004241029381 | D36: =SUMPRODUCT((WNARRates[BeginDate]=$C$7)*(WNARRates[CustClass]=D$34)*WNARRates[AdjARR]) -> -0.004933828962
B37: Proposed WNA | C37: =C35+C36 -> 0.03437102938 | D37: =D35+D36 -> 0.02995617104
B39: Change Limit Calculations | C39: Year | D39: Eff. Date | E39: Res | F39: Comm
B40: Prior Period WNA Rate | C40: =$C$5-1 -> 2023 | D40: =DATE(C40-1,10,1) -> 44835 | E40: =SUMPRODUCT((WNARRates[Year]=$C40)*(WNARRates[CustClass]=E$39)*WNARRates[AdjCombined]) -> 0.01632 | F40: =SUMPRODUCT((WNARRates[Year]=$C40)*(WNARRates[CustClass]=F$39)*WNARRates[AdjCombined]) -> 0.01896
B41: Change from Prior Period | E41: =C37-E40 -> 0.01805102938 | F41: =D37-F40 -> 0.01099617104
B42: Change Limit | E42: 0.05 | F42: 0.05
B43: Change Limit Adjustment | E43: =IF(E42>E41,0,E42-E41) -> 0 | F43: =IF(F42>F41,0,F42-F41) -> 0
B44: Excess Limit Amount | E44: =E43*C27 -> 0 | F44: =F43*D27 -> 0

Sheet ARR Summary
B2: Empire District Gas Company | E2: Filing Year
B3: WNAR Filing
B4: ARR Summary
B5: Year | C5: =DateSet!C2 -> 2024
B6: Billed Rev. From | C6: =DATE(C5-1,10,1) -> 45200
B7: New Rate Effec. | C7: =DATE(C5,10,1) -> 45566
B9: Reconciliation Summary | C9: CAWNA
B10: Customer Class | C10: Res | G10: Comm | K10: Notes
B11: Territory | C11: North | D11: NW | E11: South | F11: Combined | G11: North | H11: NW | I11: South | J11: Combined
B12: Reconciling Period Adj. | C12: =SUMPRODUCT((ReconPerAdj[EffDate]=$C$6)*(ReconPerAdj[Territory]=C11)*(ReconPerAdj[CustClass]=$C10)*(ReconPerAdj[RateName]=$C$9)*ReconPerAdj[ReconcilingPeriodAdj]) -> 88777.89 | D12: =SUMPRODUCT((ReconPerAdj[EffDate]=$C$6)*(ReconPerAdj[Territory]=D11)*(ReconPerAdj[CustClass]=$C10)*(ReconPerAdj[RateName]=$C$9)*ReconPerAdj[ReconcilingPeriodAdj]) -> 53453.99 | E12: =SUMPRODUCT((ReconPerAdj[EffDate]=$C$6)*(ReconPerAdj[Territory]=E11)*(ReconPerAdj[CustClass]=$C10)*(ReconPerAdj[RateName]=$C$9)*ReconPerAdj[ReconcilingPeriodAdj]) -> 275717.14 | F12: =SUM(C12:E12) -> 417949.02 | G12: =SUMPRODUCT((ReconPerAdj[EffDate]=$C$6)*(ReconPerAdj[Territory]=G11)*(ReconPerAdj[CustClass]=$G10)*(ReconPerAdj[RateName]=$C$9)*ReconPerAdj[ReconcilingPeriodAdj]) -> 33852.88 | H12: =SUMPRODUCT((ReconPerAdj[EffDate]=$C$6)*(ReconPerAdj[Territory]=H11)*(ReconPerAdj[CustClass]=$G10)*(ReconPerAdj[RateName]=$C$9)*ReconPerAdj[ReconcilingPeriodAdj]) -> 20162.66 | I12: =SUMPRODUCT((ReconPerAdj[EffDate]=$C$6)*(ReconPerAdj[Territory]=I11)*(ReconPerAdj[CustClass]=$G10)*(ReconPerAdj[RateName]=$C$9)*ReconPerAdj[ReconcilingPeriodAdj]) -> 81683.57 | J12: =SUM(G12:I12) -> 135699.11 | K12: From ReconPerAdj Table
B13: PPA Correction | C13: 0 | D13: 0 | E13: 0 | F13: =SUM(C13:E13) -> 0 | G13: 0 | H13: 0 | I13: 0 | J13: =SUM(G13:I13) -> 0 | K13: From PriorPerAdj Table
B14: Net Reconciling Period Adj. | C14: =C12+C13 -> 88777.89 | D14: =D12+D13 -> 53453.99 | E14: 275717.14 | F14: =F12+F13 -> 417949.02 | G14: =G12+G13 -> 33852.88 | H14: =H12+H13 -> 20162.66 | I14: =I12+I13 -> 81683.57 | J14: =J12+J13 -> 135699.11
B15: Actual Revenues
B16: =C6 -> 2023-10-01 | C16: =-SUMPRODUCT((WNARevAlloc[MonthFlow]=$B16)*(WNARevAlloc[Territory]=C$11)*(WNARevAlloc[CustClassRate]=$C$10)*WNARevAlloc[AdjCAWNARev]) -> -2896.18 | D16: =-SUMPRODUCT((WNARevAlloc[MonthFlow]=$B16)*(WNARevAlloc[Territory]=D$11)*(WNARevAlloc[CustClassRate]=$C$10)*WNARevAlloc[AdjCAWNARev]) -> -1553.08 | E16: =-SUMPRODUCT((WNARevAlloc[MonthFlow]=$B16)*(WNARevAlloc[Territory]=E$11)*(WNARevAlloc[CustClassRate]=$C$10)*WNARevAlloc[AdjCAWNARev]) -> -8596.07 | F16: =SUM(C16:E16) -> -13045.33 | G16: =-SUMPRODUCT((WNARevAlloc[MonthFlow]=$B16)*(WNARevAlloc[Territory]=G$11)*(WNARevAlloc[CustClassRate]=$G$10)*WNARevAlloc[AdjCAWNARev]) -> -6565.72 | H16: =-SUMPRODUCT((WNARevAlloc[MonthFlow]=$B16)*(WNARevAlloc[Territory]=H$11)*(WNARevAlloc[CustClassRate]=$G$10)*WNARevAlloc[AdjCAWNARev]) -> -453.22 | I16: =-SUMPRODUCT((WNARevAlloc[MonthFlow]=$B16)*(WNARevAlloc[Territory]=I$11)*(WNARevAlloc[CustClassRate]=$G$10)*WNARevAlloc[AdjCAWNARev]) -> -1756.42 | J16: =SUM(G16:I16) -> -8775.36 | K16: From WNARevAlloc Table
B17: =EDATE(B16,1) -> 2023-11-01 | C17: =-SUMPRODUCT((WNARevAlloc[MonthFlow]=$B17)*(WNARevAlloc[Territory]=C$11)*(WNARevAlloc[CustClassRate]=$C$10)*WNARevAlloc[AdjCAWNARev]) -> -10466 | D17: =-SUMPRODUCT((WNARevAlloc[MonthFlow]=$B17)*(WNARevAlloc[Territory]=D$11)*(WNARevAlloc[CustClassRate]=$C$10)*WNARevAlloc[AdjCAWNARev]) -> -6391.38 | E17: =-SUMPRODUCT((WNARevAlloc[MonthFlow]=$B17)*(WNARevAlloc[Territory]=E$11)*(WNARevAlloc[CustClassRate]=$C$10)*WNARevAlloc[AdjCAWNARev]) -> -27076.61 | F17: =SUM(C17:E17) -> -43933.99 | G17: =-SUMPRODUCT((WNARevAlloc[MonthFlow]=$B17)*(WNARevAlloc[Territory]=G$11)*(WNARevAlloc[CustClassRate]=$G$10)*WNARevAlloc[AdjCAWNARev]) -> -16037.52 | H17: =-SUMPRODUCT((WNARevAlloc[MonthFlow]=$B17)*(WNARevAlloc[Territory]=H$11)*(WNARevAlloc[CustClassRate]=$G$10)*WNARevAlloc[AdjCAWNARev]) -> -2039.56 | I17: =-SUMPRODUCT((WNARevAlloc[MonthFlow]=$B17)*(WNARevAlloc[Territory]=I$11)*(WNARevAlloc[CustClassRate]=$G$10)*WNARevAlloc[AdjCAWNARev]) -> -6493.63 | J17: =SUM(G17:I17) -> -24570.71 | K17: From WNARevAlloc Table
B18: =EDATE(B17,1) -> 2023-12-01 | C18: =-SUMPRODUCT((WNARevAlloc[MonthFlow]=$B18)*(WNARevAlloc[Territory]=C$11)*(WNARevAlloc[CustClassRate]=$C$10)*WNARevAlloc[AdjCAWNARev]) -> -13393.99 | D18: =-SUMPRODUCT((WNARevAlloc[MonthFlow]=$B18)*(WNARevAlloc[Territory]=D$11)*(WNARevAlloc[CustClassRate]=$C$10)*WNARevAlloc[AdjCAWNARev]) -> -8054.33 | E18: =-SUMPRODUCT((WNARevAlloc[MonthFlow]=$B18)*(WNARevAlloc[Territory]=E$11)*(WNARevAlloc[CustClassRate]=$C$10)*WNARevAlloc[AdjCAWNARev]) -> -37373.06 | F18: -58821.38 | G18: =-SUMPRODUCT((WNARevAlloc[MonthFlow]=$B18)*(WNARevAlloc[Territory]=G$11)*(WNARevAlloc[CustClassRate]=$G$10)*WNARevAlloc[AdjCAWNARev]) -> -21662.1 | H18: =-SUMPRODUCT((WNARevAlloc[MonthFlow]=$B18)*(WNARevAlloc[Territory]=H$11)*(WNARevAlloc[CustClassRate]=$G$10)*WNARevAlloc[AdjCAWNARev]) -> -2767.24 | I18: =-SUMPRODUCT((WNARevAlloc[MonthFlow]=$B18)*(WNARevAlloc[Territory]=I$11)*(WNARevAlloc[CustClassRate]=$G$10)*WNARevAlloc[AdjCAWNARev]) -> -9976.21 | J18: -34405.55 | K18: From WNARevAlloc Table
B19: 2024-01-01 | C19: =-SUMPRODUCT((WNARevAlloc[MonthFlow]=$B19)*(WNARevAlloc[Territory]=C$11)*(WNARevAlloc[CustClassRate]=$C$10)*WNARevAlloc[AdjCAWNARev]) -> -17732.25 | D19: =-SUMPRODUCT((WNARevAlloc[MonthFlow]=$B19)*(WNARevAlloc[Territory]=D$11)*(WNARevAlloc[CustClassRate]=$C$10)*WNARevAlloc[AdjCAWNARev]) -> -11094.77 | E19: =-SUMPRODUCT((WNARevAlloc[MonthFlow]=$B19)*(WNARevAlloc[Territory]=E$11)*(WNARevAlloc[CustClassRate]=$C$10)*WNARevAlloc[AdjCAWNARev]) -> -55048.35 | F19: -83875.37 | G19: =-SUMPRODUCT((WNARevAlloc[MonthFlow]=$B19)*(WNARevAlloc[Territory]=G$11)*(WNARevAlloc[CustClassRate]=$G$10)*WNARevAlloc[AdjCAWNARev]) -> -30092.17 | H19: =-SUMPRODUCT((WNARevAlloc[MonthFlow]=$B19)*(WNARevAlloc[Territory]=H$11)*(WNARevAlloc[CustClassRate]=$G$10)*WNARevAlloc[AdjCAWNARev]) -> -3960.47 | I19: =-SUMPRODUCT((WNARevAlloc[MonthFlow]=$B19)*(WNARevAlloc[Territory]=I$11)*(WNARevAlloc[CustClassRate]=$G$10)*WNARevAlloc[AdjCAWNARev]) -> -16000.49 | J19: -50053.13 | K19: From WNARevAlloc Table
B20: 2024-02-01 | C20: =-SUMPRODUCT((WNARevAlloc[MonthFlow]=$B20)*(WNARevAlloc[Territory]=C$11)*(WNARevAlloc[CustClassRate]=$C$10)*WNARevAlloc[AdjCAWNARev]) -> -9347.01 | D20: =-SUMPRODUCT((WNARevAlloc[MonthFlow]=$B20)*(WNARevAlloc[Territory]=D$11)*(WNARevAlloc[CustClassRate]=$C$10)*WNARevAlloc[AdjCAWNARev]) -> -5600.04 | E20: =-SUMPRODUCT((WNARevAlloc[MonthFlow]=$B20)*(WNARevAlloc[Territory]=E$11)*(WNARevAlloc[CustClassRate]=$C$10)*WNARevAlloc[AdjCAWNARev]) -> -26820.95 | F20: -41768 | G20: =-SUMPRODUCT((WNARevAlloc[MonthFlow]=$B20)*(WNARevAlloc[Territory]=G$11)*(WNARevAlloc[CustClassRate]=$G$10)*WNARevAlloc[AdjCAWNARev]) -> -16100.73 | H20: =-SUMPRODUCT((WNARevAlloc[MonthFlow]=$B20)*(WNARevAlloc[Territory]=H$11)*(WNARevAlloc[CustClassRate]=$G$10)*WNARevAlloc[AdjCAWNARev]) -> -1843.91 | I20: =-SUMPRODUCT((WNARevAlloc[MonthFlow]=$B20)*(WNARevAlloc[Territory]=I$11)*(WNARevAlloc[CustClassRate]=$G$10)*WNARevAlloc[AdjCAWNARev]) -> -6916.54 | J20: -24861.18 | K20: From WNARevAlloc Table
B21: 2024-03-01 | C21: =-SUMPRODUCT((WNARevAlloc[MonthFlow]=$B21)*(WNARevAlloc[Territory]=C$11)*(WNARevAlloc[CustClassRate]=$C$10)*WNARevAlloc[AdjCAWNARev]) -> -7344.73 | D21: =-SUMPRODUCT((WNARevAlloc[MonthFlow]=$B21)*(WNARevAlloc[Territory]=D$11)*(WNARevAlloc[CustClassRate]=$C$10)*WNARevAlloc[AdjCAWNARev]) -> -4471.57 | E21: =-SUMPRODUCT((WNARevAlloc[MonthFlow]=$B21)*(WNARevAlloc[Territory]=E$11)*(WNARevAlloc[CustClassRate]=$C$10)*WNARevAlloc[AdjCAWNARev]) -> -20258.71 | F21: -32075.01 | G21: =-SUMPRODUCT((WNARevAlloc[MonthFlow]=$B21)*(WNARevAlloc[Territory]=G$11)*(WNARevAlloc[CustClassRate]=$G$10)*WNARevAlloc[AdjCAWNARev]) -> -3099.09 | H21: =-SUMPRODUCT((WNARevAlloc[MonthFlow]=$B21)*(WNARevAlloc[Territory]=H$11)*(WNARevAlloc[CustClassRate]=$G$10)*WNARevAlloc[AdjCAWNARev]) -> -1731.76 | I21: =-SUMPRODUCT((WNARevAlloc[MonthFlow]=$B21)*(WNARevAlloc[Territory]=I$11)*(WNARevAlloc[CustClassRate]=$G$10)*WNARevAlloc[AdjCAWNARev]) -> -4099.69 | J21: -8930.54 | K21: From WNARevAlloc Table
B22: 2024-04-01 | C22: =-SUMPRODUCT((WNARevAlloc[MonthFlow]=$B22)*(WNARevAlloc[Territory]=C$11)*(WNARevAlloc[CustClassRate]=$C$10)*WNARevAlloc[AdjCAWNARev]) -> -2493.16 | D22: =-SUMPRODUCT((WNARevAlloc[MonthFlow]=$B22)*(WNARevAlloc[Territory]=D$11)*(WNARevAlloc[CustClassRate]=$C$10)*WNARevAlloc[AdjCAWNARev]) -> -1493.15 | E22: =-SUMPRODUCT((WNARevAlloc[MonthFlow]=$B22)*(WNARevAlloc[Territory]=E$11)*(WNARevAlloc[CustClassRate]=$C$10)*WNARevAlloc[AdjCAWNARev]) -> -7779.85 | F22: -11766.16 | G22: =-SUMPRODUCT((WNARevAlloc[MonthFlow]=$B22)*(WNARevAlloc[Territory]=G$11)*(WNARevAlloc[CustClassRate]=$G$10)*WNARevAlloc[AdjCAWNARev]) -> -1286.7 | H22: =-SUMPRODUCT((WNARevAlloc[MonthFlow]=$B22)*(WNARevAlloc[Territory]=H$11)*(WNARevAlloc[CustClassRate]=$G$10)*WNARevAlloc[AdjCAWNARev]) -> -487.05 | I22: =-SUMPRODUCT((WNARevAlloc[MonthFlow]=$B22)*(WNARevAlloc[Territory]=I$11)*(WNARevAlloc[CustClassRate]=$G$10)*WNARevAlloc[AdjCAWNARev]) -> -3942.23 | J22: -5715.98 | K22: From WNARevAlloc Table
B23: 2024-05-01 | C23: =-SUMPRODUCT((WNARevAlloc[MonthFlow]=$B23)*(WNARevAlloc[Territory]=C$11)*(WNARevAlloc[CustClassRate]=$C$10)*WNARevAlloc[AdjCAWNARev]) -> -921.56 | D23: =-SUMPRODUCT((WNARevAlloc[MonthFlow]=$B23)*(WNARevAlloc[Territory]=D$11)*(WNARevAlloc[CustClassRate]=$C$10)*WNARevAlloc[AdjCAWNARev]) -> -550.18 | E23: =-SUMPRODUCT((WNARevAlloc[MonthFlow]=$B23)*(WNARevAlloc[Territory]=E$11)*(WNARevAlloc[CustClassRate]=$C$10)*WNARevAlloc[AdjCAWNARev]) -> -4301.48 | F23: -5773.22 | G23: =-SUMPRODUCT((WNARevAlloc[MonthFlow]=$B23)*(WNARevAlloc[Territory]=G$11)*(WNARevAlloc[CustClassRate]=$G$10)*WNARevAlloc[AdjCAWNARev]) -> -889.1 | H23: =-SUMPRODUCT((WNARevAlloc[MonthFlow]=$B23)*(WNARevAlloc[Territory]=H$11)*(WNARevAlloc[CustClassRate]=$G$10)*WNARevAlloc[AdjCAWNARev]) -> -254.8 | I23: =-SUMPRODUCT((WNARevAlloc[MonthFlow]=$B23)*(WNARevAlloc[Territory]=I$11)*(WNARevAlloc[CustClassRate]=$G$10)*WNARevAlloc[AdjCAWNARev]) -> -1361.48 | J23: -2505.38 | K23: From WNARevAlloc Table
B24: 2024-06-01 | C24: =-SUMPRODUCT((WNARevAlloc[MonthFlow]=$B24)*(WNARevAlloc[Territory]=C$11)*(WNARevAlloc[CustClassRate]=$C$10)*WNARevAlloc[AdjCAWNARev]) -> -726.65 | D24: =-SUMPRODUCT((WNARevAlloc[MonthFlow]=$B24)*(WNARevAlloc[Territory]=D$11)*(WNARevAlloc[CustClassRate]=$C$10)*WNARevAlloc[AdjCAWNARev]) -> -462.14 | E24: =-SUMPRODUCT((WNARevAlloc[MonthFlow]=$B24)*(WNARevAlloc[Territory]=E$11)*(WNARevAlloc[CustClassRate]=$C$10)*WNARevAlloc[AdjCAWNARev]) -> -3273.17 | F24: -4461.96 | G24: =-SUMPRODUCT((WNARevAlloc[MonthFlow]=$B24)*(WNARevAlloc[Territory]=G$11)*(WNARevAlloc[CustClassRate]=$G$10)*WNARevAlloc[AdjCAWNARev]) -> -568.04 | H24: =-SUMPRODUCT((WNARevAlloc[MonthFlow]=$B24)*(WNARevAlloc[Territory]=H$11)*(WNARevAlloc[CustClassRate]=$G$10)*WNARevAlloc[AdjCAWNARev]) -> -151.84 | I24: =-SUMPRODUCT((WNARevAlloc[MonthFlow]=$B24)*(WNARevAlloc[Territory]=I$11)*(WNARevAlloc[CustClassRate]=$G$10)*WNARevAlloc[AdjCAWNARev]) -> -792.62 | J24: -1512.5 | K24: From WNARevAlloc Table
B25: Total Actual Revenues | C25: =SUM(C16:C24) -> -65321.53 | D25: =SUM(D16:D24) -> -39670.64 | E25: -190528.25 | F25: -295520.42 | G25: -96301.17 | H25: -13689.85 | I25: -51339.31 | J25: -161330.33
B26: Projected Revenues
B27: =EDATE(B24,1) -> 2024-07-01 | C27: =-SUMPRODUCT((CustEstVol[MonthFlow]=$B27)*(CustEstVol[Territory]=C$11)*(CustEstVol[CustClass]=$C$10)*CustEstVol[CAWNARev]) -> -388.48 | D27: =-SUMPRODUCT((CustEstVol[MonthFlow]=$B27)*(CustEstVol[Territory]=D$11)*(CustEstVol[CustClass]=$C$10)*CustEstVol[CAWNARev]) -> -521.1 | E27: =-SUMPRODUCT((CustEstVol[MonthFlow]=$B27)*(CustEstVol[Territory]=E$11)*(CustEstVol[CustClass]=$C$10)*CustEstVol[CAWNARev]) -> -3573.31 | F27: =SUM(C27:E27) -> -4482.89 | G27: =-SUMPRODUCT((CustEstVol[MonthFlow]=$B27)*(CustEstVol[Territory]=G$11)*(CustEstVol[CustClass]=$G$10)*CustEstVol[CAWNARev]) -> -451.32 | H27: =-SUMPRODUCT((CustEstVol[MonthFlow]=$B27)*(CustEstVol[Territory]=H$11)*(CustEstVol[CustClass]=$G$10)*CustEstVol[CAWNARev]) -> -220.81 | I27: =-SUMPRODUCT((CustEstVol[MonthFlow]=$B27)*(CustEstVol[Territory]=I$11)*(CustEstVol[CustClass]=$G$10)*CustEstVol[CAWNARev]) -> -1009.51 | J27: =SUM(G27:I27) -> -1681.64 | K27: From CustEstRev Table
B28: =EDATE(B27,1) -> 2024-08-01 | C28: =-SUMPRODUCT((CustEstVol[MonthFlow]=$B28)*(CustEstVol[Territory]=C$11)*(CustEstVol[CustClass]=$C$10)*CustEstVol[CAWNARev]) -> -408.24 | D28: =-SUMPRODUCT((CustEstVol[MonthFlow]=$B28)*(CustEstVol[Territory]=D$11)*(CustEstVol[CustClass]=$C$10)*CustEstVol[CAWNARev]) -> -515.52 | E28: =-SUMPRODUCT((CustEstVol[MonthFlow]=$B28)*(CustEstVol[Territory]=E$11)*(CustEstVol[CustClass]=$C$10)*CustEstVol[CAWNARev]) -> -3572.73 | F28: =SUM(C28:E28) -> -4496.49 | G28: =-SUMPRODUCT((CustEstVol[MonthFlow]=$B28)*(CustEstVol[Territory]=G$11)*(CustEstVol[CustClass]=$G$10)*CustEstVol[CAWNARev]) -> -474.28 | H28: =-SUMPRODUCT((CustEstVol[MonthFlow]=$B28)*(CustEstVol[Territory]=H$11)*(CustEstVol[CustClass]=$G$10)*CustEstVol[CAWNARev]) -> -960.89 | I28: =-SUMPRODUCT((CustEstVol[MonthFlow]=$B28)*(CustEstVol[Territory]=I$11)*(CustEstVol[CustClass]=$G$10)*CustEstVol[CAWNARev]) -> -1086.28 | J28: =SUM(G28:I28) -> -2521.45 | K28: From CustEstRev Table
B29: =EDATE(B28,1) -> 2024-09-01 | C29: =-SUMPRODUCT((CustEstVol[MonthFlow]=$B29)*(CustEstVol[Territory]=C$11)*(CustEstVol[CustClass]=$C$10)*CustEstVol[CAWNARev]) -> -618.53 | D29: =-SUMPRODUCT((CustEstVol[MonthFlow]=$B29)*(CustEstVol[Territory]=D$11)*(CustEstVol[CustClass]=$C$10)*CustEstVol[CAWNARev]) -> -577.43 | E29: =-SUMPRODUCT((CustEstVol[MonthFlow]=$B29)*(CustEstVol[Territory]=E$11)*(CustEstVol[CustClass]=$C$10)*CustEstVol[CAWNARev]) -> -3661.38 | F29: -4857.34 | G29: =-SUMPRODUCT((CustEstVol[MonthFlow]=$B29)*(CustEstVol[Territory]=G$11)*(CustEstVol[CustClass]=$G$10)*CustEstVol[CAWNARev]) -> -718.58 | H29: =-SUMPRODUCT((CustEstVol[MonthFlow]=$B29)*(CustEstVol[Territory]=H$11)*(CustEstVol[CustClass]=$G$10)*CustEstVol[CAWNARev]) -> -2612.78 | I29: =-SUMPRODUCT((CustEstVol[MonthFlow]=$B29)*(CustEstVol[Territory]=I$11)*(CustEstVol[CustClass]=$G$10)*CustEstVol[CAWNARev]) -> -2138.95 | J29: -5470.31 | K29: From CustEstRev Table
B30: Total Projected Revenues | C30: =SUM(C27:C29) -> -1415.25 | D30: =SUM(D27:D29) -> -1614.05 | E30: -10807.42 | F30: -13836.72 | G30: -1644.18 | H30: -3794.48 | I30: -4234.74 | J30: -9673.4
B31: Total Billings | C31: =C25+C30 -> -66736.78 | D31: =D25+D30 -> -41284.69 | E31: -201335.67 | F31: -309357.14 | G31: -97945.35 | H31: -17484.33 | I31: -55574.05 | J31: -171003.73
B32: CAWNA Net (Over)/Under Recov 1/ | C32: =ROUND(C14+C31,2) -> 22041.11 | D32: =ROUND(D14+D31,2) -> 12169.3 | E32: 74381.47 | F32: 108591.88 | G32: -64092.47 | H32: 2678.33 | I32: 26109.52 | J32: -35304.62
B34: Reconciliation Summary | C34: ARR
B35: Customer Class | C35: Res | G35: Comm | K35: Notes
B36: Region | C36: North | D36: NW | E36: South | F36: Combined | G36: North | H36: NW | I36: South | J36: Combined
B37: Reconciling Period Adj. | C37: =SUMPRODUCT((ReconPerAdj[EffDate]=$C$6)*(ReconPerAdj[Territory]=C36)*(ReconPerAdj[CustClass]=$C35)*(ReconPerAdj[RateName]=$C$34)*ReconPerAdj[ReconcilingPeriodAdj]) -> 0 | D37: =SUMPRODUCT((ReconPerAdj[EffDate]=$C$6)*(ReconPerAdj[Territory]=D36)*(ReconPerAdj[CustClass]=$C35)*(ReconPerAdj[RateName]=$C$34)*ReconPerAdj[ReconcilingPeriodAdj]) -> 0 | E37: =SUMPRODUCT((ReconPerAdj[EffDate]=$C$6)*(ReconPerAdj[Territory]=E36)*(ReconPerAdj[CustClass]=$C35)*(ReconPerAdj[RateName]=$C$34)*ReconPerAdj[ReconcilingPeriodAdj]) -> 0 | F37: =SUM(C37:E37) -> 0 | G37: =SUMPRODUCT((ReconPerAdj[EffDate]=$C$6)*(ReconPerAdj[Territory]=G36)*(ReconPerAdj[CustClass]=$G35)*(ReconPerAdj[RateName]=$C$34)*ReconPerAdj[ReconcilingPeriodAdj]) -> 0 | H37: =SUMPRODUCT((ReconPerAdj[EffDate]=$C$6)*(ReconPerAdj[Territory]=H36)*(ReconPerAdj[CustClass]=$G35)*(ReconPerAdj[RateName]=$C$34)*ReconPerAdj[ReconcilingPeriodAdj]) -> 0 | I37: =SUMPRODUCT((ReconPerAdj[EffDate]=$C$6)*(ReconPerAdj[Territory]=I36)*(ReconPerAdj[CustClass]=$G35)*(ReconPerAdj[RateName]=$C$34)*ReconPerAdj[ReconcilingPeriodAdj]) -> 0 | J37: =SUM(G37:I37) -> 0 | K37: From ReconPerAdj Table
B38: Volumetric True-Up | C38: =SUMPRODUCT((VolTrueUp[Year]=$C$5)*(VolTrueUp[Territory]=C36)*(VolTrueUp[CustClass]=$C$35)*VolTrueUp[TrueUp]) -> 0 | D38: =SUMPRODUCT((VolTrueUp[Year]=$C$5)*(VolTrueUp[Territory]=D36)*(VolTrueUp[CustClass]=$C$35)*VolTrueUp[TrueUp]) -> 0 | E38: =SUMPRODUCT((VolTrueUp[Year]=$C$5)*(VolTrueUp[Territory]=E36)*(VolTrueUp[CustClass]=$C$35)*VolTrueUp[TrueUp]) -> 0 | F38: 0 | G38: =SUMPRODUCT((VolTrueUp[Year]=$C$5)*(VolTrueUp[Territory]=G36)*(VolTrueUp[CustClass]=$G$35)*VolTrueUp[TrueUp]) -> 0 | H38: =SUMPRODUCT((VolTrueUp[Year]=$C$5)*(VolTrueUp[Territory]=H36)*(VolTrueUp[CustClass]=$G$35)*VolTrueUp[TrueUp]) -> 0 | I38: =SUMPRODUCT((VolTrueUp[Year]=$C$5)*(VolTrueUp[Territory]=I36)*(VolTrueUp[CustClass]=$G$35)*VolTrueUp[TrueUp]) -> 0 | J38: =SUM(G38:I38) -> 0 | K38: From VolTrueUp Table
B39: Adj. Amount to be Recovered | C39: =SUM(C37:C38) -> 0 | D39: =SUM(D37:D38) -> 0 | E39: =SUM(E37:E38) -> 0 | F39: 0 | G39: 0 | H39: 0 | I39: 0 | J39: 0
B40: Actual Revenues
B41: 2023-10-01 | C41: =-SUMPRODUCT((WNARevAlloc[MonthFlow]=$B41)*(WNARevAlloc[Territory]=C$36)*(WNARevAlloc[CustClassRate]=$C$35)*WNARevAlloc[AdjARRRev]) -> 0 | D41: =-SUMPRODUCT((WNARevAlloc[MonthFlow]=$B41)*(WNARevAlloc[Territory]=D$36)*(WNARevAlloc[CustClassRate]=$C$35)*WNARevAlloc[AdjARRRev]) -> 0 | E41: =-SUMPRODUCT((WNARevAlloc[MonthFlow]=$B41)*(WNARevAlloc[Territory]=E$36)*(WNARevAlloc[CustClassRate]=$C$35)*WNARevAlloc[AdjARRRev]) -> 0 | F41: =SUM(C41:E41) -> 0 | G41: =-SUMPRODUCT((WNARevAlloc[MonthFlow]=$B41)*(WNARevAlloc[Territory]=G$36)*(WNARevAlloc[CustClassRate]=$G$35)*WNARevAlloc[AdjARRRev]) -> 0 | H41: =-SUMPRODUCT((WNARevAlloc[MonthFlow]=$B41)*(WNARevAlloc[Territory]=H$36)*(WNARevAlloc[CustClassRate]=$G$35)*WNARevAlloc[AdjARRRev]) -> 0 | I41: =-SUMPRODUCT((WNARevAlloc[MonthFlow]=$B41)*(WNARevAlloc[Territory]=I$36)*(WNARevAlloc[CustClassRate]=$G$35)*WNARevAlloc[AdjARRRev]) -> 0 | J41: =SUM(G41:I41) -> 0 | K41: From WNARevAlloc Table
B42: 2023-11-01 | C42: =-SUMPRODUCT((WNARevAlloc[MonthFlow]=$B42)*(WNARevAlloc[Territory]=C$36)*(WNARevAlloc[CustClassRate]=$C$35)*WNARevAlloc[AdjARRRev]) -> 0 | D42: =-SUMPRODUCT((WNARevAlloc[MonthFlow]=$B42)*(WNARevAlloc[Territory]=D$36)*(WNARevAlloc[CustClassRate]=$C$35)*WNARevAlloc[AdjARRRev]) -> 0 | E42: =-SUMPRODUCT((WNARevAlloc[MonthFlow]=$B42)*(WNARevAlloc[Territory]=E$36)*(WNARevAlloc[CustClassRate]=$C$35)*WNARevAlloc[AdjARRRev]) -> 0 | F42: =SUM(C42:E42) -> 0 | G42: =-SUMPRODUCT((WNARevAlloc[MonthFlow]=$B42)*(WNARevAlloc[Territory]=G$36)*(WNARevAlloc[CustClassRate]=$G$35)*WNARevAlloc[AdjARRRev]) -> 0 | H42: =-SUMPRODUCT((WNARevAlloc[MonthFlow]=$B42)*(WNARevAlloc[Territory]=H$36)*(WNARevAlloc[CustClassRate]=$G$35)*WNARevAlloc[AdjARRRev]) -> 0 | I42: =-SUMPRODUCT((WNARevAlloc[MonthFlow]=$B42)*(WNARevAlloc[Territory]=I$36)*(WNARevAlloc[CustClassRate]=$G$35)*WNARevAlloc[AdjARRRev]) -> 0 | J42: =SUM(G42:I42) -> 0 | K42: From WNARevAlloc Table
B43: 2023-12-01 | C43: =-SUMPRODUCT((WNARevAlloc[MonthFlow]=$B43)*(WNARevAlloc[Territory]=C$36)*(WNARevAlloc[CustClassRate]=$C$35)*WNARevAlloc[AdjARRRev]) -> 0 | D43: =-SUMPRODUCT((WNARevAlloc[MonthFlow]=$B43)*(WNARevAlloc[Territory]=D$36)*(WNARevAlloc[CustClassRate]=$C$35)*WNARevAlloc[AdjARRRev]) -> 0 | E43: =-SUMPRODUCT((WNARevAlloc[MonthFlow]=$B43)*(WNARevAlloc[Territory]=E$36)*(WNARevAlloc[CustClassRate]=$C$35)*WNARevAlloc[AdjARRRev]) -> 0 | F43: 0 | G43: =-SUMPRODUCT((WNARevAlloc[MonthFlow]=$B43)*(WNARevAlloc[Territory]=G$36)*(WNARevAlloc[CustClassRate]=$G$35)*WNARevAlloc[AdjARRRev]) -> 0 | H43: =-SUMPRODUCT((WNARevAlloc[MonthFlow]=$B43)*(WNARevAlloc[Territory]=H$36)*(WNARevAlloc[CustClassRate]=$G$35)*WNARevAlloc[AdjARRRev]) -> 0 | I43: =-SUMPRODUCT((WNARevAlloc[MonthFlow]=$B43)*(WNARevAlloc[Territory]=I$36)*(WNARevAlloc[CustClassRate]=$G$35)*WNARevAlloc[AdjARRRev]) -> 0 | J43: 0 | K43: From WNARevAlloc Table
B44: 2024-01-01 | C44: =-SUMPRODUCT((WNARevAlloc[MonthFlow]=$B44)*(WNARevAlloc[Territory]=C$36)*(WNARevAlloc[CustClassRate]=$C$35)*WNARevAlloc[AdjARRRev]) -> 0 | D44: =-SUMPRODUCT((WNARevAlloc[MonthFlow]=$B44)*(WNARevAlloc[Territory]=D$36)*(WNARevAlloc[CustClassRate]=$C$35)*WNARevAlloc[AdjARRRev]) -> 0 | E44: =-SUMPRODUCT((WNARevAlloc[MonthFlow]=$B44)*(WNARevAlloc[Territory]=E$36)*(WNARevAlloc[CustClassRate]=$C$35)*WNARevAlloc[AdjARRRev]) -> 0 | F44: 0 | G44: =-SUMPRODUCT((WNARevAlloc[MonthFlow]=$B44)*(WNARevAlloc[Territory]=G$36)*(WNARevAlloc[CustClassRate]=$G$35)*WNARevAlloc[AdjARRRev]) -> 0 | H44: =-SUMPRODUCT((WNARevAlloc[MonthFlow]=$B44)*(WNARevAlloc[Territory]=H$36)*(WNARevAlloc[CustClassRate]=$G$35)*WNARevAlloc[AdjARRRev]) -> 0 | I44: =-SUMPRODUCT((WNARevAlloc[MonthFlow]=$B44)*(WNARevAlloc[Territory]=I$36)*(WNARevAlloc[CustClassRate]=$G$35)*WNARevAlloc[AdjARRRev]) -> 0 | J44: 0 | K44: From WNARevAlloc Table
B45: 2024-02-01 | C45: =-SUMPRODUCT((WNARevAlloc[MonthFlow]=$B45)*(WNARevAlloc[Territory]=C$36)*(WNARevAlloc[CustClassRate]=$C$35)*WNARevAlloc[AdjARRRev]) -> 0 | D45: =-SUMPRODUCT((WNARevAlloc[MonthFlow]=$B45)*(WNARevAlloc[Territory]=D$36)*(WNARevAlloc[CustClassRate]=$C$35)*WNARevAlloc[AdjARRRev]) -> 0 | E45: =-SUMPRODUCT((WNARevAlloc[MonthFlow]=$B45)*(WNARevAlloc[Territory]=E$36)*(WNARevAlloc[CustClassRate]=$C$35)*WNARevAlloc[AdjARRRev]) -> 0 | F45: 0 | G45: =-SUMPRODUCT((WNARevAlloc[MonthFlow]=$B45)*(WNARevAlloc[Territory]=G$36)*(WNARevAlloc[CustClassRate]=$G$35)*WNARevAlloc[AdjARRRev]) -> 0 | H45: =-SUMPRODUCT((WNARevAlloc[MonthFlow]=$B45)*(WNARevAlloc[Territory]=H$36)*(WNARevAlloc[CustClassRate]=$G$35)*WNARevAlloc[AdjARRRev]) -> 0 | I45: =-SUMPRODUCT((WNARevAlloc[MonthFlow]=$B45)*(WNARevAlloc[Territory]=I$36)*(WNARevAlloc[CustClassRate]=$G$35)*WNARevAlloc[AdjARRRev]) -> 0 | J45: 0 | K45: From WNARevAlloc Table
B46: 2024-03-01 | C46: =-SUMPRODUCT((WNARevAlloc[MonthFlow]=$B46)*(WNARevAlloc[Territory]=C$36)*(WNARevAlloc[CustClassRate]=$C$35)*WNARevAlloc[AdjARRRev]) -> 0 | D46: =-SUMPRODUCT((WNARevAlloc[MonthFlow]=$B46)*(WNARevAlloc[Territory]=D$36)*(WNARevAlloc[CustClassRate]=$C$35)*WNARevAlloc[AdjARRRev]) -> 0 | E46: =-SUMPRODUCT((WNARevAlloc[MonthFlow]=$B46)*(WNARevAlloc[Territory]=E$36)*(WNARevAlloc[CustClassRate]=$C$35)*WNARevAlloc[AdjARRRev]) -> 0 | F46: 0 | G46: =-SUMPRODUCT((WNARevAlloc[MonthFlow]=$B46)*(WNARevAlloc[Territory]=G$36)*(WNARevAlloc[CustClassRate]=$G$35)*WNARevAlloc[AdjARRRev]) -> 0 | H46: =-SUMPRODUCT((WNARevAlloc[MonthFlow]=$B46)*(WNARevAlloc[Territory]=H$36)*(WNARevAlloc[CustClassRate]=$G$35)*WNARevAlloc[AdjARRRev]) -> 0 | I46: =-SUMPRODUCT((WNARevAlloc[MonthFlow]=$B46)*(WNARevAlloc[Territory]=I$36)*(WNARevAlloc[CustClassRate]=$G$35)*WNARevAlloc[AdjARRRev]) -> 0 | J46: 0 | K46: From WNARevAlloc Table
B47: 2024-04-01 | C47: =-SUMPRODUCT((WNARevAlloc[MonthFlow]=$B47)*(WNARevAlloc[Territory]=C$36)*(WNARevAlloc[CustClassRate]=$C$35)*WNARevAlloc[AdjARRRev]) -> 0 | D47: =-SUMPRODUCT((WNARevAlloc[MonthFlow]=$B47)*(WNARevAlloc[Territory]=D$36)*(WNARevAlloc[CustClassRate]=$C$35)*WNARevAlloc[AdjARRRev]) -> 0 | E47: =-SUMPRODUCT((WNARevAlloc[MonthFlow]=$B47)*(WNARevAlloc[Territory]=E$36)*(WNARevAlloc[CustClassRate]=$C$35)*WNARevAlloc[AdjARRRev]) -> 0 | F47: 0 | G47: =-SUMPRODUCT((WNARevAlloc[MonthFlow]=$B47)*(WNARevAlloc[Territory]=G$36)*(WNARevAlloc[CustClassRate]=$G$35)*WNARevAlloc[AdjARRRev]) -> 0 | H47: =-SUMPRODUCT((WNARevAlloc[MonthFlow]=$B47)*(WNARevAlloc[Territory]=H$36)*(WNARevAlloc[CustClassRate]=$G$35)*WNARevAlloc[AdjARRRev]) -> 0 | I47: =-SUMPRODUCT((WNARevAlloc[MonthFlow]=$B47)*(WNARevAlloc[Territory]=I$36)*(WNARevAlloc[CustClassRate]=$G$35)*WNARevAlloc[AdjARRRev]) -> 0 | J47: 0 | K47: From WNARevAlloc Table
B48: 2024-05-01 | C48: =-SUMPRODUCT((WNARevAlloc[MonthFlow]=$B48)*(WNARevAlloc[Territory]=C$36)*(WNARevAlloc[CustClassRate]=$C$35)*WNARevAlloc[AdjARRRev]) -> 0 | D48: =-SUMPRODUCT((WNARevAlloc[MonthFlow]=$B48)*(WNARevAlloc[Territory]=D$36)*(WNARevAlloc[CustClassRate]=$C$35)*WNARevAlloc[AdjARRRev]) -> 0 | E48: =-SUMPRODUCT((WNARevAlloc[MonthFlow]=$B48)*(WNARevAlloc[Territory]=E$36)*(WNARevAlloc[CustClassRate]=$C$35)*WNARevAlloc[AdjARRRev]) -> 0 | F48: 0 | G48: =-SUMPRODUCT((WNARevAlloc[MonthFlow]=$B48)*(WNARevAlloc[Territory]=G$36)*(WNARevAlloc[CustClassRate]=$G$35)*WNARevAlloc[AdjARRRev]) -> 0 | H48: =-SUMPRODUCT((WNARevAlloc[MonthFlow]=$B48)*(WNARevAlloc[Territory]=H$36)*(WNARevAlloc[CustClassRate]=$G$35)*WNARevAlloc[AdjARRRev]) -> 0 | I48: =-SUMPRODUCT((WNARevAlloc[MonthFlow]=$B48)*(WNARevAlloc[Territory]=I$36)*(WNARevAlloc[CustClassRate]=$G$35)*WNARevAlloc[AdjARRRev]) -> 0 | J48: 0 | K48: From WNARevAlloc Table
B49: 2024-06-01 | C49: =-SUMPRODUCT((WNARevAlloc[MonthFlow]=$B49)*(WNARevAlloc[Territory]=C$36)*(WNARevAlloc[CustClassRate]=$C$35)*WNARevAlloc[AdjARRRev]) -> 0 | D49: =-SUMPRODUCT((WNARevAlloc[MonthFlow]=$B49)*(WNARevAlloc[Territory]=D$36)*(WNARevAlloc[CustClassRate]=$C$35)*WNARevAlloc[AdjARRRev]) -> 0 | E49: =-SUMPRODUCT((WNARevAlloc[MonthFlow]=$B49)*(WNARevAlloc[Territory]=E$36)*(WNARevAlloc[CustClassRate]=$C$35)*WNARevAlloc[AdjARRRev]) -> 0 | F49: 0 | G49: =-SUMPRODUCT((WNARevAlloc[MonthFlow]=$B49)*(WNARevAlloc[Territory]=G$36)*(WNARevAlloc[CustClassRate]=$G$35)*WNARevAlloc[AdjARRRev]) -> 0 | H49: =-SUMPRODUCT((WNARevAlloc[MonthFlow]=$B49)*(WNARevAlloc[Territory]=H$36)*(WNARevAlloc[CustClassRate]=$G$35)*WNARevAlloc[AdjARRRev]) -> 0 | I49: =-SUMPRODUCT((WNARevAlloc[MonthFlow]=$B49)*(WNARevAlloc[Territory]=I$36)*(WNARevAlloc[CustClassRate]=$G$35)*WNARevAlloc[AdjARRRev]) -> 0 | J49: 0 | K49: From WNARevAlloc Table
B50: Total Actual Revenues | C50: =SUM(C41:C49) -> 0 | D50: =SUM(D41:D49) -> 0 | E50: 0 | F50: 0 | G50: 0 | H50: 0 | I50: 0 | J50: 0
B51: Projected Revenues
B52: 2024-07-01 | C52: =-SUMPRODUCT((CustEstVol[MonthFlow]=$B52)*(CustEstVol[Territory]=C$36)*(CustEstVol[CustClass]=$C$35)*CustEstVol[ARRRev]) -> 0 | D52: =-SUMPRODUCT((CustEstVol[MonthFlow]=$B52)*(CustEstVol[Territory]=D$36)*(CustEstVol[CustClass]=$C$35)*CustEstVol[ARRRev]) -> 0 | E52: =-SUMPRODUCT((CustEstVol[MonthFlow]=$B52)*(CustEstVol[Territory]=E$36)*(CustEstVol[CustClass]=$C$35)*CustEstVol[ARRRev]) -> 0 | F52: =SUM(C52:E52) -> 0 | G52: =-SUMPRODUCT((CustEstVol[MonthFlow]=$B52)*(CustEstVol[Territory]=G$36)*(CustEstVol[CustClass]=$G$35)*CustEstVol[ARRRev]) -> 0 | H52: =-SUMPRODUCT((CustEstVol[MonthFlow]=$B52)*(CustEstVol[Territory]=H$36)*(CustEstVol[CustClass]=$G$35)*CustEstVol[ARRRev]) -> 0 | I52: =-SUMPRODUCT((CustEstVol[MonthFlow]=$B52)*(CustEstVol[Territory]=I$36)*(CustEstVol[CustClass]=$G$35)*CustEstVol[ARRRev]) -> 0 | J52: =SUM(G52:I52) -> 0 | K52: From CustEstRev Table
B53: 2024-08-01 | C53: =-SUMPRODUCT((CustEstVol[MonthFlow]=$B53)*(CustEstVol[Territory]=C$36)*(CustEstVol[CustClass]=$C$35)*CustEstVol[ARRRev]) -> 0 | D53: =-SUMPRODUCT((CustEstVol[MonthFlow]=$B53)*(CustEstVol[Territory]=D$36)*(CustEstVol[CustClass]=$C$35)*CustEstVol[ARRRev]) -> 0 | E53: =-SUMPRODUCT((CustEstVol[MonthFlow]=$B53)*(CustEstVol[Territory]=E$36)*(CustEstVol[CustClass]=$C$35)*CustEstVol[ARRRev]) -> 0 | F53: =SUM(C53:E53) -> 0 | G53: =-SUMPRODUCT((CustEstVol[MonthFlow]=$B53)*(CustEstVol[Territory]=G$36)*(CustEstVol[CustClass]=$G$35)*CustEstVol[ARRRev]) -> 0 | H53: =-SUMPRODUCT((CustEstVol[MonthFlow]=$B53)*(CustEstVol[Territory]=H$36)*(CustEstVol[CustClass]=$G$35)*CustEstVol[ARRRev]) -> 0 | I53: =-SUMPRODUCT((CustEstVol[MonthFlow]=$B53)*(CustEstVol[Territory]=I$36)*(CustEstVol[CustClass]=$G$35)*CustEstVol[ARRRev]) -> 0 | J53: =SUM(G53:I53) -> 0 | K53: From CustEstRev Table
B54: 2024-09-01 | C54: =-SUMPRODUCT((CustEstVol[MonthFlow]=$B54)*(CustEstVol[Territory]=C$36)*(CustEstVol[CustClass]=$C$35)*CustEstVol[ARRRev]) -> 0 | D54: =-SUMPRODUCT((CustEstVol[MonthFlow]=$B54)*(CustEstVol[Territory]=D$36)*(CustEstVol[CustClass]=$C$35)*CustEstVol[ARRRev]) -> 0 | E54: =-SUMPRODUCT((CustEstVol[MonthFlow]=$B54)*(CustEstVol[Territory]=E$36)*(CustEstVol[CustClass]=$C$35)*CustEstVol[ARRRev]) -> 0 | F54: 0 | G54: =-SUMPRODUCT((CustEstVol[MonthFlow]=$B54)*(CustEstVol[Territory]=G$36)*(CustEstVol[CustClass]=$G$35)*CustEstVol[ARRRev]) -> 0 | H54: =-SUMPRODUCT((CustEstVol[MonthFlow]=$B54)*(CustEstVol[Territory]=H$36)*(CustEstVol[CustClass]=$G$35)*CustEstVol[ARRRev]) -> 0 | I54: =-SUMPRODUCT((CustEstVol[MonthFlow]=$B54)*(CustEstVol[Territory]=I$36)*(CustEstVol[CustClass]=$G$35)*CustEstVol[ARRRev]) -> 0 | J54: 0 | K54: From CustEstRev Table
B55: Total Projected Revenues | C55: =SUM(C52:C54) -> 0 | D55: =SUM(D52:D54) -> 0 | E55: 0 | F55: 0 | G55: 0 | H55: 0 | I55: 0 | J55: 0
B56: Total Billings | C56: =C50+C55 -> 0 | D56: =D50+D55 -> 0 | E56: 0 | F56: 0 | G56: 0 | H56: 0 | I56: 0 | J56: 0
B57: Total WNA Recovery | C57: =C31+C56 -> -66736.78 | D57: =D31+D56 -> -41284.69 | E57: -201335.67 | F57: -309357.14 | G57: -97945.35 | H57: -17484.33 | I57: -55574.05 | J57: -171003.73
B58: ARR Net (Over)/Under Recov 1/ | C58: =ROUND(C39+C56,2) -> 0 | D58: =ROUND(D39+D56,2) -> 0 | E58: 0 | F58: 0 | G58: 0 | H58: 0 | I58: 0 | J58: 0
B59: CAWNA Net (Over)/Under Recov 1/ | C59: =C32 -> 22041.11 | D59: =D32 -> 12169.3 | E59: 74381.47 | F59: 108591.88 | G59: -64092.47 | H59: 2678.33 | I59: 26109.52 | J59: -35304.62
B60: Total Net O/U for SRR ReconPerAdj | C60: =C58+C59 -> 22041.11 | D60: =D58+D59 -> 12169.3 | E60: 74381.47 | F60: 108591.88 | G60: -64092.47 | H60: 2678.33 | I60: 26109.52 | J60: -35304.62
B61: Enter These Amounts in the ReconPerAdj Table
B63: Territory | C63: North + NW + South
B64: Customer Class | C64: Res | D64: Comm
B65: WNA to be Recovered
B66: CAWNA | C66: =F14 -> 417949.02 | D66: =J14 -> 135699.11
B67: SRR | C67: =F39 -> 0 | D67: =J39 -> 0
B68: Total | C68: =SUM(C66:C67) -> 417949.02 | D68: =SUM(D66:D67) -> 135699.11
B69: WNA Actually Recovered
B70: CAWNA | C70: =F31 -> -309357.14 | D70: =J31 -> -171003.73
B71: SRR | C71: =F56 -> 0 | D71: =J56 -> 0
B72: Total | C72: =SUM(C70:C71) -> -309357.14 | D72: =SUM(D70:D71) -> -171003.73
B73: WNA Net Difference
B74: CAWNA | C74: =C66+C70 -> 108591.88 | D74: =D66+D70 -> -35304.62
B75: SRR | C75: =C67+C71 -> 0 | D75: =D67+D71 -> 0
B76: Total | C76: =SUM(C74:C75) -> 108591.88 | D76: =SUM(D74:D75) -> -35304.62
B78: WNA Deferred Balance 1/ | C78: 0 | D78: 0
B79: SRR Adjustment 1/ | C79: =C76+C78 -> 108591.88 | D79: =D76+D78 -> -35304.62
B81: Billing Determinants | C81: =SUMPRODUCT((BillDeter[BeginDate]<=$C$6)*(BillDeter[EndDate]>$C$6)*(BillDeter[CustClass]=C64)*BillDeter[BillingDeterminants]) -> 25605076.09 | D81: =SUMPRODUCT((BillDeter[BeginDate]<=$C$6)*(BillDeter[EndDate]>$C$6)*(BillDeter[CustClass]=D64)*BillDeter[BillingDeterminants]) -> 7155623
B83: Rate | C83: =C79/C81 -> 0.004241029381 | D83: =D79/D81 -> -0.004933828962
B84: Enter these rates in the ARR column of the WNAR Rates table.
B86: 1/ Negative amount = Due Customer, Positive amount = Due Company

Sheet ARR North
B2: Empire District Gas Company | F2: Filing Year
B3: Annual Reconciliation Rate
B4: Territory | C4: North
B5: Year | C5: =DateSet!C2 -> 2024
B6: Analysis Start | C6: =DATE(C5-1,7,1) -> 2023-07-01
B8: Rate Category | C8: ENGR_RS | D8: Res
B9: Residential | C9: True-Up Period | F9: Actual Period* | O9: Projected Period
B10: Month (Flow) | C10: =C6 -> 45108 | D10: =EDATE(C10,1) -> 45139 | E10: =EDATE(D10,1) -> 45170 | F10: 45200 | G10: 45231 | H10: 45261 | I10: 45292 | J10: 45323 | K10: 45352 | L10: 45383 | M10: 45413 | N10: 45444 | O10: 45474 | P10: 45505 | Q10: 45536
B11: Est. Volume | C11: =SUMPRODUCT((CustEstVol[MonthFlow]=C10)*(CustEstVol[RateCategory]=$C8)*CustEstVol[NormVol]) -> 0 | D11: =SUMPRODUCT((CustEstVol[MonthFlow]=D10)*(CustEstVol[RateCategory]=$C8)*CustEstVol[NormVol]) -> 0 | E11: =SUMPRODUCT((CustEstVol[MonthFlow]=E10)*(CustEstVol[RateCategory]=$C8)*CustEstVol[NormVol]) -> 0 | O11: =SUMPRODUCT((CustEstVol[MonthFlow]=O10)*(CustEstVol[RateCategory]=$C8)*CustEstVol[NormVol]) -> 23804 | P11: =SUMPRODUCT((CustEstVol[MonthFlow]=P10)*(CustEstVol[RateCategory]=$C8)*CustEstVol[NormVol]) -> 25015 | Q11: =SUMPRODUCT((CustEstVol[MonthFlow]=Q10)*(CustEstVol[RateCategory]=$C8)*CustEstVol[NormVol]) -> 37900
B12: Actual Volume | C12: =SUMPRODUCT((WNARevAlloc[MonthFlow]=C10)*(WNARevAlloc[RateSched]=$C8)*WNARevAlloc[Consumption]) -> 0 | D12: =SUMPRODUCT((WNARevAlloc[MonthFlow]=D10)*(WNARevAlloc[RateSched]=$C8)*WNARevAlloc[Consumption]) -> 0 | E12: =SUMPRODUCT((WNARevAlloc[MonthFlow]=E10)*(WNARevAlloc[RateSched]=$C8)*WNARevAlloc[Consumption]) -> 0 | F12: =SUMPRODUCT((WNARevAlloc[MonthFlow]=F10)*(WNARevAlloc[RateSched]=$C8)*WNARevAlloc[Consumption]) -> 177696.177 | G12: =SUMPRODUCT((WNARevAlloc[MonthFlow]=G10)*(WNARevAlloc[RateSched]=$C8)*WNARevAlloc[Consumption]) -> 641292.829 | H12: =SUMPRODUCT((WNARevAlloc[MonthFlow]=H10)*(WNARevAlloc[RateSched]=$C8)*WNARevAlloc[Consumption]) -> 820680.564 | I12: =SUMPRODUCT((WNARevAlloc[MonthFlow]=I10)*(WNARevAlloc[RateSched]=$C8)*WNARevAlloc[Consumption]) -> 1086552.998 | J12: =SUMPRODUCT((WNARevAlloc[MonthFlow]=J10)*(WNARevAlloc[RateSched]=$C8)*WNARevAlloc[Consumption]) -> 572713.794 | K12: =SUMPRODUCT((WNARevAlloc[MonthFlow]=K10)*(WNARevAlloc[RateSched]=$C8)*WNARevAlloc[Consumption]) -> 450056.905 | L12: =SUMPRODUCT((WNARevAlloc[MonthFlow]=L10)*(WNARevAlloc[RateSched]=$C8)*WNARevAlloc[Consumption]) -> 152756.527 | M12: =SUMPRODUCT((WNARevAlloc[MonthFlow]=M10)*(WNARevAlloc[RateSched]=$C8)*WNARevAlloc[Consumption]) -> 56368.117 | N12: =SUMPRODUCT((WNARevAlloc[MonthFlow]=N10)*(WNARevAlloc[RateSched]=$C8)*WNARevAlloc[Consumption]) -> 44461.53
B13: Vol True-Up | C13: =C12-C11 -> 0 | D13: =D12-D11 -> 0 | E13: 0
B14: WNAR Rates in Effect
B15: CAWNA | C15: =SUMPRODUCT((WNARRates[BeginDate]<=C10)*(WNARRates[EndDate]>C10)*(WNARRates[CustClass]=$D8)*WNARRates[CAWNAR]) -> 0 | D15: =SUMPRODUCT((WNARRates[BeginDate]<=D10)*(WNARRates[EndDate]>D10)*(WNARRates[CustClass]=$D8)*WNARRates[CAWNAR]) -> 0 | E15: =SUMPRODUCT((WNARRates[BeginDate]<=E10)*(WNARRates[EndDate]>E10)*(WNARRates[CustClass]=$D8)*WNARRates[CAWNAR]) -> 0 | F15: =SUMPRODUCT((WNARRates[BeginDate]<=F10)*(WNARRates[EndDate]>F10)*(WNARRates[CustClass]=$D8)*WNARRates[CAWNAR]) -> 0.01632 | G15: =SUMPRODUCT((WNARRates[BeginDate]<=G10)*(WNARRates[EndDate]>G10)*(WNARRates[CustClass]=$D8)*WNARRates[CAWNAR]) -> 0.01632 | H15: =SUMPRODUCT((WNARRates[BeginDate]<=H10)*(WNARRates[EndDate]>H10)*(WNARRates[CustClass]=$D8)*WNARRates[CAWNAR]) -> 0.01632 | I15: =SUMPRODUCT((WNARRates[BeginDate]<=I10)*(WNARRates[EndDate]>I10)*(WNARRates[CustClass]=$D8)*WNARRates[CAWNAR]) -> 0.01632 | J15: =SUMPRODUCT((WNARRates[BeginDate]<=J10)*(WNARRates[EndDate]>J10)*(WNARRates[CustClass]=$D8)*WNARRates[CAWNAR]) -> 0.01632 | K15: =SUMPRODUCT((WNARRates[BeginDate]<=K10)*(WNARRates[EndDate]>K10)*(WNARRates[CustClass]=$D8)*WNARRates[CAWNAR]) -> 0.01632 | L15: =SUMPRODUCT((WNARRates[BeginDate]<=L10)*(WNARRates[EndDate]>L10)*(WNARRates[CustClass]=$D8)*WNARRates[CAWNAR]) -> 0.01632 | M15: =SUMPRODUCT((WNARRates[BeginDate]<=M10)*(WNARRates[EndDate]>M10)*(WNARRates[CustClass]=$D8)*WNARRates[CAWNAR]) -> 0.01632 | N15: =SUMPRODUCT((WNARRates[BeginDate]<=N10)*(WNARRates[EndDate]>N10)*(WNARRates[CustClass]=$D8)*WNARRates[CAWNAR]) -> 0.01632 | O15: =SUMPRODUCT((WNARRates[BeginDate]<=O10)*(WNARRates[EndDate]>O10)*(WNARRates[CustClass]=$D8)*WNARRates[CAWNAR]) -> 0.01632 | P15: =SUMPRODUCT((WNARRates[BeginDate]<=P10)*(WNARRates[EndDate]>P10)*(WNARRates[CustClass]=$D8)*WNARRates[CAWNAR]) -> 0.01632 | Q15: =SUMPRODUCT((WNARRates[BeginDate]<=Q10)*(WNARRates[EndDate]>Q10)*(WNARRates[CustClass]=$D8)*WNARRates[CAWNAR]) -> 0.01632
B16: ARR | C16: =SUMPRODUCT((WNARRates[BeginDate]<=C10)*(WNARRates[EndDate]>C10)*(WNARRates[CustClass]=$D8)*WNARRates[ARR]) -> 0 | D16: =SUMPRODUCT((WNARRates[BeginDate]<=D10)*(WNARRates[EndDate]>D10)*(WNARRates[CustClass]=$D8)*WNARRates[ARR]) -> 0 | E16: =SUMPRODUCT((WNARRates[BeginDate]<=E10)*(WNARRates[EndDate]>E10)*(WNARRates[CustClass]=$D8)*WNARRates[ARR]) -> 0 | F16: =SUMPRODUCT((WNARRates[BeginDate]<=F10)*(WNARRates[EndDate]>F10)*(WNARRates[CustClass]=$D8)*WNARRates[ARR]) -> 0 | G16: =SUMPRODUCT((WNARRates[BeginDate]<=G10)*(WNARRates[EndDate]>G10)*(WNARRates[CustClass]=$D8)*WNARRates[ARR]) -> 0 | H16: =SUMPRODUCT((WNARRates[BeginDate]<=H10)*(WNARRates[EndDate]>H10)*(WNARRates[CustClass]=$D8)*WNARRates[ARR]) -> 0 | I16: =SUMPRODUCT((WNARRates[BeginDate]<=I10)*(WNARRates[EndDate]>I10)*(WNARRates[CustClass]=$D8)*WNARRates[ARR]) -> 0 | J16: =SUMPRODUCT((WNARRates[BeginDate]<=J10)*(WNARRates[EndDate]>J10)*(WNARRates[CustClass]=$D8)*WNARRates[ARR]) -> 0 | K16: =SUMPRODUCT((WNARRates[BeginDate]<=K10)*(WNARRates[EndDate]>K10)*(WNARRates[CustClass]=$D8)*WNARRates[ARR]) -> 0 | L16: =SUMPRODUCT((WNARRates[BeginDate]<=L10)*(WNARRates[EndDate]>L10)*(WNARRates[CustClass]=$D8)*WNARRates[ARR]) -> 0 | M16: =SUMPRODUCT((WNARRates[BeginDate]<=M10)*(WNARRates[EndDate]>M10)*(WNARRates[CustClass]=$D8)*WNARRates[ARR]) -> 0 | N16: =SUMPRODUCT((WNARRates[BeginDate]<=N10)*(WNARRates[EndDate]>N10)*(WNARRates[CustClass]=$D8)*WNARRates[ARR]) -> 0 | O16: =SUMPRODUCT((WNARRates[BeginDate]<=O10)*(WNARRates[EndDate]>O10)*(WNARRates[CustClass]=$D8)*WNARRates[ARR]) -> 0 | P16: =SUMPRODUCT((WNARRates[BeginDate]<=P10)*(WNARRates[EndDate]>P10)*(WNARRates[CustClass]=$D8)*WNARRates[ARR]) -> 0 | Q16: =SUMPRODUCT((WNARRates[BeginDate]<=Q10)*(WNARRates[EndDate]>Q10)*(WNARRates[CustClass]=$D8)*WNARRates[ARR]) -> 0
B17: Total | C17: =C15+C16 -> 0 | D17: =D15+D16 -> 0 | E17: 0 | F17: 0.01632 | G17: 0.01632 | H17: 0.01632 | I17: 0.01632 | J17: 0.01632 | K17: 0.01632 | L17: 0.01632 | M17: 0.01632 | N17: 0.01632 | O17: 0.01632 | P17: 0.01632 | Q17: 0.01632
B18: CAWNA and ARR Revenue for Period
B19: CAWNA $ | F19: =SUMPRODUCT((WNARevAlloc[MonthFlow]=F10)*(WNARevAlloc[RateSched]=$C$8)*WNARevAlloc[AdjCAWNARev]) -> 2896.18 | G19: =SUMPRODUCT((WNARevAlloc[MonthFlow]=G10)*(WNARevAlloc[RateSched]=$C$8)*WNARevAlloc[AdjCAWNARev]) -> 10466 | H19: =SUMPRODUCT((WNARevAlloc[MonthFlow]=H10)*(WNARevAlloc[RateSched]=$C$8)*WNARevAlloc[AdjCAWNARev]) -> 13393.99 | I19: =SUMPRODUCT((WNARevAlloc[MonthFlow]=I10)*(WNARevAlloc[RateSched]=$C$8)*WNARevAlloc[AdjCAWNARev]) -> 17732.25 | J19: =SUMPRODUCT((WNARevAlloc[MonthFlow]=J10)*(WNARevAlloc[RateSched]=$C$8)*WNARevAlloc[AdjCAWNARev]) -> 9347.01 | K19: =SUMPRODUCT((WNARevAlloc[MonthFlow]=K10)*(WNARevAlloc[RateSched]=$C$8)*WNARevAlloc[AdjCAWNARev]) -> 7344.73 | L19: =SUMPRODUCT((WNARevAlloc[MonthFlow]=L10)*(WNARevAlloc[RateSched]=$C$8)*WNARevAlloc[AdjCAWNARev]) -> 2493.16 | M19: =SUMPRODUCT((WNARevAlloc[MonthFlow]=M10)*(WNARevAlloc[RateSched]=$C$8)*WNARevAlloc[AdjCAWNARev]) -> 921.56 | N19: =SUMPRODUCT((WNARevAlloc[MonthFlow]=N10)*(WNARevAlloc[RateSched]=$C$8)*WNARevAlloc[AdjCAWNARev]) -> 726.65 | O19: =ROUND(O11*O15,2) -> 388.48 | P19: =ROUND(P11*P15,2) -> 408.24 | Q19: 618.53
B20: ARR $ | C20: =ROUND(C13*C17,2) -> 0 | D20: =ROUND(D13*D17,2) -> 0 | E20: 0 | F20: =SUMPRODUCT((WNARevAlloc[MonthFlow]=F10)*(WNARevAlloc[RateSched]=$C$8)*WNARevAlloc[AdjARRRev]) -> 0 | G20: =SUMPRODUCT((WNARevAlloc[MonthFlow]=G10)*(WNARevAlloc[RateSched]=$C$8)*WNARevAlloc[AdjARRRev]) -> 0 | H20: =SUMPRODUCT((WNARevAlloc[MonthFlow]=H10)*(WNARevAlloc[RateSched]=$C$8)*WNARevAlloc[AdjARRRev]) -> 0 | I20: =SUMPRODUCT((WNARevAlloc[MonthFlow]=I10)*(WNARevAlloc[RateSched]=$C$8)*WNARevAlloc[AdjARRRev]) -> 0 | J20: =SUMPRODUCT((WNARevAlloc[MonthFlow]=J10)*(WNARevAlloc[RateSched]=$C$8)*WNARevAlloc[AdjARRRev]) -> 0 | K20: =SUMPRODUCT((WNARevAlloc[MonthFlow]=K10)*(WNARevAlloc[RateSched]=$C$8)*WNARevAlloc[AdjARRRev]) -> 0 | L20: =SUMPRODUCT((WNARevAlloc[MonthFlow]=L10)*(WNARevAlloc[RateSched]=$C$8)*WNARevAlloc[AdjARRRev]) -> 0 | M20: =SUMPRODUCT((WNARevAlloc[MonthFlow]=M10)*(WNARevAlloc[RateSched]=$C$8)*WNARevAlloc[AdjARRRev]) -> 0 | N20: =SUMPRODUCT((WNARevAlloc[MonthFlow]=N10)*(WNARevAlloc[RateSched]=$C$8)*WNARevAlloc[AdjARRRev]) -> 0 | O20: =ROUND(O11*O16,2) -> 0 | P20: =ROUND(P11*P16,2) -> 0 | Q20: 0
B21: Total True-Up | C21: =SUM(C20:E20) -> 0 | D21: Enter in VolTrueUp Table
B23: Rate Category | C23: ENGC_SGS | D23: Comm
B24: Residential | C24: True-Up Period | F24: Actual Period* | O24: Projected Period
B25: Month (Flow) | C25: =C6 -> 45108 | D25: =EDATE(C25,1) -> 45139 | E25: =EDATE(D25,1) -> 45170 | F25: 45200 | G25: 45231 | H25: 45261 | I25: 45292 | J25: 45323 | K25: 45352 | L25: 45383 | M25: 45413 | N25: 45444 | O25: 45474 | P25: 45505 | Q25: 45536
B26: Est. Volume | C26: =SUMPRODUCT((CustEstVol[MonthFlow]=C25)*(CustEstVol[RateCategory]=$C23)*CustEstVol[NormVol]) -> 0 | D26: =SUMPRODUCT((CustEstVol[MonthFlow]=D25)*(CustEstVol[RateCategory]=$C23)*CustEstVol[NormVol]) -> 0 | E26: =SUMPRODUCT((CustEstVol[MonthFlow]=E25)*(CustEstVol[RateCategory]=$C23)*CustEstVol[NormVol]) -> 0 | O26: =SUMPRODUCT((CustEstVol[MonthFlow]=O25)*(CustEstVol[RateCategory]=$C$23)*CustEstVol[NormVol]) -> 23804 | P26: =SUMPRODUCT((CustEstVol[MonthFlow]=P25)*(CustEstVol[RateCategory]=$C$23)*CustEstVol[NormVol]) -> 25015 | Q26: =SUMPRODUCT((CustEstVol[MonthFlow]=Q25)*(CustEstVol[RateCategory]=$C$23)*CustEstVol[NormVol]) -> 37900
B27: Actual Volume | C27: =SUMPRODUCT((WNARevAlloc[MonthFlow]=C25)*(WNARevAlloc[RateSched]=$C23)*WNARevAlloc[Consumption]) -> 0 | D27: =SUMPRODUCT((WNARevAlloc[MonthFlow]=D25)*(WNARevAlloc[RateSched]=$C23)*WNARevAlloc[Consumption]) -> 0 | E27: =SUMPRODUCT((WNARevAlloc[MonthFlow]=E25)*(WNARevAlloc[RateSched]=$C23)*WNARevAlloc[Consumption]) -> 0 | F27: =SUMPRODUCT((WNARevAlloc[MonthFlow]=F25)*(WNARevAlloc[RateSched]=$C23)*WNARevAlloc[Consumption]) -> 116003.105 | G27: =SUMPRODUCT((WNARevAlloc[MonthFlow]=G25)*(WNARevAlloc[RateSched]=$C23)*WNARevAlloc[Consumption]) -> 305224.453 | H27: =SUMPRODUCT((WNARevAlloc[MonthFlow]=H25)*(WNARevAlloc[RateSched]=$C23)*WNARevAlloc[Consumption]) -> 420733.256 | I27: =SUMPRODUCT((WNARevAlloc[MonthFlow]=I25)*(WNARevAlloc[RateSched]=$C23)*WNARevAlloc[Consumption]) -> 597332.547 | J27: =SUMPRODUCT((WNARevAlloc[MonthFlow]=J25)*(WNARevAlloc[RateSched]=$C23)*WNARevAlloc[Consumption]) -> 301636.989 | K27: =SUMPRODUCT((WNARevAlloc[MonthFlow]=K25)*(WNARevAlloc[RateSched]=$C23)*WNARevAlloc[Consumption]) -> 163453.346 | L27: =SUMPRODUCT((WNARevAlloc[MonthFlow]=L25)*(WNARevAlloc[RateSched]=$C23)*WNARevAlloc[Consumption]) -> 67856.622 | M27: =SUMPRODUCT((WNARevAlloc[MonthFlow]=M25)*(WNARevAlloc[RateSched]=$C23)*WNARevAlloc[Consumption]) -> 46891.315 | N27: =SUMPRODUCT((WNARevAlloc[MonthFlow]=N25)*(WNARevAlloc[RateSched]=$C23)*WNARevAlloc[Consumption]) -> 29958.213
B28: Vol True-Up | C28: =C27-C26 -> 0 | D28: =D27-D26 -> 0 | E28: 0
B29: WNAR Rates in Effect
B30: CAWNA | C30: =SUMPRODUCT((WNARRates[BeginDate]<=C25)*(WNARRates[EndDate]>C25)*(WNARRates[CustClass]=$D23)*WNARRates[CAWNAR]) -> 0 | D30: =SUMPRODUCT((WNARRates[BeginDate]<=D25)*(WNARRates[EndDate]>D25)*(WNARRates[CustClass]=$D23)*WNARRates[CAWNAR]) -> 0 | E30: =SUMPRODUCT((WNARRates[BeginDate]<=E25)*(WNARRates[EndDate]>E25)*(WNARRates[CustClass]=$D23)*WNARRates[CAWNAR]) -> 0 | F30: =SUMPRODUCT((WNARRates[BeginDate]<=F25)*(WNARRates[EndDate]>F25)*(WNARRates[CustClass]=$D23)*WNARRates[CAWNAR]) -> 0.01896 | G30: =SUMPRODUCT((WNARRates[BeginDate]<=G25)*(WNARRates[EndDate]>G25)*(WNARRates[CustClass]=$D23)*WNARRates[CAWNAR]) -> 0.01896 | H30: =SUMPRODUCT((WNARRates[BeginDate]<=H25)*(WNARRates[EndDate]>H25)*(WNARRates[CustClass]=$D23)*WNARRates[CAWNAR]) -> 0.01896 | I30: =SUMPRODUCT((WNARRates[BeginDate]<=I25)*(WNARRates[EndDate]>I25)*(WNARRates[CustClass]=$D23)*WNARRates[CAWNAR]) -> 0.01896 | J30: =SUMPRODUCT((WNARRates[BeginDate]<=J25)*(WNARRates[EndDate]>J25)*(WNARRates[CustClass]=$D23)*WNARRates[CAWNAR]) -> 0.01896 | K30: =SUMPRODUCT((WNARRates[BeginDate]<=K25)*(WNARRates[EndDate]>K25)*(WNARRates[CustClass]=$D23)*WNARRates[CAWNAR]) -> 0.01896 | L30: =SUMPRODUCT((WNARRates[BeginDate]<=L25)*(WNARRates[EndDate]>L25)*(WNARRates[CustClass]=$D23)*WNARRates[CAWNAR]) -> 0.01896 | M30: =SUMPRODUCT((WNARRates[BeginDate]<=M25)*(WNARRates[EndDate]>M25)*(WNARRates[CustClass]=$D23)*WNARRates[CAWNAR]) -> 0.01896 | N30: =SUMPRODUCT((WNARRates[BeginDate]<=N25)*(WNARRates[EndDate]>N25)*(WNARRates[CustClass]=$D23)*WNARRates[CAWNAR]) -> 0.01896 | O30: =SUMPRODUCT((WNARRates[BeginDate]<=O25)*(WNARRates[EndDate]>O25)*(WNARRates[CustClass]=$D23)*WNARRates[CAWNAR]) -> 0.01896 | P30: =SUMPRODUCT((WNARRates[BeginDate]<=P25)*(WNARRates[EndDate]>P25)*(WNARRates[CustClass]=$D23)*WNARRates[CAWNAR]) -> 0.01896 | Q30: =SUMPRODUCT((WNARRates[BeginDate]<=Q25)*(WNARRates[EndDate]>Q25)*(WNARRates[CustClass]=$D23)*WNARRates[CAWNAR]) -> 0.01896
B31: ARR | C31: =SUMPRODUCT((WNARRates[BeginDate]<=C25)*(WNARRates[EndDate]>C25)*(WNARRates[CustClass]=$D23)*WNARRates[ARR]) -> 0 | D31: =SUMPRODUCT((WNARRates[BeginDate]<=D25)*(WNARRates[EndDate]>D25)*(WNARRates[CustClass]=$D23)*WNARRates[ARR]) -> 0 | E31: =SUMPRODUCT((WNARRates[BeginDate]<=E25)*(WNARRates[EndDate]>E25)*(WNARRates[CustClass]=$D23)*WNARRates[ARR]) -> 0 | F31: =SUMPRODUCT((WNARRates[BeginDate]<=F25)*(WNARRates[EndDate]>F25)*(WNARRates[CustClass]=$D23)*WNARRates[ARR]) -> 0 | G31: =SUMPRODUCT((WNARRates[BeginDate]<=G25)*(WNARRates[EndDate]>G25)*(WNARRates[CustClass]=$D23)*WNARRates[ARR]) -> 0 | H31: =SUMPRODUCT((WNARRates[BeginDate]<=H25)*(WNARRates[EndDate]>H25)*(WNARRates[CustClass]=$D23)*WNARRates[ARR]) -> 0 | I31: =SUMPRODUCT((WNARRates[BeginDate]<=I25)*(WNARRates[EndDate]>I25)*(WNARRates[CustClass]=$D23)*WNARRates[ARR]) -> 0 | J31: =SUMPRODUCT((WNARRates[BeginDate]<=J25)*(WNARRates[EndDate]>J25)*(WNARRates[CustClass]=$D23)*WNARRates[ARR]) -> 0 | K31: =SUMPRODUCT((WNARRates[BeginDate]<=K25)*(WNARRates[EndDate]>K25)*(WNARRates[CustClass]=$D23)*WNARRates[ARR]) -> 0 | L31: =SUMPRODUCT((WNARRates[BeginDate]<=L25)*(WNARRates[EndDate]>L25)*(WNARRates[CustClass]=$D23)*WNARRates[ARR]) -> 0 | M31: =SUMPRODUCT((WNARRates[BeginDate]<=M25)*(WNARRates[EndDate]>M25)*(WNARRates[CustClass]=$D23)*WNARRates[ARR]) -> 0 | N31: =SUMPRODUCT((WNARRates[BeginDate]<=N25)*(WNARRates[EndDate]>N25)*(WNARRates[CustClass]=$D23)*WNARRates[ARR]) -> 0 | O31: =SUMPRODUCT((WNARRates[BeginDate]<=O25)*(WNARRates[EndDate]>O25)*(WNARRates[CustClass]=$D23)*WNARRates[ARR]) -> 0 | P31: =SUMPRODUCT((WNARRates[BeginDate]<=P25)*(WNARRates[EndDate]>P25)*(WNARRates[CustClass]=$D23)*WNARRates[ARR]) -> 0 | Q31: =SUMPRODUCT((WNARRates[BeginDate]<=Q25)*(WNARRates[EndDate]>Q25)*(WNARRates[CustClass]=$D23)*WNARRates[ARR]) -> 0
B32: Total | C32: =C30+C31 -> 0 | D32: =D30+D31 -> 0 | E32: 0 | F32: 0.01896 | G32: 0.01896 | H32: 0.01896 | I32: 0.01896 | J32: 0.01896 | K32: 0.01896 | L32: 0.01896 | M32: 0.01896 | N32: 0.01896 | O32: 0.01896 | P32: 0.01896 | Q32: 0.01896
B33: CAWNA and ARR Revenue for Period
B34: CAWNA $ | F34: =SUMPRODUCT((WNARevAlloc[MonthFlow]=F25)*(WNARevAlloc[RateSched]=$C23)*WNARevAlloc[AdjCAWNARev]) -> 2199.29 | G34: =SUMPRODUCT((WNARevAlloc[MonthFlow]=G25)*(WNARevAlloc[RateSched]=$C23)*WNARevAlloc[AdjCAWNARev]) -> 5786.94 | H34: =SUMPRODUCT((WNARevAlloc[MonthFlow]=H25)*(WNARevAlloc[RateSched]=$C23)*WNARevAlloc[AdjCAWNARev]) -> 7977.15 | I34: =SUMPRODUCT((WNARevAlloc[MonthFlow]=I25)*(WNARevAlloc[RateSched]=$C23)*WNARevAlloc[AdjCAWNARev]) -> 11325.55 | J34: =SUMPRODUCT((WNARevAlloc[MonthFlow]=J25)*(WNARevAlloc[RateSched]=$C23)*WNARevAlloc[AdjCAWNARev]) -> 5719.12 | K34: =SUMPRODUCT((WNARevAlloc[MonthFlow]=K25)*(WNARevAlloc[RateSched]=$C23)*WNARevAlloc[AdjCAWNARev]) -> 3099.09 | L34: =SUMPRODUCT((WNARevAlloc[MonthFlow]=L25)*(WNARevAlloc[RateSched]=$C23)*WNARevAlloc[AdjCAWNARev]) -> 1286.7 | M34: =SUMPRODUCT((WNARevAlloc[MonthFlow]=M25)*(WNARevAlloc[RateSched]=$C23)*WNARevAlloc[AdjCAWNARev]) -> 889.1 | N34: =SUMPRODUCT((WNARevAlloc[MonthFlow]=N25)*(WNARevAlloc[RateSched]=$C23)*WNARevAlloc[AdjCAWNARev]) -> 568.04 | O34: =ROUND(O26*O30,2) -> 451.32 | P34: =ROUND(P26*P30,2) -> 474.28 | Q34: 718.58
B35: ARR $ | C35: =ROUND(C28*C32,2) -> 0 | D35: =ROUND(D28*D32,2) -> 0 | E35: 0 | F35: =SUMPRODUCT((WNARevAlloc[MonthFlow]=F25)*(WNARevAlloc[RateSched]=$C23)*WNARevAlloc[AdjARRRev]) -> 0 | G35: =SUMPRODUCT((WNARevAlloc[MonthFlow]=G25)*(WNARevAlloc[RateSched]=$C23)*WNARevAlloc[AdjARRRev]) -> 0 | H35: =SUMPRODUCT((WNARevAlloc[MonthFlow]=H25)*(WNARevAlloc[RateSched]=$C23)*WNARevAlloc[AdjARRRev]) -> 0 | I35: =SUMPRODUCT((WNARevAlloc[MonthFlow]=I25)*(WNARevAlloc[RateSched]=$C23)*WNARevAlloc[AdjARRRev]) -> 0 | J35: =SUMPRODUCT((WNARevAlloc[MonthFlow]=J25)*(WNARevAlloc[RateSched]=$C23)*WNARevAlloc[AdjARRRev]) -> 0 | K35: =SUMPRODUCT((WNARevAlloc[MonthFlow]=K25)*(WNARevAlloc[RateSched]=$C23)*WNARevAlloc[AdjARRRev]) -> 0 | L35: =SUMPRODUCT((WNARevAlloc[MonthFlow]=L25)*(WNARevAlloc[RateSched]=$C23)*WNARevAlloc[AdjARRRev]) -> 0 | M35: =SUMPRODUCT((WNARevAlloc[MonthFlow]=M25)*(WNARevAlloc[RateSched]=$C23)*WNARevAlloc[AdjARRRev]) -> 0 | N35: =SUMPRODUCT((WNARevAlloc[MonthFlow]=N25)*(WNARevAlloc[RateSched]=$C23)*WNARevAlloc[AdjARRRev]) -> 0 | O35: =ROUND(O26*O31,2) -> 0 | P35: =ROUND(P26*P31,2) -> 0 | Q35: 0
B36: Total True-Up | C36: =SUM(C35:E35) -> 0 | D36: Enter in VolTrueUp Table
B38: * Actual Period revenues were calculated using actual rates, and then adjusted for actual revenues billed.
B39: (See worksheet WNARRevAlloc)

Sheet ARR NW
B2: Empire District Gas Company | F2: Filing Year
B3: Annual Reconciliation Rate
B4: Territory | C4: NW
B5: Year | C5: =DateSet!C2 -> 2024
B6: Analysis Start | C6: =DATE(C5-1,7,1) -> 2023-07-01
B8: Rate Category | C8: EGGR_RS | D8: Res
B9: Residential | C9: True-Up Period | F9: Actual Period* | O9: Projected Period
B10: Month (Flow) | C10: =C6 -> 45108 | D10: =EDATE(C10,1) -> 45139 | E10: =EDATE(D10,1) -> 45170 | F10: 45200 | G10: 45231 | H10: 45261 | I10: 45292 | J10: 45323 | K10: 45352 | L10: 45383 | M10: 45413 | N10: 45444 | O10: 45474 | P10: 45505 | Q10: 45536
B11: Est. Volume | C11: =SUMPRODUCT((CustEstVol[MonthFlow]=C10)*(CustEstVol[RateCategory]=$C8)*CustEstVol[NormVol]) -> 0 | D11: =SUMPRODUCT((CustEstVol[MonthFlow]=D10)*(CustEstVol[RateCategory]=$C8)*CustEstVol[NormVol]) -> 0 | E11: =SUMPRODUCT((CustEstVol[MonthFlow]=E10)*(CustEstVol[RateCategory]=$C8)*CustEstVol[NormVol]) -> 0 | O11: =SUMPRODUCT((CustEstVol[MonthFlow]=O10)*(CustEstVol[RateCategory]=$C8)*CustEstVol[NormVol]) -> 31930 | P11: =SUMPRODUCT((CustEstVol[MonthFlow]=P10)*(CustEstVol[RateCategory]=$C8)*CustEstVol[NormVol]) -> 31588 | Q11: =SUMPRODUCT((CustEstVol[MonthFlow]=Q10)*(CustEstVol[RateCategory]=$C8)*CustEstVol[NormVol]) -> 35382
B12: Actual Volume | C12: =SUMPRODUCT((WNARevAlloc[MonthFlow]=C10)*(WNARevAlloc[RateSched]=$C8)*WNARevAlloc[Consumption]) -> 0 | D12: =SUMPRODUCT((WNARevAlloc[MonthFlow]=D10)*(WNARevAlloc[RateSched]=$C8)*WNARevAlloc[Consumption]) -> 0 | E12: =SUMPRODUCT((WNARevAlloc[MonthFlow]=E10)*(WNARevAlloc[RateSched]=$C8)*WNARevAlloc[Consumption]) -> 0 | F12: =SUMPRODUCT((WNARevAlloc[MonthFlow]=F10)*(WNARevAlloc[RateSched]=$C8)*WNARevAlloc[Consumption]) -> 95501.932 | G12: =SUMPRODUCT((WNARevAlloc[MonthFlow]=G10)*(WNARevAlloc[RateSched]=$C8)*WNARevAlloc[Consumption]) -> 391620.338 | H12: =SUMPRODUCT((WNARevAlloc[MonthFlow]=H10)*(WNARevAlloc[RateSched]=$C8)*WNARevAlloc[Consumption]) -> 493529.955 | I12: =SUMPRODUCT((WNARevAlloc[MonthFlow]=I10)*(WNARevAlloc[RateSched]=$C8)*WNARevAlloc[Consumption]) -> 679803.954 | J12: =SUMPRODUCT((WNARevAlloc[MonthFlow]=J10)*(WNARevAlloc[RateSched]=$C8)*WNARevAlloc[Consumption]) -> 343141.137 | K12: =SUMPRODUCT((WNARevAlloc[MonthFlow]=K10)*(WNARevAlloc[RateSched]=$C8)*WNARevAlloc[Consumption]) -> 273973.248 | L12: =SUMPRODUCT((WNARevAlloc[MonthFlow]=L10)*(WNARevAlloc[RateSched]=$C8)*WNARevAlloc[Consumption]) -> 91480.07 | M12: =SUMPRODUCT((WNARevAlloc[MonthFlow]=M10)*(WNARevAlloc[RateSched]=$C8)*WNARevAlloc[Consumption]) -> 33658.713 | N12: =SUMPRODUCT((WNARevAlloc[MonthFlow]=N10)*(WNARevAlloc[RateSched]=$C8)*WNARevAlloc[Consumption]) -> 28263.836
B13: Vol True-Up | C13: =C12-C11 -> 0 | D13: =D12-D11 -> 0 | E13: 0
B14: WNAR Rates in Effect
B15: CAWNA | C15: =SUMPRODUCT((WNARRates[BeginDate]<=C10)*(WNARRates[EndDate]>C10)*(WNARRates[CustClass]=$D8)*WNARRates[CAWNAR]) -> 0 | D15: =SUMPRODUCT((WNARRates[BeginDate]<=D10)*(WNARRates[EndDate]>D10)*(WNARRates[CustClass]=$D8)*WNARRates[CAWNAR]) -> 0 | E15: =SUMPRODUCT((WNARRates[BeginDate]<=E10)*(WNARRates[EndDate]>E10)*(WNARRates[CustClass]=$D8)*WNARRates[CAWNAR]) -> 0 | F15: =SUMPRODUCT((WNARRates[BeginDate]<=F10)*(WNARRates[EndDate]>F10)*(WNARRates[CustClass]=$D8)*WNARRates[CAWNAR]) -> 0.01632 | G15: =SUMPRODUCT((WNARRates[BeginDate]<=G10)*(WNARRates[EndDate]>G10)*(WNARRates[CustClass]=$D8)*WNARRates[CAWNAR]) -> 0.01632 | H15: =SUMPRODUCT((WNARRates[BeginDate]<=H10)*(WNARRates[EndDate]>H10)*(WNARRates[CustClass]=$D8)*WNARRates[CAWNAR]) -> 0.01632 | I15: =SUMPRODUCT((WNARRates[BeginDate]<=I10)*(WNARRates[EndDate]>I10)*(WNARRates[CustClass]=$D8)*WNARRates[CAWNAR]) -> 0.01632 | J15: =SUMPRODUCT((WNARRates[BeginDate]<=J10)*(WNARRates[EndDate]>J10)*(WNARRates[CustClass]=$D8)*WNARRates[CAWNAR]) -> 0.01632 | K15: =SUMPRODUCT((WNARRates[BeginDate]<=K10)*(WNARRates[EndDate]>K10)*(WNARRates[CustClass]=$D8)*WNARRates[CAWNAR]) -> 0.01632 | L15: =SUMPRODUCT((WNARRates[BeginDate]<=L10)*(WNARRates[EndDate]>L10)*(WNARRates[CustClass]=$D8)*WNARRates[CAWNAR]) -> 0.01632 | M15: =SUMPRODUCT((WNARRates[BeginDate]<=M10)*(WNARRates[EndDate]>M10)*(WNARRates[CustClass]=$D8)*WNARRates[CAWNAR]) -> 0.01632 | N15: =SUMPRODUCT((WNARRates[BeginDate]<=N10)*(WNARRates[EndDate]>N10)*(WNARRates[CustClass]=$D8)*WNARRates[CAWNAR]) -> 0.01632 | O15: =SUMPRODUCT((WNARRates[BeginDate]<=O10)*(WNARRates[EndDate]>O10)*(WNARRates[CustClass]=$D8)*WNARRates[CAWNAR]) -> 0.01632 | P15: =SUMPRODUCT((WNARRates[BeginDate]<=P10)*(WNARRates[EndDate]>P10)*(WNARRates[CustClass]=$D8)*WNARRates[CAWNAR]) -> 0.01632 | Q15: =SUMPRODUCT((WNARRates[BeginDate]<=Q10)*(WNARRates[EndDate]>Q10)*(WNARRates[CustClass]=$D8)*WNARRates[CAWNAR]) -> 0.01632
B16: ARR | C16: =SUMPRODUCT((WNARRates[BeginDate]<=C10)*(WNARRates[EndDate]>C10)*(WNARRates[CustClass]=$D8)*WNARRates[ARR]) -> 0 | D16: =SUMPRODUCT((WNARRates[BeginDate]<=D10)*(WNARRates[EndDate]>D10)*(WNARRates[CustClass]=$D8)*WNARRates[ARR]) -> 0 | E16: =SUMPRODUCT((WNARRates[BeginDate]<=E10)*(WNARRates[EndDate]>E10)*(WNARRates[CustClass]=$D8)*WNARRates[ARR]) -> 0 | F16: =SUMPRODUCT((WNARRates[BeginDate]<=F10)*(WNARRates[EndDate]>F10)*(WNARRates[CustClass]=$D8)*WNARRates[ARR]) -> 0 | G16: =SUMPRODUCT((WNARRates[BeginDate]<=G10)*(WNARRates[EndDate]>G10)*(WNARRates[CustClass]=$D8)*WNARRates[ARR]) -> 0 | H16: =SUMPRODUCT((WNARRates[BeginDate]<=H10)*(WNARRates[EndDate]>H10)*(WNARRates[CustClass]=$D8)*WNARRates[ARR]) -> 0 | I16: =SUMPRODUCT((WNARRates[BeginDate]<=I10)*(WNARRates[EndDate]>I10)*(WNARRates[CustClass]=$D8)*WNARRates[ARR]) -> 0 | J16: =SUMPRODUCT((WNARRates[BeginDate]<=J10)*(WNARRates[EndDate]>J10)*(WNARRates[CustClass]=$D8)*WNARRates[ARR]) -> 0 | K16: =SUMPRODUCT((WNARRates[BeginDate]<=K10)*(WNARRates[EndDate]>K10)*(WNARRates[CustClass]=$D8)*WNARRates[ARR]) -> 0 | L16: =SUMPRODUCT((WNARRates[BeginDate]<=L10)*(WNARRates[EndDate]>L10)*(WNARRates[CustClass]=$D8)*WNARRates[ARR]) -> 0 | M16: =SUMPRODUCT((WNARRates[BeginDate]<=M10)*(WNARRates[EndDate]>M10)*(WNARRates[CustClass]=$D8)*WNARRates[ARR]) -> 0 | N16: =SUMPRODUCT((WNARRates[BeginDate]<=N10)*(WNARRates[EndDate]>N10)*(WNARRates[CustClass]=$D8)*WNARRates[ARR]) -> 0 | O16: =SUMPRODUCT((WNARRates[BeginDate]<=O10)*(WNARRates[EndDate]>O10)*(WNARRates[CustClass]=$D8)*WNARRates[ARR]) -> 0 | P16: =SUMPRODUCT((WNARRates[BeginDate]<=P10)*(WNARRates[EndDate]>P10)*(WNARRates[CustClass]=$D8)*WNARRates[ARR]) -> 0 | Q16: =SUMPRODUCT((WNARRates[BeginDate]<=Q10)*(WNARRates[EndDate]>Q10)*(WNARRates[CustClass]=$D8)*WNARRates[ARR]) -> 0
B17: Total | C17: =C15+C16 -> 0 | D17: =D15+D16 -> 0 | E17: 0 | F17: 0.01632 | G17: 0.01632 | H17: 0.01632 | I17: 0.01632 | J17: 0.01632 | K17: 0.01632 | L17: 0.01632 | M17: 0.01632 | N17: 0.01632 | O17: 0.01632 | P17: 0.01632 | Q17: 0.01632
B18: CAWNA and ARR Revenue for Period
B19: CAWNA $ | F19: =SUMPRODUCT((WNARevAlloc[MonthFlow]=F10)*(WNARevAlloc[RateSched]=$C$8)*WNARevAlloc[AdjCAWNARev]) -> 1553.08 | G19: =SUMPRODUCT((WNARevAlloc[MonthFlow]=G10)*(WNARevAlloc[RateSched]=$C$8)*WNARevAlloc[AdjCAWNARev]) -> 6391.38 | H19: =SUMPRODUCT((WNARevAlloc[MonthFlow]=H10)*(WNARevAlloc[RateSched]=$C$8)*WNARevAlloc[AdjCAWNARev]) -> 8054.33 | I19: =SUMPRODUCT((WNARevAlloc[MonthFlow]=I10)*(WNARevAlloc[RateSched]=$C$8)*WNARevAlloc[AdjCAWNARev]) -> 11094.77 | J19: =SUMPRODUCT((WNARevAlloc[MonthFlow]=J10)*(WNARevAlloc[RateSched]=$C$8)*WNARevAlloc[AdjCAWNARev]) -> 5600.04 | K19: =SUMPRODUCT((WNARevAlloc[MonthFlow]=K10)*(WNARevAlloc[RateSched]=$C$8)*WNARevAlloc[AdjCAWNARev]) -> 4471.57 | L19: =SUMPRODUCT((WNARevAlloc[MonthFlow]=L10)*(WNARevAlloc[RateSched]=$C$8)*WNARevAlloc[AdjCAWNARev]) -> 1493.15 | M19: =SUMPRODUCT((WNARevAlloc[MonthFlow]=M10)*(WNARevAlloc[RateSched]=$C$8)*WNARevAlloc[AdjCAWNARev]) -> 550.18 | N19: =SUMPRODUCT((WNARevAlloc[MonthFlow]=N10)*(WNARevAlloc[RateSched]=$C$8)*WNARevAlloc[AdjCAWNARev]) -> 462.14 | O19: =ROUND(O11*O15,2) -> 521.1 | P19: =ROUND(P11*P15,2) -> 515.52 | Q19: 577.43
B20: ARR $ | C20: =ROUND(C13*C17,2) -> 0 | D20: =ROUND(D13*D17,2) -> 0 | E20: 0 | F20: =SUMPRODUCT((WNARevAlloc[MonthFlow]=F10)*(WNARevAlloc[RateSched]=$C$8)*WNARevAlloc[AdjARRRev]) -> 0 | G20: =SUMPRODUCT((WNARevAlloc[MonthFlow]=G10)*(WNARevAlloc[RateSched]=$C$8)*WNARevAlloc[AdjARRRev]) -> 0 | H20: =SUMPRODUCT((WNARevAlloc[MonthFlow]=H10)*(WNARevAlloc[RateSched]=$C$8)*WNARevAlloc[AdjARRRev]) -> 0 | I20: =SUMPRODUCT((WNARevAlloc[MonthFlow]=I10)*(WNARevAlloc[RateSched]=$C$8)*WNARevAlloc[AdjARRRev]) -> 0 | J20: =SUMPRODUCT((WNARevAlloc[MonthFlow]=J10)*(WNARevAlloc[RateSched]=$C$8)*WNARevAlloc[AdjARRRev]) -> 0 | K20: =SUMPRODUCT((WNARevAlloc[MonthFlow]=K10)*(WNARevAlloc[RateSched]=$C$8)*WNARevAlloc[AdjARRRev]) -> 0 | L20: =SUMPRODUCT((WNARevAlloc[MonthFlow]=L10)*(WNARevAlloc[RateSched]=$C$8)*WNARevAlloc[AdjARRRev]) -> 0 | M20: =SUMPRODUCT((WNARevAlloc[MonthFlow]=M10)*(WNARevAlloc[RateSched]=$C$8)*WNARevAlloc[AdjARRRev]) -> 0 | N20: =SUMPRODUCT((WNARevAlloc[MonthFlow]=N10)*(WNARevAlloc[RateSched]=$C$8)*WNARevAlloc[AdjARRRev]) -> 0 | O20: =ROUND(O11*O16,2) -> 0 | P20: =ROUND(P11*P16,2) -> 0 | Q20: 0
B21: Total True-Up | C21: =SUM(C20:E20) -> 0 | D21: Enter in VolTrueUp Table
B23: Rate Category | C23: EGGC_SGS | D23: Comm
B24: Residential | C24: True-Up Period | F24: Actual Period* | O24: Projected Period
B25: Month (Flow) | C25: =C6 -> 45108 | D25: =EDATE(C25,1) -> 45139 | E25: =EDATE(D25,1) -> 45170 | F25: 45200 | G25: 45231 | H25: 45261 | I25: 45292 | J25: 45323 | K25: 45352 | L25: 45383 | M25: 45413 | N25: 45444 | O25: 45474 | P25: 45505 | Q25: 45536
B26: Est. Volume | C26: =SUMPRODUCT((CustEstVol[MonthFlow]=C25)*(CustEstVol[RateCategory]=$C23)*CustEstVol[NormVol]) -> 0 | D26: =SUMPRODUCT((CustEstVol[MonthFlow]=D25)*(CustEstVol[RateCategory]=$C23)*CustEstVol[NormVol]) -> 0 | E26: =SUMPRODUCT((CustEstVol[MonthFlow]=E25)*(CustEstVol[RateCategory]=$C23)*CustEstVol[NormVol]) -> 0 | O26: =SUMPRODUCT((CustEstVol[MonthFlow]=O25)*(CustEstVol[RateCategory]=$C$23)*CustEstVol[NormVol]) -> 11646 | P26: =SUMPRODUCT((CustEstVol[MonthFlow]=P25)*(CustEstVol[RateCategory]=$C$23)*CustEstVol[NormVol]) -> 50680 | Q26: =SUMPRODUCT((CustEstVol[MonthFlow]=Q25)*(CustEstVol[RateCategory]=$C$23)*CustEstVol[NormVol]) -> 137805
B27: Actual Volume | C27: =SUMPRODUCT((WNARevAlloc[MonthFlow]=C25)*(WNARevAlloc[RateSched]=$C23)*WNARevAlloc[Consumption]) -> 0 | D27: =SUMPRODUCT((WNARevAlloc[MonthFlow]=D25)*(WNARevAlloc[RateSched]=$C23)*WNARevAlloc[Consumption]) -> 0 | E27: =SUMPRODUCT((WNARevAlloc[MonthFlow]=E25)*(WNARevAlloc[RateSched]=$C23)*WNARevAlloc[Consumption]) -> 0 | F27: =SUMPRODUCT((WNARevAlloc[MonthFlow]=F25)*(WNARevAlloc[RateSched]=$C23)*WNARevAlloc[Consumption]) -> 24116.046 | G27: =SUMPRODUCT((WNARevAlloc[MonthFlow]=G25)*(WNARevAlloc[RateSched]=$C23)*WNARevAlloc[Consumption]) -> 107569.675 | H27: =SUMPRODUCT((WNARevAlloc[MonthFlow]=H25)*(WNARevAlloc[RateSched]=$C23)*WNARevAlloc[Consumption]) -> 145954.018 | I27: =SUMPRODUCT((WNARevAlloc[MonthFlow]=I25)*(WNARevAlloc[RateSched]=$C23)*WNARevAlloc[Consumption]) -> 208886.481 | J27: =SUMPRODUCT((WNARevAlloc[MonthFlow]=J25)*(WNARevAlloc[RateSched]=$C23)*WNARevAlloc[Consumption]) -> 97253.438 | K27: =SUMPRODUCT((WNARevAlloc[MonthFlow]=K25)*(WNARevAlloc[RateSched]=$C23)*WNARevAlloc[Consumption]) -> 91335.495 | L27: =SUMPRODUCT((WNARevAlloc[MonthFlow]=L25)*(WNARevAlloc[RateSched]=$C23)*WNARevAlloc[Consumption]) -> 25687.332 | M27: =SUMPRODUCT((WNARevAlloc[MonthFlow]=M25)*(WNARevAlloc[RateSched]=$C23)*WNARevAlloc[Consumption]) -> 13437.365 | N27: =SUMPRODUCT((WNARevAlloc[MonthFlow]=N25)*(WNARevAlloc[RateSched]=$C23)*WNARevAlloc[Consumption]) -> 8000.535
B28: Vol True-Up | C28: =C27-C26 -> 0 | D28: =D27-D26 -> 0 | E28: 0
B29: WNAR Rates in Effect
B30: CAWNA | C30: =SUMPRODUCT((WNARRates[BeginDate]<=C25)*(WNARRates[EndDate]>C25)*(WNARRates[CustClass]=$D23)*WNARRates[CAWNAR]) -> 0 | D30: =SUMPRODUCT((WNARRates[BeginDate]<=D25)*(WNARRates[EndDate]>D25)*(WNARRates[CustClass]=$D23)*WNARRates[CAWNAR]) -> 0 | E30: =SUMPRODUCT((WNARRates[BeginDate]<=E25)*(WNARRates[EndDate]>E25)*(WNARRates[CustClass]=$D23)*WNARRates[CAWNAR]) -> 0 | F30: =SUMPRODUCT((WNARRates[BeginDate]<=F25)*(WNARRates[EndDate]>F25)*(WNARRates[CustClass]=$D23)*WNARRates[CAWNAR]) -> 0.01896 | G30: =SUMPRODUCT((WNARRates[BeginDate]<=G25)*(WNARRates[EndDate]>G25)*(WNARRates[CustClass]=$D23)*WNARRates[CAWNAR]) -> 0.01896 | H30: =SUMPRODUCT((WNARRates[BeginDate]<=H25)*(WNARRates[EndDate]>H25)*(WNARRates[CustClass]=$D23)*WNARRates[CAWNAR]) -> 0.01896 | I30: =SUMPRODUCT((WNARRates[BeginDate]<=I25)*(WNARRates[EndDate]>I25)*(WNARRates[CustClass]=$D23)*WNARRates[CAWNAR]) -> 0.01896 | J30: =SUMPRODUCT((WNARRates[BeginDate]<=J25)*(WNARRates[EndDate]>J25)*(WNARRates[CustClass]=$D23)*WNARRates[CAWNAR]) -> 0.01896 | K30: =SUMPRODUCT((WNARRates[BeginDate]<=K25)*(WNARRates[EndDate]>K25)*(WNARRates[CustClass]=$D23)*WNARRates[CAWNAR]) -> 0.01896 | L30: =SUMPRODUCT((WNARRates[BeginDate]<=L25)*(WNARRates[EndDate]>L25)*(WNARRates[CustClass]=$D23)*WNARRates[CAWNAR]) -> 0.01896 | M30: =SUMPRODUCT((WNARRates[BeginDate]<=M25)*(WNARRates[EndDate]>M25)*(WNARRates[CustClass]=$D23)*WNARRates[CAWNAR]) -> 0.01896 | N30: =SUMPRODUCT((WNARRates[BeginDate]<=N25)*(WNARRates[EndDate]>N25)*(WNARRates[CustClass]=$D23)*WNARRates[CAWNAR]) -> 0.01896 | O30: =SUMPRODUCT((WNARRates[BeginDate]<=O25)*(WNARRates[EndDate]>O25)*(WNARRates[CustClass]=$D23)*WNARRates[CAWNAR]) -> 0.01896 | P30: =SUMPRODUCT((WNARRates[BeginDate]<=P25)*(WNARRates[EndDate]>P25)*(WNARRates[CustClass]=$D23)*WNARRates[CAWNAR]) -> 0.01896 | Q30: =SUMPRODUCT((WNARRates[BeginDate]<=Q25)*(WNARRates[EndDate]>Q25)*(WNARRates[CustClass]=$D23)*WNARRates[CAWNAR]) -> 0.01896
B31: ARR | C31: =SUMPRODUCT((WNARRates[BeginDate]<=C25)*(WNARRates[EndDate]>C25)*(WNARRates[CustClass]=$D23)*WNARRates[ARR]) -> 0 | D31: =SUMPRODUCT((WNARRates[BeginDate]<=D25)*(WNARRates[EndDate]>D25)*(WNARRates[CustClass]=$D23)*WNARRates[ARR]) -> 0 | E31: =SUMPRODUCT((WNARRates[BeginDate]<=E25)*(WNARRates[EndDate]>E25)*(WNARRates[CustClass]=$D23)*WNARRates[ARR]) -> 0 | F31: =SUMPRODUCT((WNARRates[BeginDate]<=F25)*(WNARRates[EndDate]>F25)*(WNARRates[CustClass]=$D23)*WNARRates[ARR]) -> 0 | G31: =SUMPRODUCT((WNARRates[BeginDate]<=G25)*(WNARRates[EndDate]>G25)*(WNARRates[CustClass]=$D23)*WNARRates[ARR]) -> 0 | H31: =SUMPRODUCT((WNARRates[BeginDate]<=H25)*(WNARRates[EndDate]>H25)*(WNARRates[CustClass]=$D23)*WNARRates[ARR]) -> 0 | I31: =SUMPRODUCT((WNARRates[BeginDate]<=I25)*(WNARRates[EndDate]>I25)*(WNARRates[CustClass]=$D23)*WNARRates[ARR]) -> 0 | J31: =SUMPRODUCT((WNARRates[BeginDate]<=J25)*(WNARRates[EndDate]>J25)*(WNARRates[CustClass]=$D23)*WNARRates[ARR]) -> 0 | K31: =SUMPRODUCT((WNARRates[BeginDate]<=K25)*(WNARRates[EndDate]>K25)*(WNARRates[CustClass]=$D23)*WNARRates[ARR]) -> 0 | L31: =SUMPRODUCT((WNARRates[BeginDate]<=L25)*(WNARRates[EndDate]>L25)*(WNARRates[CustClass]=$D23)*WNARRates[ARR]) -> 0 | M31: =SUMPRODUCT((WNARRates[BeginDate]<=M25)*(WNARRates[EndDate]>M25)*(WNARRates[CustClass]=$D23)*WNARRates[ARR]) -> 0 | N31: =SUMPRODUCT((WNARRates[BeginDate]<=N25)*(WNARRates[EndDate]>N25)*(WNARRates[CustClass]=$D23)*WNARRates[ARR]) -> 0 | O31: =SUMPRODUCT((WNARRates[BeginDate]<=O25)*(WNARRates[EndDate]>O25)*(WNARRates[CustClass]=$D23)*WNARRates[ARR]) -> 0 | P31: =SUMPRODUCT((WNARRates[BeginDate]<=P25)*(WNARRates[EndDate]>P25)*(WNARRates[CustClass]=$D23)*WNARRates[ARR]) -> 0 | Q31: =SUMPRODUCT((WNARRates[BeginDate]<=Q25)*(WNARRates[EndDate]>Q25)*(WNARRates[CustClass]=$D23)*WNARRates[ARR]) -> 0
B32: Total | C32: =C30+C31 -> 0 | D32: =D30+D31 -> 0 | E32: 0 | F32: 0.01896 | G32: 0.01896 | H32: 0.01896 | I32: 0.01896 | J32: 0.01896 | K32: 0.01896 | L32: 0.01896 | M32: 0.01896 | N32: 0.01896 | O32: 0.01896 | P32: 0.01896 | Q32: 0.01896
B33: CAWNA and ARR Revenue for Period
B34: CAWNA $ | F34: =SUMPRODUCT((WNARevAlloc[MonthFlow]=F25)*(WNARevAlloc[RateSched]=$C23)*WNARevAlloc[AdjCAWNARev]) -> 453.22 | G34: =SUMPRODUCT((WNARevAlloc[MonthFlow]=G25)*(WNARevAlloc[RateSched]=$C23)*WNARevAlloc[AdjCAWNARev]) -> 2039.56 | H34: =SUMPRODUCT((WNARevAlloc[MonthFlow]=H25)*(WNARevAlloc[RateSched]=$C23)*WNARevAlloc[AdjCAWNARev]) -> 2767.24 | I34: =SUMPRODUCT((WNARevAlloc[MonthFlow]=I25)*(WNARevAlloc[RateSched]=$C23)*WNARevAlloc[AdjCAWNARev]) -> 3960.47 | J34: =SUMPRODUCT((WNARevAlloc[MonthFlow]=J25)*(WNARevAlloc[RateSched]=$C23)*WNARevAlloc[AdjCAWNARev]) -> 1843.91 | K34: =SUMPRODUCT((WNARevAlloc[MonthFlow]=K25)*(WNARevAlloc[RateSched]=$C23)*WNARevAlloc[AdjCAWNARev]) -> 1731.76 | L34: =SUMPRODUCT((WNARevAlloc[MonthFlow]=L25)*(WNARevAlloc[RateSched]=$C23)*WNARevAlloc[AdjCAWNARev]) -> 487.05 | M34: =SUMPRODUCT((WNARevAlloc[MonthFlow]=M25)*(WNARevAlloc[RateSched]=$C23)*WNARevAlloc[AdjCAWNARev]) -> 254.8 | N34: =SUMPRODUCT((WNARevAlloc[MonthFlow]=N25)*(WNARevAlloc[RateSched]=$C23)*WNARevAlloc[AdjCAWNARev]) -> 151.84 | O34: =ROUND(O26*O30,2) -> 220.81 | P34: =ROUND(P26*P30,2) -> 960.89 | Q34: 2612.78
B35: ARR $ | C35: =ROUND(C28*C32,2) -> 0 | D35: =ROUND(D28*D32,2) -> 0 | E35: 0 | F35: =SUMPRODUCT((WNARevAlloc[MonthFlow]=F25)*(WNARevAlloc[RateSched]=$C23)*WNARevAlloc[AdjARRRev]) -> 0 | G35: =SUMPRODUCT((WNARevAlloc[MonthFlow]=G25)*(WNARevAlloc[RateSched]=$C23)*WNARevAlloc[AdjARRRev]) -> 0 | H35: =SUMPRODUCT((WNARevAlloc[MonthFlow]=H25)*(WNARevAlloc[RateSched]=$C23)*WNARevAlloc[AdjARRRev]) -> 0 | I35: =SUMPRODUCT((WNARevAlloc[MonthFlow]=I25)*(WNARevAlloc[RateSched]=$C23)*WNARevAlloc[AdjARRRev]) -> 0 | J35: =SUMPRODUCT((WNARevAlloc[MonthFlow]=J25)*(WNARevAlloc[RateSched]=$C23)*WNARevAlloc[AdjARRRev]) -> 0 | K35: =SUMPRODUCT((WNARevAlloc[MonthFlow]=K25)*(WNARevAlloc[RateSched]=$C23)*WNARevAlloc[AdjARRRev]) -> 0 | L35: =SUMPRODUCT((WNARevAlloc[MonthFlow]=L25)*(WNARevAlloc[RateSched]=$C23)*WNARevAlloc[AdjARRRev]) -> 0 | M35: =SUMPRODUCT((WNARevAlloc[MonthFlow]=M25)*(WNARevAlloc[RateSched]=$C23)*WNARevAlloc[AdjARRRev]) -> 0 | N35: =SUMPRODUCT((WNARevAlloc[MonthFlow]=N25)*(WNARevAlloc[RateSched]=$C23)*WNARevAlloc[AdjARRRev]) -> 0 | O35: =ROUND(O26*O31,2) -> 0 | P35: =ROUND(P26*P31,2) -> 0 | Q35: 0
B36: Total True-Up | C36: =SUM(C35:E35) -> 0 | D36: Enter in VolTrueUp Table
B38: * Actual Period revenues were calculated using actual rates, and then adjusted for actual revenues billed.
B39: (See worksheet WNARRevAlloc)

Sheet ARR South
B2: Empire District Gas Company | F2: Filing Year
B3: Annual Reconciliation Rate
B4: Territory | C4: South
B5: Year | C5: =DateSet!C2 -> 2024
B6: Analysis Start | C6: =DATE(C5-1,7,1) -> 2023-07-01
B8: Rate Category | C8: ESGR_RS | D8: Res
B9: Residential | C9: True-Up Period | F9: Actual Period* | O9: Projected Period
B10: Month (Flow) | C10: =C6 -> 45108 | D10: =EDATE(C10,1) -> 45139 | E10: =EDATE(D10,1) -> 45170 | F10: 45200 | G10: 45231 | H10: 45261 | I10: 45292 | J10: 45323 | K10: 45352 | L10: 45383 | M10: 45413 | N10: 45444 | O10: 45474 | P10: 45505 | Q10: 45536
B11: Est. Volume | C11: =SUMPRODUCT((CustEstVol[MonthFlow]=C10)*(CustEstVol[RateCategory]=$C8)*CustEstVol[NormVol]) -> 0 | D11: =SUMPRODUCT((CustEstVol[MonthFlow]=D10)*(CustEstVol[RateCategory]=$C8)*CustEstVol[NormVol]) -> 0 | E11: =SUMPRODUCT((CustEstVol[MonthFlow]=E10)*(CustEstVol[RateCategory]=$C8)*CustEstVol[NormVol]) -> 0 | O11: =SUMPRODUCT((CustEstVol[MonthFlow]=O10)*(CustEstVol[RateCategory]=$C8)*CustEstVol[NormVol]) -> 218953 | P11: =SUMPRODUCT((CustEstVol[MonthFlow]=P10)*(CustEstVol[RateCategory]=$C8)*CustEstVol[NormVol]) -> 218917 | Q11: =SUMPRODUCT((CustEstVol[MonthFlow]=Q10)*(CustEstVol[RateCategory]=$C8)*CustEstVol[NormVol]) -> 224349
B12: Actual Volume | C12: =SUMPRODUCT((WNARevAlloc[MonthFlow]=C10)*(WNARevAlloc[RateSched]=$C8)*WNARevAlloc[Consumption]) -> 0 | D12: =SUMPRODUCT((WNARevAlloc[MonthFlow]=D10)*(WNARevAlloc[RateSched]=$C8)*WNARevAlloc[Consumption]) -> 0 | E12: =SUMPRODUCT((WNARevAlloc[MonthFlow]=E10)*(WNARevAlloc[RateSched]=$C8)*WNARevAlloc[Consumption]) -> 0 | F12: =SUMPRODUCT((WNARevAlloc[MonthFlow]=F10)*(WNARevAlloc[RateSched]=$C8)*WNARevAlloc[Consumption]) -> 528681.84 | G12: =SUMPRODUCT((WNARevAlloc[MonthFlow]=G10)*(WNARevAlloc[RateSched]=$C8)*WNARevAlloc[Consumption]) -> 1659069.52 | H12: =SUMPRODUCT((WNARevAlloc[MonthFlow]=H10)*(WNARevAlloc[RateSched]=$C8)*WNARevAlloc[Consumption]) -> 2289816.76 | I12: =SUMPRODUCT((WNARevAlloc[MonthFlow]=I10)*(WNARevAlloc[RateSched]=$C8)*WNARevAlloc[Consumption]) -> 3373143.52 | J12: =SUMPRODUCT((WNARevAlloc[MonthFlow]=J10)*(WNARevAlloc[RateSched]=$C8)*WNARevAlloc[Consumption]) -> 1643169.48 | K12: =SUMPRODUCT((WNARevAlloc[MonthFlow]=K10)*(WNARevAlloc[RateSched]=$C8)*WNARevAlloc[Consumption]) -> 1241365.56 | L12: =SUMPRODUCT((WNARevAlloc[MonthFlow]=L10)*(WNARevAlloc[RateSched]=$C8)*WNARevAlloc[Consumption]) -> 476716.6 | M12: =SUMPRODUCT((WNARevAlloc[MonthFlow]=M10)*(WNARevAlloc[RateSched]=$C8)*WNARevAlloc[Consumption]) -> 263509.845 | N12: =SUMPRODUCT((WNARevAlloc[MonthFlow]=N10)*(WNARevAlloc[RateSched]=$C8)*WNARevAlloc[Consumption]) -> 200410.187
B13: Vol True-Up | C13: =C12-C11 -> 0 | D13: =D12-D11 -> 0 | E13: 0
B14: WNAR Rates in Effect
B15: CAWNA | C15: =SUMPRODUCT((WNARRates[BeginDate]<=C10)*(WNARRates[EndDate]>C10)*(WNARRates[CustClass]=$D8)*WNARRates[CAWNAR]) -> 0 | D15: =SUMPRODUCT((WNARRates[BeginDate]<=D10)*(WNARRates[EndDate]>D10)*(WNARRates[CustClass]=$D8)*WNARRates[CAWNAR]) -> 0 | E15: =SUMPRODUCT((WNARRates[BeginDate]<=E10)*(WNARRates[EndDate]>E10)*(WNARRates[CustClass]=$D8)*WNARRates[CAWNAR]) -> 0 | F15: =SUMPRODUCT((WNARRates[BeginDate]<=F10)*(WNARRates[EndDate]>F10)*(WNARRates[CustClass]=$D8)*WNARRates[CAWNAR]) -> 0.01632 | G15: =SUMPRODUCT((WNARRates[BeginDate]<=G10)*(WNARRates[EndDate]>G10)*(WNARRates[CustClass]=$D8)*WNARRates[CAWNAR]) -> 0.01632 | H15: =SUMPRODUCT((WNARRates[BeginDate]<=H10)*(WNARRates[EndDate]>H10)*(WNARRates[CustClass]=$D8)*WNARRates[CAWNAR]) -> 0.01632 | I15: =SUMPRODUCT((WNARRates[BeginDate]<=I10)*(WNARRates[EndDate]>I10)*(WNARRates[CustClass]=$D8)*WNARRates[CAWNAR]) -> 0.01632 | J15: =SUMPRODUCT((WNARRates[BeginDate]<=J10)*(WNARRates[EndDate]>J10)*(WNARRates[CustClass]=$D8)*WNARRates[CAWNAR]) -> 0.01632 | K15: =SUMPRODUCT((WNARRates[BeginDate]<=K10)*(WNARRates[EndDate]>K10)*(WNARRates[CustClass]=$D8)*WNARRates[CAWNAR]) -> 0.01632 | L15: =SUMPRODUCT((WNARRates[BeginDate]<=L10)*(WNARRates[EndDate]>L10)*(WNARRates[CustClass]=$D8)*WNARRates[CAWNAR]) -> 0.01632 | M15: =SUMPRODUCT((WNARRates[BeginDate]<=M10)*(WNARRates[EndDate]>M10)*(WNARRates[CustClass]=$D8)*WNARRates[CAWNAR]) -> 0.01632 | N15: =SUMPRODUCT((WNARRates[BeginDate]<=N10)*(WNARRates[EndDate]>N10)*(WNARRates[CustClass]=$D8)*WNARRates[CAWNAR]) -> 0.01632 | O15: =SUMPRODUCT((WNARRates[BeginDate]<=O10)*(WNARRates[EndDate]>O10)*(WNARRates[CustClass]=$D8)*WNARRates[CAWNAR]) -> 0.01632 | P15: =SUMPRODUCT((WNARRates[BeginDate]<=P10)*(WNARRates[EndDate]>P10)*(WNARRates[CustClass]=$D8)*WNARRates[CAWNAR]) -> 0.01632 | Q15: =SUMPRODUCT((WNARRates[BeginDate]<=Q10)*(WNARRates[EndDate]>Q10)*(WNARRates[CustClass]=$D8)*WNARRates[CAWNAR]) -> 0.01632
B16: ARR | C16: =SUMPRODUCT((WNARRates[BeginDate]<=C10)*(WNARRates[EndDate]>C10)*(WNARRates[CustClass]=$D8)*WNARRates[ARR]) -> 0 | D16: =SUMPRODUCT((WNARRates[BeginDate]<=D10)*(WNARRates[EndDate]>D10)*(WNARRates[CustClass]=$D8)*WNARRates[ARR]) -> 0 | E16: =SUMPRODUCT((WNARRates[BeginDate]<=E10)*(WNARRates[EndDate]>E10)*(WNARRates[CustClass]=$D8)*WNARRates[ARR]) -> 0 | F16: =SUMPRODUCT((WNARRates[BeginDate]<=F10)*(WNARRates[EndDate]>F10)*(WNARRates[CustClass]=$D8)*WNARRates[ARR]) -> 0 | G16: =SUMPRODUCT((WNARRates[BeginDate]<=G10)*(WNARRates[EndDate]>G10)*(WNARRates[CustClass]=$D8)*WNARRates[ARR]) -> 0 | H16: =SUMPRODUCT((WNARRates[BeginDate]<=H10)*(WNARRates[EndDate]>H10)*(WNARRates[CustClass]=$D8)*WNARRates[ARR]) -> 0 | I16: =SUMPRODUCT((WNARRates[BeginDate]<=I10)*(WNARRates[EndDate]>I10)*(WNARRates[CustClass]=$D8)*WNARRates[ARR]) -> 0 | J16: =SUMPRODUCT((WNARRates[BeginDate]<=J10)*(WNARRates[EndDate]>J10)*(WNARRates[CustClass]=$D8)*WNARRates[ARR]) -> 0 | K16: =SUMPRODUCT((WNARRates[BeginDate]<=K10)*(WNARRates[EndDate]>K10)*(WNARRates[CustClass]=$D8)*WNARRates[ARR]) -> 0 | L16: =SUMPRODUCT((WNARRates[BeginDate]<=L10)*(WNARRates[EndDate]>L10)*(WNARRates[CustClass]=$D8)*WNARRates[ARR]) -> 0 | M16: =SUMPRODUCT((WNARRates[BeginDate]<=M10)*(WNARRates[EndDate]>M10)*(WNARRates[CustClass]=$D8)*WNARRates[ARR]) -> 0 | N16: =SUMPRODUCT((WNARRates[BeginDate]<=N10)*(WNARRates[EndDate]>N10)*(WNARRates[CustClass]=$D8)*WNARRates[ARR]) -> 0 | O16: =SUMPRODUCT((WNARRates[BeginDate]<=O10)*(WNARRates[EndDate]>O10)*(WNARRates[CustClass]=$D8)*WNARRates[ARR]) -> 0 | P16: =SUMPRODUCT((WNARRates[BeginDate]<=P10)*(WNARRates[EndDate]>P10)*(WNARRates[CustClass]=$D8)*WNARRates[ARR]) -> 0 | Q16: =SUMPRODUCT((WNARRates[BeginDate]<=Q10)*(WNARRates[EndDate]>Q10)*(WNARRates[CustClass]=$D8)*WNARRates[ARR]) -> 0
B17: Total | C17: =C15+C16 -> 0 | D17: =D15+D16 -> 0 | E17: 0 | F17: 0.01632 | G17: 0.01632 | H17: 0.01632 | I17: 0.01632 | J17: 0.01632 | K17: 0.01632 | L17: 0.01632 | M17: 0.01632 | N17: 0.01632 | O17: 0.01632 | P17: 0.01632 | Q17: 0.01632
B18: CAWNA and ARR Revenue for Period
B19: CAWNA $ | F19: =SUMPRODUCT((WNARevAlloc[MonthFlow]=F10)*(WNARevAlloc[RateSched]=$C$8)*WNARevAlloc[AdjCAWNARev]) -> 8596.07 | G19: =SUMPRODUCT((WNARevAlloc[MonthFlow]=G10)*(WNARevAlloc[RateSched]=$C$8)*WNARevAlloc[AdjCAWNARev]) -> 27076.61 | H19: =SUMPRODUCT((WNARevAlloc[MonthFlow]=H10)*(WNARevAlloc[RateSched]=$C$8)*WNARevAlloc[AdjCAWNARev]) -> 37373.06 | I19: =SUMPRODUCT((WNARevAlloc[MonthFlow]=I10)*(WNARevAlloc[RateSched]=$C$8)*WNARevAlloc[AdjCAWNARev]) -> 55048.35 | J19: =SUMPRODUCT((WNARevAlloc[MonthFlow]=J10)*(WNARevAlloc[RateSched]=$C$8)*WNARevAlloc[AdjCAWNARev]) -> 26820.95 | K19: =SUMPRODUCT((WNARevAlloc[MonthFlow]=K10)*(WNARevAlloc[RateSched]=$C$8)*WNARevAlloc[AdjCAWNARev]) -> 20258.71 | L19: =SUMPRODUCT((WNARevAlloc[MonthFlow]=L10)*(WNARevAlloc[RateSched]=$C$8)*WNARevAlloc[AdjCAWNARev]) -> 7779.85 | M19: =SUMPRODUCT((WNARevAlloc[MonthFlow]=M10)*(WNARevAlloc[RateSched]=$C$8)*WNARevAlloc[AdjCAWNARev]) -> 4301.48 | N19: =SUMPRODUCT((WNARevAlloc[MonthFlow]=N10)*(WNARevAlloc[RateSched]=$C$8)*WNARevAlloc[AdjCAWNARev]) -> 3273.17 | O19: =ROUND(O11*O15,2) -> 3573.31 | P19: =ROUND(P11*P15,2) -> 3572.73 | Q19: 3661.38
B20: ARR $ | C20: =ROUND(C13*C17,2) -> 0 | D20: =ROUND(D13*D17,2) -> 0 | E20: 0 | F20: =SUMPRODUCT((WNARevAlloc[MonthFlow]=F10)*(WNARevAlloc[RateSched]=$C$8)*WNARevAlloc[AdjARRRev]) -> 0 | G20: =SUMPRODUCT((WNARevAlloc[MonthFlow]=G10)*(WNARevAlloc[RateSched]=$C$8)*WNARevAlloc[AdjARRRev]) -> 0 | H20: =SUMPRODUCT((WNARevAlloc[MonthFlow]=H10)*(WNARevAlloc[RateSched]=$C$8)*WNARevAlloc[AdjARRRev]) -> 0 | I20: =SUMPRODUCT((WNARevAlloc[MonthFlow]=I10)*(WNARevAlloc[RateSched]=$C$8)*WNARevAlloc[AdjARRRev]) -> 0 | J20: =SUMPRODUCT((WNARevAlloc[MonthFlow]=J10)*(WNARevAlloc[RateSched]=$C$8)*WNARevAlloc[AdjARRRev]) -> 0 | K20: =SUMPRODUCT((WNARevAlloc[MonthFlow]=K10)*(WNARevAlloc[RateSched]=$C$8)*WNARevAlloc[AdjARRRev]) -> 0 | L20: =SUMPRODUCT((WNARevAlloc[MonthFlow]=L10)*(WNARevAlloc[RateSched]=$C$8)*WNARevAlloc[AdjARRRev]) -> 0 | M20: =SUMPRODUCT((WNARevAlloc[MonthFlow]=M10)*(WNARevAlloc[RateSched]=$C$8)*WNARevAlloc[AdjARRRev]) -> 0 | N20: =SUMPRODUCT((WNARevAlloc[MonthFlow]=N10)*(WNARevAlloc[RateSched]=$C$8)*WNARevAlloc[AdjARRRev]) -> 0 | O20: =ROUND(O11*O16,2) -> 0 | P20: =ROUND(P11*P16,2) -> 0 | Q20: 0
B21: Total True-Up | C21: =SUM(C20:E20) -> 0 | D21: Enter in VolTrueUp Table
B23: Rate Category | C23: ESGC_SGS | D23: Comm
B24: Residential | C24: True-Up Period | F24: Actual Period* | O24: Projected Period
B25: Month (Flow) | C25: =C6 -> 45108 | D25: =EDATE(C25,1) -> 45139 | E25: =EDATE(D25,1) -> 45170 | F25: =EDATE(E25,1) -> 45200 | G25: =EDATE(F25,1) -> 45231 | H25: =EDATE(G25,1) -> 45261 | I25: =EDATE(H25,1) -> 45292 | J25: =EDATE(I25,1) -> 45323 | K25: =EDATE(J25,1) -> 45352 | L25: =EDATE(K25,1) -> 45383 | M25: =EDATE(L25,1) -> 45413 | N25: =EDATE(M25,1) -> 45444 | O25: =EDATE(N25,1) -> 45474 | P25: =EDATE(O25,1) -> 45505 | Q25: =EDATE(P25,1) -> 45536
B26: Est. Volume | C26: =SUMPRODUCT((CustEstVol[MonthFlow]=C25)*(CustEstVol[RateCategory]=$C23)*CustEstVol[NormVol]) -> 0 | D26: =SUMPRODUCT((CustEstVol[MonthFlow]=D25)*(CustEstVol[RateCategory]=$C23)*CustEstVol[NormVol]) -> 0 | E26: =SUMPRODUCT((CustEstVol[MonthFlow]=E25)*(CustEstVol[RateCategory]=$C23)*CustEstVol[NormVol]) -> 0 | O26: =SUMPRODUCT((CustEstVol[MonthFlow]=O25)*(CustEstVol[RateCategory]=$C$23)*CustEstVol[NormVol]) -> 53244 | P26: =SUMPRODUCT((CustEstVol[MonthFlow]=P25)*(CustEstVol[RateCategory]=$C$23)*CustEstVol[NormVol]) -> 57293 | Q26: =SUMPRODUCT((CustEstVol[MonthFlow]=Q25)*(CustEstVol[RateCategory]=$C$23)*CustEstVol[NormVol]) -> 112814
B27: Actual Volume | C27: =SUMPRODUCT((WNARevAlloc[MonthFlow]=C25)*(WNARevAlloc[RateSched]=$C23)*WNARevAlloc[Consumption]) -> 0 | D27: =SUMPRODUCT((WNARevAlloc[MonthFlow]=D25)*(WNARevAlloc[RateSched]=$C23)*WNARevAlloc[Consumption]) -> 0 | E27: =SUMPRODUCT((WNARevAlloc[MonthFlow]=E25)*(WNARevAlloc[RateSched]=$C23)*WNARevAlloc[Consumption]) -> 0 | F27: =SUMPRODUCT((WNARevAlloc[MonthFlow]=F25)*(WNARevAlloc[RateSched]=$C23)*WNARevAlloc[Consumption]) -> 92805.277 | G27: =SUMPRODUCT((WNARevAlloc[MonthFlow]=G25)*(WNARevAlloc[RateSched]=$C23)*WNARevAlloc[Consumption]) -> 342497.529 | H27: =SUMPRODUCT((WNARevAlloc[MonthFlow]=H25)*(WNARevAlloc[RateSched]=$C23)*WNARevAlloc[Consumption]) -> 526156.929 | I27: =SUMPRODUCT((WNARevAlloc[MonthFlow]=I25)*(WNARevAlloc[RateSched]=$C23)*WNARevAlloc[Consumption]) -> 843906.597 | J27: =SUMPRODUCT((WNARevAlloc[MonthFlow]=J25)*(WNARevAlloc[RateSched]=$C23)*WNARevAlloc[Consumption]) -> 364789.478 | K27: =SUMPRODUCT((WNARevAlloc[MonthFlow]=K25)*(WNARevAlloc[RateSched]=$C23)*WNARevAlloc[Consumption]) -> 216236.075 | L27: =SUMPRODUCT((WNARevAlloc[MonthFlow]=L25)*(WNARevAlloc[RateSched]=$C23)*WNARevAlloc[Consumption]) -> 207909.299 | M27: =SUMPRODUCT((WNARevAlloc[MonthFlow]=M25)*(WNARevAlloc[RateSched]=$C23)*WNARevAlloc[Consumption]) -> 71802.556 | N27: =SUMPRODUCT((WNARevAlloc[MonthFlow]=N25)*(WNARevAlloc[RateSched]=$C23)*WNARevAlloc[Consumption]) -> 41796.239
B28: Vol True-Up | C28: =C27-C26 -> 0 | D28: =D27-D26 -> 0 | E28: =E27-E26 -> 0
B29: WNAR Rates in Effect
B30: CAWNA | C30: =SUMPRODUCT((WNARRates[BeginDate]<=C25)*(WNARRates[EndDate]>C25)*(WNARRates[CustClass]=$D23)*WNARRates[CAWNAR]) -> 0 | D30: =SUMPRODUCT((WNARRates[BeginDate]<=D25)*(WNARRates[EndDate]>D25)*(WNARRates[CustClass]=$D23)*WNARRates[CAWNAR]) -> 0 | E30: =SUMPRODUCT((WNARRates[BeginDate]<=E25)*(WNARRates[EndDate]>E25)*(WNARRates[CustClass]=$D23)*WNARRates[CAWNAR]) -> 0 | F30: =SUMPRODUCT((WNARRates[BeginDate]<=F25)*(WNARRates[EndDate]>F25)*(WNARRates[CustClass]=$D23)*WNARRates[CAWNAR]) -> 0.01896 | G30: =SUMPRODUCT((WNARRates[BeginDate]<=G25)*(WNARRates[EndDate]>G25)*(WNARRates[CustClass]=$D23)*WNARRates[CAWNAR]) -> 0.01896 | H30: =SUMPRODUCT((WNARRates[BeginDate]<=H25)*(WNARRates[EndDate]>H25)*(WNARRates[CustClass]=$D23)*WNARRates[CAWNAR]) -> 0.01896 | I30: =SUMPRODUCT((WNARRates[BeginDate]<=I25)*(WNARRates[EndDate]>I25)*(WNARRates[CustClass]=$D23)*WNARRates[CAWNAR]) -> 0.01896 | J30: =SUMPRODUCT((WNARRates[BeginDate]<=J25)*(WNARRates[EndDate]>J25)*(WNARRates[CustClass]=$D23)*WNARRates[CAWNAR]) -> 0.01896 | K30: =SUMPRODUCT((WNARRates[BeginDate]<=K25)*(WNARRates[EndDate]>K25)*(WNARRates[CustClass]=$D23)*WNARRates[CAWNAR]) -> 0.01896 | L30: =SUMPRODUCT((WNARRates[BeginDate]<=L25)*(WNARRates[EndDate]>L25)*(WNARRates[CustClass]=$D23)*WNARRates[CAWNAR]) -> 0.01896 | M30: =SUMPRODUCT((WNARRates[BeginDate]<=M25)*(WNARRates[EndDate]>M25)*(WNARRates[CustClass]=$D23)*WNARRates[CAWNAR]) -> 0.01896 | N30: =SUMPRODUCT((WNARRates[BeginDate]<=N25)*(WNARRates[EndDate]>N25)*(WNARRates[CustClass]=$D23)*WNARRates[CAWNAR]) -> 0.01896 | O30: =SUMPRODUCT((WNARRates[BeginDate]<=O25)*(WNARRates[EndDate]>O25)*(WNARRates[CustClass]=$D23)*WNARRates[CAWNAR]) -> 0.01896 | P30: =SUMPRODUCT((WNARRates[BeginDate]<=P25)*(WNARRates[EndDate]>P25)*(WNARRates[CustClass]=$D23)*WNARRates[CAWNAR]) -> 0.01896 | Q30: =SUMPRODUCT((WNARRates[BeginDate]<=Q25)*(WNARRates[EndDate]>Q25)*(WNARRates[CustClass]=$D23)*WNARRates[CAWNAR]) -> 0.01896
B31: ARR | C31: =SUMPRODUCT((WNARRates[BeginDate]<=C25)*(WNARRates[EndDate]>C25)*(WNARRates[CustClass]=$D23)*WNARRates[ARR]) -> 0 | D31: =SUMPRODUCT((WNARRates[BeginDate]<=D25)*(WNARRates[EndDate]>D25)*(WNARRates[CustClass]=$D23)*WNARRates[ARR]) -> 0 | E31: =SUMPRODUCT((WNARRates[BeginDate]<=E25)*(WNARRates[EndDate]>E25)*(WNARRates[CustClass]=$D23)*WNARRates[ARR]) -> 0 | F31: =SUMPRODUCT((WNARRates[BeginDate]<=F25)*(WNARRates[EndDate]>F25)*(WNARRates[CustClass]=$D23)*WNARRates[ARR]) -> 0 | G31: =SUMPRODUCT((WNARRates[BeginDate]<=G25)*(WNARRates[EndDate]>G25)*(WNARRates[CustClass]=$D23)*WNARRates[ARR]) -> 0 | H31: =SUMPRODUCT((WNARRates[BeginDate]<=H25)*(WNARRates[EndDate]>H25)*(WNARRates[CustClass]=$D23)*WNARRates[ARR]) -> 0 | I31: =SUMPRODUCT((WNARRates[BeginDate]<=I25)*(WNARRates[EndDate]>I25)*(WNARRates[CustClass]=$D23)*WNARRates[ARR]) -> 0 | J31: =SUMPRODUCT((WNARRates[BeginDate]<=J25)*(WNARRates[EndDate]>J25)*(WNARRates[CustClass]=$D23)*WNARRates[ARR]) -> 0 | K31: =SUMPRODUCT((WNARRates[BeginDate]<=K25)*(WNARRates[EndDate]>K25)*(WNARRates[CustClass]=$D23)*WNARRates[ARR]) -> 0 | L31: =SUMPRODUCT((WNARRates[BeginDate]<=L25)*(WNARRates[EndDate]>L25)*(WNARRates[CustClass]=$D23)*WNARRates[ARR]) -> 0 | M31: =SUMPRODUCT((WNARRates[BeginDate]<=M25)*(WNARRates[EndDate]>M25)*(WNARRates[CustClass]=$D23)*WNARRates[ARR]) -> 0 | N31: =SUMPRODUCT((WNARRates[BeginDate]<=N25)*(WNARRates[EndDate]>N25)*(WNARRates[CustClass]=$D23)*WNARRates[ARR]) -> 0 | O31: =SUMPRODUCT((WNARRates[BeginDate]<=O25)*(WNARRates[EndDate]>O25)*(WNARRates[CustClass]=$D23)*WNARRates[ARR]) -> 0 | P31: =SUMPRODUCT((WNARRates[BeginDate]<=P25)*(WNARRates[EndDate]>P25)*(WNARRates[CustClass]=$D23)*WNARRates[ARR]) -> 0 | Q31: =SUMPRODUCT((WNARRates[BeginDate]<=Q25)*(WNARRates[EndDate]>Q25)*(WNARRates[CustClass]=$D23)*WNARRates[ARR]) -> 0
B32: Total | C32: =C30+C31 -> 0 | D32: =D30+D31 -> 0 | E32: 0 | F32: 0.01896 | G32: 0.01896 | H32: 0.01896 | I32: 0.01896 | J32: 0.01896 | K32: 0.01896 | L32: 0.01896 | M32: 0.01896 | N32: 0.01896 | O32: 0.01896 | P32: 0.01896 | Q32: 0.01896
B33: CAWNA and ARR Revenue for Period
B34: CAWNA $ | F34: =SUMPRODUCT((WNARevAlloc[MonthFlow]=F25)*(WNARevAlloc[RateSched]=$C23)*WNARevAlloc[AdjCAWNARev]) -> 1756.42 | G34: =SUMPRODUCT((WNARevAlloc[MonthFlow]=G25)*(WNARevAlloc[RateSched]=$C23)*WNARevAlloc[AdjCAWNARev]) -> 6493.63 | H34: =SUMPRODUCT((WNARevAlloc[MonthFlow]=H25)*(WNARevAlloc[RateSched]=$C23)*WNARevAlloc[AdjCAWNARev]) -> 9976.21 | I34: =SUMPRODUCT((WNARevAlloc[MonthFlow]=I25)*(WNARevAlloc[RateSched]=$C23)*WNARevAlloc[AdjCAWNARev]) -> 16000.49 | J34: =SUMPRODUCT((WNARevAlloc[MonthFlow]=J25)*(WNARevAlloc[RateSched]=$C23)*WNARevAlloc[AdjCAWNARev]) -> 6916.54 | K34: =SUMPRODUCT((WNARevAlloc[MonthFlow]=K25)*(WNARevAlloc[RateSched]=$C23)*WNARevAlloc[AdjCAWNARev]) -> 4099.69 | L34: =SUMPRODUCT((WNARevAlloc[MonthFlow]=L25)*(WNARevAlloc[RateSched]=$C23)*WNARevAlloc[AdjCAWNARev]) -> 3942.23 | M34: =SUMPRODUCT((WNARevAlloc[MonthFlow]=M25)*(WNARevAlloc[RateSched]=$C23)*WNARevAlloc[AdjCAWNARev]) -> 1361.48 | N34: =SUMPRODUCT((WNARevAlloc[MonthFlow]=N25)*(WNARevAlloc[RateSched]=$C23)*WNARevAlloc[AdjCAWNARev]) -> 792.62 | O34: =ROUND(O26*O30,2) -> 1009.51 | P34: =ROUND(P26*P30,2) -> 1086.28 | Q34: 2138.95
B35: ARR $ | C35: =ROUND(C28*C32,2) -> 0 | D35: =ROUND(D28*D32,2) -> 0 | E35: 0 | F35: =SUMPRODUCT((WNARevAlloc[MonthFlow]=F25)*(WNARevAlloc[RateSched]=$C23)*WNARevAlloc[AdjARRRev]) -> 0 | G35: =SUMPRODUCT((WNARevAlloc[MonthFlow]=G25)*(WNARevAlloc[RateSched]=$C23)*WNARevAlloc[AdjARRRev]) -> 0 | H35: =SUMPRODUCT((WNARevAlloc[MonthFlow]=H25)*(WNARevAlloc[RateSched]=$C23)*WNARevAlloc[AdjARRRev]) -> 0 | I35: =SUMPRODUCT((WNARevAlloc[MonthFlow]=I25)*(WNARevAlloc[RateSched]=$C23)*WNARevAlloc[AdjARRRev]) -> 0 | J35: =SUMPRODUCT((WNARevAlloc[MonthFlow]=J25)*(WNARevAlloc[RateSched]=$C23)*WNARevAlloc[AdjARRRev]) -> 0 | K35: =SUMPRODUCT((WNARevAlloc[MonthFlow]=K25)*(WNARevAlloc[RateSched]=$C23)*WNARevAlloc[AdjARRRev]) -> 0 | L35: =SUMPRODUCT((WNARevAlloc[MonthFlow]=L25)*(WNARevAlloc[RateSched]=$C23)*WNARevAlloc[AdjARRRev]) -> 0 | M35: =SUMPRODUCT((WNARevAlloc[MonthFlow]=M25)*(WNARevAlloc[RateSched]=$C23)*WNARevAlloc[AdjARRRev]) -> 0 | N35: =SUMPRODUCT((WNARevAlloc[MonthFlow]=N25)*(WNARevAlloc[RateSched]=$C23)*WNARevAlloc[AdjARRRev]) -> 0 | O35: =ROUND(O26*O31,2) -> 0 | P35: =ROUND(P26*P31,2) -> 0 | Q35: 0
B36: Total True-Up | C36: =SUM(C35:E35) -> 0 | D36: Enter in VolTrueUp Table
B38: * Actual Period revenues were calculated using actual rates, and then adjusted for actual revenues billed.
B39: (See worksheet WNARRevAlloc)

Sheet CAWNA North
B2: Empire District Gas Company | E2: Filing Year
B3: Billing Cycle and HDD Data Summary
B4: Territory | C4: North
B5: Year | C5: =DateSet!C2 -> 2024
B6: Analysis Start | C6: =DateSet!C3 -> 2023-09-01
B8: Rate Category | C8: ENGR_RS | D8: Cust Class | E8: =INDEX(RateCat[CustClass],MATCH(C8,RateCat[RateCategory],0)) -> Res
B9: WNA factor = HDD Diff * No. of Bills * Beta Coefficient (See North Cycles)
B10: MonthFlow | C10: WNA Factor | D10: WRVR | E10: WNAi
D11: Vol. Rate | E11: c*d
B12: =$C$6 -> 45170 | C12: =SUMPRODUCT((NorthCycles[MonthFlow]=B12)*(NorthCycles[CustClass]=$E$8)*NorthCycles[WNAFactor]) -> 20858.68242 | D12: =SUMPRODUCT((VolRates[BeginDate]<=$B12)*(VolRates[EndDate]>$B12)*(VolRates[CustClass]=$E$8)*VolRates[VolRate]) -> 0.21748 | E12: =IF(OR(MONTH(B12)=7,MONTH(B12)=8),0,ROUND(C12*D12,2)) -> 4536.35
B13: =EDATE(B12,1) -> 45200 | C13: =SUMPRODUCT((NorthCycles[MonthFlow]=B13)*(NorthCycles[CustClass]=$E$8)*NorthCycles[WNAFactor]) -> 88073.52274 | D13: =SUMPRODUCT((VolRates[BeginDate]<=$B13)*(VolRates[EndDate]>$B13)*(VolRates[CustClass]=$E$8)*VolRates[VolRate]) -> 0.21748 | E13: =IF(OR(MONTH(B13)=7,MONTH(B13)=8),0,ROUND(C13*D13,2)) -> 19154.23
B14: =EDATE(B13,1) -> 45231 | C14: =SUMPRODUCT((NorthCycles[MonthFlow]=B14)*(NorthCycles[CustClass]=$E$8)*NorthCycles[WNAFactor]) -> -1160.138518 | D14: =SUMPRODUCT((VolRates[BeginDate]<=$B14)*(VolRates[EndDate]>$B14)*(VolRates[CustClass]=$E$8)*VolRates[VolRate]) -> 0.21748 | E14: -252.31
B15: =EDATE(B14,1) -> 45261 | C15: =SUMPRODUCT((NorthCycles[MonthFlow]=B15)*(NorthCycles[CustClass]=$E$8)*NorthCycles[WNAFactor]) -> 225975.0524 | D15: =SUMPRODUCT((VolRates[BeginDate]<=$B15)*(VolRates[EndDate]>$B15)*(VolRates[CustClass]=$E$8)*VolRates[VolRate]) -> 0.21748 | E15: 49145.05
B16: =EDATE(B15,1) -> 45292 | C16: =SUMPRODUCT((NorthCycles[MonthFlow]=B16)*(NorthCycles[CustClass]=$E$8)*NorthCycles[WNAFactor]) -> -121247.8227 | D16: =SUMPRODUCT((VolRates[BeginDate]<=$B16)*(VolRates[EndDate]>$B16)*(VolRates[CustClass]=$E$8)*VolRates[VolRate]) -> 0.21748 | E16: -26368.98
B17: =EDATE(B16,1) -> 45323 | C17: =SUMPRODUCT((NorthCycles[MonthFlow]=B17)*(NorthCycles[CustClass]=$E$8)*NorthCycles[WNAFactor]) -> 346687.2307 | D17: =SUMPRODUCT((VolRates[BeginDate]<=$B17)*(VolRates[EndDate]>$B17)*(VolRates[CustClass]=$E$8)*VolRates[VolRate]) -> 0.21748 | E17: 75397.54
B18: =EDATE(B17,1) -> 45352 | C18: =SUMPRODUCT((NorthCycles[MonthFlow]=B18)*(NorthCycles[CustClass]=$E$8)*NorthCycles[WNAFactor]) -> 45680.39243 | D18: =SUMPRODUCT((VolRates[BeginDate]<=$B18)*(VolRates[EndDate]>$B18)*(VolRates[CustClass]=$E$8)*VolRates[VolRate]) -> 0.21748 | E18: 9934.57
B19: 45383 | C19: =SUMPRODUCT((NorthCycles[MonthFlow]=B19)*(NorthCycles[CustClass]=$E$8)*NorthCycles[WNAFactor]) -> 8852.919269 | D19: =SUMPRODUCT((VolRates[BeginDate]<=$B19)*(VolRates[EndDate]>$B19)*(VolRates[CustClass]=$E$8)*VolRates[VolRate]) -> 0.21748 | E19: 1925.33
B20: 45413 | C20: =SUMPRODUCT((NorthCycles[MonthFlow]=B20)*(NorthCycles[CustClass]=$E$8)*NorthCycles[WNAFactor]) -> 83714.24136 | D20: =SUMPRODUCT((VolRates[BeginDate]<=$B20)*(VolRates[EndDate]>$B20)*(VolRates[CustClass]=$E$8)*VolRates[VolRate]) -> 0.21748 | E20: 18206.17
B21: 45444 | C21: =SUMPRODUCT((NorthCycles[MonthFlow]=B21)*(NorthCycles[CustClass]=$E$8)*NorthCycles[WNAFactor]) -> 57156.39287 | D21: =SUMPRODUCT((VolRates[BeginDate]<=$B21)*(VolRates[EndDate]>$B21)*(VolRates[CustClass]=$E$8)*VolRates[VolRate]) -> 0.21748 | E21: 12430.37
B22: 45474 | C22: =SUMPRODUCT((NorthCycles[MonthFlow]=B22)*(NorthCycles[CustClass]=$E$8)*NorthCycles[WNAFactor]) -> 0 | D22: =SUMPRODUCT((VolRates[BeginDate]<=$B22)*(VolRates[EndDate]>$B22)*(VolRates[CustClass]=$E$8)*VolRates[VolRate]) -> 0.21748 | E22: 0
B23: =EDATE(B22,1) -> 45505 | C23: =SUMPRODUCT((NorthCycles[MonthFlow]=B23)*(NorthCycles[CustClass]=$E$8)*NorthCycles[WNAFactor]) -> 0 | D23: =SUMPRODUCT((VolRates[BeginDate]<=$B23)*(VolRates[EndDate]>$B23)*(VolRates[CustClass]=$E$8)*VolRates[VolRate]) -> 0.21748 | E23: 0
B24: Totals | C24: =SUM(C12:C23) -> 754590.473 | D24: =D23 -> 0.21748 | E24: =SUM(E12:E23) -> 164108.32
B25: Recon Period Adj. | C25: =E24 -> 164108.32
B26: Enter in Reconciling Period Adjustment Table (ReconPerAdj)
B27: Enter WNA Amounts in Column C in CAWNA Amounts Table
B29: Rate Category | C29: ENGC_SGS | D29: Cust Class | E29: =INDEX(RateCat[CustClass],MATCH(C29,RateCat[RateCategory],0)) -> Comm
B30: WNA factor = HDD Diff * No. of Bills * Beta Coefficient (See North Cycles)
B31: MonthFlow | C31: WNA Factor | D31: WRVR | E31: WNAi
D32: Vol. Rate | E32: c*d
B33: =$C$6 -> 45170 | C33: =SUMPRODUCT((NorthCycles[MonthFlow]=B33)*(NorthCycles[CustClass]=$E$29)*NorthCycles[WNAFactor]) -> 6746.52297 | D33: =SUMPRODUCT((VolRates[BeginDate]<=$B33)*(VolRates[EndDate]>$B33)*(VolRates[CustClass]=$E$29)*VolRates[VolRate]) -> 0.26033 | E33: =IF(OR(MONTH(B33)=7,MONTH(B33)=8),0,ROUND(C33*D33,2)) -> 1756.32
B34: =EDATE(B33,1) -> 45200 | C34: =SUMPRODUCT((NorthCycles[MonthFlow]=B34)*(NorthCycles[CustClass]=$E$29)*NorthCycles[WNAFactor]) -> 28272.89965 | D34: =SUMPRODUCT((VolRates[BeginDate]<=$B34)*(VolRates[EndDate]>$B34)*(VolRates[CustClass]=$E$29)*VolRates[VolRate]) -> 0.26033 | E34: =IF(OR(MONTH(B34)=7,MONTH(B34)=8),0,ROUND(C34*D34,2)) -> 7360.28
B35: =EDATE(B34,1) -> 45231 | C35: =SUMPRODUCT((NorthCycles[MonthFlow]=B35)*(NorthCycles[CustClass]=$E$29)*NorthCycles[WNAFactor]) -> -371.1802244 | D35: =SUMPRODUCT((VolRates[BeginDate]<=$B35)*(VolRates[EndDate]>$B35)*(VolRates[CustClass]=$E$29)*VolRates[VolRate]) -> 0.26033 | E35: -96.63
B36: =EDATE(B35,1) -> 45261 | C36: =SUMPRODUCT((NorthCycles[MonthFlow]=B36)*(NorthCycles[CustClass]=$E$29)*NorthCycles[WNAFactor]) -> 71837.94038 | D36: =SUMPRODUCT((VolRates[BeginDate]<=$B36)*(VolRates[EndDate]>$B36)*(VolRates[CustClass]=$E$29)*VolRates[VolRate]) -> 0.26033 | E36: 18701.57
B37: =EDATE(B36,1) -> 45292 | C37: =SUMPRODUCT((NorthCycles[MonthFlow]=B37)*(NorthCycles[CustClass]=$E$29)*NorthCycles[WNAFactor]) -> -38448.96868 | D37: =SUMPRODUCT((VolRates[BeginDate]<=$B37)*(VolRates[EndDate]>$B37)*(VolRates[CustClass]=$E$29)*VolRates[VolRate]) -> 0.26033 | E37: -10009.42
B38: =EDATE(B37,1) -> 45323 | C38: =SUMPRODUCT((NorthCycles[MonthFlow]=B38)*(NorthCycles[CustClass]=$E$29)*NorthCycles[WNAFactor]) -> 110375.6702 | D38: =SUMPRODUCT((VolRates[BeginDate]<=$B38)*(VolRates[EndDate]>$B38)*(VolRates[CustClass]=$E$29)*VolRates[VolRate]) -> 0.26033 | E38: 28734.1
B39: =EDATE(B38,1) -> 45352 | C39: =SUMPRODUCT((NorthCycles[MonthFlow]=B39)*(NorthCycles[CustClass]=$E$29)*NorthCycles[WNAFactor]) -> 15126.58343 | D39: =SUMPRODUCT((VolRates[BeginDate]<=$B39)*(VolRates[EndDate]>$B39)*(VolRates[CustClass]=$E$29)*VolRates[VolRate]) -> 0.26033 | E39: 3937.9
B40: 45383 | C40: =SUMPRODUCT((NorthCycles[MonthFlow]=B40)*(NorthCycles[CustClass]=$E$29)*NorthCycles[WNAFactor]) -> 3040.242107 | D40: =SUMPRODUCT((VolRates[BeginDate]<=$B40)*(VolRates[EndDate]>$B40)*(VolRates[CustClass]=$E$29)*VolRates[VolRate]) -> 0.26033 | E40: 791.47
B41: 45413 | C41: =SUMPRODUCT((NorthCycles[MonthFlow]=B41)*(NorthCycles[CustClass]=$E$29)*NorthCycles[WNAFactor]) -> 27575.87878 | D41: =SUMPRODUCT((VolRates[BeginDate]<=$B41)*(VolRates[EndDate]>$B41)*(VolRates[CustClass]=$E$29)*VolRates[VolRate]) -> 0.26033 | E41: 7178.83
B42: 45444 | C42: =SUMPRODUCT((NorthCycles[MonthFlow]=B42)*(NorthCycles[CustClass]=$E$29)*NorthCycles[WNAFactor]) -> 15557.01376 | D42: =SUMPRODUCT((VolRates[BeginDate]<=$B42)*(VolRates[EndDate]>$B42)*(VolRates[CustClass]=$E$29)*VolRates[VolRate]) -> 0.26033 | E42: 4049.96
B43: 45474 | C43: =SUMPRODUCT((NorthCycles[MonthFlow]=B43)*(NorthCycles[CustClass]=$E$29)*NorthCycles[WNAFactor]) -> 0 | D43: =SUMPRODUCT((VolRates[BeginDate]<=$B43)*(VolRates[EndDate]>$B43)*(VolRates[CustClass]=$E$29)*VolRates[VolRate]) -> 0.26033 | E43: 0
B44: =EDATE(B43,1) -> 45505 | C44: =SUMPRODUCT((NorthCycles[MonthFlow]=B44)*(NorthCycles[CustClass]=$E$29)*NorthCycles[WNAFactor]) -> 0 | D44: =SUMPRODUCT((VolRates[BeginDate]<=$B44)*(VolRates[EndDate]>$B44)*(VolRates[CustClass]=$E$29)*VolRates[VolRate]) -> 0.26033 | E44: 0
B45: Totals | C45: =SUM(C33:C44) -> 239712.6023 | D45: =D44 -> 0.26033 | E45: =SUM(E33:E44) -> 62404.38
B46: Recon Period Adj. | C46: =E45 -> 62404.38
B47: Enter in Reconciling Period Adjustment Table (ReconPerAdj)
B48: Enter WNA Amounts in Column C in CAWNA Amounts Table

Sheet CAWNA NW
B2: Empire District Gas Company | E2: Filing Year
B3: Billing Cycle and HDD Data Summary
B4: Territory | C4: NW
B5: Year | C5: =DateSet!C2 -> 2024
B6: Analysis Start | C6: =DateSet!C3 -> 2023-09-01
B8: Rate Category | C8: EGGR_RS | D8: Cust Class | E8: =INDEX(RateCat[CustClass],MATCH(C8,RateCat[RateCategory],0)) -> Res
B9: WNA factor = HDD Diff * No. of Bills * Beta Coefficient (See NW Cycles)
B10: MonthFlow | C10: WNA Factor | D10: WRVR | E10: WNAi
D11: Vol. Rate | E11: c*d
B12: =$C$6 -> 45170 | C12: =SUMPRODUCT((NWCycles[MonthFlow]=B12)*(NWCycles[CustClass]=$E$8)*NWCycles[WNAFactor]) -> 12555.45469 | D12: =SUMPRODUCT((VolRates[BeginDate]<=$B12)*(VolRates[EndDate]>$B12)*(VolRates[CustClass]=$E$8)*VolRates[VolRate]) -> 0.21748 | E12: =IF(OR(MONTH(B12)=7,MONTH(B12)=8),0,ROUND(C12*D12,2)) -> 2730.56
B13: =EDATE(B12,1) -> 45200 | C13: =SUMPRODUCT((NWCycles[MonthFlow]=B13)*(NWCycles[CustClass]=$E$8)*NWCycles[WNAFactor]) -> 53011.28616 | D13: =SUMPRODUCT((VolRates[BeginDate]<=$B13)*(VolRates[EndDate]>$B13)*(VolRates[CustClass]=$E$8)*VolRates[VolRate]) -> 0.21748 | E13: =IF(OR(MONTH(B13)=7,MONTH(B13)=8),0,ROUND(C13*D13,2)) -> 11528.89
B14: =EDATE(B13,1) -> 45231 | C14: =SUMPRODUCT((NWCycles[MonthFlow]=B14)*(NWCycles[CustClass]=$E$8)*NWCycles[WNAFactor]) -> -698.3008532 | D14: =SUMPRODUCT((VolRates[BeginDate]<=$B14)*(VolRates[EndDate]>$B14)*(VolRates[CustClass]=$E$8)*VolRates[VolRate]) -> 0.21748 | E14: -151.87
B15: =EDATE(B14,1) -> 45261 | C15: =SUMPRODUCT((NWCycles[MonthFlow]=B15)*(NWCycles[CustClass]=$E$8)*NWCycles[WNAFactor]) -> 135551.6444 | D15: =SUMPRODUCT((VolRates[BeginDate]<=$B15)*(VolRates[EndDate]>$B15)*(VolRates[CustClass]=$E$8)*VolRates[VolRate]) -> 0.21748 | E15: 29479.77
B16: =EDATE(B15,1) -> 45292 | C16: =SUMPRODUCT((NWCycles[MonthFlow]=B16)*(NWCycles[CustClass]=$E$8)*NWCycles[WNAFactor]) -> -72692.00789 | D16: =SUMPRODUCT((VolRates[BeginDate]<=$B16)*(VolRates[EndDate]>$B16)*(VolRates[CustClass]=$E$8)*VolRates[VolRate]) -> 0.21748 | E16: -15809.06
B17: =EDATE(B16,1) -> 45323 | C17: =SUMPRODUCT((NWCycles[MonthFlow]=B17)*(NWCycles[CustClass]=$E$8)*NWCycles[WNAFactor]) -> 208268.8271 | D17: =SUMPRODUCT((VolRates[BeginDate]<=$B17)*(VolRates[EndDate]>$B17)*(VolRates[CustClass]=$E$8)*VolRates[VolRate]) -> 0.21748 | E17: 45294.3
B18: =EDATE(B17,1) -> 45352 | C18: =SUMPRODUCT((NWCycles[MonthFlow]=B18)*(NWCycles[CustClass]=$E$8)*NWCycles[WNAFactor]) -> 27182.56885 | D18: =SUMPRODUCT((VolRates[BeginDate]<=$B18)*(VolRates[EndDate]>$B18)*(VolRates[CustClass]=$E$8)*VolRates[VolRate]) -> 0.21748 | E18: 5911.67
B19: 45383 | C19: =SUMPRODUCT((NWCycles[MonthFlow]=B19)*(NWCycles[CustClass]=$E$8)*NWCycles[WNAFactor]) -> 10013.67291 | D19: =SUMPRODUCT((VolRates[BeginDate]<=$B19)*(VolRates[EndDate]>$B19)*(VolRates[CustClass]=$E$8)*VolRates[VolRate]) -> 0.21748 | E19: 2177.77
B20: 45413 | C20: =SUMPRODUCT((NWCycles[MonthFlow]=B20)*(NWCycles[CustClass]=$E$8)*NWCycles[WNAFactor]) -> 54938.89523 | D20: =SUMPRODUCT((VolRates[BeginDate]<=$B20)*(VolRates[EndDate]>$B20)*(VolRates[CustClass]=$E$8)*VolRates[VolRate]) -> 0.21748 | E20: 11948.11
B21: 45444 | C21: =SUMPRODUCT((NWCycles[MonthFlow]=B21)*(NWCycles[CustClass]=$E$8)*NWCycles[WNAFactor]) -> 24618.71457 | D21: =SUMPRODUCT((VolRates[BeginDate]<=$B21)*(VolRates[EndDate]>$B21)*(VolRates[CustClass]=$E$8)*VolRates[VolRate]) -> 0.21748 | E21: 5354.08
B22: 45474 | C22: =SUMPRODUCT((NWCycles[MonthFlow]=B22)*(NWCycles[CustClass]=$E$8)*NWCycles[WNAFactor]) -> 0 | D22: =SUMPRODUCT((VolRates[BeginDate]<=$B22)*(VolRates[EndDate]>$B22)*(VolRates[CustClass]=$E$8)*VolRates[VolRate]) -> 0.21748 | E22: 0
B23: =EDATE(B22,1) -> 45505 | C23: =SUMPRODUCT((NWCycles[MonthFlow]=B23)*(NWCycles[CustClass]=$E$8)*NWCycles[WNAFactor]) -> 0 | D23: =SUMPRODUCT((VolRates[BeginDate]<=$B23)*(VolRates[EndDate]>$B23)*(VolRates[CustClass]=$E$8)*VolRates[VolRate]) -> 0.21748 | E23: 0
B24: Totals | C24: =SUM(C12:C23) -> 452750.7551 | D24: =D23 -> 0.21748 | E24: =SUM(E12:E23) -> 98464.22
B25: Recon Period Adj. | C25: =E24 -> 98464.22
B26: Enter in Reconciling Period Adjustment Table (ReconPerAdj)
B27: Enter WNA Amounts in Column C in CAWNA Amounts Table
B29: Rate Category | C29: EGGC_SGS | D29: Cust Class | E29: =INDEX(RateCat[CustClass],MATCH(C29,RateCat[RateCategory],0)) -> Comm
B30: WNA factor = HDD Diff * No. of Bills * Beta Coefficient (See NW Cycles)
B31: MonthFlow | C31: WNA Factor | D31: WRVR | E31: WNAi
D32: Vol. Rate | E32: c*d
B33: =$C$6 -> 45170 | C33: =SUMPRODUCT((NWCycles[MonthFlow]=B33)*(NWCycles[CustClass]=$E$29)*NWCycles[WNAFactor]) -> 4002.377748 | D33: =SUMPRODUCT((VolRates[BeginDate]<=$B33)*(VolRates[EndDate]>$B33)*(VolRates[CustClass]=$E$29)*VolRates[VolRate]) -> 0.26033 | E33: =IF(OR(MONTH(B33)=7,MONTH(B33)=8),0,ROUND(C33*D33,2)) -> 1041.94
B34: =EDATE(B33,1) -> 45200 | C34: =SUMPRODUCT((NWCycles[MonthFlow]=B34)*(NWCycles[CustClass]=$E$29)*NWCycles[WNAFactor]) -> 16699.92576 | D34: =SUMPRODUCT((VolRates[BeginDate]<=$B34)*(VolRates[EndDate]>$B34)*(VolRates[CustClass]=$E$29)*VolRates[VolRate]) -> 0.26033 | E34: =IF(OR(MONTH(B34)=7,MONTH(B34)=8),0,ROUND(C34*D34,2)) -> 4347.49
B35: =EDATE(B34,1) -> 45231 | C35: =SUMPRODUCT((NWCycles[MonthFlow]=B35)*(NWCycles[CustClass]=$E$29)*NWCycles[WNAFactor]) -> -218.3413085 | D35: =SUMPRODUCT((VolRates[BeginDate]<=$B35)*(VolRates[EndDate]>$B35)*(VolRates[CustClass]=$E$29)*VolRates[VolRate]) -> 0.26033 | E35: -56.84
B36: =EDATE(B35,1) -> 45261 | C36: =SUMPRODUCT((NWCycles[MonthFlow]=B36)*(NWCycles[CustClass]=$E$29)*NWCycles[WNAFactor]) -> 42309.46182 | D36: =SUMPRODUCT((VolRates[BeginDate]<=$B36)*(VolRates[EndDate]>$B36)*(VolRates[CustClass]=$E$29)*VolRates[VolRate]) -> 0.26033 | E36: 11014.42
B37: =EDATE(B36,1) -> 45292 | C37: =SUMPRODUCT((NWCycles[MonthFlow]=B37)*(NWCycles[CustClass]=$E$29)*NWCycles[WNAFactor]) -> -22718.31073 | D37: =SUMPRODUCT((VolRates[BeginDate]<=$B37)*(VolRates[EndDate]>$B37)*(VolRates[CustClass]=$E$29)*VolRates[VolRate]) -> 0.26033 | E37: -5914.26
B38: =EDATE(B37,1) -> 45323 | C38: =SUMPRODUCT((NWCycles[MonthFlow]=B38)*(NWCycles[CustClass]=$E$29)*NWCycles[WNAFactor]) -> 65393.47329 | D38: =SUMPRODUCT((VolRates[BeginDate]<=$B38)*(VolRates[EndDate]>$B38)*(VolRates[CustClass]=$E$29)*VolRates[VolRate]) -> 0.26033 | E38: 17023.88
B39: =EDATE(B38,1) -> 45352 | C39: =SUMPRODUCT((NWCycles[MonthFlow]=B39)*(NWCycles[CustClass]=$E$29)*NWCycles[WNAFactor]) -> 8846.407702 | D39: =SUMPRODUCT((VolRates[BeginDate]<=$B39)*(VolRates[EndDate]>$B39)*(VolRates[CustClass]=$E$29)*VolRates[VolRate]) -> 0.26033 | E39: 2302.99
B40: 45383 | C40: =SUMPRODUCT((NWCycles[MonthFlow]=B40)*(NWCycles[CustClass]=$E$29)*NWCycles[WNAFactor]) -> 3360.109797 | D40: =SUMPRODUCT((VolRates[BeginDate]<=$B40)*(VolRates[EndDate]>$B40)*(VolRates[CustClass]=$E$29)*VolRates[VolRate]) -> 0.26033 | E40: 874.74
B41: 45413 | C41: =SUMPRODUCT((NWCycles[MonthFlow]=B41)*(NWCycles[CustClass]=$E$29)*NWCycles[WNAFactor]) -> 18089.73104 | D41: =SUMPRODUCT((VolRates[BeginDate]<=$B41)*(VolRates[EndDate]>$B41)*(VolRates[CustClass]=$E$29)*VolRates[VolRate]) -> 0.26033 | E41: 4709.3
B42: 45444 | C42: =SUMPRODUCT((NWCycles[MonthFlow]=B42)*(NWCycles[CustClass]=$E$29)*NWCycles[WNAFactor]) -> 7049.603053 | D42: =SUMPRODUCT((VolRates[BeginDate]<=$B42)*(VolRates[EndDate]>$B42)*(VolRates[CustClass]=$E$29)*VolRates[VolRate]) -> 0.26033 | E42: 1835.22
B43: 45474 | C43: =SUMPRODUCT((NWCycles[MonthFlow]=B43)*(NWCycles[CustClass]=$E$29)*NWCycles[WNAFactor]) -> 0 | D43: =SUMPRODUCT((VolRates[BeginDate]<=$B43)*(VolRates[EndDate]>$B43)*(VolRates[CustClass]=$E$29)*VolRates[VolRate]) -> 0.26033 | E43: 0
B44: =EDATE(B43,1) -> 45505 | C44: =SUMPRODUCT((NWCycles[MonthFlow]=B44)*(NWCycles[CustClass]=$E$29)*NWCycles[WNAFactor]) -> 0 | D44: =SUMPRODUCT((VolRates[BeginDate]<=$B44)*(VolRates[EndDate]>$B44)*(VolRates[CustClass]=$E$29)*VolRates[VolRate]) -> 0.26033 | E44: 0
B45: Totals | C45: =SUM(C33:C44) -> 142814.4382 | D45: =D44 -> 0.26033 | E45: =SUM(E33:E44) -> 37178.88
B46: Recon Period Adj. | C46: =E45 -> 37178.88
B47: Enter in Reconciling Period Adjustment Table (ReconPerAdj)
B48: Enter WNA Amounts in Column C in CAWNA Amounts Table

Sheet CAWNA South
B2: Empire District Gas Company | E2: Filing Year
B3: Billing Cycle and HDD Data Summary
B4: Territory | C4: South
B5: Year | C5: =DateSet!C2 -> 2024
B6: Analysis Start | C6: =DateSet!C3 -> 2023-09-01
B8: Rate Category | C8: ESGR_RS | D8: Cust Class | E8: =INDEX(RateCat[CustClass],MATCH(C8,RateCat[RateCategory],0)) -> Res
B9: WNA factor = HDD Diff * No. of Bills * Beta Coefficient (See South Cycles)
B10: MonthFlow | C10: WNA Factor | D10: WRVR | E10: WNAi
D11: Vol. Rate | E11: c*d
B12: =$C$6 -> 45170 | C12: =SUMPRODUCT((SouthCycles[MonthFlow]=B12)*(SouthCycles[CustClass]=$E$8)*SouthCycles[WNAFactor]) -> 65334.96414 | D12: =SUMPRODUCT((VolRates[BeginDate]<=$B12)*(VolRates[EndDate]>$B12)*(VolRates[CustClass]=$E$8)*VolRates[VolRate]) -> 0.21748 | E12: =IF(OR(MONTH(B12)=7,MONTH(B12)=8),0,ROUND(C12*D12,2)) -> 14209.05
B13: =EDATE(B12,1) -> 45200 | C13: =SUMPRODUCT((SouthCycles[MonthFlow]=B13)*(SouthCycles[CustClass]=$E$8)*SouthCycles[WNAFactor]) -> 274316.9086 | D13: =SUMPRODUCT((VolRates[BeginDate]<=$B13)*(VolRates[EndDate]>$B13)*(VolRates[CustClass]=$E$8)*VolRates[VolRate]) -> 0.21748 | E13: =IF(OR(MONTH(B13)=7,MONTH(B13)=8),0,ROUND(C13*D13,2)) -> 59658.44
B14: =EDATE(B13,1) -> 45231 | C14: =SUMPRODUCT((SouthCycles[MonthFlow]=B14)*(SouthCycles[CustClass]=$E$8)*SouthCycles[WNAFactor]) -> -3608.295768 | D14: =SUMPRODUCT((VolRates[BeginDate]<=$B14)*(VolRates[EndDate]>$B14)*(VolRates[CustClass]=$E$8)*VolRates[VolRate]) -> 0.21748 | E14: -784.73
B15: =EDATE(B14,1) -> 45261 | C15: =SUMPRODUCT((SouthCycles[MonthFlow]=B15)*(SouthCycles[CustClass]=$E$8)*SouthCycles[WNAFactor]) -> 700572.7432 | D15: =SUMPRODUCT((VolRates[BeginDate]<=$B15)*(VolRates[EndDate]>$B15)*(VolRates[CustClass]=$E$8)*VolRates[VolRate]) -> 0.21748 | E15: 152360.56
B16: =EDATE(B15,1) -> 45292 | C16: =SUMPRODUCT((SouthCycles[MonthFlow]=B16)*(SouthCycles[CustClass]=$E$8)*SouthCycles[WNAFactor]) -> -375229.79 | D16: =SUMPRODUCT((VolRates[BeginDate]<=$B16)*(VolRates[EndDate]>$B16)*(VolRates[CustClass]=$E$8)*VolRates[VolRate]) -> 0.21748 | E16: -81604.97
B17: =EDATE(B16,1) -> 45323 | C17: =SUMPRODUCT((SouthCycles[MonthFlow]=B17)*(SouthCycles[CustClass]=$E$8)*SouthCycles[WNAFactor]) -> 1074302.934 | D17: =SUMPRODUCT((VolRates[BeginDate]<=$B17)*(VolRates[EndDate]>$B17)*(VolRates[CustClass]=$E$8)*VolRates[VolRate]) -> 0.21748 | E17: 233639.4
B18: =EDATE(B17,1) -> 45352 | C18: =SUMPRODUCT((SouthCycles[MonthFlow]=B18)*(SouthCycles[CustClass]=$E$8)*SouthCycles[WNAFactor]) -> 140864.9726 | D18: =SUMPRODUCT((VolRates[BeginDate]<=$B18)*(VolRates[EndDate]>$B18)*(VolRates[CustClass]=$E$8)*VolRates[VolRate]) -> 0.21748 | E18: 30635.31
B19: 45383 | C19: =SUMPRODUCT((SouthCycles[MonthFlow]=B19)*(SouthCycles[CustClass]=$E$8)*SouthCycles[WNAFactor]) -> 17782.08321 | D19: =SUMPRODUCT((VolRates[BeginDate]<=$B19)*(VolRates[EndDate]>$B19)*(VolRates[CustClass]=$E$8)*VolRates[VolRate]) -> 0.21748 | E19: 3867.25
B20: 45413 | C20: =SUMPRODUCT((SouthCycles[MonthFlow]=B20)*(SouthCycles[CustClass]=$E$8)*SouthCycles[WNAFactor]) -> 262890.8773 | D20: =SUMPRODUCT((VolRates[BeginDate]<=$B20)*(VolRates[EndDate]>$B20)*(VolRates[CustClass]=$E$8)*VolRates[VolRate]) -> 0.21748 | E20: 57173.51
B21: 45444 | C21: =SUMPRODUCT((SouthCycles[MonthFlow]=B21)*(SouthCycles[CustClass]=$E$8)*SouthCycles[WNAFactor]) -> 182214.1367 | D21: =SUMPRODUCT((VolRates[BeginDate]<=$B21)*(VolRates[EndDate]>$B21)*(VolRates[CustClass]=$E$8)*VolRates[VolRate]) -> 0.21748 | E21: 39627.93
B22: 45474 | C22: =SUMPRODUCT((SouthCycles[MonthFlow]=B22)*(SouthCycles[CustClass]=$E$8)*SouthCycles[WNAFactor]) -> 0 | D22: =SUMPRODUCT((VolRates[BeginDate]<=$B22)*(VolRates[EndDate]>$B22)*(VolRates[CustClass]=$E$8)*VolRates[VolRate]) -> 0.21748 | E22: 0
B23: =EDATE(B22,1) -> 45505 | C23: =SUMPRODUCT((SouthCycles[MonthFlow]=B23)*(SouthCycles[CustClass]=$E$8)*SouthCycles[WNAFactor]) -> 0 | D23: =SUMPRODUCT((VolRates[BeginDate]<=$B23)*(VolRates[EndDate]>$B23)*(VolRates[CustClass]=$E$8)*VolRates[VolRate]) -> 0.21748 | E23: 0
B24: Totals | C24: =SUM(C12:C23) -> 2339441.534 | D24: =D23 -> 0.21748 | E24: =SUM(E12:E23) -> 508781.75
B25: Recon Period Adj. | C25: =E24 -> 508781.75
B26: Enter in Reconciling Period Adjustment Table (ReconPerAdj)
B27: Enter WNA Amounts in Column C in CAWNA Amounts Table
B29: Rate Category | C29: EGGC_SGS | D29: Cust Class | E29: =INDEX(RateCat[CustClass],MATCH(C29,RateCat[RateCategory],0)) -> Comm
B30: WNA factor = HDD Diff * No. of Bills * Beta Coefficient (See South Cycles)
B31: MonthFlow | C31: WNA Factor | D31: WRVR | E31: WNAi
D32: Vol. Rate | E32: c*d
B33: =$C$6 -> 45170 | C33: =SUMPRODUCT((SouthCycles[MonthFlow]=B33)*(SouthCycles[CustClass]=$E$29)*SouthCycles[WNAFactor]) -> 16219.21641 | D33: =SUMPRODUCT((VolRates[BeginDate]<=$B33)*(VolRates[EndDate]>$B33)*(VolRates[CustClass]=$E$29)*VolRates[VolRate]) -> 0.26033 | E33: =IF(OR(MONTH(B33)=7,MONTH(B33)=8),0,ROUND(C33*D33,2)) -> 4222.35
B34: =EDATE(B33,1) -> 45200 | C34: =SUMPRODUCT((SouthCycles[MonthFlow]=B34)*(SouthCycles[CustClass]=$E$29)*SouthCycles[WNAFactor]) -> 68068.99696 | D34: =SUMPRODUCT((VolRates[BeginDate]<=$B34)*(VolRates[EndDate]>$B34)*(VolRates[CustClass]=$E$29)*VolRates[VolRate]) -> 0.26033 | E34: =IF(OR(MONTH(B34)=7,MONTH(B34)=8),0,ROUND(C34*D34,2)) -> 17720.4
B35: =EDATE(B34,1) -> 45231 | C35: =SUMPRODUCT((SouthCycles[MonthFlow]=B35)*(SouthCycles[CustClass]=$E$29)*SouthCycles[WNAFactor]) -> -893.5699521 | D35: =SUMPRODUCT((VolRates[BeginDate]<=$B35)*(VolRates[EndDate]>$B35)*(VolRates[CustClass]=$E$29)*VolRates[VolRate]) -> 0.26033 | E35: -232.62
B36: =EDATE(B35,1) -> 45261 | C36: =SUMPRODUCT((SouthCycles[MonthFlow]=B36)*(SouthCycles[CustClass]=$E$29)*SouthCycles[WNAFactor]) -> 173771.0039 | D36: =SUMPRODUCT((VolRates[BeginDate]<=$B36)*(VolRates[EndDate]>$B36)*(VolRates[CustClass]=$E$29)*VolRates[VolRate]) -> 0.26033 | E36: 45237.81
B37: =EDATE(B36,1) -> 45292 | C37: =SUMPRODUCT((SouthCycles[MonthFlow]=B37)*(SouthCycles[CustClass]=$E$29)*SouthCycles[WNAFactor]) -> -93202.46051 | D37: =SUMPRODUCT((VolRates[BeginDate]<=$B37)*(VolRates[EndDate]>$B37)*(VolRates[CustClass]=$E$29)*VolRates[VolRate]) -> 0.26033 | E37: -24263.4
B38: =EDATE(B37,1) -> 45323 | C38: =SUMPRODUCT((SouthCycles[MonthFlow]=B38)*(SouthCycles[CustClass]=$E$29)*SouthCycles[WNAFactor]) -> 267474.7835 | D38: =SUMPRODUCT((VolRates[BeginDate]<=$B38)*(VolRates[EndDate]>$B38)*(VolRates[CustClass]=$E$29)*VolRates[VolRate]) -> 0.26033 | E38: 69631.71
B39: =EDATE(B38,1) -> 45352 | C39: =SUMPRODUCT((SouthCycles[MonthFlow]=B39)*(SouthCycles[CustClass]=$E$29)*SouthCycles[WNAFactor]) -> 34353.97977 | D39: =SUMPRODUCT((VolRates[BeginDate]<=$B39)*(VolRates[EndDate]>$B39)*(VolRates[CustClass]=$E$29)*VolRates[VolRate]) -> 0.26033 | E39: 8943.37
B40: 45383 | C40: =SUMPRODUCT((SouthCycles[MonthFlow]=B40)*(SouthCycles[CustClass]=$E$29)*SouthCycles[WNAFactor]) -> 5413.970602 | D40: =SUMPRODUCT((VolRates[BeginDate]<=$B40)*(VolRates[EndDate]>$B40)*(VolRates[CustClass]=$E$29)*VolRates[VolRate]) -> 0.26033 | E40: 1409.42
B41: 45413 | C41: =SUMPRODUCT((SouthCycles[MonthFlow]=B41)*(SouthCycles[CustClass]=$E$29)*SouthCycles[WNAFactor]) -> 67436.31927 | D41: =SUMPRODUCT((VolRates[BeginDate]<=$B41)*(VolRates[EndDate]>$B41)*(VolRates[CustClass]=$E$29)*VolRates[VolRate]) -> 0.26033 | E41: 17555.7
B42: 45444 | C42: =SUMPRODUCT((SouthCycles[MonthFlow]=B42)*(SouthCycles[CustClass]=$E$29)*SouthCycles[WNAFactor]) -> 37870.26645 | D42: =SUMPRODUCT((VolRates[BeginDate]<=$B42)*(VolRates[EndDate]>$B42)*(VolRates[CustClass]=$E$29)*VolRates[VolRate]) -> 0.26033 | E42: 9858.77
B43: 45474 | C43: =SUMPRODUCT((SouthCycles[MonthFlow]=B43)*(SouthCycles[CustClass]=$E$29)*SouthCycles[WNAFactor]) -> 0 | D43: =SUMPRODUCT((VolRates[BeginDate]<=$B43)*(VolRates[EndDate]>$B43)*(VolRates[CustClass]=$E$29)*VolRates[VolRate]) -> 0.26033 | E43: 0
B44: =EDATE(B43,1) -> 45505 | C44: =SUMPRODUCT((SouthCycles[MonthFlow]=B44)*(SouthCycles[CustClass]=$E$29)*SouthCycles[WNAFactor]) -> 0 | D44: =SUMPRODUCT((VolRates[BeginDate]<=$B44)*(VolRates[EndDate]>$B44)*(VolRates[CustClass]=$E$29)*VolRates[VolRate]) -> 0.26033 | E44: 0
B45: Totals | C45: =SUM(C33:C44) -> 576512.5064 | D45: =D44 -> 0.26033 | E45: =SUM(E33:E44) -> 150083.51
B46: Recon Period Adj. | C46: =E45 -> 150083.51
B47: Enter in Reconciling Period Adjustment Table (ReconPerAdj)
B48: Enter WNA Amounts in Column C in CAWNA Amounts Table

Sheet North Cycles
A1: MonthFlow | B1: MonthBill | C1: RateCategory | D1: Cycle | E1: NoOfBills | F1: BegRdDate | G1: EndRdDate | H1: NDD | I1: ADD | J1: HDDDiff | K1: Diff*NoOfBills | L1: BetaCoeff | M1: WNAFactor | N1: CustClass | O1: Preparer's Notes | P1: Reviewer's Notes
A2: 44805 | B2: =EDATE(NorthCycles[[#This Row],[MonthFlow]],1) -> 44835 | C2: ENGC_SGS | D2: All | E2: 1128 | F2: 44802 | G2: 44833 | H2: =SUMPRODUCT((KCITempAct[Date]>=NorthCycles[[#This Row],[BegRdDate]])*(KCITempAct[Date]<NorthCycles[[#This Row],[EndRdDate]])*KCITempAct[KCINHDDAdj]) -> 45.1 | I2: =SUMPRODUCT((KCITempAct[Date]>=NorthCycles[[#This Row],[BegRdDate]])*(KCITempAct[Date]<NorthCycles[[#This Row],[EndRdDate]])*KCITempAct[KCIHDDAdj]) -> 17.5 | J2: =NorthCycles[[#This Row],[NDD]]-NorthCycles[[#This Row],[ADD]] -> 27.6 | K2: =NorthCycles[[#This Row],[HDDDiff]]*NorthCycles[[#This Row],[NoOfBills]] -> 31132.8 | L2: =SUMPRODUCT((BetaCoeff[BeginDate]<=NorthCycles[[#This Row],[MonthFlow]])*(BetaCoeff[EndDate]>NorthCycles[[#This Row],[MonthFlow]])*(BetaCoeff[CustClass]=NorthCycles[[#This Row],[CustClass]])*BetaCoeff[BetaCoeff]) -> 0.2793279 | M2: =NorthCycles[[#This Row],[Diff*NoOfBills]]*NorthCycles[[#This Row],[BetaCoeff]] -> 8696.259645 | N2: =INDEX(RateCat[CustClass],MATCH(NorthCycles[[#This Row],[RateCategory]],RateCat[RateCategory],0)) -> Comm | O2: Customer count from Revenue Dept.
A3: 44805 | B3: =EDATE(NorthCycles[[#This Row],[MonthFlow]],1) -> 44835 | C3: ENGR_RS | D3: All | E3: 7912 | F3: 44802 | G3: 44833 | H3: =SUMPRODUCT((KCITempAct[Date]>=NorthCycles[[#This Row],[BegRdDate]])*(KCITempAct[Date]<NorthCycles[[#This Row],[EndRdDate]])*KCITempAct[KCINHDDAdj]) -> 45.1 | I3: =SUMPRODUCT((KCITempAct[Date]>=NorthCycles[[#This Row],[BegRdDate]])*(KCITempAct[Date]<NorthCycles[[#This Row],[EndRdDate]])*KCITempAct[KCIHDDAdj]) -> 17.5 | J3: =NorthCycles[[#This Row],[NDD]]-NorthCycles[[#This Row],[ADD]] -> 27.6 | K3: =NorthCycles[[#This Row],[HDDDiff]]*NorthCycles[[#This Row],[NoOfBills]] -> 218371.2 | L3: =SUMPRODUCT((BetaCoeff[BeginDate]<=NorthCycles[[#This Row],[MonthFlow]])*(BetaCoeff[EndDate]>NorthCycles[[#This Row],[MonthFlow]])*(BetaCoeff[CustClass]=NorthCycles[[#This Row],[CustClass]])*BetaCoeff[BetaCoeff]) -> 0.1234365 | M3: =NorthCycles[[#This Row],[Diff*NoOfBills]]*NorthCycles[[#This Row],[BetaCoeff]] -> 26954.97663 | N3: =INDEX(RateCat[CustClass],MATCH(NorthCycles[[#This Row],[RateCategory]],RateCat[RateCategory],0)) -> Res | O3: Customer count from Revenue Dept.
A4: 44835 | B4: =EDATE(NorthCycles[[#This Row],[MonthFlow]],1) -> 44866 | C4: ENGC_SGS | D4: All | E4: 1138 | F4: 44833 | G4: 44865 | H4: =SUMPRODUCT((KCITempAct[Date]>=NorthCycles[[#This Row],[BegRdDate]])*(KCITempAct[Date]<NorthCycles[[#This Row],[EndRdDate]])*KCITempAct[KCINHDDAdj]) -> 282.1333333 | I4: =SUMPRODUCT((KCITempAct[Date]>=NorthCycles[[#This Row],[BegRdDate]])*(KCITempAct[Date]<NorthCycles[[#This Row],[EndRdDate]])*KCITempAct[KCIHDDAdj]) -> 234.5 | J4: =NorthCycles[[#This Row],[NDD]]-NorthCycles[[#This Row],[ADD]] -> 47.63333333 | K4: =NorthCycles[[#This Row],[HDDDiff]]*NorthCycles[[#This Row],[NoOfBills]] -> 54206.73333 | L4: =SUMPRODUCT((BetaCoeff[BeginDate]<=NorthCycles[[#This Row],[MonthFlow]])*(BetaCoeff[EndDate]>NorthCycles[[#This Row],[MonthFlow]])*(BetaCoeff[CustClass]=NorthCycles[[#This Row],[CustClass]])*BetaCoeff[BetaCoeff]) -> 0.2793279 | M4: =NorthCycles[[#This Row],[Diff*NoOfBills]]*NorthCycles[[#This Row],[BetaCoeff]] -> 15141.45299 | N4: =INDEX(RateCat[CustClass],MATCH(NorthCycles[[#This Row],[RateCategory]],RateCat[RateCategory],0)) -> Comm | O4: Customer count from Revenue Dept.
A5: 44835 | B5: =EDATE(NorthCycles[[#This Row],[MonthFlow]],1) -> 44866 | C5: ENGR_RS | D5: All | E5: 8077 | F5: 44833 | G5: 44865 | H5: =SUMPRODUCT((KCITempAct[Date]>=NorthCycles[[#This Row],[BegRdDate]])*(KCITempAct[Date]<NorthCycles[[#This Row],[EndRdDate]])*KCITempAct[KCINHDDAdj]) -> 282.1333333 | I5: =SUMPRODUCT((KCITempAct[Date]>=NorthCycles[[#This Row],[BegRdDate]])*(KCITempAct[Date]<NorthCycles[[#This Row],[EndRdDate]])*KCITempAct[KCIHDDAdj]) -> 234.5 | J5: =NorthCycles[[#This Row],[NDD]]-NorthCycles[[#This Row],[ADD]] -> 47.63333333 | K5: =NorthCycles[[#This Row],[HDDDiff]]*NorthCycles[[#This Row],[NoOfBills]] -> 384734.4333 | L5: =SUMPRODUCT((BetaCoeff[BeginDate]<=NorthCycles[[#This Row],[MonthFlow]])*(BetaCoeff[EndDate]>NorthCycles[[#This Row],[MonthFlow]])*(BetaCoeff[CustClass]=NorthCycles[[#This Row],[CustClass]])*BetaCoeff[BetaCoeff]) -> 0.1234365 | M5: =NorthCycles[[#This Row],[Diff*NoOfBills]]*NorthCycles[[#This Row],[BetaCoeff]] -> 47490.27188 | N5: =INDEX(RateCat[CustClass],MATCH(NorthCycles[[#This Row],[RateCategory]],RateCat[RateCategory],0)) -> Res | O5: Customer count from Revenue Dept.
A6: 44866 | B6: =EDATE(NorthCycles[[#This Row],[MonthFlow]],1) -> 44896 | C6: ENGC_SGS | D6: All | E6: 1146 | F6: 44865 | G6: 44893 | H6: =SUMPRODUCT((KCITempAct[Date]>=NorthCycles[[#This Row],[BegRdDate]])*(KCITempAct[Date]<NorthCycles[[#This Row],[EndRdDate]])*KCITempAct[KCINHDDAdj]) -> 576.7333333 | I6: =SUMPRODUCT((KCITempAct[Date]>=NorthCycles[[#This Row],[BegRdDate]])*(KCITempAct[Date]<NorthCycles[[#This Row],[EndRdDate]])*KCITempAct[KCIHDDAdj]) -> 566 | J6: =NorthCycles[[#This Row],[NDD]]-NorthCycles[[#This Row],[ADD]] -> 10.73333333 | K6: =NorthCycles[[#This Row],[HDDDiff]]*NorthCycles[[#This Row],[NoOfBills]] -> 12300.4 | L6: =SUMPRODUCT((BetaCoeff[BeginDate]<=NorthCycles[[#This Row],[MonthFlow]])*(BetaCoeff[EndDate]>NorthCycles[[#This Row],[MonthFlow]])*(BetaCoeff[CustClass]=NorthCycles[[#This Row],[CustClass]])*BetaCoeff[BetaCoeff]) -> 0.2793279 | M6: =NorthCycles[[#This Row],[Diff*NoOfBills]]*NorthCycles[[#This Row],[BetaCoeff]] -> 3435.844901 | N6: =INDEX(RateCat[CustClass],MATCH(NorthCycles[[#This Row],[RateCategory]],RateCat[RateCategory],0)) -> Comm | O6: Customer count from Revenue Dept.
A7: 44866 | B7: =EDATE(NorthCycles[[#This Row],[MonthFlow]],1) -> 44896 | C7: ENGR_RS | D7: All | E7: 8147 | F7: 44865 | G7: 44893 | H7: =SUMPRODUCT((KCITempAct[Date]>=NorthCycles[[#This Row],[BegRdDate]])*(KCITempAct[Date]<NorthCycles[[#This Row],[EndRdDate]])*KCITempAct[KCINHDDAdj]) -> 576.7333333 | I7: =SUMPRODUCT((KCITempAct[Date]>=NorthCycles[[#This Row],[BegRdDate]])*(KCITempAct[Date]<NorthCycles[[#This Row],[EndRdDate]])*KCITempAct[KCIHDDAdj]) -> 566 | J7: =NorthCycles[[#This Row],[NDD]]-NorthCycles[[#This Row],[ADD]] -> 10.73333333 | K7: =NorthCycles[[#This Row],[HDDDiff]]*NorthCycles[[#This Row],[NoOfBills]] -> 87444.46667 | L7: =SUMPRODUCT((BetaCoeff[BeginDate]<=NorthCycles[[#This Row],[MonthFlow]])*(BetaCoeff[EndDate]>NorthCycles[[#This Row],[MonthFlow]])*(BetaCoeff[CustClass]=NorthCycles[[#This Row],[CustClass]])*BetaCoeff[BetaCoeff]) -> 0.1234365 | M7: =NorthCycles[[#This Row],[Diff*NoOfBills]]*NorthCycles[[#This Row],[BetaCoeff]] -> 10793.83891 | N7: =INDEX(RateCat[CustClass],MATCH(NorthCycles[[#This Row],[RateCategory]],RateCat[RateCategory],0)) -> Res | O7: Customer count from Revenue Dept.
A8: 44896 | B8: =EDATE(NorthCycles[[#This Row],[MonthFlow]],1) -> 44927 | C8: ENGC_SGS | D8: All | E8: 1143 | F8: 44893 | G8: 44923 | H8: =SUMPRODUCT((KCITempAct[Date]>=NorthCycles[[#This Row],[BegRdDate]])*(KCITempAct[Date]<NorthCycles[[#This Row],[EndRdDate]])*KCITempAct[KCINHDDAdj]) -> 928.1666667 | I8: =SUMPRODUCT((KCITempAct[Date]>=NorthCycles[[#This Row],[BegRdDate]])*(KCITempAct[Date]<NorthCycles[[#This Row],[EndRdDate]])*KCITempAct[KCIHDDAdj]) -> 998.5 | J8: =NorthCycles[[#This Row],[NDD]]-NorthCycles[[#This Row],[ADD]] -> -70.33333333 | K8: =NorthCycles[[#This Row],[HDDDiff]]*NorthCycles[[#This Row],[NoOfBills]] -> -80391 | L8: =SUMPRODUCT((BetaCoeff[BeginDate]<=NorthCycles[[#This Row],[MonthFlow]])*(BetaCoeff[EndDate]>NorthCycles[[#This Row],[MonthFlow]])*(BetaCoeff[CustClass]=NorthCycles[[#This Row],[CustClass]])*BetaCoeff[BetaCoeff]) -> 0.2793279 | M8: =NorthCycles[[#This Row],[Diff*NoOfBills]]*NorthCycles[[#This Row],[BetaCoeff]] -> -22455.44921 | N8: =INDEX(RateCat[CustClass],MATCH(NorthCycles[[#This Row],[RateCategory]],RateCat[RateCategory],0)) -> Comm | O8: Customer count from Revenue Dept.
A9: 44896 | B9: =EDATE(NorthCycles[[#This Row],[MonthFlow]],1) -> 44927 | C9: ENGR_RS | D9: All | E9: 8157 | F9: 44893 | G9: 44923 | H9: =SUMPRODUCT((KCITempAct[Date]>=NorthCycles[[#This Row],[BegRdDate]])*(KCITempAct[Date]<NorthCycles[[#This Row],[EndRdDate]])*KCITempAct[KCINHDDAdj]) -> 928.1666667 | I9: =SUMPRODUCT((KCITempAct[Date]>=NorthCycles[[#This Row],[BegRdDate]])*(KCITempAct[Date]<NorthCycles[[#This Row],[EndRdDate]])*KCITempAct[KCIHDDAdj]) -> 998.5 | J9: =NorthCycles[[#This Row],[NDD]]-NorthCycles[[#This Row],[ADD]] -> -70.33333333 | K9: =NorthCycles[[#This Row],[HDDDiff]]*NorthCycles[[#This Row],[NoOfBills]] -> -573709 | L9: =SUMPRODUCT((BetaCoeff[BeginDate]<=NorthCycles[[#This Row],[MonthFlow]])*(BetaCoeff[EndDate]>NorthCycles[[#This Row],[MonthFlow]])*(BetaCoeff[CustClass]=NorthCycles[[#This Row],[CustClass]])*BetaCoeff[BetaCoeff]) -> 0.1234365 | M9: =NorthCycles[[#This Row],[Diff*NoOfBills]]*NorthCycles[[#This Row],[BetaCoeff]] -> -70816.63098 | N9: =INDEX(RateCat[CustClass],MATCH(NorthCycles[[#This Row],[RateCategory]],RateCat[RateCategory],0)) -> Res | O9: Customer count from Revenue Dept.
A10: 44927 | B10: =EDATE(NorthCycles[[#This Row],[MonthFlow]],1) -> 44958 | C10: ENGC_SGS | D10: All | E10: 1143 | F10: 44923 | G10: 44953 | H10: =SUMPRODUCT((KCITempAct[Date]>=NorthCycles[[#This Row],[BegRdDate]])*(KCITempAct[Date]<NorthCycles[[#This Row],[EndRdDate]])*KCITempAct[KCINHDDAdj]) -> 1065.583333 | I10: =SUMPRODUCT((KCITempAct[Date]>=NorthCycles[[#This Row],[BegRdDate]])*(KCITempAct[Date]<NorthCycles[[#This Row],[EndRdDate]])*KCITempAct[KCIHDDAdj]) -> 771 | J10: =NorthCycles[[#This Row],[NDD]]-NorthCycles[[#This Row],[ADD]] -> 294.5833333 | K10: =NorthCycles[[#This Row],[HDDDiff]]*NorthCycles[[#This Row],[NoOfBills]] -> 336708.75 | L10: =SUMPRODUCT((BetaCoeff[BeginDate]<=NorthCycles[[#This Row],[MonthFlow]])*(BetaCoeff[EndDate]>NorthCycles[[#This Row],[MonthFlow]])*(BetaCoeff[CustClass]=NorthCycles[[#This Row],[CustClass]])*BetaCoeff[BetaCoeff]) -> 0.2793279 | M10: =NorthCycles[[#This Row],[Diff*NoOfBills]]*NorthCycles[[#This Row],[BetaCoeff]] -> 94052.14805 | N10: =INDEX(RateCat[CustClass],MATCH(NorthCycles[[#This Row],[RateCategory]],RateCat[RateCategory],0)) -> Comm | O10: Customer count from Revenue Dept.
A11: 44927 | B11: =EDATE(NorthCycles[[#This Row],[MonthFlow]],1) -> 44958 | C11: ENGR_RS | D11: All | E11: 8162 | F11: 44923 | G11: 44953 | H11: =SUMPRODUCT((KCITempAct[Date]>=NorthCycles[[#This Row],[BegRdDate]])*(KCITempAct[Date]<NorthCycles[[#This Row],[EndRdDate]])*KCITempAct[KCINHDDAdj]) -> 1065.583333 | I11: =SUMPRODUCT((KCITempAct[Date]>=NorthCycles[[#This Row],[BegRdDate]])*(KCITempAct[Date]<NorthCycles[[#This Row],[EndRdDate]])*KCITempAct[KCIHDDAdj]) -> 771 | J11: =NorthCycles[[#This Row],[NDD]]-NorthCycles[[#This Row],[ADD]] -> 294.5833333 | K11: =NorthCycles[[#This Row],[HDDDiff]]*NorthCycles[[#This Row],[NoOfBills]] -> 2404389.167 | L11: =SUMPRODUCT((BetaCoeff[BeginDate]<=NorthCycles[[#This Row],[MonthFlow]])*(BetaCoeff[EndDate]>NorthCycles[[#This Row],[MonthFlow]])*(BetaCoeff[CustClass]=NorthCycles[[#This Row],[CustClass]])*BetaCoeff[BetaCoeff]) -> 0.1234365 | M11: =NorthCycles[[#This Row],[Diff*NoOfBills]]*NorthCycles[[#This Row],[BetaCoeff]] -> 296789.3834 | N11: =INDEX(RateCat[CustClass],MATCH(NorthCycles[[#This Row],[RateCategory]],RateCat[RateCategory],0)) -> Res | O11: Customer count from Revenue Dept.
A12: 44958 | B12: =EDATE(NorthCycles[[#This Row],[MonthFlow]],1) -> 44986 | C12: ENGC_SGS | D12: All | E12: 1139 | F12: 44953 | G12: 44983 | H12: =SUMPRODUCT((KCITempAct[Date]>=NorthCycles[[#This Row],[BegRdDate]])*(KCITempAct[Date]<NorthCycles[[#This Row],[EndRdDate]])*KCITempAct[KCINHDDAdj]) -> 971.7833333 | I12: =SUMPRODUCT((KCITempAct[Date]>=NorthCycles[[#This Row],[BegRdDate]])*(KCITempAct[Date]<NorthCycles[[#This Row],[EndRdDate]])*KCITempAct[KCIHDDAdj]) -> 909 | J12: =NorthCycles[[#This Row],[NDD]]-NorthCycles[[#This Row],[ADD]] -> 62.78333333 | K12: =NorthCycles[[#This Row],[HDDDiff]]*NorthCycles[[#This Row],[NoOfBills]] -> 71510.21667 | L12: =SUMPRODUCT((BetaCoeff[BeginDate]<=NorthCycles[[#This Row],[MonthFlow]])*(BetaCoeff[EndDate]>NorthCycles[[#This Row],[MonthFlow]])*(BetaCoeff[CustClass]=NorthCycles[[#This Row],[CustClass]])*BetaCoeff[BetaCoeff]) -> 0.2793279 | M12: =NorthCycles[[#This Row],[Diff*NoOfBills]]*NorthCycles[[#This Row],[BetaCoeff]] -> 19974.79865 | N12: =INDEX(RateCat[CustClass],MATCH(NorthCycles[[#This Row],[RateCategory]],RateCat[RateCategory],0)) -> Comm | O12: Customer count from Revenue Dept.
A13: 44958 | B13: =EDATE(NorthCycles[[#This Row],[MonthFlow]],1) -> 44986 | C13: ENGR_RS | D13: All | E13: 8155 | F13: 44953 | G13: 44983 | H13: =SUMPRODUCT((KCITempAct[Date]>=NorthCycles[[#This Row],[BegRdDate]])*(KCITempAct[Date]<NorthCycles[[#This Row],[EndRdDate]])*KCITempAct[KCINHDDAdj]) -> 971.7833333 | I13: =SUMPRODUCT((KCITempAct[Date]>=NorthCycles[[#This Row],[BegRdDate]])*(KCITempAct[Date]<NorthCycles[[#This Row],[EndRdDate]])*KCITempAct[KCIHDDAdj]) -> 909 | J13: =NorthCycles[[#This Row],[NDD]]-NorthCycles[[#This Row],[ADD]] -> 62.78333333 | K13: =NorthCycles[[#This Row],[HDDDiff]]*NorthCycles[[#This Row],[NoOfBills]] -> 511998.0833 | L13: =SUMPRODUCT((BetaCoeff[BeginDate]<=NorthCycles[[#This Row],[MonthFlow]])*(BetaCoeff[EndDate]>NorthCycles[[#This Row],[MonthFlow]])*(BetaCoeff[CustClass]=NorthCycles[[#This Row],[CustClass]])*BetaCoeff[BetaCoeff]) -> 0.1234365 | M13: =NorthCycles[[#This Row],[Diff*NoOfBills]]*NorthCycles[[#This Row],[BetaCoeff]] -> 63199.25141 | N13: =INDEX(RateCat[CustClass],MATCH(NorthCycles[[#This Row],[RateCategory]],RateCat[RateCategory],0)) -> Res | O13: Customer count from Revenue Dept.
A14: 44986 | B14: =EDATE(NorthCycles[[#This Row],[MonthFlow]],1) -> 45017 | C14: ENGC_SGS | D14: All | E14: 1136 | F14: 44983 | G14: 45014 | H14: =SUMPRODUCT((KCITempAct[Date]>=NorthCycles[[#This Row],[BegRdDate]])*(KCITempAct[Date]<NorthCycles[[#This Row],[EndRdDate]])*KCITempAct[KCINHDDAdj]) -> 675.5833333 | I14: =SUMPRODUCT((KCITempAct[Date]>=NorthCycles[[#This Row],[BegRdDate]])*(KCITempAct[Date]<NorthCycles[[#This Row],[EndRdDate]])*KCITempAct[KCIHDDAdj]) -> 727 | J14: =NorthCycles[[#This Row],[NDD]]-NorthCycles[[#This Row],[ADD]] -> -51.41666667 | K14: =NorthCycles[[#This Row],[HDDDiff]]*NorthCycles[[#This Row],[NoOfBills]] -> -58409.33333 | L14: =SUMPRODUCT((BetaCoeff[BeginDate]<=NorthCycles[[#This Row],[MonthFlow]])*(BetaCoeff[EndDate]>NorthCycles[[#This Row],[MonthFlow]])*(BetaCoeff[CustClass]=NorthCycles[[#This Row],[CustClass]])*BetaCoeff[BetaCoeff]) -> 0.2793279 | M14: =NorthCycles[[#This Row],[Diff*NoOfBills]]*NorthCycles[[#This Row],[BetaCoeff]] -> -16315.35642 | N14: =INDEX(RateCat[CustClass],MATCH(NorthCycles[[#This Row],[RateCategory]],RateCat[RateCategory],0)) -> Comm | O14: Customer count from Revenue Dept.
A15: 44986 | B15: =EDATE(NorthCycles[[#This Row],[MonthFlow]],1) -> 45017 | C15: ENGR_RS | D15: All | E15: 8052 | F15: 44983 | G15: 45014 | H15: =SUMPRODUCT((KCITempAct[Date]>=NorthCycles[[#This Row],[BegRdDate]])*(KCITempAct[Date]<NorthCycles[[#This Row],[EndRdDate]])*KCITempAct[KCINHDDAdj]) -> 675.5833333 | I15: =SUMPRODUCT((KCITempAct[Date]>=NorthCycles[[#This Row],[BegRdDate]])*(KCITempAct[Date]<NorthCycles[[#This Row],[EndRdDate]])*KCITempAct[KCIHDDAdj]) -> 727 | J15: =NorthCycles[[#This Row],[NDD]]-NorthCycles[[#This Row],[ADD]] -> -51.41666667 | K15: =NorthCycles[[#This Row],[HDDDiff]]*NorthCycles[[#This Row],[NoOfBills]] -> -414007 | L15: =SUMPRODUCT((BetaCoeff[BeginDate]<=NorthCycles[[#This Row],[MonthFlow]])*(BetaCoeff[EndDate]>NorthCycles[[#This Row],[MonthFlow]])*(BetaCoeff[CustClass]=NorthCycles[[#This Row],[CustClass]])*BetaCoeff[BetaCoeff]) -> 0.1234365 | M15: =NorthCycles[[#This Row],[Diff*NoOfBills]]*NorthCycles[[#This Row],[BetaCoeff]] -> -51103.57506 | N15: =INDEX(RateCat[CustClass],MATCH(NorthCycles[[#This Row],[RateCategory]],RateCat[RateCategory],0)) -> Res | O15: Customer count from Revenue Dept.
A16: 45017 | B16: =EDATE(NorthCycles[[#This Row],[MonthFlow]],1) -> 45047 | C16: ENGC_SGS | D16: All | E16: 1128 | F16: 45014 | G16: 45044 | H16: =SUMPRODUCT((KCITempAct[Date]>=NorthCycles[[#This Row],[BegRdDate]])*(KCITempAct[Date]<NorthCycles[[#This Row],[EndRdDate]])*KCITempAct[KCINHDDAdj]) -> 346.7 | I16: =SUMPRODUCT((KCITempAct[Date]>=NorthCycles[[#This Row],[BegRdDate]])*(KCITempAct[Date]<NorthCycles[[#This Row],[EndRdDate]])*KCITempAct[KCIHDDAdj]) -> 307 | J16: =NorthCycles[[#This Row],[NDD]]-NorthCycles[[#This Row],[ADD]] -> 39.7 | K16: =NorthCycles[[#This Row],[HDDDiff]]*NorthCycles[[#This Row],[NoOfBills]] -> 44781.6 | L16: =SUMPRODUCT((BetaCoeff[BeginDate]<=NorthCycles[[#This Row],[MonthFlow]])*(BetaCoeff[EndDate]>NorthCycles[[#This Row],[MonthFlow]])*(BetaCoeff[CustClass]=NorthCycles[[#This Row],[CustClass]])*BetaCoeff[BetaCoeff]) -> 0.2793279 | M16: =NorthCycles[[#This Row],[Diff*NoOfBills]]*NorthCycles[[#This Row],[BetaCoeff]] -> 12508.75029 | N16: =INDEX(RateCat[CustClass],MATCH(NorthCycles[[#This Row],[RateCategory]],RateCat[RateCategory],0)) -> Comm | O16: Customer count from Revenue Dept.
A17: 45017 | B17: =EDATE(NorthCycles[[#This Row],[MonthFlow]],1) -> 45047 | C17: ENGR_RS | D17: All | E17: 7976 | F17: 45014 | G17: 45044 | H17: =SUMPRODUCT((KCITempAct[Date]>=NorthCycles[[#This Row],[BegRdDate]])*(KCITempAct[Date]<NorthCycles[[#This Row],[EndRdDate]])*KCITempAct[KCINHDDAdj]) -> 346.7 | I17: =SUMPRODUCT((KCITempAct[Date]>=NorthCycles[[#This Row],[BegRdDate]])*(KCITempAct[Date]<NorthCycles[[#This Row],[EndRdDate]])*KCITempAct[KCIHDDAdj]) -> 307 | J17: =NorthCycles[[#This Row],[NDD]]-NorthCycles[[#This Row],[ADD]] -> 39.7 | K17: =NorthCycles[[#This Row],[HDDDiff]]*NorthCycles[[#This Row],[NoOfBills]] -> 316647.2 | L17: =SUMPRODUCT((BetaCoeff[BeginDate]<=NorthCycles[[#This Row],[MonthFlow]])*(BetaCoeff[EndDate]>NorthCycles[[#This Row],[MonthFlow]])*(BetaCoeff[CustClass]=NorthCycles[[#This Row],[CustClass]])*BetaCoeff[BetaCoeff]) -> 0.1234365 | M17: =NorthCycles[[#This Row],[Diff*NoOfBills]]*NorthCycles[[#This Row],[BetaCoeff]] -> 39085.8221 | N17: =INDEX(RateCat[CustClass],MATCH(NorthCycles[[#This Row],[RateCategory]],RateCat[RateCategory],0)) -> Res | O17: Customer count from Revenue Dept.
A18: 45047 | B18: =EDATE(NorthCycles[[#This Row],[MonthFlow]],1) -> 45078 | C18: ENGC_SGS | D18: All | E18: 1119 | F18: 45044 | G18: 45076 | H18: =SUMPRODUCT((KCITempAct[Date]>=NorthCycles[[#This Row],[BegRdDate]])*(KCITempAct[Date]<NorthCycles[[#This Row],[EndRdDate]])*KCITempAct[KCINHDDAdj]) -> 129.0166667 | I18: =SUMPRODUCT((KCITempAct[Date]>=NorthCycles[[#This Row],[BegRdDate]])*(KCITempAct[Date]<NorthCycles[[#This Row],[EndRdDate]])*KCITempAct[KCIHDDAdj]) -> 87 | J18: =NorthCycles[[#This Row],[NDD]]-NorthCycles[[#This Row],[ADD]] -> 42.01666667 | K18: =NorthCycles[[#This Row],[HDDDiff]]*NorthCycles[[#This Row],[NoOfBills]] -> 47016.65 | L18: =SUMPRODUCT((BetaCoeff[BeginDate]<=NorthCycles[[#This Row],[MonthFlow]])*(BetaCoeff[EndDate]>NorthCycles[[#This Row],[MonthFlow]])*(BetaCoeff[CustClass]=NorthCycles[[#This Row],[CustClass]])*BetaCoeff[BetaCoeff]) -> 0.2793279 | M18: =NorthCycles[[#This Row],[Diff*NoOfBills]]*NorthCycles[[#This Row],[BetaCoeff]] -> 13133.06211 | N18: =INDEX(RateCat[CustClass],MATCH(NorthCycles[[#This Row],[RateCategory]],RateCat[RateCategory],0)) -> Comm | O18: Customer count from Revenue Dept.
A19: 45047 | B19: =EDATE(NorthCycles[[#This Row],[MonthFlow]],1) -> 45078 | C19: ENGR_RS | D19: All | E19: 7738 | F19: 45044 | G19: 45076 | H19: =SUMPRODUCT((KCITempAct[Date]>=NorthCycles[[#This Row],[BegRdDate]])*(KCITempAct[Date]<NorthCycles[[#This Row],[EndRdDate]])*KCITempAct[KCINHDDAdj]) -> 129.0166667 | I19: =SUMPRODUCT((KCITempAct[Date]>=NorthCycles[[#This Row],[BegRdDate]])*(KCITempAct[Date]<NorthCycles[[#This Row],[EndRdDate]])*KCITempAct[KCIHDDAdj]) -> 87 | J19: =NorthCycles[[#This Row],[NDD]]-NorthCycles[[#This Row],[ADD]] -> 42.01666667 | K19: =NorthCycles[[#This Row],[HDDDiff]]*NorthCycles[[#This Row],[NoOfBills]] -> 325124.9667 | L19: =SUMPRODUCT((BetaCoeff[BeginDate]<=NorthCycles[[#This Row],[MonthFlow]])*(BetaCoeff[EndDate]>NorthCycles[[#This Row],[MonthFlow]])*(BetaCoeff[CustClass]=NorthCycles[[#This Row],[CustClass]])*BetaCoeff[BetaCoeff]) -> 0.1234365 | M19: =NorthCycles[[#This Row],[Diff*NoOfBills]]*NorthCycles[[#This Row],[BetaCoeff]] -> 40132.28795 | N19: =INDEX(RateCat[CustClass],MATCH(NorthCycles[[#This Row],[RateCategory]],RateCat[RateCategory],0)) -> Res | O19: Customer count from Revenue Dept.
A20: 45078 | B20: =EDATE(NorthCycles[[#This Row],[MonthFlow]],1) -> 45108 | C20: ENGC_SGS | D20: All | E20: 1117 | F20: 45076 | G20: 45105 | H20: =SUMPRODUCT((KCITempAct[Date]>=NorthCycles[[#This Row],[BegRdDate]])*(KCITempAct[Date]<NorthCycles[[#This Row],[EndRdDate]])*KCITempAct[KCINHDDAdj]) -> 8.483333333 | I20: =SUMPRODUCT((KCITempAct[Date]>=NorthCycles[[#This Row],[BegRdDate]])*(KCITempAct[Date]<NorthCycles[[#This Row],[EndRdDate]])*KCITempAct[KCIHDDAdj]) -> 2.5 | J20: =NorthCycles[[#This Row],[NDD]]-NorthCycles[[#This Row],[ADD]] -> 5.983333333 | K20: =NorthCycles[[#This Row],[HDDDiff]]*NorthCycles[[#This Row],[NoOfBills]] -> 6683.383333 | L20: =SUMPRODUCT((BetaCoeff[BeginDate]<=NorthCycles[[#This Row],[MonthFlow]])*(BetaCoeff[EndDate]>NorthCycles[[#This Row],[MonthFlow]])*(BetaCoeff[CustClass]=NorthCycles[[#This Row],[CustClass]])*BetaCoeff[BetaCoeff]) -> 0.2793279 | M20: =NorthCycles[[#This Row],[Diff*NoOfBills]]*NorthCycles[[#This Row],[BetaCoeff]] -> 1866.855431 | N20: =INDEX(RateCat[CustClass],MATCH(NorthCycles[[#This Row],[RateCategory]],RateCat[RateCategory],0)) -> Comm | O20: Customer count from Revenue Dept.
A21: 45078 | B21: =EDATE(NorthCycles[[#This Row],[MonthFlow]],1) -> 45108 | C21: ENGR_RS | D21: All | E21: 7699 | F21: 45076 | G21: 45105 | H21: =SUMPRODUCT((KCITempAct[Date]>=NorthCycles[[#This Row],[BegRdDate]])*(KCITempAct[Date]<NorthCycles[[#This Row],[EndRdDate]])*KCITempAct[KCINHDDAdj]) -> 8.483333333 | I21: =SUMPRODUCT((KCITempAct[Date]>=NorthCycles[[#This Row],[BegRdDate]])*(KCITempAct[Date]<NorthCycles[[#This Row],[EndRdDate]])*KCITempAct[KCIHDDAdj]) -> 2.5 | J21: =NorthCycles[[#This Row],[NDD]]-NorthCycles[[#This Row],[ADD]] -> 5.983333333 | K21: =NorthCycles[[#This Row],[HDDDiff]]*NorthCycles[[#This Row],[NoOfBills]] -> 46065.68333 | L21: =SUMPRODUCT((BetaCoeff[BeginDate]<=NorthCycles[[#This Row],[MonthFlow]])*(BetaCoeff[EndDate]>NorthCycles[[#This Row],[MonthFlow]])*(BetaCoeff[CustClass]=NorthCycles[[#This Row],[CustClass]])*BetaCoeff[BetaCoeff]) -> 0.1234365 | M21: =NorthCycles[[#This Row],[Diff*NoOfBills]]*NorthCycles[[#This Row],[BetaCoeff]] -> 5686.186721 | N21: =INDEX(RateCat[CustClass],MATCH(NorthCycles[[#This Row],[RateCategory]],RateCat[RateCategory],0)) -> Res | O21: Customer count from Revenue Dept.
A22: 45108 | B22: =EDATE(NorthCycles[[#This Row],[MonthFlow]],1) -> 45139 | C22: ENGC_SGS | D22: All | E22: 1113 | F22: 45105 | G22: 45132 | H22: =SUMPRODUCT((KCITempAct[Date]>=NorthCycles[[#This Row],[BegRdDate]])*(KCITempAct[Date]<NorthCycles[[#This Row],[EndRdDate]])*KCITempAct[KCINHDDAdj]) -> 0.01666666667 | I22: =SUMPRODUCT((KCITempAct[Date]>=NorthCycles[[#This Row],[BegRdDate]])*(KCITempAct[Date]<NorthCycles[[#This Row],[EndRdDate]])*KCITempAct[KCIHDDAdj]) -> 0 | J22: =NorthCycles[[#This Row],[NDD]]-NorthCycles[[#This Row],[ADD]] -> 0.01666666667 | K22: =NorthCycles[[#This Row],[HDDDiff]]*NorthCycles[[#This Row],[NoOfBills]] -> 18.55 | L22: =SUMPRODUCT((BetaCoeff[BeginDate]<=NorthCycles[[#This Row],[MonthFlow]])*(BetaCoeff[EndDate]>NorthCycles[[#This Row],[MonthFlow]])*(BetaCoeff[CustClass]=NorthCycles[[#This Row],[CustClass]])*BetaCoeff[BetaCoeff]) -> 0.2793279 | M22: =NorthCycles[[#This Row],[Diff*NoOfBills]]*NorthCycles[[#This Row],[BetaCoeff]] -> 5.181532545 | N22: =INDEX(RateCat[CustClass],MATCH(NorthCycles[[#This Row],[RateCategory]],RateCat[RateCategory],0)) -> Comm | O22: Need to update
A23: 45108 | B23: =EDATE(NorthCycles[[#This Row],[MonthFlow]],1) -> 45139 | C23: ENGR_RS | D23: All | E23: 7742 | F23: 45105 | G23: 45132 | H23: =SUMPRODUCT((KCITempAct[Date]>=NorthCycles[[#This Row],[BegRdDate]])*(KCITempAct[Date]<NorthCycles[[#This Row],[EndRdDate]])*KCITempAct[KCINHDDAdj]) -> 0.01666666667 | I23: =SUMPRODUCT((KCITempAct[Date]>=NorthCycles[[#This Row],[BegRdDate]])*(KCITempAct[Date]<NorthCycles[[#This Row],[EndRdDate]])*KCITempAct[KCIHDDAdj]) -> 0 | J23: =NorthCycles[[#This Row],[NDD]]-NorthCycles[[#This Row],[ADD]] -> 0.01666666667 | K23: =NorthCycles[[#This Row],[HDDDiff]]*NorthCycles[[#This Row],[NoOfBills]] -> 129.0333333 | L23: =SUMPRODUCT((BetaCoeff[BeginDate]<=NorthCycles[[#This Row],[MonthFlow]])*(BetaCoeff[EndDate]>NorthCycles[[#This Row],[MonthFlow]])*(BetaCoeff[CustClass]=NorthCycles[[#This Row],[CustClass]])*BetaCoeff[BetaCoeff]) -> 0.1234365 | M23: =NorthCycles[[#This Row],[Diff*NoOfBills]]*NorthCycles[[#This Row],[BetaCoeff]] -> 15.92742305 | N23: =INDEX(RateCat[CustClass],MATCH(NorthCycles[[#This Row],[RateCategory]],RateCat[RateCategory],0)) -> Res | O23: Need to update
A24: 45139 | B24: =EDATE(NorthCycles[[#This Row],[MonthFlow]],1) -> 45170 | C24: ENGC_SGS | D24: All | E24: 1116 | F24: 45132 | G24: 45163 | H24: =SUMPRODUCT((KCITempAct[Date]>=NorthCycles[[#This Row],[BegRdDate]])*(KCITempAct[Date]<NorthCycles[[#This Row],[EndRdDate]])*KCITempAct[KCINHDDAdj]) -> 0 | I24: =SUMPRODUCT((KCITempAct[Date]>=NorthCycles[[#This Row],[BegRdDate]])*(KCITempAct[Date]<NorthCycles[[#This Row],[EndRdDate]])*KCITempAct[KCIHDDAdj]) -> 0 | J24: =NorthCycles[[#This Row],[NDD]]-NorthCycles[[#This Row],[ADD]] -> 0 | K24: =NorthCycles[[#This Row],[HDDDiff]]*NorthCycles[[#This Row],[NoOfBills]] -> 0 | L24: =SUMPRODUCT((BetaCoeff[BeginDate]<=NorthCycles[[#This Row],[MonthFlow]])*(BetaCoeff[EndDate]>NorthCycles[[#This Row],[MonthFlow]])*(BetaCoeff[CustClass]=NorthCycles[[#This Row],[CustClass]])*BetaCoeff[BetaCoeff]) -> 0.2793279 | M24: =NorthCycles[[#This Row],[Diff*NoOfBills]]*NorthCycles[[#This Row],[BetaCoeff]] -> 0 | N24: =INDEX(RateCat[CustClass],MATCH(NorthCycles[[#This Row],[RateCategory]],RateCat[RateCategory],0)) -> Comm | O24: Need to update
A25: 45139 | B25: =EDATE(NorthCycles[[#This Row],[MonthFlow]],1) -> 45170 | C25: ENGR_RS | D25: All | E25: 7770 | F25: 45132 | G25: 45163 | H25: =SUMPRODUCT((KCITempAct[Date]>=NorthCycles[[#This Row],[BegRdDate]])*(KCITempAct[Date]<NorthCycles[[#This Row],[EndRdDate]])*KCITempAct[KCINHDDAdj]) -> 0 | I25: =SUMPRODUCT((KCITempAct[Date]>=NorthCycles[[#This Row],[BegRdDate]])*(KCITempAct[Date]<NorthCycles[[#This Row],[EndRdDate]])*KCITempAct[KCIHDDAdj]) -> 0 | J25: =NorthCycles[[#This Row],[NDD]]-NorthCycles[[#This Row],[ADD]] -> 0 | K25: =NorthCycles[[#This Row],[HDDDiff]]*NorthCycles[[#This Row],[NoOfBills]] -> 0 | L25: =SUMPRODUCT((BetaCoeff[BeginDate]<=NorthCycles[[#This Row],[MonthFlow]])*(BetaCoeff[EndDate]>NorthCycles[[#This Row],[MonthFlow]])*(BetaCoeff[CustClass]=NorthCycles[[#This Row],[CustClass]])*BetaCoeff[BetaCoeff]) -> 0.1234365 | M25: =NorthCycles[[#This Row],[Diff*NoOfBills]]*NorthCycles[[#This Row],[BetaCoeff]] -> 0 | N25: =INDEX(RateCat[CustClass],MATCH(NorthCycles[[#This Row],[RateCategory]],RateCat[RateCategory],0)) -> Res | O25: Need to update
A26: 45170 | B26: =EDATE(NorthCycles[[#This Row],[MonthFlow]],1) -> 45200 | C26: ENGC_SGS | D26: All | E26: 1126 | F26: 45163 | G26: 45191 | H26: =SUMPRODUCT((KCITempAct[Date]>=NorthCycles[[#This Row],[BegRdDate]])*(KCITempAct[Date]<NorthCycles[[#This Row],[EndRdDate]])*KCITempAct[KCINHDDAdj]) -> 22.45 | I26: =SUMPRODUCT((KCITempAct[Date]>=NorthCycles[[#This Row],[BegRdDate]])*(KCITempAct[Date]<NorthCycles[[#This Row],[EndRdDate]])*KCITempAct[KCIHDDAdj]) -> 1 | J26: =NorthCycles[[#This Row],[NDD]]-NorthCycles[[#This Row],[ADD]] -> 21.45 | K26: =NorthCycles[[#This Row],[HDDDiff]]*NorthCycles[[#This Row],[NoOfBills]] -> 24152.7 | L26: =SUMPRODUCT((BetaCoeff[BeginDate]<=NorthCycles[[#This Row],[MonthFlow]])*(BetaCoeff[EndDate]>NorthCycles[[#This Row],[MonthFlow]])*(BetaCoeff[CustClass]=NorthCycles[[#This Row],[CustClass]])*BetaCoeff[BetaCoeff]) -> 0.2793279 | M26: =NorthCycles[[#This Row],[Diff*NoOfBills]]*NorthCycles[[#This Row],[BetaCoeff]] -> 6746.52297 | N26: =INDEX(RateCat[CustClass],MATCH(NorthCycles[[#This Row],[RateCategory]],RateCat[RateCategory],0)) -> Comm | O26: Customer count from Revenue Dept.
A27: 45170 | B27: =EDATE(NorthCycles[[#This Row],[MonthFlow]],1) -> 45200 | C27: ENGR_RS | D27: All | E27: 7878 | F27: 45163 | G27: 45191 | H27: =SUMPRODUCT((KCITempAct[Date]>=NorthCycles[[#This Row],[BegRdDate]])*(KCITempAct[Date]<NorthCycles[[#This Row],[EndRdDate]])*KCITempAct[KCINHDDAdj]) -> 22.45 | I27: =SUMPRODUCT((KCITempAct[Date]>=NorthCycles[[#This Row],[BegRdDate]])*(KCITempAct[Date]<NorthCycles[[#This Row],[EndRdDate]])*KCITempAct[KCIHDDAdj]) -> 1 | J27: =NorthCycles[[#This Row],[NDD]]-NorthCycles[[#This Row],[ADD]] -> 21.45 | K27: =NorthCycles[[#This Row],[HDDDiff]]*NorthCycles[[#This Row],[NoOfBills]] -> 168983.1 | L27: =SUMPRODUCT((BetaCoeff[BeginDate]<=NorthCycles[[#This Row],[MonthFlow]])*(BetaCoeff[EndDate]>NorthCycles[[#This Row],[MonthFlow]])*(BetaCoeff[CustClass]=NorthCycles[[#This Row],[CustClass]])*BetaCoeff[BetaCoeff]) -> 0.1234365 | M27: =NorthCycles[[#This Row],[Diff*NoOfBills]]*NorthCycles[[#This Row],[BetaCoeff]] -> 20858.68242 | N27: =INDEX(RateCat[CustClass],MATCH(NorthCycles[[#This Row],[RateCategory]],RateCat[RateCategory],0)) -> Res | O27: Customer count from Revenue Dept.
A28: 45200 | B28: =EDATE(NorthCycles[[#This Row],[MonthFlow]],1) -> 45231 | C28: ENGC_SGS | D28: All | E28: 1136 | F28: 45191 | G28: 45224 | H28: =SUMPRODUCT((KCITempAct[Date]>=NorthCycles[[#This Row],[BegRdDate]])*(KCITempAct[Date]<NorthCycles[[#This Row],[EndRdDate]])*KCITempAct[KCINHDDAdj]) -> 224.1 | I28: =SUMPRODUCT((KCITempAct[Date]>=NorthCycles[[#This Row],[BegRdDate]])*(KCITempAct[Date]<NorthCycles[[#This Row],[EndRdDate]])*KCITempAct[KCIHDDAdj]) -> 135 | J28: =NorthCycles[[#This Row],[NDD]]-NorthCycles[[#This Row],[ADD]] -> 89.1 | K28: =NorthCycles[[#This Row],[HDDDiff]]*NorthCycles[[#This Row],[NoOfBills]] -> 101217.6 | L28: =SUMPRODUCT((BetaCoeff[BeginDate]<=NorthCycles[[#This Row],[MonthFlow]])*(BetaCoeff[EndDate]>NorthCycles[[#This Row],[MonthFlow]])*(BetaCoeff[CustClass]=NorthCycles[[#This Row],[CustClass]])*BetaCoeff[BetaCoeff]) -> 0.2793279 | M28: =NorthCycles[[#This Row],[Diff*NoOfBills]]*NorthCycles[[#This Row],[BetaCoeff]] -> 28272.89965 | N28: =INDEX(RateCat[CustClass],MATCH(NorthCycles[[#This Row],[RateCategory]],RateCat[RateCategory],0)) -> Comm | O28: Customer count from Revenue Dept.
A29: 45200 | B29: =EDATE(NorthCycles[[#This Row],[MonthFlow]],1) -> 45231 | C29: ENGR_RS | D29: All | E29: 8008 | F29: 45191 | G29: 45224 | H29: =SUMPRODUCT((KCITempAct[Date]>=NorthCycles[[#This Row],[BegRdDate]])*(KCITempAct[Date]<NorthCycles[[#This Row],[EndRdDate]])*KCITempAct[KCINHDDAdj]) -> 224.1 | I29: =SUMPRODUCT((KCITempAct[Date]>=NorthCycles[[#This Row],[BegRdDate]])*(KCITempAct[Date]<NorthCycles[[#This Row],[EndRdDate]])*KCITempAct[KCIHDDAdj]) -> 135 | J29: =NorthCycles[[#This Row],[NDD]]-NorthCycles[[#This Row],[ADD]] -> 89.1 | K29: =NorthCycles[[#This Row],[HDDDiff]]*NorthCycles[[#This Row],[NoOfBills]] -> 713512.8 | L29: =SUMPRODUCT((BetaCoeff[BeginDate]<=NorthCycles[[#This Row],[MonthFlow]])*(BetaCoeff[EndDate]>NorthCycles[[#This Row],[MonthFlow]])*(BetaCoeff[CustClass]=NorthCycles[[#This Row],[CustClass]])*BetaCoeff[BetaCoeff]) -> 0.1234365 | M29: =NorthCycles[[#This Row],[Diff*NoOfBills]]*NorthCycles[[#This Row],[BetaCoeff]] -> 88073.52274 | N29: =INDEX(RateCat[CustClass],MATCH(NorthCycles[[#This Row],[RateCategory]],RateCat[RateCategory],0)) -> Res | O29: Customer count from Revenue Dept.
A30: 45231 | B30: =EDATE(NorthCycles[[#This Row],[MonthFlow]],1) -> 45261 | C30: ENGC_SGS | D30: All | E30: 1139 | F30: 45224 | G30: 45260 | H30: =SUMPRODUCT((KCITempAct[Date]>=NorthCycles[[#This Row],[BegRdDate]])*(KCITempAct[Date]<NorthCycles[[#This Row],[EndRdDate]])*KCITempAct[KCINHDDAdj]) -> 707.3333333 | I30: =SUMPRODUCT((KCITempAct[Date]>=NorthCycles[[#This Row],[BegRdDate]])*(KCITempAct[Date]<NorthCycles[[#This Row],[EndRdDate]])*KCITempAct[KCIHDDAdj]) -> 708.5 | J30: =NorthCycles[[#This Row],[NDD]]-NorthCycles[[#This Row],[ADD]] -> -1.166666667 | K30: =NorthCycles[[#This Row],[HDDDiff]]*NorthCycles[[#This Row],[NoOfBills]] -> -1328.833333 | L30: =SUMPRODUCT((BetaCoeff[BeginDate]<=NorthCycles[[#This Row],[MonthFlow]])*(BetaCoeff[EndDate]>NorthCycles[[#This Row],[MonthFlow]])*(BetaCoeff[CustClass]=NorthCycles[[#This Row],[CustClass]])*BetaCoeff[BetaCoeff]) -> 0.2793279 | M30: =NorthCycles[[#This Row],[Diff*NoOfBills]]*NorthCycles[[#This Row],[BetaCoeff]] -> -371.1802244 | N30: =INDEX(RateCat[CustClass],MATCH(NorthCycles[[#This Row],[RateCategory]],RateCat[RateCategory],0)) -> Comm | O30: Customer count from Revenue Dept.
A31: 45231 | B31: =EDATE(NorthCycles[[#This Row],[MonthFlow]],1) -> 45261 | C31: ENGR_RS | D31: All | E31: 8056 | F31: 45224 | G31: 45260 | H31: =SUMPRODUCT((KCITempAct[Date]>=NorthCycles[[#This Row],[BegRdDate]])*(KCITempAct[Date]<NorthCycles[[#This Row],[EndRdDate]])*KCITempAct[KCINHDDAdj]) -> 707.3333333 | I31: =SUMPRODUCT((KCITempAct[Date]>=NorthCycles[[#This Row],[BegRdDate]])*(KCITempAct[Date]<NorthCycles[[#This Row],[EndRdDate]])*KCITempAct[KCIHDDAdj]) -> 708.5 | J31: =NorthCycles[[#This Row],[NDD]]-NorthCycles[[#This Row],[ADD]] -> -1.166666667 | K31: =NorthCycles[[#This Row],[HDDDiff]]*NorthCycles[[#This Row],[NoOfBills]] -> -9398.666667 | L31: =SUMPRODUCT((BetaCoeff[BeginDate]<=NorthCycles[[#This Row],[MonthFlow]])*(BetaCoeff[EndDate]>NorthCycles[[#This Row],[MonthFlow]])*(BetaCoeff[CustClass]=NorthCycles[[#This Row],[CustClass]])*BetaCoeff[BetaCoeff]) -> 0.1234365 | M31: =NorthCycles[[#This Row],[Diff*NoOfBills]]*NorthCycles[[#This Row],[BetaCoeff]] -> -1160.138518 | N31: =INDEX(RateCat[CustClass],MATCH(NorthCycles[[#This Row],[RateCategory]],RateCat[RateCategory],0)) -> Res | O31: Customer count from Revenue Dept.
A32: 45261 | B32: =EDATE(NorthCycles[[#This Row],[MonthFlow]],1) -> 45292 | C32: ENGC_SGS | D32: All | E32: 1141 | F32: 45260 | G32: 45293 | H32: =SUMPRODUCT((KCITempAct[Date]>=NorthCycles[[#This Row],[BegRdDate]])*(KCITempAct[Date]<NorthCycles[[#This Row],[EndRdDate]])*KCITempAct[KCINHDDAdj]) -> 1048.4 | I32: =SUMPRODUCT((KCITempAct[Date]>=NorthCycles[[#This Row],[BegRdDate]])*(KCITempAct[Date]<NorthCycles[[#This Row],[EndRdDate]])*KCITempAct[KCIHDDAdj]) -> 823 | J32: =NorthCycles[[#This Row],[NDD]]-NorthCycles[[#This Row],[ADD]] -> 225.4 | K32: =NorthCycles[[#This Row],[HDDDiff]]*NorthCycles[[#This Row],[NoOfBills]] -> 257181.4 | L32: =SUMPRODUCT((BetaCoeff[BeginDate]<=NorthCycles[[#This Row],[MonthFlow]])*(BetaCoeff[EndDate]>NorthCycles[[#This Row],[MonthFlow]])*(BetaCoeff[CustClass]=NorthCycles[[#This Row],[CustClass]])*BetaCoeff[BetaCoeff]) -> 0.2793279 | M32: =NorthCycles[[#This Row],[Diff*NoOfBills]]*NorthCycles[[#This Row],[BetaCoeff]] -> 71837.94038 | N32: =INDEX(RateCat[CustClass],MATCH(NorthCycles[[#This Row],[RateCategory]],RateCat[RateCategory],0)) -> Comm | O32: Customer count from Revenue Dept.
A33: 45261 | B33: =EDATE(NorthCycles[[#This Row],[MonthFlow]],1) -> 45292 | C33: ENGR_RS | D33: All | E33: 8122 | F33: 45260 | G33: 45293 | H33: =SUMPRODUCT((KCITempAct[Date]>=NorthCycles[[#This Row],[BegRdDate]])*(KCITempAct[Date]<NorthCycles[[#This Row],[EndRdDate]])*KCITempAct[KCINHDDAdj]) -> 1048.4 | I33: =SUMPRODUCT((KCITempAct[Date]>=NorthCycles[[#This Row],[BegRdDate]])*(KCITempAct[Date]<NorthCycles[[#This Row],[EndRdDate]])*KCITempAct[KCIHDDAdj]) -> 823 | J33: =NorthCycles[[#This Row],[NDD]]-NorthCycles[[#This Row],[ADD]] -> 225.4 | K33: =NorthCycles[[#This Row],[HDDDiff]]*NorthCycles[[#This Row],[NoOfBills]] -> 1830698.8 | L33: =SUMPRODUCT((BetaCoeff[BeginDate]<=NorthCycles[[#This Row],[MonthFlow]])*(BetaCoeff[EndDate]>NorthCycles[[#This Row],[MonthFlow]])*(BetaCoeff[CustClass]=NorthCycles[[#This Row],[CustClass]])*BetaCoeff[BetaCoeff]) -> 0.1234365 | M33: =NorthCycles[[#This Row],[Diff*NoOfBills]]*NorthCycles[[#This Row],[BetaCoeff]] -> 225975.0524 | N33: =INDEX(RateCat[CustClass],MATCH(NorthCycles[[#This Row],[RateCategory]],RateCat[RateCategory],0)) -> Res | O33: Customer count from Revenue Dept.
A34: 45292 | B34: =EDATE(NorthCycles[[#This Row],[MonthFlow]],1) -> 45323 | C34: ENGC_SGS | D34: All | E34: 1139 | F34: 45293 | G34: 45324 | H34: =SUMPRODUCT((KCITempAct[Date]>=NorthCycles[[#This Row],[BegRdDate]])*(KCITempAct[Date]<NorthCycles[[#This Row],[EndRdDate]])*KCITempAct[KCINHDDAdj]) -> 1099.15 | I34: =SUMPRODUCT((KCITempAct[Date]>=NorthCycles[[#This Row],[BegRdDate]])*(KCITempAct[Date]<NorthCycles[[#This Row],[EndRdDate]])*KCITempAct[KCIHDDAdj]) -> 1220 | J34: =NorthCycles[[#This Row],[NDD]]-NorthCycles[[#This Row],[ADD]] -> -120.85 | K34: =NorthCycles[[#This Row],[HDDDiff]]*NorthCycles[[#This Row],[NoOfBills]] -> -137648.15 | L34: =SUMPRODUCT((BetaCoeff[BeginDate]<=NorthCycles[[#This Row],[MonthFlow]])*(BetaCoeff[EndDate]>NorthCycles[[#This Row],[MonthFlow]])*(BetaCoeff[CustClass]=NorthCycles[[#This Row],[CustClass]])*BetaCoeff[BetaCoeff]) -> 0.2793279 | M34: =NorthCycles[[#This Row],[Diff*NoOfBills]]*NorthCycles[[#This Row],[BetaCoeff]] -> -38448.96868 | N34: =INDEX(RateCat[CustClass],MATCH(NorthCycles[[#This Row],[RateCategory]],RateCat[RateCategory],0)) -> Comm | O34: Customer count from Revenue Dept.
A35: 45292 | B35: =EDATE(NorthCycles[[#This Row],[MonthFlow]],1) -> 45323 | C35: ENGR_RS | D35: All | E35: 8128 | F35: 45293 | G35: 45324 | H35: =SUMPRODUCT((KCITempAct[Date]>=NorthCycles[[#This Row],[BegRdDate]])*(KCITempAct[Date]<NorthCycles[[#This Row],[EndRdDate]])*KCITempAct[KCINHDDAdj]) -> 1099.15 | I35: =SUMPRODUCT((KCITempAct[Date]>=NorthCycles[[#This Row],[BegRdDate]])*(KCITempAct[Date]<NorthCycles[[#This Row],[EndRdDate]])*KCITempAct[KCIHDDAdj]) -> 1220 | J35: =NorthCycles[[#This Row],[NDD]]-NorthCycles[[#This Row],[ADD]] -> -120.85 | K35: =NorthCycles[[#This Row],[HDDDiff]]*NorthCycles[[#This Row],[NoOfBills]] -> -982268.8 | L35: =SUMPRODUCT((BetaCoeff[BeginDate]<=NorthCycles[[#This Row],[MonthFlow]])*(BetaCoeff[EndDate]>NorthCycles[[#This Row],[MonthFlow]])*(BetaCoeff[CustClass]=NorthCycles[[#This Row],[CustClass]])*BetaCoeff[BetaCoeff]) -> 0.1234365 | M35: =NorthCycles[[#This Row],[Diff*NoOfBills]]*NorthCycles[[#This Row],[BetaCoeff]] -> -121247.8227 | N35: =INDEX(RateCat[CustClass],MATCH(NorthCycles[[#This Row],[RateCategory]],RateCat[RateCategory],0)) -> Res | O35: Customer count from Revenue Dept.
A36: 45323 | B36: =EDATE(NorthCycles[[#This Row],[MonthFlow]],1) -> 45352 | C36: ENGC_SGS | D36: All | E36: 1141 | F36: 45324 | G36: 45358 | H36: =SUMPRODUCT((KCITempAct[Date]>=NorthCycles[[#This Row],[BegRdDate]])*(KCITempAct[Date]<NorthCycles[[#This Row],[EndRdDate]])*KCITempAct[KCINHDDAdj]) -> 1015.316667 | I36: =SUMPRODUCT((KCITempAct[Date]>=NorthCycles[[#This Row],[BegRdDate]])*(KCITempAct[Date]<NorthCycles[[#This Row],[EndRdDate]])*KCITempAct[KCIHDDAdj]) -> 669 | J36: =NorthCycles[[#This Row],[NDD]]-NorthCycles[[#This Row],[ADD]] -> 346.3166667 | K36: =NorthCycles[[#This Row],[HDDDiff]]*NorthCycles[[#This Row],[NoOfBills]] -> 395147.3167 | L36: =SUMPRODUCT((BetaCoeff[BeginDate]<=NorthCycles[[#This Row],[MonthFlow]])*(BetaCoeff[EndDate]>NorthCycles[[#This Row],[MonthFlow]])*(BetaCoeff[CustClass]=NorthCycles[[#This Row],[CustClass]])*BetaCoeff[BetaCoeff]) -> 0.2793279 | M36: =NorthCycles[[#This Row],[Diff*NoOfBills]]*NorthCycles[[#This Row],[BetaCoeff]] -> 110375.6702 | N36: =INDEX(RateCat[CustClass],MATCH(NorthCycles[[#This Row],[RateCategory]],RateCat[RateCategory],0)) -> Comm | O36: Customer count from Revenue Dept.
A37: 45323 | B37: =EDATE(NorthCycles[[#This Row],[MonthFlow]],1) -> 45352 | C37: ENGR_RS | D37: All | E37: 8110 | F37: 45324 | G37: 45358 | H37: =SUMPRODUCT((KCITempAct[Date]>=NorthCycles[[#This Row],[BegRdDate]])*(KCITempAct[Date]<NorthCycles[[#This Row],[EndRdDate]])*KCITempAct[KCINHDDAdj]) -> 1015.316667 | I37: =SUMPRODUCT((KCITempAct[Date]>=NorthCycles[[#This Row],[BegRdDate]])*(KCITempAct[Date]<NorthCycles[[#This Row],[EndRdDate]])*KCITempAct[KCIHDDAdj]) -> 669 | J37: =NorthCycles[[#This Row],[NDD]]-NorthCycles[[#This Row],[ADD]] -> 346.3166667 | K37: =NorthCycles[[#This Row],[HDDDiff]]*NorthCycles[[#This Row],[NoOfBills]] -> 2808628.167 | L37: =SUMPRODUCT((BetaCoeff[BeginDate]<=NorthCycles[[#This Row],[MonthFlow]])*(BetaCoeff[EndDate]>NorthCycles[[#This Row],[MonthFlow]])*(BetaCoeff[CustClass]=NorthCycles[[#This Row],[CustClass]])*BetaCoeff[BetaCoeff]) -> 0.1234365 | M37: =NorthCycles[[#This Row],[Diff*NoOfBills]]*NorthCycles[[#This Row],[BetaCoeff]] -> 346687.2307 | N37: =INDEX(RateCat[CustClass],MATCH(NorthCycles[[#This Row],[RateCategory]],RateCat[RateCategory],0)) -> Res | O37: Customer count from Revenue Dept.
A38: 45352 | B38: =EDATE(NorthCycles[[#This Row],[MonthFlow]],1) -> 45383 | C38: ENGC_SGS | D38: 8 | E38: 215 | F38: 45358 | G38: 45383 | H38: =SUMPRODUCT((KCITempAct[Date]>=NorthCycles[[#This Row],[BegRdDate]])*(KCITempAct[Date]<NorthCycles[[#This Row],[EndRdDate]])*KCITempAct[KCINHDDAdj]) -> 472.1666667 | I38: =SUMPRODUCT((KCITempAct[Date]>=NorthCycles[[#This Row],[BegRdDate]])*(KCITempAct[Date]<NorthCycles[[#This Row],[EndRdDate]])*KCITempAct[KCIHDDAdj]) -> 426 | J38: =NorthCycles[[#This Row],[NDD]]-NorthCycles[[#This Row],[ADD]] -> 46.16666667 | K38: =NorthCycles[[#This Row],[HDDDiff]]*NorthCycles[[#This Row],[NoOfBills]] -> 9925.833333 | L38: =SUMPRODUCT((BetaCoeff[BeginDate]<=NorthCycles[[#This Row],[MonthFlow]])*(BetaCoeff[EndDate]>NorthCycles[[#This Row],[MonthFlow]])*(BetaCoeff[CustClass]=NorthCycles[[#This Row],[CustClass]])*BetaCoeff[BetaCoeff]) -> 0.2793279 | M38: =NorthCycles[[#This Row],[Diff*NoOfBills]]*NorthCycles[[#This Row],[BetaCoeff]] -> 2772.562181 | N38: =INDEX(RateCat[CustClass],MATCH(NorthCycles[[#This Row],[RateCategory]],RateCat[RateCategory],0)) -> Comm | O38: Customer count from Revenue Dept.
A39: 45352 | B39: =EDATE(NorthCycles[[#This Row],[MonthFlow]],1) -> 45383 | C39: ENGC_SGS | D39: 9 | E39: 313 | F39: 45358 | G39: 45383 | H39: =SUMPRODUCT((KCITempAct[Date]>=NorthCycles[[#This Row],[BegRdDate]])*(KCITempAct[Date]<NorthCycles[[#This Row],[EndRdDate]])*KCITempAct[KCINHDDAdj]) -> 472.1666667 | I39: =SUMPRODUCT((KCITempAct[Date]>=NorthCycles[[#This Row],[BegRdDate]])*(KCITempAct[Date]<NorthCycles[[#This Row],[EndRdDate]])*KCITempAct[KCIHDDAdj]) -> 426 | J39: =NorthCycles[[#This Row],[NDD]]-NorthCycles[[#This Row],[ADD]] -> 46.16666667 | K39: =NorthCycles[[#This Row],[HDDDiff]]*NorthCycles[[#This Row],[NoOfBills]] -> 14450.16667 | L39: =SUMPRODUCT((BetaCoeff[BeginDate]<=NorthCycles[[#This Row],[MonthFlow]])*(BetaCoeff[EndDate]>NorthCycles[[#This Row],[MonthFlow]])*(BetaCoeff[CustClass]=NorthCycles[[#This Row],[CustClass]])*BetaCoeff[BetaCoeff]) -> 0.2793279 | M39: =NorthCycles[[#This Row],[Diff*NoOfBills]]*NorthCycles[[#This Row],[BetaCoeff]] -> 4036.33471 | N39: =INDEX(RateCat[CustClass],MATCH(NorthCycles[[#This Row],[RateCategory]],RateCat[RateCategory],0)) -> Comm | O39: Customer count from Revenue Dept.
A40: 45352 | B40: =EDATE(NorthCycles[[#This Row],[MonthFlow]],1) -> 45383 | C40: ENGC_SGS | D40: 10 | E40: 625 | F40: 45358 | G40: 45383 | H40: =SUMPRODUCT((KCITempAct[Date]>=NorthCycles[[#This Row],[BegRdDate]])*(KCITempAct[Date]<NorthCycles[[#This Row],[EndRdDate]])*KCITempAct[KCINHDDAdj]) -> 472.1666667 | I40: =SUMPRODUCT((KCITempAct[Date]>=NorthCycles[[#This Row],[BegRdDate]])*(KCITempAct[Date]<NorthCycles[[#This Row],[EndRdDate]])*KCITempAct[KCIHDDAdj]) -> 426 | J40: =NorthCycles[[#This Row],[NDD]]-NorthCycles[[#This Row],[ADD]] -> 46.16666667 | K40: =NorthCycles[[#This Row],[HDDDiff]]*NorthCycles[[#This Row],[NoOfBills]] -> 28854.16667 | L40: =SUMPRODUCT((BetaCoeff[BeginDate]<=NorthCycles[[#This Row],[MonthFlow]])*(BetaCoeff[EndDate]>NorthCycles[[#This Row],[MonthFlow]])*(BetaCoeff[CustClass]=NorthCycles[[#This Row],[CustClass]])*BetaCoeff[BetaCoeff]) -> 0.2793279 | M40: =NorthCycles[[#This Row],[Diff*NoOfBills]]*NorthCycles[[#This Row],[BetaCoeff]] -> 8059.773781 | N40: =INDEX(RateCat[CustClass],MATCH(NorthCycles[[#This Row],[RateCategory]],RateCat[RateCategory],0)) -> Comm | O40: Customer count from Revenue Dept.
A41: 45352 | B41: =EDATE(NorthCycles[[#This Row],[MonthFlow]],1) -> 45383 | C41: ENGC_SGS | D41: 20 | E41: 20 | F41: 45358 | G41: 45383 | H41: =SUMPRODUCT((KCITempAct[Date]>=NorthCycles[[#This Row],[BegRdDate]])*(KCITempAct[Date]<NorthCycles[[#This Row],[EndRdDate]])*KCITempAct[KCINHDDAdj]) -> 472.1666667 | I41: =SUMPRODUCT((KCITempAct[Date]>=NorthCycles[[#This Row],[BegRdDate]])*(KCITempAct[Date]<NorthCycles[[#This Row],[EndRdDate]])*KCITempAct[KCIHDDAdj]) -> 426 | J41: =NorthCycles[[#This Row],[NDD]]-NorthCycles[[#This Row],[ADD]] -> 46.16666667 | K41: =NorthCycles[[#This Row],[HDDDiff]]*NorthCycles[[#This Row],[NoOfBills]] -> 923.3333333 | L41: =SUMPRODUCT((BetaCoeff[BeginDate]<=NorthCycles[[#This Row],[MonthFlow]])*(BetaCoeff[EndDate]>NorthCycles[[#This Row],[MonthFlow]])*(BetaCoeff[CustClass]=NorthCycles[[#This Row],[CustClass]])*BetaCoeff[BetaCoeff]) -> 0.2793279 | M41: =NorthCycles[[#This Row],[Diff*NoOfBills]]*NorthCycles[[#This Row],[BetaCoeff]] -> 257.912761 | N41: =INDEX(RateCat[CustClass],MATCH(NorthCycles[[#This Row],[RateCategory]],RateCat[RateCategory],0)) -> Comm | O41: Customer count from Revenue Dept.
A42: 45352 | B42: =EDATE(NorthCycles[[#This Row],[MonthFlow]],1) -> 45383 | C42: ENGR_RS | D42: 8 | E42: 1144 | F42: 45358 | G42: 45383 | H42: =SUMPRODUCT((KCITempAct[Date]>=NorthCycles[[#This Row],[BegRdDate]])*(KCITempAct[Date]<NorthCycles[[#This Row],[EndRdDate]])*KCITempAct[KCINHDDAdj]) -> 472.1666667 | I42: =SUMPRODUCT((KCITempAct[Date]>=NorthCycles[[#This Row],[BegRdDate]])*(KCITempAct[Date]<NorthCycles[[#This Row],[EndRdDate]])*KCITempAct[KCIHDDAdj]) -> 426 | J42: =NorthCycles[[#This Row],[NDD]]-NorthCycles[[#This Row],[ADD]] -> 46.16666667 | K42: =NorthCycles[[#This Row],[HDDDiff]]*NorthCycles[[#This Row],[NoOfBills]] -> 52814.66667 | L42: =SUMPRODUCT((BetaCoeff[BeginDate]<=NorthCycles[[#This Row],[MonthFlow]])*(BetaCoeff[EndDate]>NorthCycles[[#This Row],[MonthFlow]])*(BetaCoeff[CustClass]=NorthCycles[[#This Row],[CustClass]])*BetaCoeff[BetaCoeff]) -> 0.1234365 | M42: =NorthCycles[[#This Row],[Diff*NoOfBills]]*NorthCycles[[#This Row],[BetaCoeff]] -> 6519.257602 | N42: =INDEX(RateCat[CustClass],MATCH(NorthCycles[[#This Row],[RateCategory]],RateCat[RateCategory],0)) -> Res | O42: Customer count from Revenue Dept.
A43: 45352 | B43: =EDATE(NorthCycles[[#This Row],[MonthFlow]],1) -> 45383 | C43: ENGR_RS | D43: 9 | E43: 2493 | F43: 45358 | G43: 45383 | H43: =SUMPRODUCT((KCITempAct[Date]>=NorthCycles[[#This Row],[BegRdDate]])*(KCITempAct[Date]<NorthCycles[[#This Row],[EndRdDate]])*KCITempAct[KCINHDDAdj]) -> 472.1666667 | I43: =SUMPRODUCT((KCITempAct[Date]>=NorthCycles[[#This Row],[BegRdDate]])*(KCITempAct[Date]<NorthCycles[[#This Row],[EndRdDate]])*KCITempAct[KCIHDDAdj]) -> 426 | J43: =NorthCycles[[#This Row],[NDD]]-NorthCycles[[#This Row],[ADD]] -> 46.16666667 | K43: =NorthCycles[[#This Row],[HDDDiff]]*NorthCycles[[#This Row],[NoOfBills]] -> 115093.5 | L43: =SUMPRODUCT((BetaCoeff[BeginDate]<=NorthCycles[[#This Row],[MonthFlow]])*(BetaCoeff[EndDate]>NorthCycles[[#This Row],[MonthFlow]])*(BetaCoeff[CustClass]=NorthCycles[[#This Row],[CustClass]])*BetaCoeff[BetaCoeff]) -> 0.1234365 | M43: =NorthCycles[[#This Row],[Diff*NoOfBills]]*NorthCycles[[#This Row],[BetaCoeff]] -> 14206.73881 | N43: =INDEX(RateCat[CustClass],MATCH(NorthCycles[[#This Row],[RateCategory]],RateCat[RateCategory],0)) -> Res | O43: Customer count from Revenue Dept.
A44: 45352 | B44: =EDATE(NorthCycles[[#This Row],[MonthFlow]],1) -> 45383 | C44: ENGR_RS | D44: 10 | E44: 4379 | F44: 45358 | G44: 45383 | H44: =SUMPRODUCT((KCITempAct[Date]>=NorthCycles[[#This Row],[BegRdDate]])*(KCITempAct[Date]<NorthCycles[[#This Row],[EndRdDate]])*KCITempAct[KCINHDDAdj]) -> 472.1666667 | I44: =SUMPRODUCT((KCITempAct[Date]>=NorthCycles[[#This Row],[BegRdDate]])*(KCITempAct[Date]<NorthCycles[[#This Row],[EndRdDate]])*KCITempAct[KCIHDDAdj]) -> 426 | J44: =NorthCycles[[#This Row],[NDD]]-NorthCycles[[#This Row],[ADD]] -> 46.16666667 | K44: =NorthCycles[[#This Row],[HDDDiff]]*NorthCycles[[#This Row],[NoOfBills]] -> 202163.8333 | L44: =SUMPRODUCT((BetaCoeff[BeginDate]<=NorthCycles[[#This Row],[MonthFlow]])*(BetaCoeff[EndDate]>NorthCycles[[#This Row],[MonthFlow]])*(BetaCoeff[CustClass]=NorthCycles[[#This Row],[CustClass]])*BetaCoeff[BetaCoeff]) -> 0.1234365 | M44: =NorthCycles[[#This Row],[Diff*NoOfBills]]*NorthCycles[[#This Row],[BetaCoeff]] -> 24954.39601 | N44: =INDEX(RateCat[CustClass],MATCH(NorthCycles[[#This Row],[RateCategory]],RateCat[RateCategory],0)) -> Res | O44: Customer count from Revenue Dept.
A45: 45383 | B45: =EDATE(NorthCycles[[#This Row],[MonthFlow]],1) -> 45413 | C45: ENGC_SGS | D45: 8 | E45: 214 | F45: 45383 | G45: =SUMPRODUCT((MeterReadSch2[MonthFlow]=NorthCycles[[#This Row],[MonthFlow]])*(MeterReadSch2[Cycle]=NorthCycles[[#This Row],[Cycle]])*MeterReadSch2[ReadDate]) -> 45387 | H45: =SUMPRODUCT((KCITempAct[Date]>=NorthCycles[[#This Row],[BegRdDate]])*(KCITempAct[Date]<NorthCycles[[#This Row],[EndRdDate]])*KCITempAct[KCINHDDAdj]) -> 59.65 | I45: =SUMPRODUCT((KCITempAct[Date]>=NorthCycles[[#This Row],[BegRdDate]])*(KCITempAct[Date]<NorthCycles[[#This Row],[EndRdDate]])*KCITempAct[KCIHDDAdj]) -> 60 | J45: =NorthCycles[[#This Row],[NDD]]-NorthCycles[[#This Row],[ADD]] -> -0.35 | K45: =NorthCycles[[#This Row],[HDDDiff]]*NorthCycles[[#This Row],[NoOfBills]] -> -74.9 | L45: =SUMPRODUCT((BetaCoeff[BeginDate]<=NorthCycles[[#This Row],[MonthFlow]])*(BetaCoeff[EndDate]>NorthCycles[[#This Row],[MonthFlow]])*(BetaCoeff[CustClass]=NorthCycles[[#This Row],[CustClass]])*BetaCoeff[BetaCoeff]) -> 0.2793279 | M45: =NorthCycles[[#This Row],[Diff*NoOfBills]]*NorthCycles[[#This Row],[BetaCoeff]] -> -20.92165971 | N45: =INDEX(RateCat[CustClass],MATCH(NorthCycles[[#This Row],[RateCategory]],RateCat[RateCategory],0)) -> Comm | O45: Customer count from Revenue Dept.
A46: 45383 | B46: =EDATE(NorthCycles[[#This Row],[MonthFlow]],1) -> 45413 | C46: ENGC_SGS | D46: 9 | E46: 316 | F46: 45383 | G46: =SUMPRODUCT((MeterReadSch2[MonthFlow]=NorthCycles[[#This Row],[MonthFlow]])*(MeterReadSch2[Cycle]=NorthCycles[[#This Row],[Cycle]])*MeterReadSch2[ReadDate]) -> 45390 | H46: =SUMPRODUCT((KCITempAct[Date]>=NorthCycles[[#This Row],[BegRdDate]])*(KCITempAct[Date]<NorthCycles[[#This Row],[EndRdDate]])*KCITempAct[KCINHDDAdj]) -> 97.95 | I46: =SUMPRODUCT((KCITempAct[Date]>=NorthCycles[[#This Row],[BegRdDate]])*(KCITempAct[Date]<NorthCycles[[#This Row],[EndRdDate]])*KCITempAct[KCIHDDAdj]) -> 90 | J46: =NorthCycles[[#This Row],[NDD]]-NorthCycles[[#This Row],[ADD]] -> 7.95 | K46: =NorthCycles[[#This Row],[HDDDiff]]*NorthCycles[[#This Row],[NoOfBills]] -> 2512.2 | L46: =SUMPRODUCT((BetaCoeff[BeginDate]<=NorthCycles[[#This Row],[MonthFlow]])*(BetaCoeff[EndDate]>NorthCycles[[#This Row],[MonthFlow]])*(BetaCoeff[CustClass]=NorthCycles[[#This Row],[CustClass]])*BetaCoeff[BetaCoeff]) -> 0.2793279 | M46: =NorthCycles[[#This Row],[Diff*NoOfBills]]*NorthCycles[[#This Row],[BetaCoeff]] -> 701.7275504 | N46: =INDEX(RateCat[CustClass],MATCH(NorthCycles[[#This Row],[RateCategory]],RateCat[RateCategory],0)) -> Comm | O46: Customer count from Revenue Dept.
A47: 45383 | B47: =EDATE(NorthCycles[[#This Row],[MonthFlow]],1) -> 45413 | C47: ENGC_SGS | D47: 10 | E47: 624 | F47: 45383 | G47: =SUMPRODUCT((MeterReadSch2[MonthFlow]=NorthCycles[[#This Row],[MonthFlow]])*(MeterReadSch2[Cycle]=NorthCycles[[#This Row],[Cycle]])*MeterReadSch2[ReadDate]) -> 45391 | H47: =SUMPRODUCT((KCITempAct[Date]>=NorthCycles[[#This Row],[BegRdDate]])*(KCITempAct[Date]<NorthCycles[[#This Row],[EndRdDate]])*KCITempAct[KCINHDDAdj]) -> 111.6166667 | I47: =SUMPRODUCT((KCITempAct[Date]>=NorthCycles[[#This Row],[BegRdDate]])*(KCITempAct[Date]<NorthCycles[[#This Row],[EndRdDate]])*KCITempAct[KCIHDDAdj]) -> 99.5 | J47: =NorthCycles[[#This Row],[NDD]]-NorthCycles[[#This Row],[ADD]] -> 12.11666667 | K47: =NorthCycles[[#This Row],[HDDDiff]]*NorthCycles[[#This Row],[NoOfBills]] -> 7560.8 | L47: =SUMPRODUCT((BetaCoeff[BeginDate]<=NorthCycles[[#This Row],[MonthFlow]])*(BetaCoeff[EndDate]>NorthCycles[[#This Row],[MonthFlow]])*(BetaCoeff[CustClass]=NorthCycles[[#This Row],[CustClass]])*BetaCoeff[BetaCoeff]) -> 0.2793279 | M47: =NorthCycles[[#This Row],[Diff*NoOfBills]]*NorthCycles[[#This Row],[BetaCoeff]] -> 2111.942386 | N47: =INDEX(RateCat[CustClass],MATCH(NorthCycles[[#This Row],[RateCategory]],RateCat[RateCategory],0)) -> Comm | O47: Customer count from Revenue Dept.
A48: 45383 | B48: =EDATE(NorthCycles[[#This Row],[MonthFlow]],1) -> 45413 | C48: ENGC_SGS | D48: 20 | E48: 19 | F48: 45383 | G48: =SUMPRODUCT((MeterReadSch2[MonthFlow]=NorthCycles[[#This Row],[MonthFlow]])*(MeterReadSch2[Cycle]=NorthCycles[[#This Row],[Cycle]])*MeterReadSch2[ReadDate]) -> 45406 | H48: =SUMPRODUCT((KCITempAct[Date]>=NorthCycles[[#This Row],[BegRdDate]])*(KCITempAct[Date]<NorthCycles[[#This Row],[EndRdDate]])*KCITempAct[KCINHDDAdj]) -> 268.1333333 | I48: =SUMPRODUCT((KCITempAct[Date]>=NorthCycles[[#This Row],[BegRdDate]])*(KCITempAct[Date]<NorthCycles[[#This Row],[EndRdDate]])*KCITempAct[KCIHDDAdj]) -> 221.5 | J48: =NorthCycles[[#This Row],[NDD]]-NorthCycles[[#This Row],[ADD]] -> 46.63333333 | K48: =NorthCycles[[#This Row],[HDDDiff]]*NorthCycles[[#This Row],[NoOfBills]] -> 886.0333333 | L48: =SUMPRODUCT((BetaCoeff[BeginDate]<=NorthCycles[[#This Row],[MonthFlow]])*(BetaCoeff[EndDate]>NorthCycles[[#This Row],[MonthFlow]])*(BetaCoeff[CustClass]=NorthCycles[[#This Row],[CustClass]])*BetaCoeff[BetaCoeff]) -> 0.2793279 | M48: =NorthCycles[[#This Row],[Diff*NoOfBills]]*NorthCycles[[#This Row],[BetaCoeff]] -> 247.4938303 | N48: =INDEX(RateCat[CustClass],MATCH(NorthCycles[[#This Row],[RateCategory]],RateCat[RateCategory],0)) -> Comm | O48: Customer count from Revenue Dept.
A49: 45383 | B49: =EDATE(NorthCycles[[#This Row],[MonthFlow]],1) -> 45413 | C49: ENGR_RS | D49: 8 | E49: 1153 | F49: 45383 | G49: =SUMPRODUCT((MeterReadSch2[MonthFlow]=NorthCycles[[#This Row],[MonthFlow]])*(MeterReadSch2[Cycle]=NorthCycles[[#This Row],[Cycle]])*MeterReadSch2[ReadDate]) -> 45387 | H49: =SUMPRODUCT((KCITempAct[Date]>=NorthCycles[[#This Row],[BegRdDate]])*(KCITempAct[Date]<NorthCycles[[#This Row],[EndRdDate]])*KCITempAct[KCINHDDAdj]) -> 59.65 | I49: =SUMPRODUCT((KCITempAct[Date]>=NorthCycles[[#This Row],[BegRdDate]])*(KCITempAct[Date]<NorthCycles[[#This Row],[EndRdDate]])*KCITempAct[KCIHDDAdj]) -> 60 | J49: =NorthCycles[[#This Row],[NDD]]-NorthCycles[[#This Row],[ADD]] -> -0.35 | K49: =NorthCycles[[#This Row],[HDDDiff]]*NorthCycles[[#This Row],[NoOfBills]] -> -403.55 | L49: =SUMPRODUCT((BetaCoeff[BeginDate]<=NorthCycles[[#This Row],[MonthFlow]])*(BetaCoeff[EndDate]>NorthCycles[[#This Row],[MonthFlow]])*(BetaCoeff[CustClass]=NorthCycles[[#This Row],[CustClass]])*BetaCoeff[BetaCoeff]) -> 0.1234365 | M49: =NorthCycles[[#This Row],[Diff*NoOfBills]]*NorthCycles[[#This Row],[BetaCoeff]] -> -49.81279957 | N49: =INDEX(RateCat[CustClass],MATCH(NorthCycles[[#This Row],[RateCategory]],RateCat[RateCategory],0)) -> Res | O49: Customer count from Revenue Dept.
A50: 45383 | B50: =EDATE(NorthCycles[[#This Row],[MonthFlow]],1) -> 45413 | C50: ENGR_RS | D50: 9 | E50: 2485 | F50: 45383 | G50: =SUMPRODUCT((MeterReadSch2[MonthFlow]=NorthCycles[[#This Row],[MonthFlow]])*(MeterReadSch2[Cycle]=NorthCycles[[#This Row],[Cycle]])*MeterReadSch2[ReadDate]) -> 45390 | H50: =SUMPRODUCT((KCITempAct[Date]>=NorthCycles[[#This Row],[BegRdDate]])*(KCITempAct[Date]<NorthCycles[[#This Row],[EndRdDate]])*KCITempAct[KCINHDDAdj]) -> 97.95 | I50: =SUMPRODUCT((KCITempAct[Date]>=NorthCycles[[#This Row],[BegRdDate]])*(KCITempAct[Date]<NorthCycles[[#This Row],[EndRdDate]])*KCITempAct[KCIHDDAdj]) -> 90 | J50: =NorthCycles[[#This Row],[NDD]]-NorthCycles[[#This Row],[ADD]] -> 7.95 | K50: =NorthCycles[[#This Row],[HDDDiff]]*NorthCycles[[#This Row],[NoOfBills]] -> 19755.75 | L50: =SUMPRODUCT((BetaCoeff[BeginDate]<=NorthCycles[[#This Row],[MonthFlow]])*(BetaCoeff[EndDate]>NorthCycles[[#This Row],[MonthFlow]])*(BetaCoeff[CustClass]=NorthCycles[[#This Row],[CustClass]])*BetaCoeff[BetaCoeff]) -> 0.1234365 | M50: =NorthCycles[[#This Row],[Diff*NoOfBills]]*NorthCycles[[#This Row],[BetaCoeff]] -> 2438.580635 | N50: =INDEX(RateCat[CustClass],MATCH(NorthCycles[[#This Row],[RateCategory]],RateCat[RateCategory],0)) -> Res | O50: Customer count from Revenue Dept.
A51: 45383 | B51: =EDATE(NorthCycles[[#This Row],[MonthFlow]],1) -> 45413 | C51: ENGR_RS | D51: 10 | E51: 4322 | F51: 45383 | G51: =SUMPRODUCT((MeterReadSch2[MonthFlow]=NorthCycles[[#This Row],[MonthFlow]])*(MeterReadSch2[Cycle]=NorthCycles[[#This Row],[Cycle]])*MeterReadSch2[ReadDate]) -> 45391 | H51: =SUMPRODUCT((KCITempAct[Date]>=NorthCycles[[#This Row],[BegRdDate]])*(KCITempAct[Date]<NorthCycles[[#This Row],[EndRdDate]])*KCITempAct[KCINHDDAdj]) -> 111.6166667 | I51: =SUMPRODUCT((KCITempAct[Date]>=NorthCycles[[#This Row],[BegRdDate]])*(KCITempAct[Date]<NorthCycles[[#This Row],[EndRdDate]])*KCITempAct[KCIHDDAdj]) -> 99.5 | J51: =NorthCycles[[#This Row],[NDD]]-NorthCycles[[#This Row],[ADD]] -> 12.11666667 | K51: =NorthCycles[[#This Row],[HDDDiff]]*NorthCycles[[#This Row],[NoOfBills]] -> 52368.23333 | L51: =SUMPRODUCT((BetaCoeff[BeginDate]<=NorthCycles[[#This Row],[MonthFlow]])*(BetaCoeff[EndDate]>NorthCycles[[#This Row],[MonthFlow]])*(BetaCoeff[CustClass]=NorthCycles[[#This Row],[CustClass]])*BetaCoeff[BetaCoeff]) -> 0.1234365 | M51: =NorthCycles[[#This Row],[Diff*NoOfBills]]*NorthCycles[[#This Row],[BetaCoeff]] -> 6464.151434 | N51: =INDEX(RateCat[CustClass],MATCH(NorthCycles[[#This Row],[RateCategory]],RateCat[RateCategory],0)) -> Res | O51: Customer count from Revenue Dept.
A52: 45413 | B52: =EDATE(NorthCycles[[#This Row],[MonthFlow]],1) -> 45444 | C52: ENGC_SGS | D52: 8 | E52: 214 | F52: =SUMPRODUCT((MeterReadSch2[MonthBill]=NorthCycles[[#This Row],[MonthFlow]])*(MeterReadSch2[Cycle]=NorthCycles[[#This Row],[Cycle]])*MeterReadSch2[ReadDate]) -> 45387 | G52: =SUMPRODUCT((MeterReadSch2[MonthFlow]=NorthCycles[[#This Row],[MonthFlow]])*(MeterReadSch2[Cycle]=NorthCycles[[#This Row],[Cycle]])*MeterReadSch2[ReadDate]) -> 45419 | H52: =SUMPRODUCT((KCITempAct[Date]>=NorthCycles[[#This Row],[BegRdDate]])*(KCITempAct[Date]<NorthCycles[[#This Row],[EndRdDate]])*KCITempAct[KCINHDDAdj]) -> 302.1666667 | I52: =SUMPRODUCT((KCITempAct[Date]>=NorthCycles[[#This Row],[BegRdDate]])*(KCITempAct[Date]<NorthCycles[[#This Row],[EndRdDate]])*KCITempAct[KCIHDDAdj]) -> 213 | J52: =NorthCycles[[#This Row],[NDD]]-NorthCycles[[#This Row],[ADD]] -> 89.16666667 | K52: =NorthCycles[[#This Row],[HDDDiff]]*NorthCycles[[#This Row],[NoOfBills]] -> 19081.66667 | L52: =SUMPRODUCT((BetaCoeff[BeginDate]<=NorthCycles[[#This Row],[MonthFlow]])*(BetaCoeff[EndDate]>NorthCycles[[#This Row],[MonthFlow]])*(BetaCoeff[CustClass]=NorthCycles[[#This Row],[CustClass]])*BetaCoeff[BetaCoeff]) -> 0.2793279 | M52: =NorthCycles[[#This Row],[Diff*NoOfBills]]*NorthCycles[[#This Row],[BetaCoeff]] -> 5330.041879 | N52: =INDEX(RateCat[CustClass],MATCH(NorthCycles[[#This Row],[RateCategory]],RateCat[RateCategory],0)) -> Comm | O52: Customer count from Revenue Dept.
A53: 45413 | B53: =EDATE(NorthCycles[[#This Row],[MonthFlow]],1) -> 45444 | C53: ENGC_SGS | D53: 9 | E53: 316 | F53: =SUMPRODUCT((MeterReadSch2[MonthBill]=NorthCycles[[#This Row],[MonthFlow]])*(MeterReadSch2[Cycle]=NorthCycles[[#This Row],[Cycle]])*MeterReadSch2[ReadDate]) -> 45390 | G53: =SUMPRODUCT((MeterReadSch2[MonthFlow]=NorthCycles[[#This Row],[MonthFlow]])*(MeterReadSch2[Cycle]=NorthCycles[[#This Row],[Cycle]])*MeterReadSch2[ReadDate]) -> 45420 | H53: =SUMPRODUCT((KCITempAct[Date]>=NorthCycles[[#This Row],[BegRdDate]])*(KCITempAct[Date]<NorthCycles[[#This Row],[EndRdDate]])*KCITempAct[KCINHDDAdj]) -> 267.35 | I53: =SUMPRODUCT((KCITempAct[Date]>=NorthCycles[[#This Row],[BegRdDate]])*(KCITempAct[Date]<NorthCycles[[#This Row],[EndRdDate]])*KCITempAct[KCIHDDAdj]) -> 183 | J53: =NorthCycles[[#This Row],[NDD]]-NorthCycles[[#This Row],[ADD]] -> 84.35 | K53: =NorthCycles[[#This Row],[HDDDiff]]*NorthCycles[[#This Row],[NoOfBills]] -> 26654.6 | L53: =SUMPRODUCT((BetaCoeff[BeginDate]<=NorthCycles[[#This Row],[MonthFlow]])*(BetaCoeff[EndDate]>NorthCycles[[#This Row],[MonthFlow]])*(BetaCoeff[CustClass]=NorthCycles[[#This Row],[CustClass]])*BetaCoeff[BetaCoeff]) -> 0.2793279 | M53: =NorthCycles[[#This Row],[Diff*NoOfBills]]*NorthCycles[[#This Row],[BetaCoeff]] -> 7445.373443 | N53: =INDEX(RateCat[CustClass],MATCH(NorthCycles[[#This Row],[RateCategory]],RateCat[RateCategory],0)) -> Comm | O53: Customer count from Revenue Dept.
A54: 45413 | B54: =EDATE(NorthCycles[[#This Row],[MonthFlow]],1) -> 45444 | C54: ENGC_SGS | D54: 10 | E54: 634 | F54: =SUMPRODUCT((MeterReadSch2[MonthBill]=NorthCycles[[#This Row],[MonthFlow]])*(MeterReadSch2[Cycle]=NorthCycles[[#This Row],[Cycle]])*MeterReadSch2[ReadDate]) -> 45391 | G54: =SUMPRODUCT((MeterReadSch2[MonthFlow]=NorthCycles[[#This Row],[MonthFlow]])*(MeterReadSch2[Cycle]=NorthCycles[[#This Row],[Cycle]])*MeterReadSch2[ReadDate]) -> 45421 | H54: =SUMPRODUCT((KCITempAct[Date]>=NorthCycles[[#This Row],[BegRdDate]])*(KCITempAct[Date]<NorthCycles[[#This Row],[EndRdDate]])*KCITempAct[KCINHDDAdj]) -> 256.1166667 | I54: =SUMPRODUCT((KCITempAct[Date]>=NorthCycles[[#This Row],[BegRdDate]])*(KCITempAct[Date]<NorthCycles[[#This Row],[EndRdDate]])*KCITempAct[KCIHDDAdj]) -> 173.5 | J54: =NorthCycles[[#This Row],[NDD]]-NorthCycles[[#This Row],[ADD]] -> 82.61666667 | K54: =NorthCycles[[#This Row],[HDDDiff]]*NorthCycles[[#This Row],[NoOfBills]] -> 52378.96667 | L54: =SUMPRODUCT((BetaCoeff[BeginDate]<=NorthCycles[[#This Row],[MonthFlow]])*(BetaCoeff[EndDate]>NorthCycles[[#This Row],[MonthFlow]])*(BetaCoeff[CustClass]=NorthCycles[[#This Row],[CustClass]])*BetaCoeff[BetaCoeff]) -> 0.2793279 | M54: =NorthCycles[[#This Row],[Diff*NoOfBills]]*NorthCycles[[#This Row],[BetaCoeff]] -> 14630.90676 | N54: =INDEX(RateCat[CustClass],MATCH(NorthCycles[[#This Row],[RateCategory]],RateCat[RateCategory],0)) -> Comm | O54: Customer count from Revenue Dept.
A55: 45413 | B55: =EDATE(NorthCycles[[#This Row],[MonthFlow]],1) -> 45444 | C55: ENGC_SGS | D55: 20 | E55: 7 | F55: =SUMPRODUCT((MeterReadSch2[MonthBill]=NorthCycles[[#This Row],[MonthFlow]])*(MeterReadSch2[Cycle]=NorthCycles[[#This Row],[Cycle]])*MeterReadSch2[ReadDate]) -> 45406 | G55: =SUMPRODUCT((MeterReadSch2[MonthFlow]=NorthCycles[[#This Row],[MonthFlow]])*(MeterReadSch2[Cycle]=NorthCycles[[#This Row],[Cycle]])*MeterReadSch2[ReadDate]) -> 45435 | H55: =SUMPRODUCT((KCITempAct[Date]>=NorthCycles[[#This Row],[BegRdDate]])*(KCITempAct[Date]<NorthCycles[[#This Row],[EndRdDate]])*KCITempAct[KCINHDDAdj]) -> 151.2166667 | I55: =SUMPRODUCT((KCITempAct[Date]>=NorthCycles[[#This Row],[BegRdDate]])*(KCITempAct[Date]<NorthCycles[[#This Row],[EndRdDate]])*KCITempAct[KCIHDDAdj]) -> 64.5 | J55: =NorthCycles[[#This Row],[NDD]]-NorthCycles[[#This Row],[ADD]] -> 86.71666667 | K55: =NorthCycles[[#This Row],[HDDDiff]]*NorthCycles[[#This Row],[NoOfBills]] -> 607.0166667 | L55: =SUMPRODUCT((BetaCoeff[BeginDate]<=NorthCycles[[#This Row],[MonthFlow]])*(BetaCoeff[EndDate]>NorthCycles[[#This Row],[MonthFlow]])*(BetaCoeff[CustClass]=NorthCycles[[#This Row],[CustClass]])*BetaCoeff[BetaCoeff]) -> 0.2793279 | M55: =NorthCycles[[#This Row],[Diff*NoOfBills]]*NorthCycles[[#This Row],[BetaCoeff]] -> 169.5566908 | N55: =INDEX(RateCat[CustClass],MATCH(NorthCycles[[#This Row],[RateCategory]],RateCat[RateCategory],0)) -> Comm | O55: Customer count from Revenue Dept.
A56: 45413 | B56: =EDATE(NorthCycles[[#This Row],[MonthFlow]],1) -> 45444 | C56: ENGR_RS | D56: 8 | E56: 1161 | F56: =SUMPRODUCT((MeterReadSch2[MonthBill]=NorthCycles[[#This Row],[MonthFlow]])*(MeterReadSch2[Cycle]=NorthCycles[[#This Row],[Cycle]])*MeterReadSch2[ReadDate]) -> 45387 | G56: =SUMPRODUCT((MeterReadSch2[MonthFlow]=NorthCycles[[#This Row],[MonthFlow]])*(MeterReadSch2[Cycle]=NorthCycles[[#This Row],[Cycle]])*MeterReadSch2[ReadDate]) -> 45419 | H56: =SUMPRODUCT((KCITempAct[Date]>=NorthCycles[[#This Row],[BegRdDate]])*(KCITempAct[Date]<NorthCycles[[#This Row],[EndRdDate]])*KCITempAct[KCINHDDAdj]) -> 302.1666667 | I56: =SUMPRODUCT((KCITempAct[Date]>=NorthCycles[[#This Row],[BegRdDate]])*(KCITempAct[Date]<NorthCycles[[#This Row],[EndRdDate]])*KCITempAct[KCIHDDAdj]) -> 213 | J56: =NorthCycles[[#This Row],[NDD]]-NorthCycles[[#This Row],[ADD]] -> 89.16666667 | K56: =NorthCycles[[#This Row],[HDDDiff]]*NorthCycles[[#This Row],[NoOfBills]] -> 103522.5 | L56: =SUMPRODUCT((BetaCoeff[BeginDate]<=NorthCycles[[#This Row],[MonthFlow]])*(BetaCoeff[EndDate]>NorthCycles[[#This Row],[MonthFlow]])*(BetaCoeff[CustClass]=NorthCycles[[#This Row],[CustClass]])*BetaCoeff[BetaCoeff]) -> 0.1234365 | M56: =NorthCycles[[#This Row],[Diff*NoOfBills]]*NorthCycles[[#This Row],[BetaCoeff]] -> 12778.45507 | N56: =INDEX(RateCat[CustClass],MATCH(NorthCycles[[#This Row],[RateCategory]],RateCat[RateCategory],0)) -> Res | O56: Customer count from Revenue Dept.
A57: 45413 | B57: =EDATE(NorthCycles[[#This Row],[MonthFlow]],1) -> 45444 | C57: ENGR_RS | D57: 9 | E57: 2522 | F57: =SUMPRODUCT((MeterReadSch2[MonthBill]=NorthCycles[[#This Row],[MonthFlow]])*(MeterReadSch2[Cycle]=NorthCycles[[#This Row],[Cycle]])*MeterReadSch2[ReadDate]) -> 45390 | G57: =SUMPRODUCT((MeterReadSch2[MonthFlow]=NorthCycles[[#This Row],[MonthFlow]])*(MeterReadSch2[Cycle]=NorthCycles[[#This Row],[Cycle]])*MeterReadSch2[ReadDate]) -> 45420 | H57: =SUMPRODUCT((KCITempAct[Date]>=NorthCycles[[#This Row],[BegRdDate]])*(KCITempAct[Date]<NorthCycles[[#This Row],[EndRdDate]])*KCITempAct[KCINHDDAdj]) -> 267.35 | I57: =SUMPRODUCT((KCITempAct[Date]>=NorthCycles[[#This Row],[BegRdDate]])*(KCITempAct[Date]<NorthCycles[[#This Row],[EndRdDate]])*KCITempAct[KCIHDDAdj]) -> 183 | J57: =NorthCycles[[#This Row],[NDD]]-NorthCycles[[#This Row],[ADD]] -> 84.35 | K57: =NorthCycles[[#This Row],[HDDDiff]]*NorthCycles[[#This Row],[NoOfBills]] -> 212730.7 | L57: =SUMPRODUCT((BetaCoeff[BeginDate]<=NorthCycles[[#This Row],[MonthFlow]])*(BetaCoeff[EndDate]>NorthCycles[[#This Row],[MonthFlow]])*(BetaCoeff[CustClass]=NorthCycles[[#This Row],[CustClass]])*BetaCoeff[BetaCoeff]) -> 0.1234365 | M57: =NorthCycles[[#This Row],[Diff*NoOfBills]]*NorthCycles[[#This Row],[BetaCoeff]] -> 26258.73305 | N57: =INDEX(RateCat[CustClass],MATCH(NorthCycles[[#This Row],[RateCategory]],RateCat[RateCategory],0)) -> Res | O57: Customer count from Revenue Dept.
A58: 45413 | B58: =EDATE(NorthCycles[[#This Row],[MonthFlow]],1) -> 45444 | C58: ENGR_RS | D58: 10 | E58: 4381 | F58: =SUMPRODUCT((MeterReadSch2[MonthBill]=NorthCycles[[#This Row],[MonthFlow]])*(MeterReadSch2[Cycle]=NorthCycles[[#This Row],[Cycle]])*MeterReadSch2[ReadDate]) -> 45391 | G58: =SUMPRODUCT((MeterReadSch2[MonthFlow]=NorthCycles[[#This Row],[MonthFlow]])*(MeterReadSch2[Cycle]=NorthCycles[[#This Row],[Cycle]])*MeterReadSch2[ReadDate]) -> 45421 | H58: =SUMPRODUCT((KCITempAct[Date]>=NorthCycles[[#This Row],[BegRdDate]])*(KCITempAct[Date]<NorthCycles[[#This Row],[EndRdDate]])*KCITempAct[KCINHDDAdj]) -> 256.1166667 | I58: =SUMPRODUCT((KCITempAct[Date]>=NorthCycles[[#This Row],[BegRdDate]])*(KCITempAct[Date]<NorthCycles[[#This Row],[EndRdDate]])*KCITempAct[KCIHDDAdj]) -> 173.5 | J58: =NorthCycles[[#This Row],[NDD]]-NorthCycles[[#This Row],[ADD]] -> 82.61666667 | K58: =NorthCycles[[#This Row],[HDDDiff]]*NorthCycles[[#This Row],[NoOfBills]] -> 361943.6167 | L58: =SUMPRODUCT((BetaCoeff[BeginDate]<=NorthCycles[[#This Row],[MonthFlow]])*(BetaCoeff[EndDate]>NorthCycles[[#This Row],[MonthFlow]])*(BetaCoeff[CustClass]=NorthCycles[[#This Row],[CustClass]])*BetaCoeff[BetaCoeff]) -> 0.1234365 | M58: =NorthCycles[[#This Row],[Diff*NoOfBills]]*NorthCycles[[#This Row],[BetaCoeff]] -> 44677.05324 | N58: =INDEX(RateCat[CustClass],MATCH(NorthCycles[[#This Row],[RateCategory]],RateCat[RateCategory],0)) -> Res | O58: Customer count from Revenue Dept.
A59: 45444 | B59: =EDATE(NorthCycles[[#This Row],[MonthFlow]],1) -> 45474 | C59: ENGC_SGS | D59: 8 | E59: 193 | F59: =SUMPRODUCT((MeterReadSch2[MonthBill]=NorthCycles[[#This Row],[MonthFlow]])*(MeterReadSch2[Cycle]=NorthCycles[[#This Row],[Cycle]])*MeterReadSch2[ReadDate]) -> 45419 | G59: =SUMPRODUCT((MeterReadSch2[MonthFlow]=NorthCycles[[#This Row],[MonthFlow]])*(MeterReadSch2[Cycle]=NorthCycles[[#This Row],[Cycle]])*MeterReadSch2[ReadDate]) -> 45450 | H59: =SUMPRODUCT((KCITempAct[Date]>=NorthCycles[[#This Row],[BegRdDate]])*(KCITempAct[Date]<NorthCycles[[#This Row],[EndRdDate]])*KCITempAct[KCINHDDAdj]) -> 76.71666667 | I59: =SUMPRODUCT((KCITempAct[Date]>=NorthCycles[[#This Row],[BegRdDate]])*(KCITempAct[Date]<NorthCycles[[#This Row],[EndRdDate]])*KCITempAct[KCIHDDAdj]) -> 13 | J59: =NorthCycles[[#This Row],[NDD]]-NorthCycles[[#This Row],[ADD]] -> 63.71666667 | K59: =NorthCycles[[#This Row],[HDDDiff]]*NorthCycles[[#This Row],[NoOfBills]] -> 12297.31667 | L59: =SUMPRODUCT((BetaCoeff[BeginDate]<=NorthCycles[[#This Row],[MonthFlow]])*(BetaCoeff[EndDate]>NorthCycles[[#This Row],[MonthFlow]])*(BetaCoeff[CustClass]=NorthCycles[[#This Row],[CustClass]])*BetaCoeff[BetaCoeff]) -> 0.2793279 | M59: =NorthCycles[[#This Row],[Diff*NoOfBills]]*NorthCycles[[#This Row],[BetaCoeff]] -> 3434.98364 | N59: =INDEX(RateCat[CustClass],MATCH(NorthCycles[[#This Row],[RateCategory]],RateCat[RateCategory],0)) -> Comm
A60: 45444 | B60: =EDATE(NorthCycles[[#This Row],[MonthFlow]],1) -> 45474 | C60: ENGC_SGS | D60: 9 | E60: 256 | F60: =SUMPRODUCT((MeterReadSch2[MonthBill]=NorthCycles[[#This Row],[MonthFlow]])*(MeterReadSch2[Cycle]=NorthCycles[[#This Row],[Cycle]])*MeterReadSch2[ReadDate]) -> 45420 | G60: =SUMPRODUCT((MeterReadSch2[MonthFlow]=NorthCycles[[#This Row],[MonthFlow]])*(MeterReadSch2[Cycle]=NorthCycles[[#This Row],[Cycle]])*MeterReadSch2[ReadDate]) -> 45453 | H60: =SUMPRODUCT((KCITempAct[Date]>=NorthCycles[[#This Row],[BegRdDate]])*(KCITempAct[Date]<NorthCycles[[#This Row],[EndRdDate]])*KCITempAct[KCINHDDAdj]) -> 73.91666667 | I60: =SUMPRODUCT((KCITempAct[Date]>=NorthCycles[[#This Row],[BegRdDate]])*(KCITempAct[Date]<NorthCycles[[#This Row],[EndRdDate]])*KCITempAct[KCIHDDAdj]) -> 13 | J60: =NorthCycles[[#This Row],[NDD]]-NorthCycles[[#This Row],[ADD]] -> 60.91666667 | K60: =NorthCycles[[#This Row],[HDDDiff]]*NorthCycles[[#This Row],[NoOfBills]] -> 15594.66667 | L60: =SUMPRODUCT((BetaCoeff[BeginDate]<=NorthCycles[[#This Row],[MonthFlow]])*(BetaCoeff[EndDate]>NorthCycles[[#This Row],[MonthFlow]])*(BetaCoeff[CustClass]=NorthCycles[[#This Row],[CustClass]])*BetaCoeff[BetaCoeff]) -> 0.2793279 | M60: =NorthCycles[[#This Row],[Diff*NoOfBills]]*NorthCycles[[#This Row],[BetaCoeff]] -> 4356.025491 | N60: =INDEX(RateCat[CustClass],MATCH(NorthCycles[[#This Row],[RateCategory]],RateCat[RateCategory],0)) -> Comm
A61: 45444 | B61: =EDATE(NorthCycles[[#This Row],[MonthFlow]],1) -> 45474 | C61: ENGC_SGS | D61: 10 | E61: 468 | F61: =SUMPRODUCT((MeterReadSch2[MonthBill]=NorthCycles[[#This Row],[MonthFlow]])*(MeterReadSch2[Cycle]=NorthCycles[[#This Row],[Cycle]])*MeterReadSch2[ReadDate]) -> 45421 | G61: =SUMPRODUCT((MeterReadSch2[MonthFlow]=NorthCycles[[#This Row],[MonthFlow]])*(MeterReadSch2[Cycle]=NorthCycles[[#This Row],[Cycle]])*MeterReadSch2[ReadDate]) -> 45454 | H61: =SUMPRODUCT((KCITempAct[Date]>=NorthCycles[[#This Row],[BegRdDate]])*(KCITempAct[Date]<NorthCycles[[#This Row],[EndRdDate]])*KCITempAct[KCINHDDAdj]) -> 71.51666667 | I61: =SUMPRODUCT((KCITempAct[Date]>=NorthCycles[[#This Row],[BegRdDate]])*(KCITempAct[Date]<NorthCycles[[#This Row],[EndRdDate]])*KCITempAct[KCIHDDAdj]) -> 13 | J61: =NorthCycles[[#This Row],[NDD]]-NorthCycles[[#This Row],[ADD]] -> 58.51666667 | K61: =NorthCycles[[#This Row],[HDDDiff]]*NorthCycles[[#This Row],[NoOfBills]] -> 27385.8 | L61: =SUMPRODUCT((BetaCoeff[BeginDate]<=NorthCycles[[#This Row],[MonthFlow]])*(BetaCoeff[EndDate]>NorthCycles[[#This Row],[MonthFlow]])*(BetaCoeff[CustClass]=NorthCycles[[#This Row],[CustClass]])*BetaCoeff[BetaCoeff]) -> 0.2793279 | M61: =NorthCycles[[#This Row],[Diff*NoOfBills]]*NorthCycles[[#This Row],[BetaCoeff]] -> 7649.618004 | N61: =INDEX(RateCat[CustClass],MATCH(NorthCycles[[#This Row],[RateCategory]],RateCat[RateCategory],0)) -> Comm
A62: 45444 | B62: =EDATE(NorthCycles[[#This Row],[MonthFlow]],1) -> 45474 | C62: ENGC_SGS | D62: 20 | E62: 20 | F62: =SUMPRODUCT((MeterReadSch2[MonthBill]=NorthCycles[[#This Row],[MonthFlow]])*(MeterReadSch2[Cycle]=NorthCycles[[#This Row],[Cycle]])*MeterReadSch2[ReadDate]) -> 45435 | G62: =SUMPRODUCT((MeterReadSch2[MonthFlow]=NorthCycles[[#This Row],[MonthFlow]])*(MeterReadSch2[Cycle]=NorthCycles[[#This Row],[Cycle]])*MeterReadSch2[ReadDate]) -> 45468 | H62: =SUMPRODUCT((KCITempAct[Date]>=NorthCycles[[#This Row],[BegRdDate]])*(KCITempAct[Date]<NorthCycles[[#This Row],[EndRdDate]])*KCITempAct[KCINHDDAdj]) -> 20.83333333 | I62: =SUMPRODUCT((KCITempAct[Date]>=NorthCycles[[#This Row],[BegRdDate]])*(KCITempAct[Date]<NorthCycles[[#This Row],[EndRdDate]])*KCITempAct[KCIHDDAdj]) -> 0 | J62: =NorthCycles[[#This Row],[NDD]]-NorthCycles[[#This Row],[ADD]] -> 20.83333333 | K62: =NorthCycles[[#This Row],[HDDDiff]]*NorthCycles[[#This Row],[NoOfBills]] -> 416.6666667 | L62: =SUMPRODUCT((BetaCoeff[BeginDate]<=NorthCycles[[#This Row],[MonthFlow]])*(BetaCoeff[EndDate]>NorthCycles[[#This Row],[MonthFlow]])*(BetaCoeff[CustClass]=NorthCycles[[#This Row],[CustClass]])*BetaCoeff[BetaCoeff]) -> 0.2793279 | M62: =NorthCycles[[#This Row],[Diff*NoOfBills]]*NorthCycles[[#This Row],[BetaCoeff]] -> 116.386625 | N62: =INDEX(RateCat[CustClass],MATCH(NorthCycles[[#This Row],[RateCategory]],RateCat[RateCategory],0)) -> Comm
A63: 45444 | B63: =EDATE(NorthCycles[[#This Row],[MonthFlow]],1) -> 45474 | C63: ENGR_RS | D63: 8 | E63: 1103 | F63: =SUMPRODUCT((MeterReadSch2[MonthBill]=NorthCycles[[#This Row],[MonthFlow]])*(MeterReadSch2[Cycle]=NorthCycles[[#This Row],[Cycle]])*MeterReadSch2[ReadDate]) -> 45419 | G63: =SUMPRODUCT((MeterReadSch2[MonthFlow]=NorthCycles[[#This Row],[MonthFlow]])*(MeterReadSch2[Cycle]=NorthCycles[[#This Row],[Cycle]])*MeterReadSch2[ReadDate]) -> 45450 | H63: =SUMPRODUCT((KCITempAct[Date]>=NorthCycles[[#This Row],[BegRdDate]])*(KCITempAct[Date]<NorthCycles[[#This Row],[EndRdDate]])*KCITempAct[KCINHDDAdj]) -> 76.71666667 | I63: =SUMPRODUCT((KCITempAct[Date]>=NorthCycles[[#This Row],[BegRdDate]])*(KCITempAct[Date]<NorthCycles[[#This Row],[EndRdDate]])*KCITempAct[KCIHDDAdj]) -> 13 | J63: =NorthCycles[[#This Row],[NDD]]-NorthCycles[[#This Row],[ADD]] -> 63.71666667 | K63: =NorthCycles[[#This Row],[HDDDiff]]*NorthCycles[[#This Row],[NoOfBills]] -> 70279.48333 | L63: =SUMPRODUCT((BetaCoeff[BeginDate]<=NorthCycles[[#This Row],[MonthFlow]])*(BetaCoeff[EndDate]>NorthCycles[[#This Row],[MonthFlow]])*(BetaCoeff[CustClass]=NorthCycles[[#This Row],[CustClass]])*BetaCoeff[BetaCoeff]) -> 0.1234365 | M63: =NorthCycles[[#This Row],[Diff*NoOfBills]]*NorthCycles[[#This Row],[BetaCoeff]] -> 8675.053444 | N63: =INDEX(RateCat[CustClass],MATCH(NorthCycles[[#This Row],[RateCategory]],RateCat[RateCategory],0)) -> Res
A64: 45444 | B64: =EDATE(NorthCycles[[#This Row],[MonthFlow]],1) -> 45474 | C64: ENGR_RS | D64: 9 | E64: 2438 | F64: =SUMPRODUCT((MeterReadSch2[MonthBill]=NorthCycles[[#This Row],[MonthFlow]])*(MeterReadSch2[Cycle]=NorthCycles[[#This Row],[Cycle]])*MeterReadSch2[ReadDate]) -> 45420 | G64: =SUMPRODUCT((MeterReadSch2[MonthFlow]=NorthCycles[[#This Row],[MonthFlow]])*(MeterReadSch2[Cycle]=NorthCycles[[#This Row],[Cycle]])*MeterReadSch2[ReadDate]) -> 45453 | H64: =SUMPRODUCT((KCITempAct[Date]>=NorthCycles[[#This Row],[BegRdDate]])*(KCITempAct[Date]<NorthCycles[[#This Row],[EndRdDate]])*KCITempAct[KCINHDDAdj]) -> 73.91666667 | I64: =SUMPRODUCT((KCITempAct[Date]>=NorthCycles[[#This Row],[BegRdDate]])*(KCITempAct[Date]<NorthCycles[[#This Row],[EndRdDate]])*KCITempAct[KCIHDDAdj]) -> 13 | J64: =NorthCycles[[#This Row],[NDD]]-NorthCycles[[#This Row],[ADD]] -> 60.91666667 | K64: =NorthCycles[[#This Row],[HDDDiff]]*NorthCycles[[#This Row],[NoOfBills]] -> 148514.8333 | L64: =SUMPRODUCT((BetaCoeff[BeginDate]<=NorthCycles[[#This Row],[MonthFlow]])*(BetaCoeff[EndDate]>NorthCycles[[#This Row],[MonthFlow]])*(BetaCoeff[CustClass]=NorthCycles[[#This Row],[CustClass]])*BetaCoeff[BetaCoeff]) -> 0.1234365 | M64: =NorthCycles[[#This Row],[Diff*NoOfBills]]*NorthCycles[[#This Row],[BetaCoeff]] -> 18332.15122 | N64: =INDEX(RateCat[CustClass],MATCH(NorthCycles[[#This Row],[RateCategory]],RateCat[RateCategory],0)) -> Res
A65: 45444 | B65: =EDATE(NorthCycles[[#This Row],[MonthFlow]],1) -> 45474 | C65: ENGR_RS | D65: 10 | E65: 4174 | F65: =SUMPRODUCT((MeterReadSch2[MonthBill]=NorthCycles[[#This Row],[MonthFlow]])*(MeterReadSch2[Cycle]=NorthCycles[[#This Row],[Cycle]])*MeterReadSch2[ReadDate]) -> 45421 | G65: =SUMPRODUCT((MeterReadSch2[MonthFlow]=NorthCycles[[#This Row],[MonthFlow]])*(MeterReadSch2[Cycle]=NorthCycles[[#This Row],[Cycle]])*MeterReadSch2[ReadDate]) -> 45454 | H65: =SUMPRODUCT((KCITempAct[Date]>=NorthCycles[[#This Row],[BegRdDate]])*(KCITempAct[Date]<NorthCycles[[#This Row],[EndRdDate]])*KCITempAct[KCINHDDAdj]) -> 71.51666667 | I65: =SUMPRODUCT((KCITempAct[Date]>=NorthCycles[[#This Row],[BegRdDate]])*(KCITempAct[Date]<NorthCycles[[#This Row],[EndRdDate]])*KCITempAct[KCIHDDAdj]) -> 13 | J65: =NorthCycles[[#This Row],[NDD]]-NorthCycles[[#This Row],[ADD]] -> 58.51666667 | K65: =NorthCycles[[#This Row],[HDDDiff]]*NorthCycles[[#This Row],[NoOfBills]] -> 244248.5667 | L65: =SUMPRODUCT((BetaCoeff[BeginDate]<=NorthCycles[[#This Row],[MonthFlow]])*(BetaCoeff[EndDate]>NorthCycles[[#This Row],[MonthFlow]])*(BetaCoeff[CustClass]=NorthCycles[[#This Row],[CustClass]])*BetaCoeff[BetaCoeff]) -> 0.1234365 | M65: =NorthCycles[[#This Row],[Diff*NoOfBills]]*NorthCycles[[#This Row],[BetaCoeff]] -> 30149.1882 | N65: =INDEX(RateCat[CustClass],MATCH(NorthCycles[[#This Row],[RateCategory]],RateCat[RateCategory],0)) -> Res

Sheet NW Cycles
A1: MonthFlow | B1: MonthBill | C1: RateCategory | D1: Cycle | E1: NoOfBills | F1: BegRdDate | G1: EndRdDate | H1: NDD | I1: ADD | J1: HDDDiff | K1: Diff*NoOfBills | L1: BetaCoeff | M1: WNAFactor | N1: CustClass | O1: Preparer's Notes | P1: Reviewer's Notes
A2: 44805 | B2: =EDATE(NWCycles[[#This Row],[MonthFlow]],1) -> 44835 | C2: EGGC_SGS | D2: All | E2: 671 | F2: 44802 | G2: 44832 | H2: =SUMPRODUCT((KCITempAct[Date]>=NWCycles[[#This Row],[BegRdDate]])*(KCITempAct[Date]<NWCycles[[#This Row],[EndRdDate]])*KCITempAct[KCINHDDAdj]) -> 41.53333333 | I2: =SUMPRODUCT((KCITempAct[Date]>=NWCycles[[#This Row],[BegRdDate]])*(KCITempAct[Date]<NWCycles[[#This Row],[EndRdDate]])*KCITempAct[KCIHDDAdj]) -> 13.5 | J2: =NWCycles[[#This Row],[NDD]]-NWCycles[[#This Row],[ADD]] -> 28.03333333 | K2: =NWCycles[[#This Row],[HDDDiff]]*NWCycles[[#This Row],[NoOfBills]] -> 18810.36667 | L2: =SUMPRODUCT((BetaCoeff[BeginDate]<=NWCycles[[#This Row],[MonthFlow]])*(BetaCoeff[EndDate]>NWCycles[[#This Row],[MonthFlow]])*(BetaCoeff[CustClass]=NWCycles[[#This Row],[CustClass]])*BetaCoeff[BetaCoeff]) -> 0.2793279 | M2: =NWCycles[[#This Row],[Diff*NoOfBills]]*NWCycles[[#This Row],[BetaCoeff]] -> 5254.260219 | N2: =INDEX(RateCat[CustClass],MATCH(NWCycles[[#This Row],[RateCategory]],RateCat[RateCategory],0)) -> Comm | O2: Customer count from Revenue Dept.
A3: 44805 | B3: =EDATE(NWCycles[[#This Row],[MonthFlow]],1) -> 44835 | C3: EGGR_RS | D3: All | E3: 4795 | F3: 44802 | G3: 44832 | H3: =SUMPRODUCT((KCITempAct[Date]>=NWCycles[[#This Row],[BegRdDate]])*(KCITempAct[Date]<NWCycles[[#This Row],[EndRdDate]])*KCITempAct[KCINHDDAdj]) -> 41.53333333 | I3: =SUMPRODUCT((KCITempAct[Date]>=NWCycles[[#This Row],[BegRdDate]])*(KCITempAct[Date]<NWCycles[[#This Row],[EndRdDate]])*KCITempAct[KCIHDDAdj]) -> 13.5 | J3: =NWCycles[[#This Row],[NDD]]-NWCycles[[#This Row],[ADD]] -> 28.03333333 | K3: =NWCycles[[#This Row],[HDDDiff]]*NWCycles[[#This Row],[NoOfBills]] -> 134419.8333 | L3: =SUMPRODUCT((BetaCoeff[BeginDate]<=NWCycles[[#This Row],[MonthFlow]])*(BetaCoeff[EndDate]>NWCycles[[#This Row],[MonthFlow]])*(BetaCoeff[CustClass]=NWCycles[[#This Row],[CustClass]])*BetaCoeff[BetaCoeff]) -> 0.1234365 | M3: =NWCycles[[#This Row],[Diff*NoOfBills]]*NWCycles[[#This Row],[BetaCoeff]] -> 16592.31376 | N3: =INDEX(RateCat[CustClass],MATCH(NWCycles[[#This Row],[RateCategory]],RateCat[RateCategory],0)) -> Res | O3: Customer count from Revenue Dept.
A4: 44835 | B4: =EDATE(NWCycles[[#This Row],[MonthFlow]],1) -> 44866 | C4: EGGC_SGS | D4: All | E4: 677 | F4: 44832 | G4: 44862 | H4: =SUMPRODUCT((KCITempAct[Date]>=NWCycles[[#This Row],[BegRdDate]])*(KCITempAct[Date]<NWCycles[[#This Row],[EndRdDate]])*KCITempAct[KCINHDDAdj]) -> 246.35 | I4: =SUMPRODUCT((KCITempAct[Date]>=NWCycles[[#This Row],[BegRdDate]])*(KCITempAct[Date]<NWCycles[[#This Row],[EndRdDate]])*KCITempAct[KCIHDDAdj]) -> 216 | J4: =NWCycles[[#This Row],[NDD]]-NWCycles[[#This Row],[ADD]] -> 30.35 | K4: =NWCycles[[#This Row],[HDDDiff]]*NWCycles[[#This Row],[NoOfBills]] -> 20546.95 | L4: =SUMPRODUCT((BetaCoeff[BeginDate]<=NWCycles[[#This Row],[MonthFlow]])*(BetaCoeff[EndDate]>NWCycles[[#This Row],[MonthFlow]])*(BetaCoeff[CustClass]=NWCycles[[#This Row],[CustClass]])*BetaCoeff[BetaCoeff]) -> 0.2793279 | M4: =NWCycles[[#This Row],[Diff*NoOfBills]]*NWCycles[[#This Row],[BetaCoeff]] -> 5739.336395 | N4: =INDEX(RateCat[CustClass],MATCH(NWCycles[[#This Row],[RateCategory]],RateCat[RateCategory],0)) -> Comm | O4: Customer count from Revenue Dept.
A5: 44835 | B5: =EDATE(NWCycles[[#This Row],[MonthFlow]],1) -> 44866 | C5: EGGR_RS | D5: All | E5: 4870 | F5: 44832 | G5: 44862 | H5: =SUMPRODUCT((KCITempAct[Date]>=NWCycles[[#This Row],[BegRdDate]])*(KCITempAct[Date]<NWCycles[[#This Row],[EndRdDate]])*KCITempAct[KCINHDDAdj]) -> 246.35 | I5: =SUMPRODUCT((KCITempAct[Date]>=NWCycles[[#This Row],[BegRdDate]])*(KCITempAct[Date]<NWCycles[[#This Row],[EndRdDate]])*KCITempAct[KCIHDDAdj]) -> 216 | J5: =NWCycles[[#This Row],[NDD]]-NWCycles[[#This Row],[ADD]] -> 30.35 | K5: =NWCycles[[#This Row],[HDDDiff]]*NWCycles[[#This Row],[NoOfBills]] -> 147804.5 | L5: =SUMPRODUCT((BetaCoeff[BeginDate]<=NWCycles[[#This Row],[MonthFlow]])*(BetaCoeff[EndDate]>NWCycles[[#This Row],[MonthFlow]])*(BetaCoeff[CustClass]=NWCycles[[#This Row],[CustClass]])*BetaCoeff[BetaCoeff]) -> 0.1234365 | M5: =NWCycles[[#This Row],[Diff*NoOfBills]]*NWCycles[[#This Row],[BetaCoeff]] -> 18244.47016 | N5: =INDEX(RateCat[CustClass],MATCH(NWCycles[[#This Row],[RateCategory]],RateCat[RateCategory],0)) -> Res | O5: Customer count from Revenue Dept.
A6: 44866 | B6: =EDATE(NWCycles[[#This Row],[MonthFlow]],1) -> 44896 | C6: EGGC_SGS | D6: All | E6: 676 | F6: 44862 | G6: 44894 | H6: =SUMPRODUCT((KCITempAct[Date]>=NWCycles[[#This Row],[BegRdDate]])*(KCITempAct[Date]<NWCycles[[#This Row],[EndRdDate]])*KCITempAct[KCINHDDAdj]) -> 641 | I6: =SUMPRODUCT((KCITempAct[Date]>=NWCycles[[#This Row],[BegRdDate]])*(KCITempAct[Date]<NWCycles[[#This Row],[EndRdDate]])*KCITempAct[KCIHDDAdj]) -> 612 | J6: =NWCycles[[#This Row],[NDD]]-NWCycles[[#This Row],[ADD]] -> 29 | K6: =NWCycles[[#This Row],[HDDDiff]]*NWCycles[[#This Row],[NoOfBills]] -> 19604 | L6: =SUMPRODUCT((BetaCoeff[BeginDate]<=NWCycles[[#This Row],[MonthFlow]])*(BetaCoeff[EndDate]>NWCycles[[#This Row],[MonthFlow]])*(BetaCoeff[CustClass]=NWCycles[[#This Row],[CustClass]])*BetaCoeff[BetaCoeff]) -> 0.2793279 | M6: =NWCycles[[#This Row],[Diff*NoOfBills]]*NWCycles[[#This Row],[BetaCoeff]] -> 5475.944152 | N6: =INDEX(RateCat[CustClass],MATCH(NWCycles[[#This Row],[RateCategory]],RateCat[RateCategory],0)) -> Comm | O6: Customer count from Revenue Dept.
A7: 44866 | B7: =EDATE(NWCycles[[#This Row],[MonthFlow]],1) -> 44896 | C7: EGGR_RS | D7: All | E7: 4891 | F7: 44862 | G7: 44894 | H7: =SUMPRODUCT((KCITempAct[Date]>=NWCycles[[#This Row],[BegRdDate]])*(KCITempAct[Date]<NWCycles[[#This Row],[EndRdDate]])*KCITempAct[KCINHDDAdj]) -> 641 | I7: =SUMPRODUCT((KCITempAct[Date]>=NWCycles[[#This Row],[BegRdDate]])*(KCITempAct[Date]<NWCycles[[#This Row],[EndRdDate]])*KCITempAct[KCIHDDAdj]) -> 612 | J7: =NWCycles[[#This Row],[NDD]]-NWCycles[[#This Row],[ADD]] -> 29 | K7: =NWCycles[[#This Row],[HDDDiff]]*NWCycles[[#This Row],[NoOfBills]] -> 141839 | L7: =SUMPRODUCT((BetaCoeff[BeginDate]<=NWCycles[[#This Row],[MonthFlow]])*(BetaCoeff[EndDate]>NWCycles[[#This Row],[MonthFlow]])*(BetaCoeff[CustClass]=NWCycles[[#This Row],[CustClass]])*BetaCoeff[BetaCoeff]) -> 0.1234365 | M7: =NWCycles[[#This Row],[Diff*NoOfBills]]*NWCycles[[#This Row],[BetaCoeff]] -> 17508.10972 | N7: =INDEX(RateCat[CustClass],MATCH(NWCycles[[#This Row],[RateCategory]],RateCat[RateCategory],0)) -> Res | O7: Customer count from Revenue Dept.
A8: 44896 | B8: =EDATE(NWCycles[[#This Row],[MonthFlow]],1) -> 44927 | C8: EGGC_SGS | D8: All | E8: 679 | F8: 44894 | G8: 44922 | H8: =SUMPRODUCT((KCITempAct[Date]>=NWCycles[[#This Row],[BegRdDate]])*(KCITempAct[Date]<NWCycles[[#This Row],[EndRdDate]])*KCITempAct[KCINHDDAdj]) -> 871.35 | I8: =SUMPRODUCT((KCITempAct[Date]>=NWCycles[[#This Row],[BegRdDate]])*(KCITempAct[Date]<NWCycles[[#This Row],[EndRdDate]])*KCITempAct[KCIHDDAdj]) -> 934 | J8: =NWCycles[[#This Row],[NDD]]-NWCycles[[#This Row],[ADD]] -> -62.65 | K8: =NWCycles[[#This Row],[HDDDiff]]*NWCycles[[#This Row],[NoOfBills]] -> -42539.35 | L8: =SUMPRODUCT((BetaCoeff[BeginDate]<=NWCycles[[#This Row],[MonthFlow]])*(BetaCoeff[EndDate]>NWCycles[[#This Row],[MonthFlow]])*(BetaCoeff[CustClass]=NWCycles[[#This Row],[CustClass]])*BetaCoeff[BetaCoeff]) -> 0.2793279 | M8: =NWCycles[[#This Row],[Diff*NoOfBills]]*NWCycles[[#This Row],[BetaCoeff]] -> -11882.4273 | N8: =INDEX(RateCat[CustClass],MATCH(NWCycles[[#This Row],[RateCategory]],RateCat[RateCategory],0)) -> Comm | O8: Customer count from Revenue Dept.
A9: 44896 | B9: =EDATE(NWCycles[[#This Row],[MonthFlow]],1) -> 44927 | C9: EGGR_RS | D9: All | E9: 4894 | F9: 44894 | G9: 44922 | H9: =SUMPRODUCT((KCITempAct[Date]>=NWCycles[[#This Row],[BegRdDate]])*(KCITempAct[Date]<NWCycles[[#This Row],[EndRdDate]])*KCITempAct[KCINHDDAdj]) -> 871.35 | I9: =SUMPRODUCT((KCITempAct[Date]>=NWCycles[[#This Row],[BegRdDate]])*(KCITempAct[Date]<NWCycles[[#This Row],[EndRdDate]])*KCITempAct[KCIHDDAdj]) -> 934 | J9: =NWCycles[[#This Row],[NDD]]-NWCycles[[#This Row],[ADD]] -> -62.65 | K9: =NWCycles[[#This Row],[HDDDiff]]*NWCycles[[#This Row],[NoOfBills]] -> -306609.1 | L9: =SUMPRODUCT((BetaCoeff[BeginDate]<=NWCycles[[#This Row],[MonthFlow]])*(BetaCoeff[EndDate]>NWCycles[[#This Row],[MonthFlow]])*(BetaCoeff[CustClass]=NWCycles[[#This Row],[CustClass]])*BetaCoeff[BetaCoeff]) -> 0.1234365 | M9: =NWCycles[[#This Row],[Diff*NoOfBills]]*NWCycles[[#This Row],[BetaCoeff]] -> -37846.75417 | N9: =INDEX(RateCat[CustClass],MATCH(NWCycles[[#This Row],[RateCategory]],RateCat[RateCategory],0)) -> Res | O9: Customer count from Revenue Dept.
A10: 44927 | B10: =EDATE(NWCycles[[#This Row],[MonthFlow]],1) -> 44958 | C10: EGGC_SGS | D10: All | E10: 680 | F10: 44922 | G10: 44952 | H10: =SUMPRODUCT((KCITempAct[Date]>=NWCycles[[#This Row],[BegRdDate]])*(KCITempAct[Date]<NWCycles[[#This Row],[EndRdDate]])*KCITempAct[KCINHDDAdj]) -> 1064.433333 | I10: =SUMPRODUCT((KCITempAct[Date]>=NWCycles[[#This Row],[BegRdDate]])*(KCITempAct[Date]<NWCycles[[#This Row],[EndRdDate]])*KCITempAct[KCIHDDAdj]) -> 769.5 | J10: =NWCycles[[#This Row],[NDD]]-NWCycles[[#This Row],[ADD]] -> 294.9333333 | K10: =NWCycles[[#This Row],[HDDDiff]]*NWCycles[[#This Row],[NoOfBills]] -> 200554.6667 | L10: =SUMPRODUCT((BetaCoeff[BeginDate]<=NWCycles[[#This Row],[MonthFlow]])*(BetaCoeff[EndDate]>NWCycles[[#This Row],[MonthFlow]])*(BetaCoeff[CustClass]=NWCycles[[#This Row],[CustClass]])*BetaCoeff[BetaCoeff]) -> 0.2793279 | M10: =NWCycles[[#This Row],[Diff*NoOfBills]]*NWCycles[[#This Row],[BetaCoeff]] -> 56020.51388 | N10: =INDEX(RateCat[CustClass],MATCH(NWCycles[[#This Row],[RateCategory]],RateCat[RateCategory],0)) -> Comm | O10: Customer count from Revenue Dept.
A11: 44927 | B11: =EDATE(NWCycles[[#This Row],[MonthFlow]],1) -> 44958 | C11: EGGR_RS | D11: All | E11: 4900 | F11: 44922 | G11: 44952 | H11: =SUMPRODUCT((KCITempAct[Date]>=NWCycles[[#This Row],[BegRdDate]])*(KCITempAct[Date]<NWCycles[[#This Row],[EndRdDate]])*KCITempAct[KCINHDDAdj]) -> 1064.433333 | I11: =SUMPRODUCT((KCITempAct[Date]>=NWCycles[[#This Row],[BegRdDate]])*(KCITempAct[Date]<NWCycles[[#This Row],[EndRdDate]])*KCITempAct[KCIHDDAdj]) -> 769.5 | J11: =NWCycles[[#This Row],[NDD]]-NWCycles[[#This Row],[ADD]] -> 294.9333333 | K11: =NWCycles[[#This Row],[HDDDiff]]*NWCycles[[#This Row],[NoOfBills]] -> 1445173.333 | L11: =SUMPRODUCT((BetaCoeff[BeginDate]<=NWCycles[[#This Row],[MonthFlow]])*(BetaCoeff[EndDate]>NWCycles[[#This Row],[MonthFlow]])*(BetaCoeff[CustClass]=NWCycles[[#This Row],[CustClass]])*BetaCoeff[BetaCoeff]) -> 0.1234365 | M11: =NWCycles[[#This Row],[Diff*NoOfBills]]*NWCycles[[#This Row],[BetaCoeff]] -> 178387.1382 | N11: =INDEX(RateCat[CustClass],MATCH(NWCycles[[#This Row],[RateCategory]],RateCat[RateCategory],0)) -> Res | O11: Customer count from Revenue Dept.
A12: 44958 | B12: =EDATE(NWCycles[[#This Row],[MonthFlow]],1) -> 44986 | C12: EGGC_SGS | D12: All | E12: 679 | F12: 44952 | G12: 44984 | H12: =SUMPRODUCT((KCITempAct[Date]>=NWCycles[[#This Row],[BegRdDate]])*(KCITempAct[Date]<NWCycles[[#This Row],[EndRdDate]])*KCITempAct[KCINHDDAdj]) -> 1035.133333 | I12: =SUMPRODUCT((KCITempAct[Date]>=NWCycles[[#This Row],[BegRdDate]])*(KCITempAct[Date]<NWCycles[[#This Row],[EndRdDate]])*KCITempAct[KCIHDDAdj]) -> 972 | J12: =NWCycles[[#This Row],[NDD]]-NWCycles[[#This Row],[ADD]] -> 63.13333333 | K12: =NWCycles[[#This Row],[HDDDiff]]*NWCycles[[#This Row],[NoOfBills]] -> 42867.53333 | L12: =SUMPRODUCT((BetaCoeff[BeginDate]<=NWCycles[[#This Row],[MonthFlow]])*(BetaCoeff[EndDate]>NWCycles[[#This Row],[MonthFlow]])*(BetaCoeff[CustClass]=NWCycles[[#This Row],[CustClass]])*BetaCoeff[BetaCoeff]) -> 0.2793279 | M12: =NWCycles[[#This Row],[Diff*NoOfBills]]*NWCycles[[#This Row],[BetaCoeff]] -> 11974.09806 | N12: =INDEX(RateCat[CustClass],MATCH(NWCycles[[#This Row],[RateCategory]],RateCat[RateCategory],0)) -> Comm | O12: Customer count from Revenue Dept.
A13: 44958 | B13: =EDATE(NWCycles[[#This Row],[MonthFlow]],1) -> 44986 | C13: EGGR_RS | D13: All | E13: 4886 | F13: 44952 | G13: 44984 | H13: =SUMPRODUCT((KCITempAct[Date]>=NWCycles[[#This Row],[BegRdDate]])*(KCITempAct[Date]<NWCycles[[#This Row],[EndRdDate]])*KCITempAct[KCINHDDAdj]) -> 1035.133333 | I13: =SUMPRODUCT((KCITempAct[Date]>=NWCycles[[#This Row],[BegRdDate]])*(KCITempAct[Date]<NWCycles[[#This Row],[EndRdDate]])*KCITempAct[KCIHDDAdj]) -> 972 | J13: =NWCycles[[#This Row],[NDD]]-NWCycles[[#This Row],[ADD]] -> 63.13333333 | K13: =NWCycles[[#This Row],[HDDDiff]]*NWCycles[[#This Row],[NoOfBills]] -> 308469.4667 | L13: =SUMPRODUCT((BetaCoeff[BeginDate]<=NWCycles[[#This Row],[MonthFlow]])*(BetaCoeff[EndDate]>NWCycles[[#This Row],[MonthFlow]])*(BetaCoeff[CustClass]=NWCycles[[#This Row],[CustClass]])*BetaCoeff[BetaCoeff]) -> 0.1234365 | M13: =NWCycles[[#This Row],[Diff*NoOfBills]]*NWCycles[[#This Row],[BetaCoeff]] -> 38076.39132 | N13: =INDEX(RateCat[CustClass],MATCH(NWCycles[[#This Row],[RateCategory]],RateCat[RateCategory],0)) -> Res | O13: Customer count from Revenue Dept.
A14: 44986 | B14: =EDATE(NWCycles[[#This Row],[MonthFlow]],1) -> 45017 | C14: EGGC_SGS | D14: All | E14: 676 | F14: 44984 | G14: 45013 | H14: =SUMPRODUCT((KCITempAct[Date]>=NWCycles[[#This Row],[BegRdDate]])*(KCITempAct[Date]<NWCycles[[#This Row],[EndRdDate]])*KCITempAct[KCINHDDAdj]) -> 628.5666667 | I14: =SUMPRODUCT((KCITempAct[Date]>=NWCycles[[#This Row],[BegRdDate]])*(KCITempAct[Date]<NWCycles[[#This Row],[EndRdDate]])*KCITempAct[KCIHDDAdj]) -> 683 | J14: =NWCycles[[#This Row],[NDD]]-NWCycles[[#This Row],[ADD]] -> -54.43333333 | K14: =NWCycles[[#This Row],[HDDDiff]]*NWCycles[[#This Row],[NoOfBills]] -> -36796.93333 | L14: =SUMPRODUCT((BetaCoeff[BeginDate]<=NWCycles[[#This Row],[MonthFlow]])*(BetaCoeff[EndDate]>NWCycles[[#This Row],[MonthFlow]])*(BetaCoeff[CustClass]=NWCycles[[#This Row],[CustClass]])*BetaCoeff[BetaCoeff]) -> 0.2793279 | M14: =NWCycles[[#This Row],[Diff*NoOfBills]]*NWCycles[[#This Row],[BetaCoeff]] -> -10278.41011 | N14: =INDEX(RateCat[CustClass],MATCH(NWCycles[[#This Row],[RateCategory]],RateCat[RateCategory],0)) -> Comm | O14: Customer count from Revenue Dept.
A15: 44986 | B15: =EDATE(NWCycles[[#This Row],[MonthFlow]],1) -> 45017 | C15: EGGR_RS | D15: All | E15: 4814 | F15: 44984 | G15: 45013 | H15: =SUMPRODUCT((KCITempAct[Date]>=NWCycles[[#This Row],[BegRdDate]])*(KCITempAct[Date]<NWCycles[[#This Row],[EndRdDate]])*KCITempAct[KCINHDDAdj]) -> 628.5666667 | I15: =SUMPRODUCT((KCITempAct[Date]>=NWCycles[[#This Row],[BegRdDate]])*(KCITempAct[Date]<NWCycles[[#This Row],[EndRdDate]])*KCITempAct[KCIHDDAdj]) -> 683 | J15: =NWCycles[[#This Row],[NDD]]-NWCycles[[#This Row],[ADD]] -> -54.43333333 | K15: =NWCycles[[#This Row],[HDDDiff]]*NWCycles[[#This Row],[NoOfBills]] -> -262042.0667 | L15: =SUMPRODUCT((BetaCoeff[BeginDate]<=NWCycles[[#This Row],[MonthFlow]])*(BetaCoeff[EndDate]>NWCycles[[#This Row],[MonthFlow]])*(BetaCoeff[CustClass]=NWCycles[[#This Row],[CustClass]])*BetaCoeff[BetaCoeff]) -> 0.1234365 | M15: =NWCycles[[#This Row],[Diff*NoOfBills]]*NWCycles[[#This Row],[BetaCoeff]] -> -32345.55556 | N15: =INDEX(RateCat[CustClass],MATCH(NWCycles[[#This Row],[RateCategory]],RateCat[RateCategory],0)) -> Res | O15: Customer count from Revenue Dept.
A16: 45017 | B16: =EDATE(NWCycles[[#This Row],[MonthFlow]],1) -> 45047 | C16: EGGC_SGS | D16: All | E16: 673 | F16: 45013 | G16: 45042 | H16: =SUMPRODUCT((KCITempAct[Date]>=NWCycles[[#This Row],[BegRdDate]])*(KCITempAct[Date]<NWCycles[[#This Row],[EndRdDate]])*KCITempAct[KCINHDDAdj]) -> 344.3666667 | I16: =SUMPRODUCT((KCITempAct[Date]>=NWCycles[[#This Row],[BegRdDate]])*(KCITempAct[Date]<NWCycles[[#This Row],[EndRdDate]])*KCITempAct[KCIHDDAdj]) -> 315 | J16: =NWCycles[[#This Row],[NDD]]-NWCycles[[#This Row],[ADD]] -> 29.36666667 | K16: =NWCycles[[#This Row],[HDDDiff]]*NWCycles[[#This Row],[NoOfBills]] -> 19763.76667 | L16: =SUMPRODUCT((BetaCoeff[BeginDate]<=NWCycles[[#This Row],[MonthFlow]])*(BetaCoeff[EndDate]>NWCycles[[#This Row],[MonthFlow]])*(BetaCoeff[CustClass]=NWCycles[[#This Row],[CustClass]])*BetaCoeff[BetaCoeff]) -> 0.2793279 | M16: =NWCycles[[#This Row],[Diff*NoOfBills]]*NWCycles[[#This Row],[BetaCoeff]] -> 5520.571439 | N16: =INDEX(RateCat[CustClass],MATCH(NWCycles[[#This Row],[RateCategory]],RateCat[RateCategory],0)) -> Comm | O16: Customer count from Revenue Dept.
A17: 45017 | B17: =EDATE(NWCycles[[#This Row],[MonthFlow]],1) -> 45047 | C17: EGGR_RS | D17: All | E17: 4760 | F17: 45013 | G17: 45042 | H17: =SUMPRODUCT((KCITempAct[Date]>=NWCycles[[#This Row],[BegRdDate]])*(KCITempAct[Date]<NWCycles[[#This Row],[EndRdDate]])*KCITempAct[KCINHDDAdj]) -> 344.3666667 | I17: =SUMPRODUCT((KCITempAct[Date]>=NWCycles[[#This Row],[BegRdDate]])*(KCITempAct[Date]<NWCycles[[#This Row],[EndRdDate]])*KCITempAct[KCIHDDAdj]) -> 315 | J17: =NWCycles[[#This Row],[NDD]]-NWCycles[[#This Row],[ADD]] -> 29.36666667 | K17: =NWCycles[[#This Row],[HDDDiff]]*NWCycles[[#This Row],[NoOfBills]] -> 139785.3333 | L17: =SUMPRODUCT((BetaCoeff[BeginDate]<=NWCycles[[#This Row],[MonthFlow]])*(BetaCoeff[EndDate]>NWCycles[[#This Row],[MonthFlow]])*(BetaCoeff[CustClass]=NWCycles[[#This Row],[CustClass]])*BetaCoeff[BetaCoeff]) -> 0.1234365 | M17: =NWCycles[[#This Row],[Diff*NoOfBills]]*NWCycles[[#This Row],[BetaCoeff]] -> 17254.6123 | N17: =INDEX(RateCat[CustClass],MATCH(NWCycles[[#This Row],[RateCategory]],RateCat[RateCategory],0)) -> Res | O17: Customer count from Revenue Dept.
A18: 45047 | B18: =EDATE(NWCycles[[#This Row],[MonthFlow]],1) -> 45078 | C18: EGGC_SGS | D18: All | E18: 669 | F18: 45042 | G18: 45076 | H18: =SUMPRODUCT((KCITempAct[Date]>=NWCycles[[#This Row],[BegRdDate]])*(KCITempAct[Date]<NWCycles[[#This Row],[EndRdDate]])*KCITempAct[KCINHDDAdj]) -> 148.0666667 | I18: =SUMPRODUCT((KCITempAct[Date]>=NWCycles[[#This Row],[BegRdDate]])*(KCITempAct[Date]<NWCycles[[#This Row],[EndRdDate]])*KCITempAct[KCIHDDAdj]) -> 102.5 | J18: =NWCycles[[#This Row],[NDD]]-NWCycles[[#This Row],[ADD]] -> 45.56666667 | K18: =NWCycles[[#This Row],[HDDDiff]]*NWCycles[[#This Row],[NoOfBills]] -> 30484.1 | L18: =SUMPRODUCT((BetaCoeff[BeginDate]<=NWCycles[[#This Row],[MonthFlow]])*(BetaCoeff[EndDate]>NWCycles[[#This Row],[MonthFlow]])*(BetaCoeff[CustClass]=NWCycles[[#This Row],[CustClass]])*BetaCoeff[BetaCoeff]) -> 0.2793279 | M18: =NWCycles[[#This Row],[Diff*NoOfBills]]*NWCycles[[#This Row],[BetaCoeff]] -> 8515.059636 | N18: =INDEX(RateCat[CustClass],MATCH(NWCycles[[#This Row],[RateCategory]],RateCat[RateCategory],0)) -> Comm | O18: Customer count from Revenue Dept.
A19: 45047 | B19: =EDATE(NWCycles[[#This Row],[MonthFlow]],1) -> 45078 | C19: EGGR_RS | D19: All | E19: 4707 | F19: 45042 | G19: 45076 | H19: =SUMPRODUCT((KCITempAct[Date]>=NWCycles[[#This Row],[BegRdDate]])*(KCITempAct[Date]<NWCycles[[#This Row],[EndRdDate]])*KCITempAct[KCINHDDAdj]) -> 148.0666667 | I19: =SUMPRODUCT((KCITempAct[Date]>=NWCycles[[#This Row],[BegRdDate]])*(KCITempAct[Date]<NWCycles[[#This Row],[EndRdDate]])*KCITempAct[KCIHDDAdj]) -> 102.5 | J19: =NWCycles[[#This Row],[NDD]]-NWCycles[[#This Row],[ADD]] -> 45.56666667 | K19: =NWCycles[[#This Row],[HDDDiff]]*NWCycles[[#This Row],[NoOfBills]] -> 214482.3 | L19: =SUMPRODUCT((BetaCoeff[BeginDate]<=NWCycles[[#This Row],[MonthFlow]])*(BetaCoeff[EndDate]>NWCycles[[#This Row],[MonthFlow]])*(BetaCoeff[CustClass]=NWCycles[[#This Row],[CustClass]])*BetaCoeff[BetaCoeff]) -> 0.1234365 | M19: =NWCycles[[#This Row],[Diff*NoOfBills]]*NWCycles[[#This Row],[BetaCoeff]] -> 26474.94442 | N19: =INDEX(RateCat[CustClass],MATCH(NWCycles[[#This Row],[RateCategory]],RateCat[RateCategory],0)) -> Res | O19: Customer count from Revenue Dept.
A20: 45078 | B20: =EDATE(NWCycles[[#This Row],[MonthFlow]],1) -> 45108 | C20: EGGC_SGS | D20: All | E20: 665 | F20: 45076 | G20: 45105 | H20: =SUMPRODUCT((KCITempAct[Date]>=NWCycles[[#This Row],[BegRdDate]])*(KCITempAct[Date]<NWCycles[[#This Row],[EndRdDate]])*KCITempAct[KCINHDDAdj]) -> 8.483333333 | I20: =SUMPRODUCT((KCITempAct[Date]>=NWCycles[[#This Row],[BegRdDate]])*(KCITempAct[Date]<NWCycles[[#This Row],[EndRdDate]])*KCITempAct[KCIHDDAdj]) -> 2.5 | J20: =NWCycles[[#This Row],[NDD]]-NWCycles[[#This Row],[ADD]] -> 5.983333333 | K20: =NWCycles[[#This Row],[HDDDiff]]*NWCycles[[#This Row],[NoOfBills]] -> 3978.916667 | L20: =SUMPRODUCT((BetaCoeff[BeginDate]<=NWCycles[[#This Row],[MonthFlow]])*(BetaCoeff[EndDate]>NWCycles[[#This Row],[MonthFlow]])*(BetaCoeff[CustClass]=NWCycles[[#This Row],[CustClass]])*BetaCoeff[BetaCoeff]) -> 0.2793279 | M20: =NWCycles[[#This Row],[Diff*NoOfBills]]*NWCycles[[#This Row],[BetaCoeff]] -> 1111.422437 | N20: =INDEX(RateCat[CustClass],MATCH(NWCycles[[#This Row],[RateCategory]],RateCat[RateCategory],0)) -> Comm | O20: Customer count from Revenue Dept.
A21: 45078 | B21: =EDATE(NWCycles[[#This Row],[MonthFlow]],1) -> 45108 | C21: EGGR_RS | D21: All | E21: 4661 | F21: 45076 | G21: 45105 | H21: =SUMPRODUCT((KCITempAct[Date]>=NWCycles[[#This Row],[BegRdDate]])*(KCITempAct[Date]<NWCycles[[#This Row],[EndRdDate]])*KCITempAct[KCINHDDAdj]) -> 8.483333333 | I21: =SUMPRODUCT((KCITempAct[Date]>=NWCycles[[#This Row],[BegRdDate]])*(KCITempAct[Date]<NWCycles[[#This Row],[EndRdDate]])*KCITempAct[KCIHDDAdj]) -> 2.5 | J21: =NWCycles[[#This Row],[NDD]]-NWCycles[[#This Row],[ADD]] -> 5.983333333 | K21: =NWCycles[[#This Row],[HDDDiff]]*NWCycles[[#This Row],[NoOfBills]] -> 27888.31667 | L21: =SUMPRODUCT((BetaCoeff[BeginDate]<=NWCycles[[#This Row],[MonthFlow]])*(BetaCoeff[EndDate]>NWCycles[[#This Row],[MonthFlow]])*(BetaCoeff[CustClass]=NWCycles[[#This Row],[CustClass]])*BetaCoeff[BetaCoeff]) -> 0.1234365 | M21: =NWCycles[[#This Row],[Diff*NoOfBills]]*NWCycles[[#This Row],[BetaCoeff]] -> 3442.4362 | N21: =INDEX(RateCat[CustClass],MATCH(NWCycles[[#This Row],[RateCategory]],RateCat[RateCategory],0)) -> Res | O21: Customer count from Revenue Dept.
A22: 45108 | B22: =EDATE(NWCycles[[#This Row],[MonthFlow]],1) -> 45139 | C22: EGGC_SGS | D22: All | E22: 671 | F22: 45105 | G22: 45132 | H22: =SUMPRODUCT((KCITempAct[Date]>=NWCycles[[#This Row],[BegRdDate]])*(KCITempAct[Date]<NWCycles[[#This Row],[EndRdDate]])*KCITempAct[KCINHDDAdj]) -> 0.01666666667 | I22: =SUMPRODUCT((KCITempAct[Date]>=NWCycles[[#This Row],[BegRdDate]])*(KCITempAct[Date]<NWCycles[[#This Row],[EndRdDate]])*KCITempAct[KCIHDDAdj]) -> 0 | J22: =NWCycles[[#This Row],[NDD]]-NWCycles[[#This Row],[ADD]] -> 0.01666666667 | K22: =NWCycles[[#This Row],[HDDDiff]]*NWCycles[[#This Row],[NoOfBills]] -> 11.18333333 | L22: =SUMPRODUCT((BetaCoeff[BeginDate]<=NWCycles[[#This Row],[MonthFlow]])*(BetaCoeff[EndDate]>NWCycles[[#This Row],[MonthFlow]])*(BetaCoeff[CustClass]=NWCycles[[#This Row],[CustClass]])*BetaCoeff[BetaCoeff]) -> 0.2793279 | M22: =NWCycles[[#This Row],[Diff*NoOfBills]]*NWCycles[[#This Row],[BetaCoeff]] -> 3.123817015 | N22: =INDEX(RateCat[CustClass],MATCH(NWCycles[[#This Row],[RateCategory]],RateCat[RateCategory],0)) -> Comm | O22: Need to update
A23: 45108 | B23: =EDATE(NWCycles[[#This Row],[MonthFlow]],1) -> 45139 | C23: EGGR_RS | D23: All | E23: 4703 | F23: 45105 | G23: 45132 | H23: =SUMPRODUCT((KCITempAct[Date]>=NWCycles[[#This Row],[BegRdDate]])*(KCITempAct[Date]<NWCycles[[#This Row],[EndRdDate]])*KCITempAct[KCINHDDAdj]) -> 0.01666666667 | I23: =SUMPRODUCT((KCITempAct[Date]>=NWCycles[[#This Row],[BegRdDate]])*(KCITempAct[Date]<NWCycles[[#This Row],[EndRdDate]])*KCITempAct[KCIHDDAdj]) -> 0 | J23: =NWCycles[[#This Row],[NDD]]-NWCycles[[#This Row],[ADD]] -> 0.01666666667 | K23: =NWCycles[[#This Row],[HDDDiff]]*NWCycles[[#This Row],[NoOfBills]] -> 78.38333333 | L23: =SUMPRODUCT((BetaCoeff[BeginDate]<=NWCycles[[#This Row],[MonthFlow]])*(BetaCoeff[EndDate]>NWCycles[[#This Row],[MonthFlow]])*(BetaCoeff[CustClass]=NWCycles[[#This Row],[CustClass]])*BetaCoeff[BetaCoeff]) -> 0.1234365 | M23: =NWCycles[[#This Row],[Diff*NoOfBills]]*NWCycles[[#This Row],[BetaCoeff]] -> 9.675364325 | N23: =INDEX(RateCat[CustClass],MATCH(NWCycles[[#This Row],[RateCategory]],RateCat[RateCategory],0)) -> Res | O23: Need to update
A24: 45139 | B24: =EDATE(NWCycles[[#This Row],[MonthFlow]],1) -> 45170 | C24: EGGC_SGS | D24: All | E24: 669 | F24: 45132 | G24: 45163 | H24: =SUMPRODUCT((KCITempAct[Date]>=NWCycles[[#This Row],[BegRdDate]])*(KCITempAct[Date]<NWCycles[[#This Row],[EndRdDate]])*KCITempAct[KCINHDDAdj]) -> 0 | I24: =SUMPRODUCT((KCITempAct[Date]>=NWCycles[[#This Row],[BegRdDate]])*(KCITempAct[Date]<NWCycles[[#This Row],[EndRdDate]])*KCITempAct[KCIHDDAdj]) -> 0 | J24: =NWCycles[[#This Row],[NDD]]-NWCycles[[#This Row],[ADD]] -> 0 | K24: =NWCycles[[#This Row],[HDDDiff]]*NWCycles[[#This Row],[NoOfBills]] -> 0 | L24: =SUMPRODUCT((BetaCoeff[BeginDate]<=NWCycles[[#This Row],[MonthFlow]])*(BetaCoeff[EndDate]>NWCycles[[#This Row],[MonthFlow]])*(BetaCoeff[CustClass]=NWCycles[[#This Row],[CustClass]])*BetaCoeff[BetaCoeff]) -> 0.2793279 | M24: =NWCycles[[#This Row],[Diff*NoOfBills]]*NWCycles[[#This Row],[BetaCoeff]] -> 0 | N24: =INDEX(RateCat[CustClass],MATCH(NWCycles[[#This Row],[RateCategory]],RateCat[RateCategory],0)) -> Comm | O24: Need to update
A25: 45139 | B25: =EDATE(NWCycles[[#This Row],[MonthFlow]],1) -> 45170 | C25: EGGR_RS | D25: All | E25: 4706 | F25: 45132 | G25: 45163 | H25: =SUMPRODUCT((KCITempAct[Date]>=NWCycles[[#This Row],[BegRdDate]])*(KCITempAct[Date]<NWCycles[[#This Row],[EndRdDate]])*KCITempAct[KCINHDDAdj]) -> 0 | I25: =SUMPRODUCT((KCITempAct[Date]>=NWCycles[[#This Row],[BegRdDate]])*(KCITempAct[Date]<NWCycles[[#This Row],[EndRdDate]])*KCITempAct[KCIHDDAdj]) -> 0 | J25: =NWCycles[[#This Row],[NDD]]-NWCycles[[#This Row],[ADD]] -> 0 | K25: =NWCycles[[#This Row],[HDDDiff]]*NWCycles[[#This Row],[NoOfBills]] -> 0 | L25: =SUMPRODUCT((BetaCoeff[BeginDate]<=NWCycles[[#This Row],[MonthFlow]])*(BetaCoeff[EndDate]>NWCycles[[#This Row],[MonthFlow]])*(BetaCoeff[CustClass]=NWCycles[[#This Row],[CustClass]])*BetaCoeff[BetaCoeff]) -> 0.1234365 | M25: =NWCycles[[#This Row],[Diff*NoOfBills]]*NWCycles[[#This Row],[BetaCoeff]] -> 0 | N25: =INDEX(RateCat[CustClass],MATCH(NWCycles[[#This Row],[RateCategory]],RateCat[RateCategory],0)) -> Res | O25: Need to update
A26: 45170 | B26: =EDATE(NWCycles[[#This Row],[MonthFlow]],1) -> 45200 | C26: EGGC_SGS | D26: All | E26: 668 | F26: 45163 | G26: 45191 | H26: =SUMPRODUCT((KCITempAct[Date]>=NWCycles[[#This Row],[BegRdDate]])*(KCITempAct[Date]<NWCycles[[#This Row],[EndRdDate]])*KCITempAct[KCINHDDAdj]) -> 22.45 | I26: =SUMPRODUCT((KCITempAct[Date]>=NWCycles[[#This Row],[BegRdDate]])*(KCITempAct[Date]<NWCycles[[#This Row],[EndRdDate]])*KCITempAct[KCIHDDAdj]) -> 1 | J26: =NWCycles[[#This Row],[NDD]]-NWCycles[[#This Row],[ADD]] -> 21.45 | K26: =NWCycles[[#This Row],[HDDDiff]]*NWCycles[[#This Row],[NoOfBills]] -> 14328.6 | L26: =SUMPRODUCT((BetaCoeff[BeginDate]<=NWCycles[[#This Row],[MonthFlow]])*(BetaCoeff[EndDate]>NWCycles[[#This Row],[MonthFlow]])*(BetaCoeff[CustClass]=NWCycles[[#This Row],[CustClass]])*BetaCoeff[BetaCoeff]) -> 0.2793279 | M26: =NWCycles[[#This Row],[Diff*NoOfBills]]*NWCycles[[#This Row],[BetaCoeff]] -> 4002.377748 | N26: =INDEX(RateCat[CustClass],MATCH(NWCycles[[#This Row],[RateCategory]],RateCat[RateCategory],0)) -> Comm | O26: Customer count from Revenue Dept.
A27: 45170 | B27: =EDATE(NWCycles[[#This Row],[MonthFlow]],1) -> 45200 | C27: EGGR_RS | D27: All | E27: 4742 | F27: 45163 | G27: 45191 | H27: =SUMPRODUCT((KCITempAct[Date]>=NWCycles[[#This Row],[BegRdDate]])*(KCITempAct[Date]<NWCycles[[#This Row],[EndRdDate]])*KCITempAct[KCINHDDAdj]) -> 22.45 | I27: =SUMPRODUCT((KCITempAct[Date]>=NWCycles[[#This Row],[BegRdDate]])*(KCITempAct[Date]<NWCycles[[#This Row],[EndRdDate]])*KCITempAct[KCIHDDAdj]) -> 1 | J27: =NWCycles[[#This Row],[NDD]]-NWCycles[[#This Row],[ADD]] -> 21.45 | K27: =NWCycles[[#This Row],[HDDDiff]]*NWCycles[[#This Row],[NoOfBills]] -> 101715.9 | L27: =SUMPRODUCT((BetaCoeff[BeginDate]<=NWCycles[[#This Row],[MonthFlow]])*(BetaCoeff[EndDate]>NWCycles[[#This Row],[MonthFlow]])*(BetaCoeff[CustClass]=NWCycles[[#This Row],[CustClass]])*BetaCoeff[BetaCoeff]) -> 0.1234365 | M27: =NWCycles[[#This Row],[Diff*NoOfBills]]*NWCycles[[#This Row],[BetaCoeff]] -> 12555.45469 | N27: =INDEX(RateCat[CustClass],MATCH(NWCycles[[#This Row],[RateCategory]],RateCat[RateCategory],0)) -> Res | O27: Customer count from Revenue Dept.
A28: 45200 | B28: =EDATE(NWCycles[[#This Row],[MonthFlow]],1) -> 45231 | C28: EGGC_SGS | D28: All | E28: 671 | F28: 45191 | G28: 45224 | H28: =SUMPRODUCT((KCITempAct[Date]>=NWCycles[[#This Row],[BegRdDate]])*(KCITempAct[Date]<NWCycles[[#This Row],[EndRdDate]])*KCITempAct[KCINHDDAdj]) -> 224.1 | I28: =SUMPRODUCT((KCITempAct[Date]>=NWCycles[[#This Row],[BegRdDate]])*(KCITempAct[Date]<NWCycles[[#This Row],[EndRdDate]])*KCITempAct[KCIHDDAdj]) -> 135 | J28: =NWCycles[[#This Row],[NDD]]-NWCycles[[#This Row],[ADD]] -> 89.1 | K28: =NWCycles[[#This Row],[HDDDiff]]*NWCycles[[#This Row],[NoOfBills]] -> 59786.1 | L28: =SUMPRODUCT((BetaCoeff[BeginDate]<=NWCycles[[#This Row],[MonthFlow]])*(BetaCoeff[EndDate]>NWCycles[[#This Row],[MonthFlow]])*(BetaCoeff[CustClass]=NWCycles[[#This Row],[CustClass]])*BetaCoeff[BetaCoeff]) -> 0.2793279 | M28: =NWCycles[[#This Row],[Diff*NoOfBills]]*NWCycles[[#This Row],[BetaCoeff]] -> 16699.92576 | N28: =INDEX(RateCat[CustClass],MATCH(NWCycles[[#This Row],[RateCategory]],RateCat[RateCategory],0)) -> Comm | O28: Customer count from Revenue Dept.
A29: 45200 | B29: =EDATE(NWCycles[[#This Row],[MonthFlow]],1) -> 45231 | C29: EGGR_RS | D29: All | E29: 4820 | F29: 45191 | G29: 45224 | H29: =SUMPRODUCT((KCITempAct[Date]>=NWCycles[[#This Row],[BegRdDate]])*(KCITempAct[Date]<NWCycles[[#This Row],[EndRdDate]])*KCITempAct[KCINHDDAdj]) -> 224.1 | I29: =SUMPRODUCT((KCITempAct[Date]>=NWCycles[[#This Row],[BegRdDate]])*(KCITempAct[Date]<NWCycles[[#This Row],[EndRdDate]])*KCITempAct[KCIHDDAdj]) -> 135 | J29: =NWCycles[[#This Row],[NDD]]-NWCycles[[#This Row],[ADD]] -> 89.1 | K29: =NWCycles[[#This Row],[HDDDiff]]*NWCycles[[#This Row],[NoOfBills]] -> 429462 | L29: =SUMPRODUCT((BetaCoeff[BeginDate]<=NWCycles[[#This Row],[MonthFlow]])*(BetaCoeff[EndDate]>NWCycles[[#This Row],[MonthFlow]])*(BetaCoeff[CustClass]=NWCycles[[#This Row],[CustClass]])*BetaCoeff[BetaCoeff]) -> 0.1234365 | M29: =NWCycles[[#This Row],[Diff*NoOfBills]]*NWCycles[[#This Row],[BetaCoeff]] -> 53011.28616 | N29: =INDEX(RateCat[CustClass],MATCH(NWCycles[[#This Row],[RateCategory]],RateCat[RateCategory],0)) -> Res | O29: Customer count from Revenue Dept.
A30: 45231 | B30: =EDATE(NWCycles[[#This Row],[MonthFlow]],1) -> 45261 | C30: EGGC_SGS | D30: All | E30: 670 | F30: 45224 | G30: 45260 | H30: =SUMPRODUCT((KCITempAct[Date]>=NWCycles[[#This Row],[BegRdDate]])*(KCITempAct[Date]<NWCycles[[#This Row],[EndRdDate]])*KCITempAct[KCINHDDAdj]) -> 707.3333333 | I30: =SUMPRODUCT((KCITempAct[Date]>=NWCycles[[#This Row],[BegRdDate]])*(KCITempAct[Date]<NWCycles[[#This Row],[EndRdDate]])*KCITempAct[KCIHDDAdj]) -> 708.5 | J30: =NWCycles[[#This Row],[NDD]]-NWCycles[[#This Row],[ADD]] -> -1.166666667 | K30: =NWCycles[[#This Row],[HDDDiff]]*NWCycles[[#This Row],[NoOfBills]] -> -781.6666667 | L30: =SUMPRODUCT((BetaCoeff[BeginDate]<=NWCycles[[#This Row],[MonthFlow]])*(BetaCoeff[EndDate]>NWCycles[[#This Row],[MonthFlow]])*(BetaCoeff[CustClass]=NWCycles[[#This Row],[CustClass]])*BetaCoeff[BetaCoeff]) -> 0.2793279 | M30: =NWCycles[[#This Row],[Diff*NoOfBills]]*NWCycles[[#This Row],[BetaCoeff]] -> -218.3413085 | N30: =INDEX(RateCat[CustClass],MATCH(NWCycles[[#This Row],[RateCategory]],RateCat[RateCategory],0)) -> Comm | O30: Customer count from Revenue Dept.
A31: 45231 | B31: =EDATE(NWCycles[[#This Row],[MonthFlow]],1) -> 45261 | C31: EGGR_RS | D31: All | E31: 4849 | F31: 45224 | G31: 45260 | H31: =SUMPRODUCT((KCITempAct[Date]>=NWCycles[[#This Row],[BegRdDate]])*(KCITempAct[Date]<NWCycles[[#This Row],[EndRdDate]])*KCITempAct[KCINHDDAdj]) -> 707.3333333 | I31: =SUMPRODUCT((KCITempAct[Date]>=NWCycles[[#This Row],[BegRdDate]])*(KCITempAct[Date]<NWCycles[[#This Row],[EndRdDate]])*KCITempAct[KCIHDDAdj]) -> 708.5 | J31: =NWCycles[[#This Row],[NDD]]-NWCycles[[#This Row],[ADD]] -> -1.166666667 | K31: =NWCycles[[#This Row],[HDDDiff]]*NWCycles[[#This Row],[NoOfBills]] -> -5657.166667 | L31: =SUMPRODUCT((BetaCoeff[BeginDate]<=NWCycles[[#This Row],[MonthFlow]])*(BetaCoeff[EndDate]>NWCycles[[#This Row],[MonthFlow]])*(BetaCoeff[CustClass]=NWCycles[[#This Row],[CustClass]])*BetaCoeff[BetaCoeff]) -> 0.1234365 | M31: =NWCycles[[#This Row],[Diff*NoOfBills]]*NWCycles[[#This Row],[BetaCoeff]] -> -698.3008532 | N31: =INDEX(RateCat[CustClass],MATCH(NWCycles[[#This Row],[RateCategory]],RateCat[RateCategory],0)) -> Res | O31: Customer count from Revenue Dept.
A32: 45261 | B32: =EDATE(NWCycles[[#This Row],[MonthFlow]],1) -> 45292 | C32: EGGC_SGS | D32: All | E32: 672 | F32: 45260 | G32: 45293 | H32: =SUMPRODUCT((KCITempAct[Date]>=NWCycles[[#This Row],[BegRdDate]])*(KCITempAct[Date]<NWCycles[[#This Row],[EndRdDate]])*KCITempAct[KCINHDDAdj]) -> 1048.4 | I32: =SUMPRODUCT((KCITempAct[Date]>=NWCycles[[#This Row],[BegRdDate]])*(KCITempAct[Date]<NWCycles[[#This Row],[EndRdDate]])*KCITempAct[KCIHDDAdj]) -> 823 | J32: =NWCycles[[#This Row],[NDD]]-NWCycles[[#This Row],[ADD]] -> 225.4 | K32: =NWCycles[[#This Row],[HDDDiff]]*NWCycles[[#This Row],[NoOfBills]] -> 151468.8 | L32: =SUMPRODUCT((BetaCoeff[BeginDate]<=NWCycles[[#This Row],[MonthFlow]])*(BetaCoeff[EndDate]>NWCycles[[#This Row],[MonthFlow]])*(BetaCoeff[CustClass]=NWCycles[[#This Row],[CustClass]])*BetaCoeff[BetaCoeff]) -> 0.2793279 | M32: =NWCycles[[#This Row],[Diff*NoOfBills]]*NWCycles[[#This Row],[BetaCoeff]] -> 42309.46182 | N32: =INDEX(RateCat[CustClass],MATCH(NWCycles[[#This Row],[RateCategory]],RateCat[RateCategory],0)) -> Comm | O32: Customer count from Revenue Dept.
A33: 45261 | B33: =EDATE(NWCycles[[#This Row],[MonthFlow]],1) -> 45292 | C33: EGGR_RS | D33: All | E33: 4872 | F33: 45260 | G33: 45293 | H33: =SUMPRODUCT((KCITempAct[Date]>=NWCycles[[#This Row],[BegRdDate]])*(KCITempAct[Date]<NWCycles[[#This Row],[EndRdDate]])*KCITempAct[KCINHDDAdj]) -> 1048.4 | I33: =SUMPRODUCT((KCITempAct[Date]>=NWCycles[[#This Row],[BegRdDate]])*(KCITempAct[Date]<NWCycles[[#This Row],[EndRdDate]])*KCITempAct[KCIHDDAdj]) -> 823 | J33: =NWCycles[[#This Row],[NDD]]-NWCycles[[#This Row],[ADD]] -> 225.4 | K33: =NWCycles[[#This Row],[HDDDiff]]*NWCycles[[#This Row],[NoOfBills]] -> 1098148.8 | L33: =SUMPRODUCT((BetaCoeff[BeginDate]<=NWCycles[[#This Row],[MonthFlow]])*(BetaCoeff[EndDate]>NWCycles[[#This Row],[MonthFlow]])*(BetaCoeff[CustClass]=NWCycles[[#This Row],[CustClass]])*BetaCoeff[BetaCoeff]) -> 0.1234365 | M33: =NWCycles[[#This Row],[Diff*NoOfBills]]*NWCycles[[#This Row],[BetaCoeff]] -> 135551.6444 | N33: =INDEX(RateCat[CustClass],MATCH(NWCycles[[#This Row],[RateCategory]],RateCat[RateCategory],0)) -> Res | O33: Customer count from Revenue Dept.
A34: 45292 | B34: =EDATE(NWCycles[[#This Row],[MonthFlow]],1) -> 45323 | C34: EGGC_SGS | D34: All | E34: 673 | F34: 45293 | G34: 45324 | H34: =SUMPRODUCT((KCITempAct[Date]>=NWCycles[[#This Row],[BegRdDate]])*(KCITempAct[Date]<NWCycles[[#This Row],[EndRdDate]])*KCITempAct[KCINHDDAdj]) -> 1099.15 | I34: =SUMPRODUCT((KCITempAct[Date]>=NWCycles[[#This Row],[BegRdDate]])*(KCITempAct[Date]<NWCycles[[#This Row],[EndRdDate]])*KCITempAct[KCIHDDAdj]) -> 1220 | J34: =NWCycles[[#This Row],[NDD]]-NWCycles[[#This Row],[ADD]] -> -120.85 | K34: =NWCycles[[#This Row],[HDDDiff]]*NWCycles[[#This Row],[NoOfBills]] -> -81332.05 | L34: =SUMPRODUCT((BetaCoeff[BeginDate]<=NWCycles[[#This Row],[MonthFlow]])*(BetaCoeff[EndDate]>NWCycles[[#This Row],[MonthFlow]])*(BetaCoeff[CustClass]=NWCycles[[#This Row],[CustClass]])*BetaCoeff[BetaCoeff]) -> 0.2793279 | M34: =NWCycles[[#This Row],[Diff*NoOfBills]]*NWCycles[[#This Row],[BetaCoeff]] -> -22718.31073 | N34: =INDEX(RateCat[CustClass],MATCH(NWCycles[[#This Row],[RateCategory]],RateCat[RateCategory],0)) -> Comm | O34: Customer count from Revenue Dept.
A35: 45292 | B35: =EDATE(NWCycles[[#This Row],[MonthFlow]],1) -> 45323 | C35: EGGR_RS | D35: All | E35: 4873 | F35: 45293 | G35: 45324 | H35: =SUMPRODUCT((KCITempAct[Date]>=NWCycles[[#This Row],[BegRdDate]])*(KCITempAct[Date]<NWCycles[[#This Row],[EndRdDate]])*KCITempAct[KCINHDDAdj]) -> 1099.15 | I35: =SUMPRODUCT((KCITempAct[Date]>=NWCycles[[#This Row],[BegRdDate]])*(KCITempAct[Date]<NWCycles[[#This Row],[EndRdDate]])*KCITempAct[KCIHDDAdj]) -> 1220 | J35: =NWCycles[[#This Row],[NDD]]-NWCycles[[#This Row],[ADD]] -> -120.85 | K35: =NWCycles[[#This Row],[HDDDiff]]*NWCycles[[#This Row],[NoOfBills]] -> -588902.05 | L35: =SUMPRODUCT((BetaCoeff[BeginDate]<=NWCycles[[#This Row],[MonthFlow]])*(BetaCoeff[EndDate]>NWCycles[[#This Row],[MonthFlow]])*(BetaCoeff[CustClass]=NWCycles[[#This Row],[CustClass]])*BetaCoeff[BetaCoeff]) -> 0.1234365 | M35: =NWCycles[[#This Row],[Diff*NoOfBills]]*NWCycles[[#This Row],[BetaCoeff]] -> -72692.00789 | N35: =INDEX(RateCat[CustClass],MATCH(NWCycles[[#This Row],[RateCategory]],RateCat[RateCategory],0)) -> Res | O35: Customer count from Revenue Dept.
A36: 45323 | B36: =EDATE(NWCycles[[#This Row],[MonthFlow]],1) -> 45352 | C36: EGGC_SGS | D36: All | E36: 676 | F36: 45324 | G36: 45358 | H36: =SUMPRODUCT((KCITempAct[Date]>=NWCycles[[#This Row],[BegRdDate]])*(KCITempAct[Date]<NWCycles[[#This Row],[EndRdDate]])*KCITempAct[KCINHDDAdj]) -> 1015.316667 | I36: =SUMPRODUCT((KCITempAct[Date]>=NWCycles[[#This Row],[BegRdDate]])*(KCITempAct[Date]<NWCycles[[#This Row],[EndRdDate]])*KCITempAct[KCIHDDAdj]) -> 669 | J36: =NWCycles[[#This Row],[NDD]]-NWCycles[[#This Row],[ADD]] -> 346.3166667 | K36: =NWCycles[[#This Row],[HDDDiff]]*NWCycles[[#This Row],[NoOfBills]] -> 234110.0667 | L36: =SUMPRODUCT((BetaCoeff[BeginDate]<=NWCycles[[#This Row],[MonthFlow]])*(BetaCoeff[EndDate]>NWCycles[[#This Row],[MonthFlow]])*(BetaCoeff[CustClass]=NWCycles[[#This Row],[CustClass]])*BetaCoeff[BetaCoeff]) -> 0.2793279 | M36: =NWCycles[[#This Row],[Diff*NoOfBills]]*NWCycles[[#This Row],[BetaCoeff]] -> 65393.47329 | N36: =INDEX(RateCat[CustClass],MATCH(NWCycles[[#This Row],[RateCategory]],RateCat[RateCategory],0)) -> Comm | O36: Customer count from Revenue Dept.
A37: 45323 | B37: =EDATE(NWCycles[[#This Row],[MonthFlow]],1) -> 45352 | C37: EGGR_RS | D37: All | E37: 4872 | F37: 45324 | G37: 45358 | H37: =SUMPRODUCT((KCITempAct[Date]>=NWCycles[[#This Row],[BegRdDate]])*(KCITempAct[Date]<NWCycles[[#This Row],[EndRdDate]])*KCITempAct[KCINHDDAdj]) -> 1015.316667 | I37: =SUMPRODUCT((KCITempAct[Date]>=NWCycles[[#This Row],[BegRdDate]])*(KCITempAct[Date]<NWCycles[[#This Row],[EndRdDate]])*KCITempAct[KCIHDDAdj]) -> 669 | J37: =NWCycles[[#This Row],[NDD]]-NWCycles[[#This Row],[ADD]] -> 346.3166667 | K37: =NWCycles[[#This Row],[HDDDiff]]*NWCycles[[#This Row],[NoOfBills]] -> 1687254.8 | L37: =SUMPRODUCT((BetaCoeff[BeginDate]<=NWCycles[[#This Row],[MonthFlow]])*(BetaCoeff[EndDate]>NWCycles[[#This Row],[MonthFlow]])*(BetaCoeff[CustClass]=NWCycles[[#This Row],[CustClass]])*BetaCoeff[BetaCoeff]) -> 0.1234365 | M37: =NWCycles[[#This Row],[Diff*NoOfBills]]*NWCycles[[#This Row],[BetaCoeff]] -> 208268.8271 | N37: =INDEX(RateCat[CustClass],MATCH(NWCycles[[#This Row],[RateCategory]],RateCat[RateCategory],0)) -> Res | O37: Customer count from Revenue Dept.
A38: 45352 | B38: =EDATE(NWCycles[[#This Row],[MonthFlow]],1) -> 45383 | C38: EGGC_SGS | D38: 12 | E38: 347 | F38: 45358 | G38: 45383 | H38: =SUMPRODUCT((KCITempAct[Date]>=NWCycles[[#This Row],[BegRdDate]])*(KCITempAct[Date]<NWCycles[[#This Row],[EndRdDate]])*KCITempAct[KCINHDDAdj]) -> 472.1666667 | I38: =SUMPRODUCT((KCITempAct[Date]>=NWCycles[[#This Row],[BegRdDate]])*(KCITempAct[Date]<NWCycles[[#This Row],[EndRdDate]])*KCITempAct[KCIHDDAdj]) -> 426 | J38: =NWCycles[[#This Row],[NDD]]-NWCycles[[#This Row],[ADD]] -> 46.16666667 | K38: =NWCycles[[#This Row],[HDDDiff]]*NWCycles[[#This Row],[NoOfBills]] -> 16019.83333 | L38: =SUMPRODUCT((BetaCoeff[BeginDate]<=NWCycles[[#This Row],[MonthFlow]])*(BetaCoeff[EndDate]>NWCycles[[#This Row],[MonthFlow]])*(BetaCoeff[CustClass]=NWCycles[[#This Row],[CustClass]])*BetaCoeff[BetaCoeff]) -> 0.2793279 | M38: =NWCycles[[#This Row],[Diff*NoOfBills]]*NWCycles[[#This Row],[BetaCoeff]] -> 4474.786403 | N38: =INDEX(RateCat[CustClass],MATCH(NWCycles[[#This Row],[RateCategory]],RateCat[RateCategory],0)) -> Comm | O38: Customer count from Revenue Dept.
A39: 45352 | B39: =EDATE(NWCycles[[#This Row],[MonthFlow]],1) -> 45383 | C39: EGGC_SGS | D39: 13 | E39: 328 | F39: 45358 | G39: 45383 | H39: =SUMPRODUCT((KCITempAct[Date]>=NWCycles[[#This Row],[BegRdDate]])*(KCITempAct[Date]<NWCycles[[#This Row],[EndRdDate]])*KCITempAct[KCINHDDAdj]) -> 472.1666667 | I39: =SUMPRODUCT((KCITempAct[Date]>=NWCycles[[#This Row],[BegRdDate]])*(KCITempAct[Date]<NWCycles[[#This Row],[EndRdDate]])*KCITempAct[KCIHDDAdj]) -> 426 | J39: =NWCycles[[#This Row],[NDD]]-NWCycles[[#This Row],[ADD]] -> 46.16666667 | K39: =NWCycles[[#This Row],[HDDDiff]]*NWCycles[[#This Row],[NoOfBills]] -> 15142.66667 | L39: =SUMPRODUCT((BetaCoeff[BeginDate]<=NWCycles[[#This Row],[MonthFlow]])*(BetaCoeff[EndDate]>NWCycles[[#This Row],[MonthFlow]])*(BetaCoeff[CustClass]=NWCycles[[#This Row],[CustClass]])*BetaCoeff[BetaCoeff]) -> 0.2793279 | M39: =NWCycles[[#This Row],[Diff*NoOfBills]]*NWCycles[[#This Row],[BetaCoeff]] -> 4229.76928 | N39: =INDEX(RateCat[CustClass],MATCH(NWCycles[[#This Row],[RateCategory]],RateCat[RateCategory],0)) -> Comm | O39: Customer count from Revenue Dept.
A40: 45352 | B40: =EDATE(NWCycles[[#This Row],[MonthFlow]],1) -> 45383 | C40: EGGC_SGS | D40: 20 | E40: 11 | F40: 45358 | G40: 45383 | H40: =SUMPRODUCT((KCITempAct[Date]>=NWCycles[[#This Row],[BegRdDate]])*(KCITempAct[Date]<NWCycles[[#This Row],[EndRdDate]])*KCITempAct[KCINHDDAdj]) -> 472.1666667 | I40: =SUMPRODUCT((KCITempAct[Date]>=NWCycles[[#This Row],[BegRdDate]])*(KCITempAct[Date]<NWCycles[[#This Row],[EndRdDate]])*KCITempAct[KCIHDDAdj]) -> 426 | J40: =NWCycles[[#This Row],[NDD]]-NWCycles[[#This Row],[ADD]] -> 46.16666667 | K40: =NWCycles[[#This Row],[HDDDiff]]*NWCycles[[#This Row],[NoOfBills]] -> 507.8333333 | L40: =SUMPRODUCT((BetaCoeff[BeginDate]<=NWCycles[[#This Row],[MonthFlow]])*(BetaCoeff[EndDate]>NWCycles[[#This Row],[MonthFlow]])*(BetaCoeff[CustClass]=NWCycles[[#This Row],[CustClass]])*BetaCoeff[BetaCoeff]) -> 0.2793279 | M40: =NWCycles[[#This Row],[Diff*NoOfBills]]*NWCycles[[#This Row],[BetaCoeff]] -> 141.8520185 | N40: =INDEX(RateCat[CustClass],MATCH(NWCycles[[#This Row],[RateCategory]],RateCat[RateCategory],0)) -> Comm | O40: Customer count from Revenue Dept.
A41: 45352 | B41: =EDATE(NWCycles[[#This Row],[MonthFlow]],1) -> 45383 | C41: EGGR_RS | D41: 12 | E41: 2095 | F41: 45358 | G41: 45383 | H41: =SUMPRODUCT((KCITempAct[Date]>=NWCycles[[#This Row],[BegRdDate]])*(KCITempAct[Date]<NWCycles[[#This Row],[EndRdDate]])*KCITempAct[KCINHDDAdj]) -> 472.1666667 | I41: =SUMPRODUCT((KCITempAct[Date]>=NWCycles[[#This Row],[BegRdDate]])*(KCITempAct[Date]<NWCycles[[#This Row],[EndRdDate]])*KCITempAct[KCIHDDAdj]) -> 426 | J41: =NWCycles[[#This Row],[NDD]]-NWCycles[[#This Row],[ADD]] -> 46.16666667 | K41: =NWCycles[[#This Row],[HDDDiff]]*NWCycles[[#This Row],[NoOfBills]] -> 96719.16667 | L41: =SUMPRODUCT((BetaCoeff[BeginDate]<=NWCycles[[#This Row],[MonthFlow]])*(BetaCoeff[EndDate]>NWCycles[[#This Row],[MonthFlow]])*(BetaCoeff[CustClass]=NWCycles[[#This Row],[CustClass]])*BetaCoeff[BetaCoeff]) -> 0.1234365 | M41: =NWCycles[[#This Row],[Diff*NoOfBills]]*NWCycles[[#This Row],[BetaCoeff]] -> 11938.67542 | N41: =INDEX(RateCat[CustClass],MATCH(NWCycles[[#This Row],[RateCategory]],RateCat[RateCategory],0)) -> Res | O41: Customer count from Revenue Dept.
A42: 45352 | B42: =EDATE(NWCycles[[#This Row],[MonthFlow]],1) -> 45383 | C42: EGGR_RS | D42: 13 | E42: 2675 | F42: 45358 | G42: 45383 | H42: =SUMPRODUCT((KCITempAct[Date]>=NWCycles[[#This Row],[BegRdDate]])*(KCITempAct[Date]<NWCycles[[#This Row],[EndRdDate]])*KCITempAct[KCINHDDAdj]) -> 472.1666667 | I42: =SUMPRODUCT((KCITempAct[Date]>=NWCycles[[#This Row],[BegRdDate]])*(KCITempAct[Date]<NWCycles[[#This Row],[EndRdDate]])*KCITempAct[KCIHDDAdj]) -> 426 | J42: =NWCycles[[#This Row],[NDD]]-NWCycles[[#This Row],[ADD]] -> 46.16666667 | K42: =NWCycles[[#This Row],[HDDDiff]]*NWCycles[[#This Row],[NoOfBills]] -> 123495.8333 | L42: =SUMPRODUCT((BetaCoeff[BeginDate]<=NWCycles[[#This Row],[MonthFlow]])*(BetaCoeff[EndDate]>NWCycles[[#This Row],[MonthFlow]])*(BetaCoeff[CustClass]=NWCycles[[#This Row],[CustClass]])*BetaCoeff[BetaCoeff]) -> 0.1234365 | M42: =NWCycles[[#This Row],[Diff*NoOfBills]]*NWCycles[[#This Row],[BetaCoeff]] -> 15243.89343 | N42: =INDEX(RateCat[CustClass],MATCH(NWCycles[[#This Row],[RateCategory]],RateCat[RateCategory],0)) -> Res | O42: Customer count from Revenue Dept.
A43: 45383 | B43: =EDATE(NWCycles[[#This Row],[MonthFlow]],1) -> 45413 | C43: EGGC_SGS | D43: 12 | E43: 357 | F43: 45383 | G43: =SUMPRODUCT((MeterReadSch2[MonthFlow]=NWCycles[[#This Row],[MonthFlow]])*(MeterReadSch2[Cycle]=NWCycles[[#This Row],[Cycle]])*MeterReadSch2[ReadDate]) -> 45393 | H43: =SUMPRODUCT((KCITempAct[Date]>=NWCycles[[#This Row],[BegRdDate]])*(KCITempAct[Date]<NWCycles[[#This Row],[EndRdDate]])*KCITempAct[KCINHDDAdj]) -> 135.7333333 | I43: =SUMPRODUCT((KCITempAct[Date]>=NWCycles[[#This Row],[BegRdDate]])*(KCITempAct[Date]<NWCycles[[#This Row],[EndRdDate]])*KCITempAct[KCIHDDAdj]) -> 120 | J43: =NWCycles[[#This Row],[NDD]]-NWCycles[[#This Row],[ADD]] -> 15.73333333 | K43: =NWCycles[[#This Row],[HDDDiff]]*NWCycles[[#This Row],[NoOfBills]] -> 5616.8 | L43: =SUMPRODUCT((BetaCoeff[BeginDate]<=NWCycles[[#This Row],[MonthFlow]])*(BetaCoeff[EndDate]>NWCycles[[#This Row],[MonthFlow]])*(BetaCoeff[CustClass]=NWCycles[[#This Row],[CustClass]])*BetaCoeff[BetaCoeff]) -> 0.2793279 | M43: =NWCycles[[#This Row],[Diff*NoOfBills]]*NWCycles[[#This Row],[BetaCoeff]] -> 1568.928949 | N43: =INDEX(RateCat[CustClass],MATCH(NWCycles[[#This Row],[RateCategory]],RateCat[RateCategory],0)) -> Comm | O43: Customer count from Revenue Dept.
A44: 45383 | B44: =EDATE(NWCycles[[#This Row],[MonthFlow]],1) -> 45413 | C44: EGGC_SGS | D44: 13 | E44: 342 | F44: 45383 | G44: =SUMPRODUCT((MeterReadSch2[MonthFlow]=NWCycles[[#This Row],[MonthFlow]])*(MeterReadSch2[Cycle]=NWCycles[[#This Row],[Cycle]])*MeterReadSch2[ReadDate]) -> 45394 | H44: =SUMPRODUCT((KCITempAct[Date]>=NWCycles[[#This Row],[BegRdDate]])*(KCITempAct[Date]<NWCycles[[#This Row],[EndRdDate]])*KCITempAct[KCINHDDAdj]) -> 147.75 | I44: =SUMPRODUCT((KCITempAct[Date]>=NWCycles[[#This Row],[BegRdDate]])*(KCITempAct[Date]<NWCycles[[#This Row],[EndRdDate]])*KCITempAct[KCIHDDAdj]) -> 130.5 | J44: =NWCycles[[#This Row],[NDD]]-NWCycles[[#This Row],[ADD]] -> 17.25 | K44: =NWCycles[[#This Row],[HDDDiff]]*NWCycles[[#This Row],[NoOfBills]] -> 5899.5 | L44: =SUMPRODUCT((BetaCoeff[BeginDate]<=NWCycles[[#This Row],[MonthFlow]])*(BetaCoeff[EndDate]>NWCycles[[#This Row],[MonthFlow]])*(BetaCoeff[CustClass]=NWCycles[[#This Row],[CustClass]])*BetaCoeff[BetaCoeff]) -> 0.2793279 | M44: =NWCycles[[#This Row],[Diff*NoOfBills]]*NWCycles[[#This Row],[BetaCoeff]] -> 1647.894946 | N44: =INDEX(RateCat[CustClass],MATCH(NWCycles[[#This Row],[RateCategory]],RateCat[RateCategory],0)) -> Comm | O44: Customer count from Revenue Dept.
A45: 45383 | B45: =EDATE(NWCycles[[#This Row],[MonthFlow]],1) -> 45413 | C45: EGGC_SGS | D45: 20 | E45: 11 | F45: 45383 | G45: =SUMPRODUCT((MeterReadSch2[MonthFlow]=NWCycles[[#This Row],[MonthFlow]])*(MeterReadSch2[Cycle]=NWCycles[[#This Row],[Cycle]])*MeterReadSch2[ReadDate]) -> 45406 | H45: =SUMPRODUCT((KCITempAct[Date]>=NWCycles[[#This Row],[BegRdDate]])*(KCITempAct[Date]<NWCycles[[#This Row],[EndRdDate]])*KCITempAct[KCINHDDAdj]) -> 268.1333333 | I45: =SUMPRODUCT((KCITempAct[Date]>=NWCycles[[#This Row],[BegRdDate]])*(KCITempAct[Date]<NWCycles[[#This Row],[EndRdDate]])*KCITempAct[KCIHDDAdj]) -> 221.5 | J45: =NWCycles[[#This Row],[NDD]]-NWCycles[[#This Row],[ADD]] -> 46.63333333 | K45: =NWCycles[[#This Row],[HDDDiff]]*NWCycles[[#This Row],[NoOfBills]] -> 512.9666667 | L45: =SUMPRODUCT((BetaCoeff[BeginDate]<=NWCycles[[#This Row],[MonthFlow]])*(BetaCoeff[EndDate]>NWCycles[[#This Row],[MonthFlow]])*(BetaCoeff[CustClass]=NWCycles[[#This Row],[CustClass]])*BetaCoeff[BetaCoeff]) -> 0.2793279 | M45: =NWCycles[[#This Row],[Diff*NoOfBills]]*NWCycles[[#This Row],[BetaCoeff]] -> 143.2859018 | N45: =INDEX(RateCat[CustClass],MATCH(NWCycles[[#This Row],[RateCategory]],RateCat[RateCategory],0)) -> Comm | O45: Customer count from Revenue Dept.
A46: 45383 | B46: =EDATE(NWCycles[[#This Row],[MonthFlow]],1) -> 45413 | C46: EGGR_RS | D46: 12 | E46: 2140 | F46: 45383 | G46: =SUMPRODUCT((MeterReadSch2[MonthFlow]=NWCycles[[#This Row],[MonthFlow]])*(MeterReadSch2[Cycle]=NWCycles[[#This Row],[Cycle]])*MeterReadSch2[ReadDate]) -> 45393 | H46: =SUMPRODUCT((KCITempAct[Date]>=NWCycles[[#This Row],[BegRdDate]])*(KCITempAct[Date]<NWCycles[[#This Row],[EndRdDate]])*KCITempAct[KCINHDDAdj]) -> 135.7333333 | I46: =SUMPRODUCT((KCITempAct[Date]>=NWCycles[[#This Row],[BegRdDate]])*(KCITempAct[Date]<NWCycles[[#This Row],[EndRdDate]])*KCITempAct[KCIHDDAdj]) -> 120 | J46: =NWCycles[[#This Row],[NDD]]-NWCycles[[#This Row],[ADD]] -> 15.73333333 | K46: =NWCycles[[#This Row],[HDDDiff]]*NWCycles[[#This Row],[NoOfBills]] -> 33669.33333 | L46: =SUMPRODUCT((BetaCoeff[BeginDate]<=NWCycles[[#This Row],[MonthFlow]])*(BetaCoeff[EndDate]>NWCycles[[#This Row],[MonthFlow]])*(BetaCoeff[CustClass]=NWCycles[[#This Row],[CustClass]])*BetaCoeff[BetaCoeff]) -> 0.1234365 | M46: =NWCycles[[#This Row],[Diff*NoOfBills]]*NWCycles[[#This Row],[BetaCoeff]] -> 4156.024664 | N46: =INDEX(RateCat[CustClass],MATCH(NWCycles[[#This Row],[RateCategory]],RateCat[RateCategory],0)) -> Res | O46: Customer count from Revenue Dept.
A47: 45383 | B47: =EDATE(NWCycles[[#This Row],[MonthFlow]],1) -> 45413 | C47: EGGR_RS | D47: 13 | E47: 2751 | F47: 45383 | G47: =SUMPRODUCT((MeterReadSch2[MonthFlow]=NWCycles[[#This Row],[MonthFlow]])*(MeterReadSch2[Cycle]=NWCycles[[#This Row],[Cycle]])*MeterReadSch2[ReadDate]) -> 45394 | H47: =SUMPRODUCT((KCITempAct[Date]>=NWCycles[[#This Row],[BegRdDate]])*(KCITempAct[Date]<NWCycles[[#This Row],[EndRdDate]])*KCITempAct[KCINHDDAdj]) -> 147.75 | I47: =SUMPRODUCT((KCITempAct[Date]>=NWCycles[[#This Row],[BegRdDate]])*(KCITempAct[Date]<NWCycles[[#This Row],[EndRdDate]])*KCITempAct[KCIHDDAdj]) -> 130.5 | J47: =NWCycles[[#This Row],[NDD]]-NWCycles[[#This Row],[ADD]] -> 17.25 | K47: =NWCycles[[#This Row],[HDDDiff]]*NWCycles[[#This Row],[NoOfBills]] -> 47454.75 | L47: =SUMPRODUCT((BetaCoeff[BeginDate]<=NWCycles[[#This Row],[MonthFlow]])*(BetaCoeff[EndDate]>NWCycles[[#This Row],[MonthFlow]])*(BetaCoeff[CustClass]=NWCycles[[#This Row],[CustClass]])*BetaCoeff[BetaCoeff]) -> 0.1234365 | M47: =NWCycles[[#This Row],[Diff*NoOfBills]]*NWCycles[[#This Row],[BetaCoeff]] -> 5857.648248 | N47: =INDEX(RateCat[CustClass],MATCH(NWCycles[[#This Row],[RateCategory]],RateCat[RateCategory],0)) -> Res | O47: Customer count from Revenue Dept.
A48: 45413 | B48: =EDATE(NWCycles[[#This Row],[MonthFlow]],1) -> 45444 | C48: EGGC_SGS | D48: 12 | E48: 358 | F48: =SUMPRODUCT((MeterReadSch2[MonthBill]=NWCycles[[#This Row],[MonthFlow]])*(MeterReadSch2[Cycle]=NWCycles[[#This Row],[Cycle]])*MeterReadSch2[ReadDate]) -> 45393 | G48: =SUMPRODUCT((MeterReadSch2[MonthFlow]=NWCycles[[#This Row],[MonthFlow]])*(MeterReadSch2[Cycle]=NWCycles[[#This Row],[Cycle]])*MeterReadSch2[ReadDate]) -> 45425 | H48: =SUMPRODUCT((KCITempAct[Date]>=NWCycles[[#This Row],[BegRdDate]])*(KCITempAct[Date]<NWCycles[[#This Row],[EndRdDate]])*KCITempAct[KCINHDDAdj]) -> 250.7666667 | I48: =SUMPRODUCT((KCITempAct[Date]>=NWCycles[[#This Row],[BegRdDate]])*(KCITempAct[Date]<NWCycles[[#This Row],[EndRdDate]])*KCITempAct[KCIHDDAdj]) -> 159 | J48: =NWCycles[[#This Row],[NDD]]-NWCycles[[#This Row],[ADD]] -> 91.76666667 | K48: =NWCycles[[#This Row],[HDDDiff]]*NWCycles[[#This Row],[NoOfBills]] -> 32852.46667 | L48: =SUMPRODUCT((BetaCoeff[BeginDate]<=NWCycles[[#This Row],[MonthFlow]])*(BetaCoeff[EndDate]>NWCycles[[#This Row],[MonthFlow]])*(BetaCoeff[CustClass]=NWCycles[[#This Row],[CustClass]])*BetaCoeff[BetaCoeff]) -> 0.2793279 | M48: =NWCycles[[#This Row],[Diff*NoOfBills]]*NWCycles[[#This Row],[BetaCoeff]] -> 9176.610524 | N48: =INDEX(RateCat[CustClass],MATCH(NWCycles[[#This Row],[RateCategory]],RateCat[RateCategory],0)) -> Comm | O48: Customer count from Revenue Dept.
A49: 45413 | B49: =EDATE(NWCycles[[#This Row],[MonthFlow]],1) -> 45444 | C49: EGGC_SGS | D49: 13 | E49: 341 | F49: =SUMPRODUCT((MeterReadSch2[MonthBill]=NWCycles[[#This Row],[MonthFlow]])*(MeterReadSch2[Cycle]=NWCycles[[#This Row],[Cycle]])*MeterReadSch2[ReadDate]) -> 45394 | G49: =SUMPRODUCT((MeterReadSch2[MonthFlow]=NWCycles[[#This Row],[MonthFlow]])*(MeterReadSch2[Cycle]=NWCycles[[#This Row],[Cycle]])*MeterReadSch2[ReadDate]) -> 45426 | H49: =SUMPRODUCT((KCITempAct[Date]>=NWCycles[[#This Row],[BegRdDate]])*(KCITempAct[Date]<NWCycles[[#This Row],[EndRdDate]])*KCITempAct[KCINHDDAdj]) -> 243.5666667 | I49: =SUMPRODUCT((KCITempAct[Date]>=NWCycles[[#This Row],[BegRdDate]])*(KCITempAct[Date]<NWCycles[[#This Row],[EndRdDate]])*KCITempAct[KCIHDDAdj]) -> 150.5 | J49: =NWCycles[[#This Row],[NDD]]-NWCycles[[#This Row],[ADD]] -> 93.06666667 | K49: =NWCycles[[#This Row],[HDDDiff]]*NWCycles[[#This Row],[NoOfBills]] -> 31735.73333 | L49: =SUMPRODUCT((BetaCoeff[BeginDate]<=NWCycles[[#This Row],[MonthFlow]])*(BetaCoeff[EndDate]>NWCycles[[#This Row],[MonthFlow]])*(BetaCoeff[CustClass]=NWCycles[[#This Row],[CustClass]])*BetaCoeff[BetaCoeff]) -> 0.2793279 | M49: =NWCycles[[#This Row],[Diff*NoOfBills]]*NWCycles[[#This Row],[BetaCoeff]] -> 8864.675747 | N49: =INDEX(RateCat[CustClass],MATCH(NWCycles[[#This Row],[RateCategory]],RateCat[RateCategory],0)) -> Comm | O49: Customer count from Revenue Dept.
A50: 45413 | B50: =EDATE(NWCycles[[#This Row],[MonthFlow]],1) -> 45444 | C50: EGGC_SGS | D50: 20 | E50: 2 | F50: =SUMPRODUCT((MeterReadSch2[MonthBill]=NWCycles[[#This Row],[MonthFlow]])*(MeterReadSch2[Cycle]=NWCycles[[#This Row],[Cycle]])*MeterReadSch2[ReadDate]) -> 45406 | G50: =SUMPRODUCT((MeterReadSch2[MonthFlow]=NWCycles[[#This Row],[MonthFlow]])*(MeterReadSch2[Cycle]=NWCycles[[#This Row],[Cycle]])*MeterReadSch2[ReadDate]) -> 45435 | H50: =SUMPRODUCT((KCITempAct[Date]>=NWCycles[[#This Row],[BegRdDate]])*(KCITempAct[Date]<NWCycles[[#This Row],[EndRdDate]])*KCITempAct[KCINHDDAdj]) -> 151.2166667 | I50: =SUMPRODUCT((KCITempAct[Date]>=NWCycles[[#This Row],[BegRdDate]])*(KCITempAct[Date]<NWCycles[[#This Row],[EndRdDate]])*KCITempAct[KCIHDDAdj]) -> 64.5 | J50: =NWCycles[[#This Row],[NDD]]-NWCycles[[#This Row],[ADD]] -> 86.71666667 | K50: =NWCycles[[#This Row],[HDDDiff]]*NWCycles[[#This Row],[NoOfBills]] -> 173.4333333 | L50: =SUMPRODUCT((BetaCoeff[BeginDate]<=NWCycles[[#This Row],[MonthFlow]])*(BetaCoeff[EndDate]>NWCycles[[#This Row],[MonthFlow]])*(BetaCoeff[CustClass]=NWCycles[[#This Row],[CustClass]])*BetaCoeff[BetaCoeff]) -> 0.2793279 | M50: =NWCycles[[#This Row],[Diff*NoOfBills]]*NWCycles[[#This Row],[BetaCoeff]] -> 48.44476879 | N50: =INDEX(RateCat[CustClass],MATCH(NWCycles[[#This Row],[RateCategory]],RateCat[RateCategory],0)) -> Comm | O50: Customer count from Revenue Dept.
A51: 45413 | B51: =EDATE(NWCycles[[#This Row],[MonthFlow]],1) -> 45444 | C51: EGGR_RS | D51: 12 | E51: 2122 | F51: =SUMPRODUCT((MeterReadSch2[MonthBill]=NWCycles[[#This Row],[MonthFlow]])*(MeterReadSch2[Cycle]=NWCycles[[#This Row],[Cycle]])*MeterReadSch2[ReadDate]) -> 45393 | G51: =SUMPRODUCT((MeterReadSch2[MonthFlow]=NWCycles[[#This Row],[MonthFlow]])*(MeterReadSch2[Cycle]=NWCycles[[#This Row],[Cycle]])*MeterReadSch2[ReadDate]) -> 45425 | H51: =SUMPRODUCT((KCITempAct[Date]>=NWCycles[[#This Row],[BegRdDate]])*(KCITempAct[Date]<NWCycles[[#This Row],[EndRdDate]])*KCITempAct[KCINHDDAdj]) -> 250.7666667 | I51: =SUMPRODUCT((KCITempAct[Date]>=NWCycles[[#This Row],[BegRdDate]])*(KCITempAct[Date]<NWCycles[[#This Row],[EndRdDate]])*KCITempAct[KCIHDDAdj]) -> 159 | J51: =NWCycles[[#This Row],[NDD]]-NWCycles[[#This Row],[ADD]] -> 91.76666667 | K51: =NWCycles[[#This Row],[HDDDiff]]*NWCycles[[#This Row],[NoOfBills]] -> 194728.8667 | L51: =SUMPRODUCT((BetaCoeff[BeginDate]<=NWCycles[[#This Row],[MonthFlow]])*(BetaCoeff[EndDate]>NWCycles[[#This Row],[MonthFlow]])*(BetaCoeff[CustClass]=NWCycles[[#This Row],[CustClass]])*BetaCoeff[BetaCoeff]) -> 0.1234365 | M51: =NWCycles[[#This Row],[Diff*NoOfBills]]*NWCycles[[#This Row],[BetaCoeff]] -> 24036.64975 | N51: =INDEX(RateCat[CustClass],MATCH(NWCycles[[#This Row],[RateCategory]],RateCat[RateCategory],0)) -> Res | O51: Customer count from Revenue Dept.
A52: 45413 | B52: =EDATE(NWCycles[[#This Row],[MonthFlow]],1) -> 45444 | C52: EGGR_RS | D52: 13 | E52: 2690 | F52: =SUMPRODUCT((MeterReadSch2[MonthBill]=NWCycles[[#This Row],[MonthFlow]])*(MeterReadSch2[Cycle]=NWCycles[[#This Row],[Cycle]])*MeterReadSch2[ReadDate]) -> 45394 | G52: =SUMPRODUCT((MeterReadSch2[MonthFlow]=NWCycles[[#This Row],[MonthFlow]])*(MeterReadSch2[Cycle]=NWCycles[[#This Row],[Cycle]])*MeterReadSch2[ReadDate]) -> 45426 | H52: =SUMPRODUCT((KCITempAct[Date]>=NWCycles[[#This Row],[BegRdDate]])*(KCITempAct[Date]<NWCycles[[#This Row],[EndRdDate]])*KCITempAct[KCINHDDAdj]) -> 243.5666667 | I52: =SUMPRODUCT((KCITempAct[Date]>=NWCycles[[#This Row],[BegRdDate]])*(KCITempAct[Date]<NWCycles[[#This Row],[EndRdDate]])*KCITempAct[KCIHDDAdj]) -> 150.5 | J52: =NWCycles[[#This Row],[NDD]]-NWCycles[[#This Row],[ADD]] -> 93.06666667 | K52: =NWCycles[[#This Row],[HDDDiff]]*NWCycles[[#This Row],[NoOfBills]] -> 250349.3333 | L52: =SUMPRODUCT((BetaCoeff[BeginDate]<=NWCycles[[#This Row],[MonthFlow]])*(BetaCoeff[EndDate]>NWCycles[[#This Row],[MonthFlow]])*(BetaCoeff[CustClass]=NWCycles[[#This Row],[CustClass]])*BetaCoeff[BetaCoeff]) -> 0.1234365 | M52: =NWCycles[[#This Row],[Diff*NoOfBills]]*NWCycles[[#This Row],[BetaCoeff]] -> 30902.24548 | N52: =INDEX(RateCat[CustClass],MATCH(NWCycles[[#This Row],[RateCategory]],RateCat[RateCategory],0)) -> Res | O52: Customer count from Revenue Dept.
A53: 45444 | B53: =EDATE(NWCycles[[#This Row],[MonthFlow]],1) -> 45474 | C53: EGGC_SGS | D53: 12 | E53: 291 | F53: =SUMPRODUCT((MeterReadSch2[MonthBill]=NWCycles[[#This Row],[MonthFlow]])*(MeterReadSch2[Cycle]=NWCycles[[#This Row],[Cycle]])*MeterReadSch2[ReadDate]) -> 45425 | G53: =SUMPRODUCT((MeterReadSch2[MonthFlow]=NWCycles[[#This Row],[MonthFlow]])*(MeterReadSch2[Cycle]=NWCycles[[#This Row],[Cycle]])*MeterReadSch2[ReadDate]) -> 45456 | H53: =SUMPRODUCT((KCITempAct[Date]>=NWCycles[[#This Row],[BegRdDate]])*(KCITempAct[Date]<NWCycles[[#This Row],[EndRdDate]])*KCITempAct[KCINHDDAdj]) -> 52.83333333 | I53: =SUMPRODUCT((KCITempAct[Date]>=NWCycles[[#This Row],[BegRdDate]])*(KCITempAct[Date]<NWCycles[[#This Row],[EndRdDate]])*KCITempAct[KCIHDDAdj]) -> 7 | J53: =NWCycles[[#This Row],[NDD]]-NWCycles[[#This Row],[ADD]] -> 45.83333333 | K53: =NWCycles[[#This Row],[HDDDiff]]*NWCycles[[#This Row],[NoOfBills]] -> 13337.5 | L53: =SUMPRODUCT((BetaCoeff[BeginDate]<=NWCycles[[#This Row],[MonthFlow]])*(BetaCoeff[EndDate]>NWCycles[[#This Row],[MonthFlow]])*(BetaCoeff[CustClass]=NWCycles[[#This Row],[CustClass]])*BetaCoeff[BetaCoeff]) -> 0.2793279 | M53: =NWCycles[[#This Row],[Diff*NoOfBills]]*NWCycles[[#This Row],[BetaCoeff]] -> 3725.535866 | N53: =INDEX(RateCat[CustClass],MATCH(NWCycles[[#This Row],[RateCategory]],RateCat[RateCategory],0)) -> Comm
A54: 45444 | B54: =EDATE(NWCycles[[#This Row],[MonthFlow]],1) -> 45474 | C54: EGGC_SGS | D54: 13 | E54: 271 | F54: =SUMPRODUCT((MeterReadSch2[MonthBill]=NWCycles[[#This Row],[MonthFlow]])*(MeterReadSch2[Cycle]=NWCycles[[#This Row],[Cycle]])*MeterReadSch2[ReadDate]) -> 45426 | G54: =SUMPRODUCT((MeterReadSch2[MonthFlow]=NWCycles[[#This Row],[MonthFlow]])*(MeterReadSch2[Cycle]=NWCycles[[#This Row],[Cycle]])*MeterReadSch2[ReadDate]) -> 45457 | H54: =SUMPRODUCT((KCITempAct[Date]>=NWCycles[[#This Row],[BegRdDate]])*(KCITempAct[Date]<NWCycles[[#This Row],[EndRdDate]])*KCITempAct[KCINHDDAdj]) -> 48.06666667 | I54: =SUMPRODUCT((KCITempAct[Date]>=NWCycles[[#This Row],[BegRdDate]])*(KCITempAct[Date]<NWCycles[[#This Row],[EndRdDate]])*KCITempAct[KCIHDDAdj]) -> 5 | J54: =NWCycles[[#This Row],[NDD]]-NWCycles[[#This Row],[ADD]] -> 43.06666667 | K54: =NWCycles[[#This Row],[HDDDiff]]*NWCycles[[#This Row],[NoOfBills]] -> 11671.06667 | L54: =SUMPRODUCT((BetaCoeff[BeginDate]<=NWCycles[[#This Row],[MonthFlow]])*(BetaCoeff[EndDate]>NWCycles[[#This Row],[MonthFlow]])*(BetaCoeff[CustClass]=NWCycles[[#This Row],[CustClass]])*BetaCoeff[BetaCoeff]) -> 0.2793279 | M54: =NWCycles[[#This Row],[Diff*NoOfBills]]*NWCycles[[#This Row],[BetaCoeff]] -> 3260.054543 | N54: =INDEX(RateCat[CustClass],MATCH(NWCycles[[#This Row],[RateCategory]],RateCat[RateCategory],0)) -> Comm
A55: 45444 | B55: =EDATE(NWCycles[[#This Row],[MonthFlow]],1) -> 45474 | C55: EGGC_SGS | D55: 20 | E55: 11 | F55: =SUMPRODUCT((MeterReadSch2[MonthBill]=NWCycles[[#This Row],[MonthFlow]])*(MeterReadSch2[Cycle]=NWCycles[[#This Row],[Cycle]])*MeterReadSch2[ReadDate]) -> 45435 | G55: =SUMPRODUCT((MeterReadSch2[MonthFlow]=NWCycles[[#This Row],[MonthFlow]])*(MeterReadSch2[Cycle]=NWCycles[[#This Row],[Cycle]])*MeterReadSch2[ReadDate]) -> 45468 | H55: =SUMPRODUCT((KCITempAct[Date]>=NWCycles[[#This Row],[BegRdDate]])*(KCITempAct[Date]<NWCycles[[#This Row],[EndRdDate]])*KCITempAct[KCINHDDAdj]) -> 20.83333333 | I55: =SUMPRODUCT((KCITempAct[Date]>=NWCycles[[#This Row],[BegRdDate]])*(KCITempAct[Date]<NWCycles[[#This Row],[EndRdDate]])*KCITempAct[KCIHDDAdj]) -> 0 | J55: =NWCycles[[#This Row],[NDD]]-NWCycles[[#This Row],[ADD]] -> 20.83333333 | K55: =NWCycles[[#This Row],[HDDDiff]]*NWCycles[[#This Row],[NoOfBills]] -> 229.1666667 | L55: =SUMPRODUCT((BetaCoeff[BeginDate]<=NWCycles[[#This Row],[MonthFlow]])*(BetaCoeff[EndDate]>NWCycles[[#This Row],[MonthFlow]])*(BetaCoeff[CustClass]=NWCycles[[#This Row],[CustClass]])*BetaCoeff[BetaCoeff]) -> 0.2793279 | M55: =NWCycles[[#This Row],[Diff*NoOfBills]]*NWCycles[[#This Row],[BetaCoeff]] -> 64.01264375 | N55: =INDEX(RateCat[CustClass],MATCH(NWCycles[[#This Row],[RateCategory]],RateCat[RateCategory],0)) -> Comm
A56: 45444 | B56: =EDATE(NWCycles[[#This Row],[MonthFlow]],1) -> 45474 | C56: EGGR_RS | D56: 12 | E56: 2009 | F56: =SUMPRODUCT((MeterReadSch2[MonthBill]=NWCycles[[#This Row],[MonthFlow]])*(MeterReadSch2[Cycle]=NWCycles[[#This Row],[Cycle]])*MeterReadSch2[ReadDate]) -> 45425 | G56: =SUMPRODUCT((MeterReadSch2[MonthFlow]=NWCycles[[#This Row],[MonthFlow]])*(MeterReadSch2[Cycle]=NWCycles[[#This Row],[Cycle]])*MeterReadSch2[ReadDate]) -> 45456 | H56: =SUMPRODUCT((KCITempAct[Date]>=NWCycles[[#This Row],[BegRdDate]])*(KCITempAct[Date]<NWCycles[[#This Row],[EndRdDate]])*KCITempAct[KCINHDDAdj]) -> 52.83333333 | I56: =SUMPRODUCT((KCITempAct[Date]>=NWCycles[[#This Row],[BegRdDate]])*(KCITempAct[Date]<NWCycles[[#This Row],[EndRdDate]])*KCITempAct[KCIHDDAdj]) -> 7 | J56: =NWCycles[[#This Row],[NDD]]-NWCycles[[#This Row],[ADD]] -> 45.83333333 | K56: =NWCycles[[#This Row],[HDDDiff]]*NWCycles[[#This Row],[NoOfBills]] -> 92079.16667 | L56: =SUMPRODUCT((BetaCoeff[BeginDate]<=NWCycles[[#This Row],[MonthFlow]])*(BetaCoeff[EndDate]>NWCycles[[#This Row],[MonthFlow]])*(BetaCoeff[CustClass]=NWCycles[[#This Row],[CustClass]])*BetaCoeff[BetaCoeff]) -> 0.1234365 | M56: =NWCycles[[#This Row],[Diff*NoOfBills]]*NWCycles[[#This Row],[BetaCoeff]] -> 11365.93006 | N56: =INDEX(RateCat[CustClass],MATCH(NWCycles[[#This Row],[RateCategory]],RateCat[RateCategory],0)) -> Res
A57: 45444 | B57: =EDATE(NWCycles[[#This Row],[MonthFlow]],1) -> 45474 | C57: EGGR_RS | D57: 13 | E57: 2493 | F57: =SUMPRODUCT((MeterReadSch2[MonthBill]=NWCycles[[#This Row],[MonthFlow]])*(MeterReadSch2[Cycle]=NWCycles[[#This Row],[Cycle]])*MeterReadSch2[ReadDate]) -> 45426 | G57: =SUMPRODUCT((MeterReadSch2[MonthFlow]=NWCycles[[#This Row],[MonthFlow]])*(MeterReadSch2[Cycle]=NWCycles[[#This Row],[Cycle]])*MeterReadSch2[ReadDate]) -> 45457 | H57: =SUMPRODUCT((KCITempAct[Date]>=NWCycles[[#This Row],[BegRdDate]])*(KCITempAct[Date]<NWCycles[[#This Row],[EndRdDate]])*KCITempAct[KCINHDDAdj]) -> 48.06666667 | I57: =SUMPRODUCT((KCITempAct[Date]>=NWCycles[[#This Row],[BegRdDate]])*(KCITempAct[Date]<NWCycles[[#This Row],[EndRdDate]])*KCITempAct[KCIHDDAdj]) -> 5 | J57: =NWCycles[[#This Row],[NDD]]-NWCycles[[#This Row],[ADD]] -> 43.06666667 | K57: =NWCycles[[#This Row],[HDDDiff]]*NWCycles[[#This Row],[NoOfBills]] -> 107365.2 | L57: =SUMPRODUCT((BetaCoeff[BeginDate]<=NWCycles[[#This Row],[MonthFlow]])*(BetaCoeff[EndDate]>NWCycles[[#This Row],[MonthFlow]])*(BetaCoeff[CustClass]=NWCycles[[#This Row],[CustClass]])*BetaCoeff[BetaCoeff]) -> 0.1234365 | M57: =NWCycles[[#This Row],[Diff*NoOfBills]]*NWCycles[[#This Row],[BetaCoeff]] -> 13252.78451 | N57: =INDEX(RateCat[CustClass],MATCH(NWCycles[[#This Row],[RateCategory]],RateCat[RateCategory],0)) -> Res

Sheet South Cycles
A1: MonthFlow | B1: MonthBill | C1: RateCategory | D1: Cycle | E1: NoOfBills | F1: BegRdDate | G1: EndRdDate | H1: NDD | I1: ADD | J1: HDDDiff | K1: Diff*NoOfBills | L1: BetaCoeff | M1: WNAFactor | N1: CustClass | O1: Preparer's Notes | P1: Reviewer's Notes
A2: 44805 | B2: =EDATE(SouthCycles[[#This Row],[MonthFlow]],1) -> 44835 | C2: ESGC_SGS | D2: All | E2: 2713 | F2: 44803 | G2: 44833 | H2: =SUMPRODUCT((KCITempAct[Date]>=SouthCycles[[#This Row],[BegRdDate]])*(KCITempAct[Date]<SouthCycles[[#This Row],[EndRdDate]])*KCITempAct[KCINHDDAdj]) -> 45.1 | I2: =SUMPRODUCT((KCITempAct[Date]>=SouthCycles[[#This Row],[BegRdDate]])*(KCITempAct[Date]<SouthCycles[[#This Row],[EndRdDate]])*KCITempAct[KCIHDDAdj]) -> 17.5 | J2: =SouthCycles[[#This Row],[NDD]]-SouthCycles[[#This Row],[ADD]] -> 27.6 | K2: =SouthCycles[[#This Row],[HDDDiff]]*SouthCycles[[#This Row],[NoOfBills]] -> 74878.8 | L2: =SUMPRODUCT((BetaCoeff[BeginDate]<=SouthCycles[[#This Row],[MonthFlow]])*(BetaCoeff[EndDate]>SouthCycles[[#This Row],[MonthFlow]])*(BetaCoeff[CustClass]=SouthCycles[[#This Row],[CustClass]])*BetaCoeff[BetaCoeff]) -> 0.2793279 | M2: =SouthCycles[[#This Row],[Diff*NoOfBills]]*SouthCycles[[#This Row],[BetaCoeff]] -> 20915.73796 | N2: =INDEX(RateCat[CustClass],MATCH(SouthCycles[[#This Row],[RateCategory]],RateCat[RateCategory],0)) -> Comm | O2: Customer count from Revenue Dept.
A3: 44805 | B3: =EDATE(SouthCycles[[#This Row],[MonthFlow]],1) -> 44835 | C3: ESGR_RS | D3: All | E3: 24699 | F3: 44803 | G3: 44833 | H3: =SUMPRODUCT((KCITempAct[Date]>=SouthCycles[[#This Row],[BegRdDate]])*(KCITempAct[Date]<SouthCycles[[#This Row],[EndRdDate]])*KCITempAct[KCINHDDAdj]) -> 45.1 | I3: =SUMPRODUCT((KCITempAct[Date]>=SouthCycles[[#This Row],[BegRdDate]])*(KCITempAct[Date]<SouthCycles[[#This Row],[EndRdDate]])*KCITempAct[KCIHDDAdj]) -> 17.5 | J3: =SouthCycles[[#This Row],[NDD]]-SouthCycles[[#This Row],[ADD]] -> 27.6 | K3: =SouthCycles[[#This Row],[HDDDiff]]*SouthCycles[[#This Row],[NoOfBills]] -> 681692.4 | L3: =SUMPRODUCT((BetaCoeff[BeginDate]<=SouthCycles[[#This Row],[MonthFlow]])*(BetaCoeff[EndDate]>SouthCycles[[#This Row],[MonthFlow]])*(BetaCoeff[CustClass]=SouthCycles[[#This Row],[CustClass]])*BetaCoeff[BetaCoeff]) -> 0.1234365 | M3: =SouthCycles[[#This Row],[Diff*NoOfBills]]*SouthCycles[[#This Row],[BetaCoeff]] -> 84145.72393 | N3: =INDEX(RateCat[CustClass],MATCH(SouthCycles[[#This Row],[RateCategory]],RateCat[RateCategory],0)) -> Res | O3: Customer count from Revenue Dept.
A4: 44835 | B4: =EDATE(SouthCycles[[#This Row],[MonthFlow]],1) -> 44866 | C4: ESGC_SGS | D4: All | E4: 2742 | F4: 44833 | G4: 44865 | H4: =SUMPRODUCT((KCITempAct[Date]>=SouthCycles[[#This Row],[BegRdDate]])*(KCITempAct[Date]<SouthCycles[[#This Row],[EndRdDate]])*KCITempAct[KCINHDDAdj]) -> 282.1333333 | I4: =SUMPRODUCT((KCITempAct[Date]>=SouthCycles[[#This Row],[BegRdDate]])*(KCITempAct[Date]<SouthCycles[[#This Row],[EndRdDate]])*KCITempAct[KCIHDDAdj]) -> 234.5 | J4: =SouthCycles[[#This Row],[NDD]]-SouthCycles[[#This Row],[ADD]] -> 47.63333333 | K4: =SouthCycles[[#This Row],[HDDDiff]]*SouthCycles[[#This Row],[NoOfBills]] -> 130610.6 | L4: =SUMPRODUCT((BetaCoeff[BeginDate]<=SouthCycles[[#This Row],[MonthFlow]])*(BetaCoeff[EndDate]>SouthCycles[[#This Row],[MonthFlow]])*(BetaCoeff[CustClass]=SouthCycles[[#This Row],[CustClass]])*BetaCoeff[BetaCoeff]) -> 0.2793279 | M4: =SouthCycles[[#This Row],[Diff*NoOfBills]]*SouthCycles[[#This Row],[BetaCoeff]] -> 36483.18462 | N4: =INDEX(RateCat[CustClass],MATCH(SouthCycles[[#This Row],[RateCategory]],RateCat[RateCategory],0)) -> Comm | O4: Customer count from Revenue Dept.
A5: 44835 | B5: =EDATE(SouthCycles[[#This Row],[MonthFlow]],1) -> 44866 | C5: ESGR_RS | D5: All | E5: 25025 | F5: 44833 | G5: 44865 | H5: =SUMPRODUCT((KCITempAct[Date]>=SouthCycles[[#This Row],[BegRdDate]])*(KCITempAct[Date]<SouthCycles[[#This Row],[EndRdDate]])*KCITempAct[KCINHDDAdj]) -> 282.1333333 | I5: =SUMPRODUCT((KCITempAct[Date]>=SouthCycles[[#This Row],[BegRdDate]])*(KCITempAct[Date]<SouthCycles[[#This Row],[EndRdDate]])*KCITempAct[KCIHDDAdj]) -> 234.5 | J5: =SouthCycles[[#This Row],[NDD]]-SouthCycles[[#This Row],[ADD]] -> 47.63333333 | K5: =SouthCycles[[#This Row],[HDDDiff]]*SouthCycles[[#This Row],[NoOfBills]] -> 1192024.167 | L5: =SUMPRODUCT((BetaCoeff[BeginDate]<=SouthCycles[[#This Row],[MonthFlow]])*(BetaCoeff[EndDate]>SouthCycles[[#This Row],[MonthFlow]])*(BetaCoeff[CustClass]=SouthCycles[[#This Row],[CustClass]])*BetaCoeff[BetaCoeff]) -> 0.1234365 | M5: =SouthCycles[[#This Row],[Diff*NoOfBills]]*SouthCycles[[#This Row],[BetaCoeff]] -> 147139.291 | N5: =INDEX(RateCat[CustClass],MATCH(SouthCycles[[#This Row],[RateCategory]],RateCat[RateCategory],0)) -> Res | O5: Customer count from Revenue Dept.
A6: 44866 | B6: =EDATE(SouthCycles[[#This Row],[MonthFlow]],1) -> 44896 | C6: ESGC_SGS | D6: All | E6: 2768 | F6: 44865 | G6: 44894 | H6: =SUMPRODUCT((KCITempAct[Date]>=SouthCycles[[#This Row],[BegRdDate]])*(KCITempAct[Date]<SouthCycles[[#This Row],[EndRdDate]])*KCITempAct[KCINHDDAdj]) -> 601.65 | I6: =SUMPRODUCT((KCITempAct[Date]>=SouthCycles[[#This Row],[BegRdDate]])*(KCITempAct[Date]<SouthCycles[[#This Row],[EndRdDate]])*KCITempAct[KCIHDDAdj]) -> 589.5 | J6: =SouthCycles[[#This Row],[NDD]]-SouthCycles[[#This Row],[ADD]] -> 12.15 | K6: =SouthCycles[[#This Row],[HDDDiff]]*SouthCycles[[#This Row],[NoOfBills]] -> 33631.2 | L6: =SUMPRODUCT((BetaCoeff[BeginDate]<=SouthCycles[[#This Row],[MonthFlow]])*(BetaCoeff[EndDate]>SouthCycles[[#This Row],[MonthFlow]])*(BetaCoeff[CustClass]=SouthCycles[[#This Row],[CustClass]])*BetaCoeff[BetaCoeff]) -> 0.2793279 | M6: =SouthCycles[[#This Row],[Diff*NoOfBills]]*SouthCycles[[#This Row],[BetaCoeff]] -> 9394.13247 | N6: =INDEX(RateCat[CustClass],MATCH(SouthCycles[[#This Row],[RateCategory]],RateCat[RateCategory],0)) -> Comm | O6: Customer count from Revenue Dept.
A7: 44866 | B7: =EDATE(SouthCycles[[#This Row],[MonthFlow]],1) -> 44896 | C7: ESGR_RS | D7: All | E7: 25172 | F7: 44865 | G7: 44894 | H7: =SUMPRODUCT((KCITempAct[Date]>=SouthCycles[[#This Row],[BegRdDate]])*(KCITempAct[Date]<SouthCycles[[#This Row],[EndRdDate]])*KCITempAct[KCINHDDAdj]) -> 601.65 | I7: =SUMPRODUCT((KCITempAct[Date]>=SouthCycles[[#This Row],[BegRdDate]])*(KCITempAct[Date]<SouthCycles[[#This Row],[EndRdDate]])*KCITempAct[KCIHDDAdj]) -> 589.5 | J7: =SouthCycles[[#This Row],[NDD]]-SouthCycles[[#This Row],[ADD]] -> 12.15 | K7: =SouthCycles[[#This Row],[HDDDiff]]*SouthCycles[[#This Row],[NoOfBills]] -> 305839.8 | L7: =SUMPRODUCT((BetaCoeff[BeginDate]<=SouthCycles[[#This Row],[MonthFlow]])*(BetaCoeff[EndDate]>SouthCycles[[#This Row],[MonthFlow]])*(BetaCoeff[CustClass]=SouthCycles[[#This Row],[CustClass]])*BetaCoeff[BetaCoeff]) -> 0.1234365 | M7: =SouthCycles[[#This Row],[Diff*NoOfBills]]*SouthCycles[[#This Row],[BetaCoeff]] -> 37751.79447 | N7: =INDEX(RateCat[CustClass],MATCH(SouthCycles[[#This Row],[RateCategory]],RateCat[RateCategory],0)) -> Res | O7: Customer count from Revenue Dept.
A8: 44896 | B8: =EDATE(SouthCycles[[#This Row],[MonthFlow]],1) -> 44927 | C8: ESGC_SGS | D8: All | E8: 2766 | F8: 44894 | G8: 44924 | H8: =SUMPRODUCT((KCITempAct[Date]>=SouthCycles[[#This Row],[BegRdDate]])*(KCITempAct[Date]<SouthCycles[[#This Row],[EndRdDate]])*KCITempAct[KCINHDDAdj]) -> 935.5166667 | I8: =SUMPRODUCT((KCITempAct[Date]>=SouthCycles[[#This Row],[BegRdDate]])*(KCITempAct[Date]<SouthCycles[[#This Row],[EndRdDate]])*KCITempAct[KCIHDDAdj]) -> 991 | J8: =SouthCycles[[#This Row],[NDD]]-SouthCycles[[#This Row],[ADD]] -> -55.48333333 | K8: =SouthCycles[[#This Row],[HDDDiff]]*SouthCycles[[#This Row],[NoOfBills]] -> -153466.9 | L8: =SUMPRODUCT((BetaCoeff[BeginDate]<=SouthCycles[[#This Row],[MonthFlow]])*(BetaCoeff[EndDate]>SouthCycles[[#This Row],[MonthFlow]])*(BetaCoeff[CustClass]=SouthCycles[[#This Row],[CustClass]])*BetaCoeff[BetaCoeff]) -> 0.2793279 | M8: =SouthCycles[[#This Row],[Diff*NoOfBills]]*SouthCycles[[#This Row],[BetaCoeff]] -> -42867.5869 | N8: =INDEX(RateCat[CustClass],MATCH(SouthCycles[[#This Row],[RateCategory]],RateCat[RateCategory],0)) -> Comm | O8: Customer count from Revenue Dept.
A9: 44896 | B9: =EDATE(SouthCycles[[#This Row],[MonthFlow]],1) -> 44927 | C9: ESGR_RS | D9: All | E9: 25231 | F9: 44894 | G9: 44924 | H9: =SUMPRODUCT((KCITempAct[Date]>=SouthCycles[[#This Row],[BegRdDate]])*(KCITempAct[Date]<SouthCycles[[#This Row],[EndRdDate]])*KCITempAct[KCINHDDAdj]) -> 935.5166667 | I9: =SUMPRODUCT((KCITempAct[Date]>=SouthCycles[[#This Row],[BegRdDate]])*(KCITempAct[Date]<SouthCycles[[#This Row],[EndRdDate]])*KCITempAct[KCIHDDAdj]) -> 991 | J9: =SouthCycles[[#This Row],[NDD]]-SouthCycles[[#This Row],[ADD]] -> -55.48333333 | K9: =SouthCycles[[#This Row],[HDDDiff]]*SouthCycles[[#This Row],[NoOfBills]] -> -1399899.983 | L9: =SUMPRODUCT((BetaCoeff[BeginDate]<=SouthCycles[[#This Row],[MonthFlow]])*(BetaCoeff[EndDate]>SouthCycles[[#This Row],[MonthFlow]])*(BetaCoeff[CustClass]=SouthCycles[[#This Row],[CustClass]])*BetaCoeff[BetaCoeff]) -> 0.1234365 | M9: =SouthCycles[[#This Row],[Diff*NoOfBills]]*SouthCycles[[#This Row],[BetaCoeff]] -> -172798.7543 | N9: =INDEX(RateCat[CustClass],MATCH(SouthCycles[[#This Row],[RateCategory]],RateCat[RateCategory],0)) -> Res | O9: Customer count from Revenue Dept.
